Workbook

Sheet Instructions
A1: Georgia Stormwater Management Manual Stormwater Quality Site Development Review Tool Version 2.2
A6: Introduction
A7: The Site Development Review Tool is an automated Excel spreadsheet tool that was developed to facilitate the evaluation of development projects in accordance with recommendations in the Georgia Stormwater Management Manual. This Tool allows both developers and local government review staff to evaluate the water quality performance of stormwater management plans for proposed land development projects. This Tool is not intended to replace required hydraulic modeling.
A13: The following instructions provide a basic overview of the Tool. The User's Manual provides more detailed information about the inputs and the calculations, frequently asked questions, and example sites.
A17: Using the Tool
A18: The Site Development Review Tool is used to evaluate the expected stormwater runoff quality from a proposed site design. It can be used for both residential and commercial developments, and allows site designers to easily perform “what if” analyses using different design scenarios.
A22: The goal of using the Site Development Review Tool is to prepare a stormwater management system design that achieves either runoff reduction of the first one inch of rainfall or 80% reduction in the average annual total suspended solids (TSS) loading leaving the site from the 1.2-inch storm. This can be achieved through any combination of approaches, including runoff reduction practices.
A27: The Site Development Review Tool assumes that all of the runoff leaving the site is going to a common downstream drainage area, stream or other water body. For a development that lies in two or more distinct watersheds, the site should be divided up and a separate copy of the Tool be run and submitted for each watershed.
A32: Overview of the Tool
A33: The Site Development Review Tool has three main components:
A34: (1) Summary
A35: (2) Runoff Reduction and TSS Removal Efficiencies
A36: (3) Drainage Basin Worksheets
A38: When working with the Tool, the following color shading is used:
A39: (1) All cells highlighted green are a user input
A40: (2) All cells highlighted gray are calculated values
A41: (3) All cells highlighted yellow are constant values
A42: (4) All cells highlighted orange require input from the local review staff
A44: All other cells are password-protected and cannot be changed.
A46: Summary
A47: The Summary worksheet has three sections.
A49: Section 1: General Information
A50: The first section requires the user to fill out general site information. This includes the Name of Developer, Name of Development, Site Location and Address, Type of Development or Land Use Category (to be selected from a pull-down list), Date Submitted, Permit Number (if applicable), Contact Name and Phone Number, Name of Engineer, and Party Responsible for Long-Term Stormwater Maintenance.
A55: Section 2: Site Summary
A56: The second section presents the total pre- and post-developed area as well as the total treated and untreated areas of the project. It then summarizes the drainage area of each basin by impervious area (I), pervious area (P), and conservation area (CA). Based on the inputs for each drainage basin, the Site Summary section indicates whether the TSS removal and runoff reduction targets were met. Graphs are presented to visually display the TSS removal and runoff reduction in each drainage basin.
A62: Section 3: Official Use Only
A63: The third section is used for comments and tracking purposes by local review staff. Leave this blank unless given instructions by the local review authority.
A66: Runoff Reduction and TSS Removal Efficiencies
A67: The Runoff Reduction and TSS Removal Efficiencies Worksheet lists each BMP with its corresponding runoff reduction and TSS removal efficiencies. Some of the BMPs are designed to store a volume of water prior to runoff being infiltrated or discharged. Examples include bioretention basins and stormwater ponds. Some of the BMPs, on the other hand, do not store stormwater runoff, such as downspout disconnects and grass channels. This designation affects how runoff reduction volume achieved is calculated in the individual Drainage Basin Worksheets.
A74: The TSS removal efficiency and/or runoff reduction efficiency can vary for the three BMPs listed below. If using one or more of these BMPs, the user must input the following values. It is recommended that the local review authority require back-up documentation supporting these user inputs.
A76: Multi-Purpose Detention Basins: | D76: TSS Removal Efficiency
A77: Proprietary Systems: | D77: Runoff Reduction and TSS Removal Efficiency
A78: Rainwater Harvesting: | D78: Runoff Reduction and TSS Removal Efficiency
A80: In addition, there are three User Input options in the event a BMP to be used on a project is not included in the list provided. The User Input option could also be used to designate differences in trapping efficiencies of a BMP included in the list due to design modifications, such as the use of a geomembrane. It is recommended that the local review authority require back-up documentation supporting these user inputs.
A86: Drainage Basin Worksheets
A87: The Drainage Basin Worksheets are used to provide the land use and stormwater management information for the proposed site. This tool allows a proposed development to be split into 10 drainage areas. On many sites, there is more than one drainage outlet from the site or it may not be physically possible to treat the runoff from the entire site at a single location. In these cases, the proposed site needs to be evaluated as two or more separate drainage areas, with the information for each area provided on a separate Drainage Basin Worksheet. There could be an exception, however, if the outflow from one drainage basin or a portion of a drainage basin is routed to another drainage basin. In this scenario, the drainage basins would be modeled in one Drainage Basin Worksheet, the basin would be named accordingly, and notes would be added to the Comments section, if necessary, to describe the treatment train and drainage path. Note that stormwater runoff treatment in every drainage basin is not necessarily required in order to meet the project level water quality requirements.
A99: Each Drainage Basin Worksheet includes an input for the Drainage Basin name. The Drainage Basin Worksheet has the following six sections: Site Data, Conservation Area Credits, Water Quality Goals, Select BMPs for Runoff Reduction & Water Quality, Channel & Flood Protection Calculations, and Comments.
A104: Section 1: Site Data
A105: The Site Data section is where the user inputs the pre- and post-development drainage basin characteristics. Characteristics include the amount of area associated with each land cover and soil type. The curve number will automatically populate based on the land cover and soil type selected. There are two user input options for land cover type: local jurisdiction input and other. The user may overwrite the name of the land cover description and input the appropriate curve numbers associated with each soil type. It is recommended that notes be added at the bottom of the page if inputting curve numbers not specified in the drop-down list or required by the local jurisdiction.
A113: Section 2: Conservation Area Credits
A114: The Conservation Area Credits section is where the user has the option to indicate whether a portion of the drainage basin is protected under a conservation easement or equivalent form of protection. There are four scenarios that could qualify for a conservation area credit. If a portion of the drainage basin is protected under one of the four scenarios, check the appropriate box and the corresponding area input cell will unlock.
A120: Scenario 1: Natural Conservation Area
A121: Scenario 1 is applicable if a portion of the post-developed area is left in its natural condition and protected, in perpetuity, by a conservation easement or equivalent form of protection. If this scenario is applicable, 100% of the protected natural area will be subtracted from the total site area when calculating the water quality volume. See the GSMM Volume 2, Section 2.3.3.3 for more information.
A126: Scenario 2: Reforestation/Revegetation
A127: Scenario 2 is applicable if a portion of the post-developed area employs site reforestation/revegetation and is protected, in perpetuity, by a conservation easement or equivalent form of protection. If this application is used alone, 50% of the reforested/revegetated area will be subtracted from the total site area when calculating the water quality volume. See the GSMM Volume 2, Section 4.22 for more information.
A132: Scenario 3: Soil Restoration
A133: Scenario 3 is applicable if a portion of the post-developed area employs soil restoration and is protected, in perpetuity, by a conservation easement or equivalent form of protection. If this application is used alone, 50% of the soil restoration area will be subtracted from the total site area when calculating the water quality volume. See the GSMM Volume 2, Section 4.23 for more information.
A137: Scenario 4: Reforestation/Revegetation & Soil Restoration
A138: Scenario 4 is applicable if the same portion of the post-developed area employs site reforestation/revegetation as well as soil restoration and is protected, in perpetuity, by a conservation easement or equivalent form of protection. 100% of the acres of development with restored soils in a reforested and revegetated area will be subtracted from the total site area when calculating the water quality volume. See the GSMM Volume 2, Section 4.22 and 4.23 for more information.
A143: Section 3: Water Quality Goals
A144: The Water Quality Goals section calculates the target runoff reduction volume and the target water quality volume. A default value of one inch is used as the target runoff reduction storm event based on the guidance in the GSMM, but the value may be changed if the local jurisdiction requires more or less stringent runoff reduction goals. A default value of 1.2 inches is used as the target water quality storm event.
A151: Section 4: Select BMPs for Runoff Reduction and Water Quality
A152: Section 4 is where the user inputs the BMPs in each drainage basin. The user must calculate outside the tool the amount of impervious area and disturbed pervious area that drains to each BMP as well as the amount of offsite area, if applicable. Please note that no water quality credit is given for treating offsite area; only on-site area routed to a BMP will be used in the runoff reduction and TSS calculations.
A157: For the BMPs that have a storage volume, the user must input the storage volume provided by the BMP. The storage volume is equal to the ponding volume plus the void space in the media, if applicable. This input is used to calculate the runoff reduction achieved by the practice. If the BMP does not have a storage volume, no value can be entered in the 'Storage Volume Provided by BMP' column. The Tool then uses the total volume received by the practice to calculate the runoff reduction achieved by the practice.
A163: Each BMP is assigned an Effective TSS Removal Efficiency based on accepted, published research. The Effective TSS Removal Efficiency takes into account the total amount of TSS removed by the practice, regardless of the method of removal. For example, if a BMP achieves 80% TSS removal, a portion of that percentage could be achieved through infiltration and a portion through settling. Therefore, the Effective TSS Removal Efficiency takes into account the TSS removed through runoff reduction practices. For calculating TSS Removal, the Tool assumes for one cubic foot of water quality volume, there is one “unit” of TSS. The “unit” is not a specific measure of actual TSS in the water quality volume. The TSS Removal Achieved is calculated by multiplying the TSS Removal Efficiency by the total TSS "units" received by the practice. Please note that BMPs may not receive additional TSS removal credit by oversizing BMPs.
A173: The user may indicate a treatment train by designating downstream BMPs. Multiple BMPs may be used in a drainage basin, however, without being part of a treatment train. The Tool indicates whether the target runoff reduction volume and target TSS removal goal were achieved for the drainage basin.
A177: Section 5: Channel and Flood Protection Calculations
A178: In Section 5, the user must input the target rainfall event (in) for the 1-year, 2-year, 25-year, and 100-year, 24-hour storm events. The Tool calculates the adjusted curve number and indicates whether the post-development peak flow is greater than the pre-development peak flow.
A182: Section 6: Comments
A183: The user and/or reviewer has the option to enter comments about the drainage basin.

Sheet Tool Flowchart

Sheet Summary
A1: Georgia Stormwater Management Manual Stormwater Quality Site Development Review Tool Version 2.2
A7: General Information
A8: Name of Developer: | G8: Date Submitted:
A9: Development Name: | G9: Permit Number:
A10: Site Location / Address: | G10: Developer Contact:
G11: Phone Number:
G12: Name of Engineer(s):
A13: Development Type: | G13: Maintenance Responsibility:
A15: Site Summary
A16: Total Pre-Development Area (ac): | C16: =SUM('DB 1'!L23+'DB 2'!L23+'DB 3'!L23+'DB 4'!L23+'DB 5'!L23+'DB 6'!L23+'DB 7'!L23+'DB 8'!L23+'DB 9'!L23+'DB 10'!L23) -> 0
A17: Total Post-Development Area (ac): | C17: =SUM(C32:E32) -> 0
A18: Total Treated Area (ac): | C18: =SUM('DB 1'!C88:D88,'DB 2'!C88:D88,'DB 3'!C88:D88,'DB 4'!C88:D88,'DB 5'!C88:D88,'DB 6'!C88:D88,'DB 7'!C88:D88,'DB 8'!C88:D88,'DB 9'!C88:D88,'DB 10'!C88:D88) -> 0
A19: Total Untreated Area (ac): | C19: =C17-C18 -> 0
C21: I (ac) | D21: P (ac) | E21: CA (ac)
A22: =IF(ISBLANK('DB 1'!C$8),"Drainage Basin 1",'DB 1'!C$8) -> Drainage Basin 1 | B22: DB 1 | C22: ='DB 1'!$K$38 -> 0 | D22: =SUM('DB 1'!$L$30:$L$36)-'DB 1'!$K$38-E22 -> 0 | E22: ='DB 1'!$A$50+'DB 1'!$A$57+'DB 1'!$H$50+'DB 1'!$H$57 -> 0
A23: =IF(ISBLANK('DB 2'!C$8),"Drainage Basin 2",'DB 2'!C$8) -> Drainage Basin 2 | B23: DB 2 | C23: ='DB 2'!$K$38 -> 0 | D23: =SUM('DB 2'!$L$30:$L$36)-'DB 2'!$K$38-E23 -> 0 | E23: ='DB 2'!$A$50+'DB 2'!$A$57+'DB 2'!$H$50+'DB 2'!$H$57 -> 0
A24: =IF(ISBLANK('DB 3'!C$8),"Drainage Basin 3",'DB 3'!C$8) -> Drainage Basin 3 | B24: DB 3 | C24: ='DB 3'!$K$38 -> 0 | D24: =SUM('DB 3'!$L$30:$L$36)-'DB 3'!$K$38-E24 -> 0 | E24: ='DB 3'!$A$50+'DB 3'!$A$57+'DB 3'!$H$50+'DB 3'!$H$57 -> 0
A25: =IF(ISBLANK('DB 4'!C$8),"Drainage Basin 4",'DB 4'!C$8) -> Drainage Basin 4 | B25: DB 4 | C25: ='DB 4'!$K$38 -> 0 | D25: =SUM('DB 4'!$L$30:$L$36)-'DB 4'!$K$38-E25 -> 0 | E25: ='DB 4'!$A$50+'DB 4'!$A$57+'DB 4'!$H$50+'DB 4'!$H$57 -> 0
A26: =IF(ISBLANK('DB 5'!C$8),"Drainage Basin 5",'DB 5'!C$8) -> Drainage Basin 5 | B26: DB 5 | C26: ='DB 5'!$K$38 -> 0 | D26: =SUM('DB 5'!$L$30:$L$36)-'DB 5'!$K$38-E26 -> 0 | E26: ='DB 5'!$A$50+'DB 5'!$A$57+'DB 5'!$H$50+'DB 5'!$H$57 -> 0
A27: =IF(ISBLANK('DB 6'!C$8),"Drainage Basin 6",'DB 6'!C$8) -> Drainage Basin 6 | B27: DB 6 | C27: ='DB 6'!$K$38 -> 0 | D27: =SUM('DB 6'!$L$30:$L$36)-'DB 6'!$K$38-E27 -> 0 | E27: ='DB 6'!$A$50+'DB 6'!$A$57+'DB 6'!$H$50+'DB 6'!$H$57 -> 0
A28: =IF(ISBLANK('DB 7'!C$8),"Drainage Basin 7",'DB 7'!C$8) -> Drainage Basin 7 | B28: DB 7 | C28: ='DB 7'!$K$38 -> 0 | D28: =SUM('DB 7'!$L$30:$L$36)-'DB 7'!$K$38-E28 -> 0 | E28: ='DB 7'!$A$50+'DB 7'!$A$57+'DB 7'!$H$50+'DB 7'!$H$57 -> 0
A29: =IF(ISBLANK('DB 8'!C$8),"Drainage Basin 8",'DB 8'!C$8) -> Drainage Basin 8 | B29: DB 8 | C29: ='DB 8'!$K$38 -> 0 | D29: =SUM('DB 8'!$L$30:$L$36)-'DB 8'!$K$38-E29 -> 0 | E29: ='DB 8'!$A$50+'DB 8'!$A$57+'DB 8'!$H$50+'DB 8'!$H$57 -> 0
A30: =IF(ISBLANK('DB 9'!C$8),"Drainage Basin 9",'DB 9'!C$8) -> Drainage Basin 9 | B30: DB 9 | C30: ='DB 9'!$K$38 -> 0 | D30: =SUM('DB 9'!$L$30:$L$36)-'DB 9'!$K$38-E30 -> 0 | E30: ='DB 9'!$A$50+'DB 9'!$A$57+'DB 9'!$H$50+'DB 9'!$H$57 -> 0
A31: =IF(ISBLANK('DB 10'!C$8),"Drainage Basin 10",'DB 10'!C$8) -> Drainage Basin 10 | B31: DB 10 | C31: ='DB 10'!$K$38 -> 0 | D31: =SUM('DB 10'!$L$30:$L$36)-'DB 10'!$K$38-E31 -> 0 | E31: ='DB 10'!$A$50+'DB 10'!$A$57+'DB 10'!$H$50+'DB 10'!$H$57 -> 0
A32: TOTAL | C32: =SUM(C22:C31) -> 0 | D32: =SUM(D22:D31) -> 0 | E32: =SUM(E22:E31) -> 0
A33: I = Impervious Area, P = Pervious Area, CA = Conservation Area
A35: Target Runoff Reduction Volume Achieved? | D35: =IF(D38>D39,"No",IF(D38=0,"N/A","Yes")) -> N/A
A36: Target TSS Removal Achieved? | D36: =IF(D41<0.8,"No","Yes") -> No
A38: Total Target Runoff Reduction Volume (cf) | D38: =SUM('DB 1'!$I$65+'DB 2'!$I$65+'DB 3'!$I$65+'DB 4'!$I$65+'DB 5'!$I$65+'DB 6'!$I$65+'DB 7'!$I$65+'DB 8'!$I$65+'DB 9'!$I$65+'DB 10'!$I$65) -> 0
A39: Runoff Reduction Volume Achieved (cf) | D39: =SUM('DB 1'!M88+'DB 2'!M88+'DB 3'!M88+'DB 4'!M88+'DB 5'!M88+'DB 6'!M88+'DB 7'!M88+'DB 8'!M88+'DB 9'!M88+'DB 10'!M88) -> 0
A40: Total Target Water Quality Volume (cf) | D40: =SUM('DB 1'!I66+'DB 2'!I66+'DB 3'!I66+'DB 4'!I66+'DB 5'!I66+'DB 6'!I66+'DB 7'!I66+'DB 8'!I66+'DB 9'!I66+'DB 10'!I66) -> 0
A41: % TSS Removal Achieved | D41: =IFERROR(IF(SUM('DB 1'!T88+'DB 2'!T88+'DB 3'!T88+'DB 4'!T88+'DB 5'!T88+'DB 6'!T88+'DB 7'!T88+'DB 8'!T88+'DB 9'!T88+'DB 10'!T88)/SUM('DB 1'!C70+'DB 2'!C70+'DB 3'!C70+'DB 4'!C70+'DB 5'!C70+'DB 6'!C70+'DB 7'!C70+'DB 8'!C70+'DB 9'!C70+'DB 10'!C70)>1,1,IF(SUM('DB 1'!C70+'DB 2'!C70+'DB 3'!C70+'DB 4'!C70+'DB 5'!C70+'DB 6'!C70+'DB 7'!C70+'DB 8'!C70+'DB 9'!C70+'DB 10'!C70)=0,0,SUM('DB 1'!T88+'DB 2'!T88+'DB 3'!T88+'DB 4'!T88+'DB 5'!T88+'DB 6'!T88+'DB 7'!T88+'DB 8'!T88+'DB 9'!T88+'DB 10'!T88)/SUM('DB 1'!C70+'DB 2'!C70+'DB 3'!C70+'DB 4'!C70+'DB 5'!C70+'DB 6'!C70+'DB 7'!C70+'DB 8'!C70+'DB 9'!C70+'DB 10'!C70))),0) -> 0
A43: Official Use Only
A44: Tracking #: | G44: Conditions of Approval:
A45: Reviewed By:
A46: Date Approved:
A48: =IF(E32=0,"","A RECORDED CONSERVATION EASEMENT OR SIMILAR FORM OF PROTECTION IS REQUIRED FOR THIS PROJECT") -> 

Sheet RR_TSS Removal %
A1: Georgia Stormwater Management Manual Stormwater Quality Site Development Review Tool, v2.2 Runoff Reduction and TSS Removal Efficiencies
B6: data input cells | D6: constant values
D8: Runoff Reduction % | E8: Effective TSS Removal % | F8: Runoff Reduction Method | G8: Drainage Area Restrictions | H8: Units | I8: Min/Max | T8: HSG A (acres) | U8: HSG B (acres) | V8: HSG C (acres) | W8: HSG D (acres) | Z8: HSG A (acres) | AA8: HSG B (acres) | AB8: HSG C (acres) | AC8: HSG D (acres)
A9: Select a BMP… | D9: N/A | E9: N/A | S9: Select a land cover type… | T9: 1e-07 | U9: 1e-07 | V9: 1e-07 | W9: 1e-07 | Y9: Select a land cover type… | Z9: 1e-07 | AA9: 1e-07 | AB9: 1e-07 | AC9: 1e-07
A10: Bioretention Basin (w/ underdrain) | D10: 0.5 | E10: 0.85 | F10: Storage | G10: 5 | H10: acres | I10: Max | S10: Open space - Poor condition (grass cover < 50%) | T10: 68 | U10: 79 | V10: 86 | W10: 89 | Y10: Impervious | Z10: 98 | AA10: 98 | AB10: 98 | AC10: 98
A11: Bioretention Basin (w/ upturned underdrain) | D11: 0.75 | E11: 0.85 | F11: Storage | G11: 5 | H11: acres | I11: Max | S11: Open space - Fair condition (grass cover 50% to 75%) | T11: 49 | U11: 69 | V11: 79 | W11: 84 | Y11: Open space - Poor condition (grass cover < 50%) | Z11: 68 | AA11: 79 | AB11: 86 | AC11: 89
A12: Bioretention Basin (w/o underdrain) | D12: 1 | E12: 1 | F12: Storage | G12: 5 | H12: acres | I12: Max | S12: Open space - Good condition (grass cover > 75%) | T12: 39 | U12: 61 | V12: 74 | W12: 80 | Y12: Open space - Fair condition (grass cover 50% to 75%) | Z12: 49 | AA12: 69 | AB12: 79 | AC12: 84
A13: Bioslope (A & B hydrologic soils) | D13: 0.5 | E13: 0.85 | F13: Storage | G13: -- | H13: -- | I13: -- | S13: Pasture, grassland, or range - continuous forage for grazing - Poor Condition | T13: 68 | U13: 79 | V13: 86 | W13: 89 | Y13: Open space - Good condition (grass cover > 75%) | Z13: 39 | AA13: 61 | AB13: 74 | AC13: 80
A14: Bioslope (C & D hydrologic soils) | D14: 0.25 | E14: 0.85 | F14: Storage | G14: -- | H14: -- | I14: -- | S14: Pasture, grassland, or range - continuous forage for grazing - Fair Condition | T14: 49 | U14: 69 | V14: 79 | W14: 84 | Y14: Pasture, grassland, or range - continuous forage for grazing - Poor Condition | Z14: 68 | AA14: 79 | AB14: 86 | AC14: 89
A15: Downspout Disconnect (A & B hydrologic soils) | D15: 0.5 | E15: 0.8 | F15: Convey | G15: 2500 | H15: ft2 | I15: Max | S15: Pasture, grassland, or range - continuous forage for grazing - Good Condition | T15: 39 | U15: 61 | V15: 74 | W15: 80 | Y15: Pasture, grassland, or range - continuous forage for grazing - Fair Condition | Z15: 49 | AA15: 69 | AB15: 79 | AC15: 84
A16: Downspout Disconnect (C & D hydrologic soils) | D16: 0.25 | E16: 0.8 | F16: Convey | G16: 2500 | H16: ft2 | I16: Max | S16: Meadow - continuous grass, protected from grazing and generally mowed for hay | T16: 30 | U16: 58 | V16: 71 | W16: 78 | Y16: Pasture, grassland, or range - continuous forage for grazing - Good Condition | Z16: 39 | AA16: 61 | AB16: 74 | AC16: 80
A17: Dry Detention Basin | D17: 0 | E17: 0.6 | F17: Storage | G17: 75 | H17: acres | I17: Max | S17: Brush - brush-weed-grass mixture with brush the major element - Poor Condition | T17: 48 | U17: 67 | V17: 77 | W17: 83 | Y17: Meadow - continuous grass, protected from grazing and generally mowed for hay | Z17: 30 | AA17: 58 | AB17: 71 | AC17: 78
A18: Dry Extended Detention Basin | D18: 0 | E18: 0.6 | F18: Storage | G18: -- | H18: -- | I18: -- | S18: Brush - brush-weed-grass mixture with brush the major element - Fair Condition | T18: 35 | U18: 56 | V18: 70 | W18: 77 | Y18: Brush - brush-weed-grass mixture with brush the major element - Poor Condition | Z18: 48 | AA18: 67 | AB18: 77 | AC18: 83
A19: Dry Well | D19: 1 | E19: 1 | F19: Storage | G19: 2500 | H19: ft2 | I19: Max | S19: Brush - brush-weed-grass mixture with brush the major element - Good Condition | T19: 30 | U19: 48 | V19: 65 | W19: 73 | Y19: Brush - brush-weed-grass mixture with brush the major element - Fair Condition | Z19: 35 | AA19: 56 | AB19: 70 | AC19: 77
A20: Enhanced Dry Swale (w/ underdrain) | D20: 0.5 | E20: 0.8 | F20: Storage | G20: 5 | H20: acres | I20: Max | S20: Woods - grass combination (orchard or tree farm) - Poor Condition | T20: 57 | U20: 73 | V20: 82 | W20: 86 | Y20: Brush - brush-weed-grass mixture with brush the major element - Good Condition | Z20: 30 | AA20: 48 | AB20: 65 | AC20: 73
A21: Enhanced Dry Swale (w/o underdrain) | D21: 1 | E21: 1 | F21: Storage | G21: 5 | H21: acres | I21: Max | S21: Woods - grass combination (orchard or tree farm) - Fair Condition | T21: 43 | U21: 65 | V21: 76 | W21: 82 | Y21: Woods - grass combination (orchard or tree farm) - Poor Condition | Z21: 57 | AA21: 73 | AB21: 82 | AC21: 86
A22: Enhanced Wet Swale | D22: 0 | E22: 0.8 | F22: Storage | G22: 5 | H22: acres | I22: Max | S22: Woods - grass combination (orchard or tree farm) - Good Condition | T22: 32 | U22: 58 | V22: 72 | W22: 79 | Y22: Woods - grass combination (orchard or tree farm) - Fair Condition | Z22: 43 | AA22: 65 | AB22: 76 | AC22: 82
A23: Grass Channel (A & B hydrologic soils) | D23: 0.25 | E23: 0.5 | F23: Convey | G23: 5 | H23: acres | I23: Max | S23: Woods - Poor Condition | T23: 45 | U23: 66 | V23: 77 | W23: 83 | Y23: Woods - grass combination (orchard or tree farm) - Good Condition | Z23: 32 | AA23: 58 | AB23: 72 | AC23: 79
A24: Grass Channel (C & D hydrologic soils) | D24: 0.1 | E24: 0.5 | F24: Convey | G24: 5 | H24: acres | I24: Max | S24: Woods - Fair Condition | T24: 36 | U24: 60 | V24: 73 | W24: 79 | Y24: Woods - Poor Condition | Z24: 45 | AA24: 66 | AB24: 77 | AC24: 83
A25: Gravity (oil-grit) Separator | D25: 0 | E25: 0.4 | F25: Convey | G25: 5 | H25: acres | I25: Max | S25: Woods - Good Condition | T25: 30 | U25: 55 | V25: 70 | W25: 77 | Y25: Woods - Fair Condition | Z25: 36 | AA25: 60 | AB25: 73 | AC25: 79
A26: Green Roof | D26: 0.6 | E26: 0.8 | F26: Storage | G26: -- | H26: -- | I26: -- | S26: Impervious | T26: 98 | U26: 98 | V26: 98 | W26: 98 | Y26: Woods - Good Condition | Z26: 30 | AA26: 55 | AB26: 70 | AC26: 77
A27: Infiltration Trench | D27: 1 | E27: 1 | F27: Storage | G27: 5 | H27: acres | I27: Max
A28: Multi-Purpose Detention Basin | D28: 0 | F28: Storage | G28: -- | H28: -- | I28: --
A29: Organic Filter | D29: 0 | E29: 0.8 | F29: Storage | G29: 10 | H29: acres | I29: Max
A30: Permeable Paver System (w/ underdrain) | D30: 0.5 | E30: 0.8 | F30: Storage | G30: -- | H30: -- | I30: --
A31: Permeable Paver System (w/ upturned underdrain) | D31: 0.75 | E31: 0.8 | F31: Storage | G31: -- | H31: -- | I31: --
A32: Permeable Paver System (w/o underdrain) | D32: 1 | E32: 1 | F32: Storage
A33: Pervious Concrete (w/ underdrain) | D33: 0.5 | E33: 0.8 | F33: Storage | G33: -- | H33: -- | I33: --
A34: Pervious Concrete (w/ upturned underdrain) | D34: 0.75 | E34: 0.8 | F34: Storage
A35: Pervious Concrete (w/o underdrain) | D35: 1 | E35: 1 | F35: Storage | G35: -- | H35: -- | I35: --
A36: Porous Asphalt (w/ underdrain) | D36: 0.5 | E36: 0.5 | F36: Storage | G36: -- | H36: -- | I36: --
A37: Porous Asphalt (w/ upturned underdrain) | D37: 0.75 | E37: 0.5 | F37: Storage
A38: Porous Asphalt (w/o underdrain) | D38: 1 | E38: 1 | F38: Storage | G38: -- | H38: -- | I38: --
A39: Porous Asphalt (OGFC, PEM) | D39: 0 | E39: 0.5 | F39: Convey | G39: -- | H39: -- | I39: --
A40: Proprietary System
A41: Rainwater Harvesting | F41: Storage
A42: Regenerative Stormwater Conveyance | D42: 0 | E42: 0.8 | F42: Storage | G42: 50 | H42: acres | I42: Max
A43: Sand Filter | D43: 0 | E43: 0.8 | F43: Storage | G43: 10 | H43: acres | I43: Max
A44: Site Reforestation/Revegetation | D44: 0 | E44: 0 | F44: Convey | G44: -- | H44: -- | I44: --
A45: Soil Restoration (can be used to remediate C & D soils) | D45: 0 | E45: 0 | F45: Convey | G45: -- | H45: -- | I45: --
A46: Stormwater Planter / Tree Box | D46: 0.5 | E46: 0.8 | F46: Storage | G46: 2500 | H46: ft2 | I46: Max
A47: Stormwater Pond | D47: 0 | E47: 0.8 | F47: Storage | G47: 10-25 | H47: acres | I47: Min
A48: Stormwater Wetlands – Level 1 | D48: 0 | E48: 0.8 | F48: Convey | G48: 5 | H48: acres | I48: Min
A49: Stormwater Wetlands – Level 2 | D49: 0 | E49: 0.85 | F49: Convey | G49: 5 | H49: acres | I49: Min
A50: Submerged Gravel Wetlands | D50: 0 | E50: 0.8 | F50: Convey | G50: 5 | H50: acres | I50: Min
A51: Underground Detention | D51: 0 | E51: 0 | F51: Convey | G51: -- | H51: -- | I51: --
A52: Vegetated Filter Strip (A & B hydrologic soils) | D52: 0.5 | E52: 0.6 | F52: Convey | G52: -- | H52: -- | I52: --
A53: Vegetated Filter Strip (C & D hydrologic soils) | D53: 0.25 | E53: 0.6 | F53: Convey | G53: -- | H53: -- | I53: --
A54: [User Input 1]
A55: [User Input 2]
A56: [User Input 3]

Sheet DB 1
A1: Georgia Stormwater Management Manual Stormwater Quality Site Development Review Tool, v2.2
B7: Development Name: | C7: =IF(ISBLANK(Summary!B9),"",Summary!B9) ->  | L7: data input cells
B8: Drainage Basin Name: | L8: calculation cells
L9: constant values
A11: Site Data
A14: Indicate Pre-Development Land Cover and Runoff Curve Numbers in the Site's Disturbed Area
A15: Cover Type | D15: HSG* A (acres) | E15: CN | F15: HSG B (acres) | G15: CN | H15: HSG C (acres) | I15: CN | J15: HSG D (acres) | K15: CN | L15: Total | M15: % Cover
A16: Select a land cover type… | E16: =INDEX('RR_TSS Removal %'!$S$8:$X$40,MATCH('DB 1'!$A16,'RR_TSS Removal %'!$S$8:$S$40,0),MATCH('DB 1'!D$15,'RR_TSS Removal %'!$S$8:$X$8,0)) -> 1e-07 | G16: =INDEX('RR_TSS Removal %'!$S$8:$X$40,MATCH('DB 1'!$A16,'RR_TSS Removal %'!$S$8:$S$40,0),MATCH('DB 1'!F$15,'RR_TSS Removal %'!$S$8:$X$8,0)) -> 1e-07 | I16: =INDEX('RR_TSS Removal %'!$S$8:$X$40,MATCH('DB 1'!$A16,'RR_TSS Removal %'!$S$8:$S$40,0),MATCH('DB 1'!H$15,'RR_TSS Removal %'!$S$8:$X$8,0)) -> 1e-07 | K16: =INDEX('RR_TSS Removal %'!$S$8:$X$40,MATCH('DB 1'!$A16,'RR_TSS Removal %'!$S$8:$S$40,0),MATCH('DB 1'!J$15,'RR_TSS Removal %'!$S$8:$X$8,0)) -> 1e-07 | L16: =D16+F16+H16+J16 -> 0 | M16: =IF($L$23>0,L16/$L$23,0) -> 0
A17: Select a land cover type… | E17: =INDEX('RR_TSS Removal %'!$S$8:$X$40,MATCH('DB 1'!$A17,'RR_TSS Removal %'!$S$8:$S$40,0),MATCH('DB 1'!D$15,'RR_TSS Removal %'!$S$8:$X$8,0)) -> 1e-07 | G17: =INDEX('RR_TSS Removal %'!$S$8:$X$40,MATCH('DB 1'!$A17,'RR_TSS Removal %'!$S$8:$S$40,0),MATCH('DB 1'!F$15,'RR_TSS Removal %'!$S$8:$X$8,0)) -> 1e-07 | I17: =INDEX('RR_TSS Removal %'!$S$8:$X$40,MATCH('DB 1'!$A17,'RR_TSS Removal %'!$S$8:$S$40,0),MATCH('DB 1'!H$15,'RR_TSS Removal %'!$S$8:$X$8,0)) -> 1e-07 | K17: =INDEX('RR_TSS Removal %'!$S$8:$X$40,MATCH('DB 1'!$A17,'RR_TSS Removal %'!$S$8:$S$40,0),MATCH('DB 1'!J$15,'RR_TSS Removal %'!$S$8:$X$8,0)) -> 1e-07 | L17: 0 | M17: 0
A18: Select a land cover type… | E18: =INDEX('RR_TSS Removal %'!$S$8:$X$40,MATCH('DB 1'!$A18,'RR_TSS Removal %'!$S$8:$S$40,0),MATCH('DB 1'!D$15,'RR_TSS Removal %'!$S$8:$X$8,0)) -> 1e-07 | G18: =INDEX('RR_TSS Removal %'!$S$8:$X$40,MATCH('DB 1'!$A18,'RR_TSS Removal %'!$S$8:$S$40,0),MATCH('DB 1'!F$15,'RR_TSS Removal %'!$S$8:$X$8,0)) -> 1e-07 | I18: =INDEX('RR_TSS Removal %'!$S$8:$X$40,MATCH('DB 1'!$A18,'RR_TSS Removal %'!$S$8:$S$40,0),MATCH('DB 1'!H$15,'RR_TSS Removal %'!$S$8:$X$8,0)) -> 1e-07 | K18: =INDEX('RR_TSS Removal %'!$S$8:$X$40,MATCH('DB 1'!$A18,'RR_TSS Removal %'!$S$8:$S$40,0),MATCH('DB 1'!J$15,'RR_TSS Removal %'!$S$8:$X$8,0)) -> 1e-07 | L18: 0 | M18: 0
A19: Select a land cover type… | E19: =INDEX('RR_TSS Removal %'!$S$8:$X$40,MATCH('DB 1'!$A19,'RR_TSS Removal %'!$S$8:$S$40,0),MATCH('DB 1'!D$15,'RR_TSS Removal %'!$S$8:$X$8,0)) -> 1e-07 | G19: =INDEX('RR_TSS Removal %'!$S$8:$X$40,MATCH('DB 1'!$A19,'RR_TSS Removal %'!$S$8:$S$40,0),MATCH('DB 1'!F$15,'RR_TSS Removal %'!$S$8:$X$8,0)) -> 1e-07 | I19: =INDEX('RR_TSS Removal %'!$S$8:$X$40,MATCH('DB 1'!$A19,'RR_TSS Removal %'!$S$8:$S$40,0),MATCH('DB 1'!H$15,'RR_TSS Removal %'!$S$8:$X$8,0)) -> 1e-07 | K19: =INDEX('RR_TSS Removal %'!$S$8:$X$40,MATCH('DB 1'!$A19,'RR_TSS Removal %'!$S$8:$S$40,0),MATCH('DB 1'!J$15,'RR_TSS Removal %'!$S$8:$X$8,0)) -> 1e-07 | L19: 0 | M19: 0
A20: Select a land cover type… | E20: =INDEX('RR_TSS Removal %'!$S$8:$X$40,MATCH('DB 1'!$A20,'RR_TSS Removal %'!$S$8:$S$40,0),MATCH('DB 1'!D$15,'RR_TSS Removal %'!$S$8:$X$8,0)) -> 1e-07 | G20: =INDEX('RR_TSS Removal %'!$S$8:$X$40,MATCH('DB 1'!$A20,'RR_TSS Removal %'!$S$8:$S$40,0),MATCH('DB 1'!F$15,'RR_TSS Removal %'!$S$8:$X$8,0)) -> 1e-07 | I20: =INDEX('RR_TSS Removal %'!$S$8:$X$40,MATCH('DB 1'!$A20,'RR_TSS Removal %'!$S$8:$S$40,0),MATCH('DB 1'!H$15,'RR_TSS Removal %'!$S$8:$X$8,0)) -> 1e-07 | K20: =INDEX('RR_TSS Removal %'!$S$8:$X$40,MATCH('DB 1'!$A20,'RR_TSS Removal %'!$S$8:$S$40,0),MATCH('DB 1'!J$15,'RR_TSS Removal %'!$S$8:$X$8,0)) -> 1e-07 | L20: 0 | M20: 0
A21: Local Jurisdiction Input | L21: 0 | M21: 0
A22: Other | L22: 0 | M22: 0
A23: Total | D23: =SUM(D16:D22) -> 0 | F23: =SUM(F16:F22) -> 0 | H23: =SUM(H16:H22) -> 0 | J23: =SUM(J16:J22) -> 0 | L23: 0 | M23: 0
A24: *HSG = hydrologic soil group | I24: Impervious (ac) | K24: =SUMIF(A16:A20,"Impervious",L16:L20) -> 0
I25: Weighted CN | K25: =IF(L23>0,(SUMPRODUCT(D16:D22,E16:E22)+SUMPRODUCT(F16:F22,G16:G22)+SUMPRODUCT(H16:H22,I16:I22)+SUMPRODUCT(J16:J22,K16:K22))/L23,0) -> 0
H26: Potential Max Soil Retention, Spre (in) | K26: =IF(K25>0,1000/K25-10,1000) -> 1000
A28: Indicate Post-Development Land Cover and Runoff Curve Numbers in the Site's Disturbed Area
A29: Cover Type | D29: HSG A (acres) | E29: CN | F29: HSG B (acres) | G29: CN | H29: HSG C (acres) | I29: CN | J29: HSG D (acres) | K29: CN | L29: Total | M29: % Cover
A30: Impervious | E30: =INDEX('RR_TSS Removal %'!$S$8:$X$40,MATCH('DB 1'!$A30,'RR_TSS Removal %'!$S$8:$S$40,0),MATCH('DB 1'!D$29,'RR_TSS Removal %'!$S$8:$X$8,0)) -> 98 | G30: =INDEX('RR_TSS Removal %'!$S$8:$X$40,MATCH('DB 1'!$A30,'RR_TSS Removal %'!$S$8:$S$40,0),MATCH('DB 1'!F$29,'RR_TSS Removal %'!$S$8:$X$8,0)) -> 98 | I30: =INDEX('RR_TSS Removal %'!$S$8:$X$40,MATCH('DB 1'!$A30,'RR_TSS Removal %'!$S$8:$S$40,0),MATCH('DB 1'!H$29,'RR_TSS Removal %'!$S$8:$X$8,0)) -> 98 | K30: =INDEX('RR_TSS Removal %'!$S$8:$X$40,MATCH('DB 1'!$A30,'RR_TSS Removal %'!$S$8:$S$40,0),MATCH('DB 1'!J$29,'RR_TSS Removal %'!$S$8:$X$8,0)) -> 98 | L30: =D30+F30+H30+J30 -> 0 | M30: =IF($L$37>0,L30/$L$37,0) -> 0
A31: Select a land cover type… | E31: =INDEX('RR_TSS Removal %'!$S$8:$X$40,MATCH('DB 1'!$A31,'RR_TSS Removal %'!$S$8:$S$40,0),MATCH('DB 1'!D$29,'RR_TSS Removal %'!$S$8:$X$8,0)) -> 1e-07 | G31: =INDEX('RR_TSS Removal %'!$S$8:$X$40,MATCH('DB 1'!$A31,'RR_TSS Removal %'!$S$8:$S$40,0),MATCH('DB 1'!F$29,'RR_TSS Removal %'!$S$8:$X$8,0)) -> 1e-07 | I31: =INDEX('RR_TSS Removal %'!$S$8:$X$40,MATCH('DB 1'!$A31,'RR_TSS Removal %'!$S$8:$S$40,0),MATCH('DB 1'!H$29,'RR_TSS Removal %'!$S$8:$X$8,0)) -> 1e-07 | K31: =INDEX('RR_TSS Removal %'!$S$8:$X$40,MATCH('DB 1'!$A31,'RR_TSS Removal %'!$S$8:$S$40,0),MATCH('DB 1'!J$29,'RR_TSS Removal %'!$S$8:$X$8,0)) -> 1e-07 | L31: 0 | M31: 0
A32: Select a land cover type… | E32: =INDEX('RR_TSS Removal %'!$S$8:$X$40,MATCH('DB 1'!$A32,'RR_TSS Removal %'!$S$8:$S$40,0),MATCH('DB 1'!D$29,'RR_TSS Removal %'!$S$8:$X$8,0)) -> 1e-07 | G32: =INDEX('RR_TSS Removal %'!$S$8:$X$40,MATCH('DB 1'!$A32,'RR_TSS Removal %'!$S$8:$S$40,0),MATCH('DB 1'!F$29,'RR_TSS Removal %'!$S$8:$X$8,0)) -> 1e-07 | I32: =INDEX('RR_TSS Removal %'!$S$8:$X$40,MATCH('DB 1'!$A32,'RR_TSS Removal %'!$S$8:$S$40,0),MATCH('DB 1'!H$29,'RR_TSS Removal %'!$S$8:$X$8,0)) -> 1e-07 | K32: =INDEX('RR_TSS Removal %'!$S$8:$X$40,MATCH('DB 1'!$A32,'RR_TSS Removal %'!$S$8:$S$40,0),MATCH('DB 1'!J$29,'RR_TSS Removal %'!$S$8:$X$8,0)) -> 1e-07 | L32: 0 | M32: 0
A33: Select a land cover type… | E33: =INDEX('RR_TSS Removal %'!$S$8:$X$40,MATCH('DB 1'!$A33,'RR_TSS Removal %'!$S$8:$S$40,0),MATCH('DB 1'!D$29,'RR_TSS Removal %'!$S$8:$X$8,0)) -> 1e-07 | G33: =INDEX('RR_TSS Removal %'!$S$8:$X$40,MATCH('DB 1'!$A33,'RR_TSS Removal %'!$S$8:$S$40,0),MATCH('DB 1'!F$29,'RR_TSS Removal %'!$S$8:$X$8,0)) -> 1e-07 | I33: =INDEX('RR_TSS Removal %'!$S$8:$X$40,MATCH('DB 1'!$A33,'RR_TSS Removal %'!$S$8:$S$40,0),MATCH('DB 1'!H$29,'RR_TSS Removal %'!$S$8:$X$8,0)) -> 1e-07 | K33: =INDEX('RR_TSS Removal %'!$S$8:$X$40,MATCH('DB 1'!$A33,'RR_TSS Removal %'!$S$8:$S$40,0),MATCH('DB 1'!J$29,'RR_TSS Removal %'!$S$8:$X$8,0)) -> 1e-07 | L33: 0 | M33: 0
A34: Select a land cover type… | E34: =INDEX('RR_TSS Removal %'!$S$8:$X$40,MATCH('DB 1'!$A34,'RR_TSS Removal %'!$S$8:$S$40,0),MATCH('DB 1'!D$29,'RR_TSS Removal %'!$S$8:$X$8,0)) -> 1e-07 | G34: =INDEX('RR_TSS Removal %'!$S$8:$X$40,MATCH('DB 1'!$A34,'RR_TSS Removal %'!$S$8:$S$40,0),MATCH('DB 1'!F$29,'RR_TSS Removal %'!$S$8:$X$8,0)) -> 1e-07 | I34: =INDEX('RR_TSS Removal %'!$S$8:$X$40,MATCH('DB 1'!$A34,'RR_TSS Removal %'!$S$8:$S$40,0),MATCH('DB 1'!H$29,'RR_TSS Removal %'!$S$8:$X$8,0)) -> 1e-07 | K34: =INDEX('RR_TSS Removal %'!$S$8:$X$40,MATCH('DB 1'!$A34,'RR_TSS Removal %'!$S$8:$S$40,0),MATCH('DB 1'!J$29,'RR_TSS Removal %'!$S$8:$X$8,0)) -> 1e-07 | L34: 0 | M34: 0
A35: Local Jurisdiction Input | L35: 0 | M35: 0
A36: Other | L36: 0 | M36: 0
A37: Total | D37: =SUM(D30:D36) -> 0 | F37: =SUM(F30:F36) -> 0 | H37: =SUM(H30:H36) -> 0 | J37: =SUM(J30:J36) -> 0 | L37: =(D37+F37+H37+J37) -> 0 | M37: 0
I38: Impervious (ac) | K38: =SUMIF(A30:A34,"Impervious",L30:L34) -> 0
I39: Rv | K39: =IF(SUM($L$30:$L$36)=0,0,($K$38/SUM($L$30:$L$36)*100*0.009)+0.05) -> 0
I40: Weighted CN | K40: =IF(L37>0,(SUMPRODUCT(D30:D36,E30:E36)+SUMPRODUCT(F30:F36,G30:G36)+SUMPRODUCT(H30:H36,I30:I36)+SUMPRODUCT(J30:J36,K30:K36))/SUM(L30:L36),0) -> 0
H41: Potential Max Soil Retention, Spost (in) | K41: =IF(K40>0,1000/K40-10,1000) -> 1000
A43: Conservation Area Credits
A45: Scenario 1: Natural Conservation Area *See the GSMM Volume 2, Section 2.3.3.3 for more information. | H45: Scenario 3: Soil Restoration *See the GSMM Volume 2, Section 4.23 for more information.
B47: Check the box if a portion of the post-developed area is protected by a conservation easement or equivalent form of protection. | I47: Check the box if a portion of the post-developed area employs soil restoration and is protected by a conservation easement or equivalent form of protection.
B50: Area (ac) of development protected by a conservation easement or equivalent form of protection. | D50: Note: The green cell will unlock if the Scenario 1 box above is checked | I50: Area (ac) of development with restored soils and protected by a conservation easement or equivalent form of protection. | N50: Note: The green cell will unlock if the Scenario 3 box above is checked
A52: Scenario 2: Site Reforestation/Revegetation *See the GSMM Volume 2, Section 4.22 for more information. | H52: Scenario 4: Site Reforestation/Revegetation & Soil Restoration | M52: *See the GSMM Volume 2, Section 4.22 and 4.23 for more information.
B54: Check the box if a portion of the post-developed area employs site reforestation/revegetation and is protected by a conservation easement or equivalent form of protection. | I54: Check the box if the same portion of the post-developed area employs site reforestation/revegetation and soil restoration, and is protected by a conservation easement or equivalent form of protection.
B57: Area (ac) of development reforested/revegetated and protected by a conservation easement or equivalent form of protection. | D57: Note: The green cell will unlock if the Scenario 2 box above is checked | I57: Area (ac) with restored soils in a reforested & revegetated area and protected by a conservation easement or equivalent form of protection. | N57: Note: The green cell will unlock if the Scenario 4 box above is checked
F59: Total Conservation Area Credit (acres) | G59: =SUM(A50,0.5*A57,0.5*H50,H57) -> 0
A61: Water Quality Goals
B64: Target Runoff Reduction Storm (in) | C64: 1 | H64: Total Site Area for Water Quality Volume (acres) | I64: =SUM(D37,F37,H37,J37)-G59 -> 0
H65: Target Runoff Reduction Volume (cf) | I65: =C64/12*K39*I64*43560 -> 0
H66: Target Water Quality Volume (cf) | I66: =1.2/12*K39*I64*43560 -> 0
B70: TSS in Water Quality Volume (units) | C70: =I66 -> 0
A72: Select BMPs for Runoff Reduction and Water Quality
C75: Area Draining to Each BMP | F75: Storage Volume Provided by BMP (cf) | G75: RR Conveyance Volume Provided by BMP (cf) | H75: Down-stream BMP | I75: Runoff Reduction Calculations | O75: WQ Calculations | X75: Downstream Runoff | AI75: Downstream TSS
C76: On-site Pervious Area (acres) | D76: On-site Impervious Area (acres) | E76: Offsite Area (acres) | I76: RR Volume from Direct Drainage (cf) | J76: RR Volume from Upstream Practices (cf) | K76: Total RR Volume Received by BMP (cf) | L76: Runoff Reduction % | M76: RR Achieved (cf) | N76: Remaining RR Volume (cf) | O76: WQv from Direct Drainage (cf) | P76: Effective TSS Removal % | Q76: TSS from Direct Drainage (units) | R76: TSS from Upstream Practices (units) | S76: Total TSS Received by BMP (units) | T76: TSS Removal Achieved (units) | U76: Remaining TSS (units) | V76: Storage Volume Provided | X76: BMP 1 | Y76: BMP 2 | Z76: BMP 3 | AA76: BMP 4 | AB76: BMP 5 | AC76: BMP 6 | AD76: BMP 7 | AE76: BMP 8 | AF76: BMP 9 | AG76: BMP 10 | AI76: BMP 1 | AJ76: BMP 2 | AK76: BMP 3 | AL76: BMP 4 | AM76: BMP 5 | AN76: BMP 6 | AO76: BMP 7 | AP76: BMP 8 | AQ76: BMP 9 | AR76: BMP 10
A77: BMP 1 | B77: Select a BMP… | G77: =IF(V77="Convey",I77+J77,"") ->  | I77: =IFERROR($C$64/12*(0.05+0.009*($D77/($C77+$D77))*100)*($C77+$D77)*43560,0) -> 0 | J77: =HLOOKUP($A77,$X$76:$AG$90,15,FALSE) -> 0 | K77: =$I77+$J77 -> 0 | L77: =VLOOKUP($B77,'RR_TSS Removal %'!$A$9:$E$56,4,FALSE) -> N/A | M77: =IFERROR(IF(F77=0,G77*L77,IF(F77>K77/L77,K77,F77*L77)),0) -> 0 | N77: =IFERROR(K77-M77,0) -> 0 | O77: =IFERROR(1.2/12*(0.05+0.009*($D77/($C77+$D77))*100)*($C77+$D77)*43560,0) -> 0 | P77: =VLOOKUP($B77,'RR_TSS Removal %'!$A$9:$E$56,5,FALSE) -> N/A | Q77: =IFERROR(1.2/12*(0.05+0.009*($D77/($C77+$D77))*100)*($C77+$D77)*43560,0) -> 0 | R77: =IFERROR(HLOOKUP($A77,$AI$76:$AR$90,15,FALSE),0) -> 0 | S77: =Q77+R77 -> 0 | T77: =IFERROR(P77*S77,0) -> 0 | U77: =S77-T77 -> 0 | V77: =VLOOKUP($B77,'RR_TSS Removal %'!$A$9:$F$56,6,FALSE) -> 0 | X77: =IF($H77=X$76,$N77,0) -> 0 | Y77: 0 | Z77: 0 | AA77: 0 | AB77: 0 | AC77: 0 | AD77: 0 | AE77: 0 | AF77: 0 | AG77: 0 | AI77: =IF($H77=AI$76,$U77,0) -> 0 | AJ77: 0 | AK77: 0 | AL77: 0 | AM77: 0 | AN77: 0 | AO77: 0 | AP77: 0 | AQ77: 0 | AR77: 0
A78: BMP 2 | B78: Select a BMP… | G78: =IF(V78="Convey",I78+J78,"") ->  | I78: =IFERROR($C$64/12*(0.05+0.009*($D78/($C78+$D78))*100)*($C78+$D78)*43560,0) -> 0 | J78: 0 | K78: 0 | L78: =VLOOKUP($B78,'RR_TSS Removal %'!$A$9:$E$56,4,FALSE) -> N/A | M78: =IFERROR(IF(F78=0,G78*L78,IF(F78>K78/L78,K78,F78*L78)),0) -> 0 | N78: =IFERROR(K78-M78,0) -> 0 | O78: =IFERROR(1.2/12*(0.05+0.009*($D78/($C78+$D78))*100)*($C78+$D78)*43560,0) -> 0 | P78: =VLOOKUP($B78,'RR_TSS Removal %'!$A$9:$E$56,5,FALSE) -> N/A | Q78: =IFERROR(1.2/12*(0.05+0.009*($D78/($C78+$D78))*100)*($C78+$D78)*43560,0) -> 0 | R78: 0 | S78: =Q78+R78 -> 0 | T78: =IFERROR(P78*S78,0) -> 0 | U78: 0 | V78: =VLOOKUP($B78,'RR_TSS Removal %'!$A$9:$F$56,6,FALSE) -> 0 | X78: 0 | Y78: 0 | Z78: 0 | AA78: 0 | AB78: 0 | AC78: 0 | AD78: 0 | AE78: 0 | AF78: 0 | AG78: 0 | AI78: 0 | AJ78: 0 | AK78: 0 | AL78: 0 | AM78: 0 | AN78: 0 | AO78: 0 | AP78: 0 | AQ78: 0 | AR78: 0
A79: BMP 3 | B79: Select a BMP… | I79: 0 | J79: 0 | K79: 0 | L79: =VLOOKUP($B79,'RR_TSS Removal %'!$A$9:$E$56,4,FALSE) -> N/A | M79: 0 | N79: 0 | O79: 0 | P79: =VLOOKUP($B79,'RR_TSS Removal %'!$A$9:$E$56,5,FALSE) -> N/A | Q79: 0 | R79: 0 | S79: 0 | T79: 0 | U79: 0 | V79: =VLOOKUP($B79,'RR_TSS Removal %'!$A$9:$F$56,6,FALSE) -> 0 | X79: 0 | Y79: 0 | Z79: 0 | AA79: 0 | AB79: 0 | AC79: 0 | AD79: 0 | AE79: 0 | AF79: 0 | AG79: 0 | AI79: 0 | AJ79: 0 | AK79: 0 | AL79: 0 | AM79: 0 | AN79: 0 | AO79: 0 | AP79: 0 | AQ79: 0 | AR79: 0
A80: BMP 4 | B80: Select a BMP… | I80: 0 | J80: 0 | K80: 0 | L80: =VLOOKUP($B80,'RR_TSS Removal %'!$A$9:$E$56,4,FALSE) -> N/A | M80: 0 | N80: 0 | O80: 0 | P80: =VLOOKUP($B80,'RR_TSS Removal %'!$A$9:$E$56,5,FALSE) -> N/A | Q80: 0 | R80: 0 | S80: 0 | T80: 0 | U80: 0 | V80: =VLOOKUP($B80,'RR_TSS Removal %'!$A$9:$F$56,6,FALSE) -> 0 | X80: 0 | Y80: 0 | Z80: 0 | AA80: 0 | AB80: 0 | AC80: 0 | AD80: 0 | AE80: 0 | AF80: 0 | AG80: 0 | AI80: 0 | AJ80: 0 | AK80: 0 | AL80: 0 | AM80: 0 | AN80: 0 | AO80: 0 | AP80: 0 | AQ80: 0 | AR80: 0
A81: BMP 5 | B81: Select a BMP… | I81: 0 | J81: 0 | K81: 0 | L81: =VLOOKUP($B81,'RR_TSS Removal %'!$A$9:$E$56,4,FALSE) -> N/A | M81: 0 | N81: 0 | O81: 0 | P81: =VLOOKUP($B81,'RR_TSS Removal %'!$A$9:$E$56,5,FALSE) -> N/A | Q81: 0 | R81: 0 | S81: 0 | T81: 0 | U81: 0 | V81: =VLOOKUP($B81,'RR_TSS Removal %'!$A$9:$F$56,6,FALSE) -> 0 | X81: 0 | Y81: 0 | Z81: 0 | AA81: 0 | AB81: 0 | AC81: 0 | AD81: 0 | AE81: 0 | AF81: 0 | AG81: 0 | AI81: 0 | AJ81: 0 | AK81: 0 | AL81: 0 | AM81: 0 | AN81: 0 | AO81: 0 | AP81: 0 | AQ81: 0 | AR81: 0
A82: BMP 6 | B82: Select a BMP… | I82: 0 | J82: 0 | K82: 0 | L82: =VLOOKUP($B82,'RR_TSS Removal %'!$A$9:$E$56,4,FALSE) -> N/A | M82: 0 | N82: 0 | O82: 0 | P82: =VLOOKUP($B82,'RR_TSS Removal %'!$A$9:$E$56,5,FALSE) -> N/A | Q82: 0 | R82: 0 | S82: 0 | T82: 0 | U82: 0 | V82: =VLOOKUP($B82,'RR_TSS Removal %'!$A$9:$F$56,6,FALSE) -> 0 | X82: 0 | Y82: 0 | Z82: 0 | AA82: 0 | AB82: 0 | AC82: 0 | AD82: 0 | AE82: 0 | AF82: 0 | AG82: 0 | AI82: 0 | AJ82: 0 | AK82: 0 | AL82: 0 | AM82: 0 | AN82: 0 | AO82: 0 | AP82: 0 | AQ82: 0 | AR82: 0
A83: BMP 7 | B83: Select a BMP… | I83: 0 | J83: 0 | K83: 0 | L83: =VLOOKUP($B83,'RR_TSS Removal %'!$A$9:$E$56,4,FALSE) -> N/A | M83: 0 | N83: 0 | O83: 0 | P83: =VLOOKUP($B83,'RR_TSS Removal %'!$A$9:$E$56,5,FALSE) -> N/A | Q83: 0 | R83: 0 | S83: 0 | T83: 0 | U83: 0 | V83: =VLOOKUP($B83,'RR_TSS Removal %'!$A$9:$F$56,6,FALSE) -> 0 | X83: 0 | Y83: 0 | Z83: 0 | AA83: 0 | AB83: 0 | AC83: 0 | AD83: 0 | AE83: 0 | AF83: 0 | AG83: 0 | AI83: 0 | AJ83: 0 | AK83: 0 | AL83: 0 | AM83: 0 | AN83: 0 | AO83: 0 | AP83: 0 | AQ83: 0 | AR83: 0
A84: BMP 8 | B84: Select a BMP… | I84: 0 | J84: 0 | K84: 0 | L84: =VLOOKUP($B84,'RR_TSS Removal %'!$A$9:$E$56,4,FALSE) -> N/A | M84: 0 | N84: 0 | O84: 0 | P84: =VLOOKUP($B84,'RR_TSS Removal %'!$A$9:$E$56,5,FALSE) -> N/A | Q84: 0 | R84: 0 | S84: 0 | T84: 0 | U84: 0 | V84: =VLOOKUP($B84,'RR_TSS Removal %'!$A$9:$F$56,6,FALSE) -> 0 | X84: 0 | Y84: 0 | Z84: 0 | AA84: 0 | AB84: 0 | AC84: 0 | AD84: 0 | AE84: 0 | AF84: 0 | AG84: 0 | AI84: 0 | AJ84: 0 | AK84: 0 | AL84: 0 | AM84: 0 | AN84: 0 | AO84: 0 | AP84: 0 | AQ84: 0 | AR84: 0
A85: BMP 9 | B85: Select a BMP… | I85: 0 | J85: 0 | K85: 0 | L85: =VLOOKUP($B85,'RR_TSS Removal %'!$A$9:$E$56,4,FALSE) -> N/A | M85: 0 | N85: 0 | O85: 0 | P85: =VLOOKUP($B85,'RR_TSS Removal %'!$A$9:$E$56,5,FALSE) -> N/A | Q85: 0 | R85: 0 | S85: 0 | T85: 0 | U85: 0 | V85: =VLOOKUP($B85,'RR_TSS Removal %'!$A$9:$F$56,6,FALSE) -> 0 | X85: 0 | Y85: 0 | Z85: 0 | AA85: 0 | AB85: 0 | AC85: 0 | AD85: 0 | AE85: 0 | AF85: 0 | AG85: 0 | AI85: 0 | AJ85: 0 | AK85: 0 | AL85: 0 | AM85: 0 | AN85: 0 | AO85: 0 | AP85: 0 | AQ85: 0 | AR85: 0
A86: BMP 10 | B86: Select a BMP… | I86: 0 | J86: 0 | K86: 0 | L86: =VLOOKUP($B86,'RR_TSS Removal %'!$A$9:$E$56,4,FALSE) -> N/A | M86: 0 | N86: 0 | O86: 0 | P86: =VLOOKUP($B86,'RR_TSS Removal %'!$A$9:$E$56,5,FALSE) -> N/A | Q86: 0 | R86: 0 | S86: 0 | T86: 0 | U86: 0 | V86: =VLOOKUP($B86,'RR_TSS Removal %'!$A$9:$F$56,6,FALSE) -> 0 | X86: 0 | Y86: 0 | Z86: 0 | AA86: 0 | AB86: 0 | AC86: 0 | AD86: 0 | AE86: 0 | AF86: 0 | AG86: 0 | AI86: 0 | AJ86: 0 | AK86: 0 | AL86: 0 | AM86: 0 | AN86: 0 | AO86: 0 | AP86: 0 | AQ86: 0 | AR86: 0
M87: 0
B88: TOTAL | C88: =SUM(C77:C86) -> 0 | D88: =SUM(D77:D86) -> 0 | E88: =SUM(E77:E86) -> 0 | I88: =SUM(I77:I86) -> 0 | M88: =SUM(M77:M86) -> 0 | O88: =SUM(O77:O86) -> 0 | T88: =SUM(T77:T86) -> 0 | U88: =SUM(U77:U86) -> 0
B89: UNTREATED AREA (acres) | C89: =IF(SUM($C$77:$C$86)<SUM($L$30:$L$36)-$K$38,SUM($L$30:$L$36)-$K$38-$C$88,0) -> 0 | D89: =IF(SUM($D$77:$D$86)<$K$38,$K$38-$D$88,0) -> 0
X90: =SUM(X76:X88) -> 0 | Y90: =SUM(Y76:Y88) -> 0 | Z90: 0 | AA90: 0 | AB90: 0 | AC90: 0 | AD90: 0 | AE90: 0 | AF90: 0 | AG90: 0 | AI90: =SUM(AI76:AI88) -> 0 | AJ90: =SUM(AJ76:AJ88) -> 0 | AK90: 0 | AL90: 0 | AM90: 0 | AN90: 0 | AO90: 0 | AP90: 0 | AQ90: 0 | AR90: 0
B92: Target Runoff Reduction Volume (cf) | C92: =I65 -> 0
B93: Target Achieved? | C93: =IF(M88<C92,"No",IF(C92=0,"N/A","Yes!")) -> N/A
B94: Remaining Runoff Reduction Volume (cf) | C94: =IF(M88<C92,C92-M88,0) -> 0
B96: Target Water Quality Volume (cf) | C96: =I66 -> 0
B97: % TSS Removal Achieved | C97: =IFERROR(IF(T88/C70>1,1,ROUND(T88/C70,2)),0) -> 0
B98: Target Achieved? | C98: =IF(C97>=80%,"Yes!","No") -> No
B99: Remaining TSS Removal % | C99: =IF(C97<0.8,0.8-C97,0) -> 0.8
A103: Channel and Flood Protection Calculations | R103: Reference Table to Calculate Post-Development Runoff Volume (in) with BMPs and corresponding CN
D105: 1-yr, 24-hr storm | E105: 2-yr, 24-hr storm | F105: 25-yr, 24-hr storm | G105: 100-yr, 24-hr storm
C106: Target Rainfall Event (in) | R106: 1-yr, 24-hr storm | S106: 2-yr, 24-hr storm | T106: 25-yr, 24-hr storm | U106: 100-yr, 24-hr storm | V106: Adjusted CN | W106: Adjusted S
R107: v (in) | S107: v (in) | T107: v (in) | U107: v (in) | V107: CN | W107: S
D109: =D105 -> 1-yr, 24-hr storm | E109: =E105 -> 2-yr, 24-hr storm | F109: =F105 -> 25-yr, 24-hr storm | G109: =G105 -> 100-yr, 24-hr storm | R109: =IF('DB 1'!D$106>0.2*($W109),('DB 1'!D$106-0.2*($W109))^2/('DB 1'!D$106+0.8*($W109)),0) -> 0 | S109: =IF('DB 1'!E$106>0.2*($W109),('DB 1'!E$106-0.2*($W109))^2/('DB 1'!E$106+0.8*($W109)),0) -> 0 | T109: =IF('DB 1'!F$106>0.2*($W109),('DB 1'!F$106-0.2*($W109))^2/('DB 1'!F$106+0.8*($W109)),0) -> 0 | U109: =IF('DB 1'!G$106>0.2*($W109),('DB 1'!G$106-0.2*($W109))^2/('DB 1'!G$106+0.8*($W109)),0) -> 0 | V109: 25 | W109: =IF(V109>0,1000/V109-10,1000) -> 30
A110: Pre-Development Runoff Volume (in) | D110: =IF(D$106>0.2*$K26,(D$106-0.2*$K26)^2/(D$106+0.8*$K26),0) -> 0 | E110: =IF(E$106>0.2*$K26,(E$106-0.2*$K26)^2/(E$106+0.8*$K26),0) -> 0 | F110: =IF(F$106>0.2*$K26,(F$106-0.2*$K26)^2/(F$106+0.8*$K26),0) -> 0 | G110: =IF(G$106>0.2*$K26,(G$106-0.2*$K26)^2/(G$106+0.8*$K26),0) -> 0 | R110: =IF('DB 1'!D$106>0.2*($W110),('DB 1'!D$106-0.2*($W110))^2/('DB 1'!D$106+0.8*($W110)),0) -> 0 | S110: =IF('DB 1'!E$106>0.2*($W110),('DB 1'!E$106-0.2*($W110))^2/('DB 1'!E$106+0.8*($W110)),0) -> 0 | T110: =IF('DB 1'!F$106>0.2*($W110),('DB 1'!F$106-0.2*($W110))^2/('DB 1'!F$106+0.8*($W110)),0) -> 0 | U110: =IF('DB 1'!G$106>0.2*($W110),('DB 1'!G$106-0.2*($W110))^2/('DB 1'!G$106+0.8*($W110)),0) -> 0 | V110: =V109+0.1 -> 25.1 | W110: 29.84063745
A111: Post Development Runoff Volume (in) with no BMPs | D111: =IF(D$106>0.2*$K41,(D$106-0.2*$K41)^2/(D$106+0.8*$K41),0) -> 0 | E111: =IF(E$106>0.2*$K41,(E$106-0.2*$K41)^2/(E$106+0.8*$K41),0) -> 0 | F111: =IF(F$106>0.2*$K41,(F$106-0.2*$K41)^2/(F$106+0.8*$K41),0) -> 0 | G111: =IF(G$106>0.2*$K41,(G$106-0.2*$K41)^2/(G$106+0.8*$K41),0) -> 0 | R111: =IF('DB 1'!D$106>0.2*($W111),('DB 1'!D$106-0.2*($W111))^2/('DB 1'!D$106+0.8*($W111)),0) -> 0 | S111: =IF('DB 1'!E$106>0.2*($W111),('DB 1'!E$106-0.2*($W111))^2/('DB 1'!E$106+0.8*($W111)),0) -> 0 | T111: =IF('DB 1'!F$106>0.2*($W111),('DB 1'!F$106-0.2*($W111))^2/('DB 1'!F$106+0.8*($W111)),0) -> 0 | U111: =IF('DB 1'!G$106>0.2*($W111),('DB 1'!G$106-0.2*($W111))^2/('DB 1'!G$106+0.8*($W111)),0) -> 0 | V111: 25.2 | W111: 29.68253968
A112: Post-Development Runoff Volume (in) with BMPs | D112: =IF(SUM($L$30:$L$36)=0,0,IF(D111>$M$88*12/(SUM($L$30:$L$36)*43560),D111-$M$88*12/(SUM($L$30:$L$36)*43560),0)) -> 0 | E112: =IF(SUM($L$30:$L$36)=0,0,IF(E111>$M$88*12/(SUM($L$30:$L$36)*43560),E111-$M$88*12/(SUM($L$30:$L$36)*43560),0)) -> 0 | F112: =IF(SUM($L$30:$L$36)=0,0,IF(F111>$M$88*12/(SUM($L$30:$L$36)*43560),F111-$M$88*12/(SUM($L$30:$L$36)*43560),0)) -> 0 | G112: =IF(SUM($L$30:$L$36)=0,0,IF(G111>$M$88*12/(SUM($L$30:$L$36)*43560),G111-$M$88*12/(SUM($L$30:$L$36)*43560),0)) -> 0 | R112: =IF('DB 1'!D$106>0.2*($W112),('DB 1'!D$106-0.2*($W112))^2/('DB 1'!D$106+0.8*($W112)),0) -> 0 | S112: =IF('DB 1'!E$106>0.2*($W112),('DB 1'!E$106-0.2*($W112))^2/('DB 1'!E$106+0.8*($W112)),0) -> 0 | T112: =IF('DB 1'!F$106>0.2*($W112),('DB 1'!F$106-0.2*($W112))^2/('DB 1'!F$106+0.8*($W112)),0) -> 0 | U112: =IF('DB 1'!G$106>0.2*($W112),('DB 1'!G$106-0.2*($W112))^2/('DB 1'!G$106+0.8*($W112)),0) -> 0 | V112: 25.3 | W112: 29.5256917
C113: Adjusted CN | D113: =IF(D112>0,VLOOKUP(D112,R$109:$W$859,5),0) -> 0 | E113: =IF(E112>0,VLOOKUP(E112,$S$109:$W$859,4),0) -> 0 | F113: =IF(F112>0,VLOOKUP(F112,$T$109:$W$859,3),0) -> 0 | G113: =IF(G112>0,VLOOKUP(G112,$U$109:$W$859,2),0) -> 0 | R113: =IF('DB 1'!D$106>0.2*($W113),('DB 1'!D$106-0.2*($W113))^2/('DB 1'!D$106+0.8*($W113)),0) -> 0 | S113: =IF('DB 1'!E$106>0.2*($W113),('DB 1'!E$106-0.2*($W113))^2/('DB 1'!E$106+0.8*($W113)),0) -> 0 | T113: =IF('DB 1'!F$106>0.2*($W113),('DB 1'!F$106-0.2*($W113))^2/('DB 1'!F$106+0.8*($W113)),0) -> 0 | U113: =IF('DB 1'!G$106>0.2*($W113),('DB 1'!G$106-0.2*($W113))^2/('DB 1'!G$106+0.8*($W113)),0) -> 0 | V113: 25.4 | W113: 29.37007874
R114: =IF('DB 1'!D$106>0.2*($W114),('DB 1'!D$106-0.2*($W114))^2/('DB 1'!D$106+0.8*($W114)),0) -> 0 | S114: =IF('DB 1'!E$106>0.2*($W114),('DB 1'!E$106-0.2*($W114))^2/('DB 1'!E$106+0.8*($W114)),0) -> 0 | T114: =IF('DB 1'!F$106>0.2*($W114),('DB 1'!F$106-0.2*($W114))^2/('DB 1'!F$106+0.8*($W114)),0) -> 0 | U114: =IF('DB 1'!G$106>0.2*($W114),('DB 1'!G$106-0.2*($W114))^2/('DB 1'!G$106+0.8*($W114)),0) -> 0 | V114: 25.5 | W114: 29.21568627
A115: *See Stormwater Management Standards to Determine Detention Requirements. | R115: =IF('DB 1'!D$106>0.2*($W115),('DB 1'!D$106-0.2*($W115))^2/('DB 1'!D$106+0.8*($W115)),0) -> 0 | S115: =IF('DB 1'!E$106>0.2*($W115),('DB 1'!E$106-0.2*($W115))^2/('DB 1'!E$106+0.8*($W115)),0) -> 0 | T115: =IF('DB 1'!F$106>0.2*($W115),('DB 1'!F$106-0.2*($W115))^2/('DB 1'!F$106+0.8*($W115)),0) -> 0 | U115: =IF('DB 1'!G$106>0.2*($W115),('DB 1'!G$106-0.2*($W115))^2/('DB 1'!G$106+0.8*($W115)),0) -> 0 | V115: 25.6 | W115: 29.0625
R116: =IF('DB 1'!D$106>0.2*($W116),('DB 1'!D$106-0.2*($W116))^2/('DB 1'!D$106+0.8*($W116)),0) -> 0 | S116: =IF('DB 1'!E$106>0.2*($W116),('DB 1'!E$106-0.2*($W116))^2/('DB 1'!E$106+0.8*($W116)),0) -> 0 | T116: =IF('DB 1'!F$106>0.2*($W116),('DB 1'!F$106-0.2*($W116))^2/('DB 1'!F$106+0.8*($W116)),0) -> 0 | U116: =IF('DB 1'!G$106>0.2*($W116),('DB 1'!G$106-0.2*($W116))^2/('DB 1'!G$106+0.8*($W116)),0) -> 0 | V116: 25.7 | W116: 28.91050584
R117: =IF('DB 1'!D$106>0.2*($W117),('DB 1'!D$106-0.2*($W117))^2/('DB 1'!D$106+0.8*($W117)),0) -> 0 | S117: =IF('DB 1'!E$106>0.2*($W117),('DB 1'!E$106-0.2*($W117))^2/('DB 1'!E$106+0.8*($W117)),0) -> 0 | T117: =IF('DB 1'!F$106>0.2*($W117),('DB 1'!F$106-0.2*($W117))^2/('DB 1'!F$106+0.8*($W117)),0) -> 0 | U117: =IF('DB 1'!G$106>0.2*($W117),('DB 1'!G$106-0.2*($W117))^2/('DB 1'!G$106+0.8*($W117)),0) -> 0 | V117: 25.8 | W117: 28.75968992
R118: =IF('DB 1'!D$106>0.2*($W118),('DB 1'!D$106-0.2*($W118))^2/('DB 1'!D$106+0.8*($W118)),0) -> 0 | S118: =IF('DB 1'!E$106>0.2*($W118),('DB 1'!E$106-0.2*($W118))^2/('DB 1'!E$106+0.8*($W118)),0) -> 0 | T118: =IF('DB 1'!F$106>0.2*($W118),('DB 1'!F$106-0.2*($W118))^2/('DB 1'!F$106+0.8*($W118)),0) -> 0 | U118: =IF('DB 1'!G$106>0.2*($W118),('DB 1'!G$106-0.2*($W118))^2/('DB 1'!G$106+0.8*($W118)),0) -> 0 | V118: 25.9 | W118: 28.61003861
A119: Comments | R119: =IF('DB 1'!D$106>0.2*($W119),('DB 1'!D$106-0.2*($W119))^2/('DB 1'!D$106+0.8*($W119)),0) -> 0 | S119: =IF('DB 1'!E$106>0.2*($W119),('DB 1'!E$106-0.2*($W119))^2/('DB 1'!E$106+0.8*($W119)),0) -> 0 | T119: =IF('DB 1'!F$106>0.2*($W119),('DB 1'!F$106-0.2*($W119))^2/('DB 1'!F$106+0.8*($W119)),0) -> 0 | U119: =IF('DB 1'!G$106>0.2*($W119),('DB 1'!G$106-0.2*($W119))^2/('DB 1'!G$106+0.8*($W119)),0) -> 0 | V119: 26 | W119: 28.46153846
R120: =IF('DB 1'!D$106>0.2*($W120),('DB 1'!D$106-0.2*($W120))^2/('DB 1'!D$106+0.8*($W120)),0) -> 0 | S120: =IF('DB 1'!E$106>0.2*($W120),('DB 1'!E$106-0.2*($W120))^2/('DB 1'!E$106+0.8*($W120)),0) -> 0 | T120: =IF('DB 1'!F$106>0.2*($W120),('DB 1'!F$106-0.2*($W120))^2/('DB 1'!F$106+0.8*($W120)),0) -> 0 | U120: =IF('DB 1'!G$106>0.2*($W120),('DB 1'!G$106-0.2*($W120))^2/('DB 1'!G$106+0.8*($W120)),0) -> 0 | V120: 26.1 | W120: 28.31417625
R121: =IF('DB 1'!D$106>0.2*($W121),('DB 1'!D$106-0.2*($W121))^2/('DB 1'!D$106+0.8*($W121)),0) -> 0 | S121: =IF('DB 1'!E$106>0.2*($W121),('DB 1'!E$106-0.2*($W121))^2/('DB 1'!E$106+0.8*($W121)),0) -> 0 | T121: =IF('DB 1'!F$106>0.2*($W121),('DB 1'!F$106-0.2*($W121))^2/('DB 1'!F$106+0.8*($W121)),0) -> 0 | U121: =IF('DB 1'!G$106>0.2*($W121),('DB 1'!G$106-0.2*($W121))^2/('DB 1'!G$106+0.8*($W121)),0) -> 0 | V121: 26.2 | W121: 28.16793893
R122: =IF('DB 1'!D$106>0.2*($W122),('DB 1'!D$106-0.2*($W122))^2/('DB 1'!D$106+0.8*($W122)),0) -> 0 | S122: =IF('DB 1'!E$106>0.2*($W122),('DB 1'!E$106-0.2*($W122))^2/('DB 1'!E$106+0.8*($W122)),0) -> 0 | T122: =IF('DB 1'!F$106>0.2*($W122),('DB 1'!F$106-0.2*($W122))^2/('DB 1'!F$106+0.8*($W122)),0) -> 0 | U122: =IF('DB 1'!G$106>0.2*($W122),('DB 1'!G$106-0.2*($W122))^2/('DB 1'!G$106+0.8*($W122)),0) -> 0 | V122: 26.3 | W122: 28.02281369
R123: =IF('DB 1'!D$106>0.2*($W123),('DB 1'!D$106-0.2*($W123))^2/('DB 1'!D$106+0.8*($W123)),0) -> 0 | S123: =IF('DB 1'!E$106>0.2*($W123),('DB 1'!E$106-0.2*($W123))^2/('DB 1'!E$106+0.8*($W123)),0) -> 0 | T123: =IF('DB 1'!F$106>0.2*($W123),('DB 1'!F$106-0.2*($W123))^2/('DB 1'!F$106+0.8*($W123)),0) -> 0 | U123: =IF('DB 1'!G$106>0.2*($W123),('DB 1'!G$106-0.2*($W123))^2/('DB 1'!G$106+0.8*($W123)),0) -> 0 | V123: =V122+0.1 -> 26.4 | W123: 27.87878788
R124: =IF('DB 1'!D$106>0.2*($W124),('DB 1'!D$106-0.2*($W124))^2/('DB 1'!D$106+0.8*($W124)),0) -> 0 | S124: =IF('DB 1'!E$106>0.2*($W124),('DB 1'!E$106-0.2*($W124))^2/('DB 1'!E$106+0.8*($W124)),0) -> 0 | T124: =IF('DB 1'!F$106>0.2*($W124),('DB 1'!F$106-0.2*($W124))^2/('DB 1'!F$106+0.8*($W124)),0) -> 0 | U124: =IF('DB 1'!G$106>0.2*($W124),('DB 1'!G$106-0.2*($W124))^2/('DB 1'!G$106+0.8*($W124)),0) -> 0 | V124: 26.5 | W124: 27.73584906
R125: =IF('DB 1'!D$106>0.2*($W125),('DB 1'!D$106-0.2*($W125))^2/('DB 1'!D$106+0.8*($W125)),0) -> 0 | S125: =IF('DB 1'!E$106>0.2*($W125),('DB 1'!E$106-0.2*($W125))^2/('DB 1'!E$106+0.8*($W125)),0) -> 0 | T125: =IF('DB 1'!F$106>0.2*($W125),('DB 1'!F$106-0.2*($W125))^2/('DB 1'!F$106+0.8*($W125)),0) -> 0 | U125: =IF('DB 1'!G$106>0.2*($W125),('DB 1'!G$106-0.2*($W125))^2/('DB 1'!G$106+0.8*($W125)),0) -> 0 | V125: 26.6 | W125: 27.59398496
R126: =IF('DB 1'!D$106>0.2*($W126),('DB 1'!D$106-0.2*($W126))^2/('DB 1'!D$106+0.8*($W126)),0) -> 0 | S126: =IF('DB 1'!E$106>0.2*($W126),('DB 1'!E$106-0.2*($W126))^2/('DB 1'!E$106+0.8*($W126)),0) -> 0 | T126: =IF('DB 1'!F$106>0.2*($W126),('DB 1'!F$106-0.2*($W126))^2/('DB 1'!F$106+0.8*($W126)),0) -> 0 | U126: =IF('DB 1'!G$106>0.2*($W126),('DB 1'!G$106-0.2*($W126))^2/('DB 1'!G$106+0.8*($W126)),0) -> 0 | V126: 26.7 | W126: 27.45318352
R127: =IF('DB 1'!D$106>0.2*($W127),('DB 1'!D$106-0.2*($W127))^2/('DB 1'!D$106+0.8*($W127)),0) -> 0 | S127: =IF('DB 1'!E$106>0.2*($W127),('DB 1'!E$106-0.2*($W127))^2/('DB 1'!E$106+0.8*($W127)),0) -> 0 | T127: =IF('DB 1'!F$106>0.2*($W127),('DB 1'!F$106-0.2*($W127))^2/('DB 1'!F$106+0.8*($W127)),0) -> 0 | U127: =IF('DB 1'!G$106>0.2*($W127),('DB 1'!G$106-0.2*($W127))^2/('DB 1'!G$106+0.8*($W127)),0) -> 0 | V127: 26.8 | W127: 27.31343284
R128: =IF('DB 1'!D$106>0.2*($W128),('DB 1'!D$106-0.2*($W128))^2/('DB 1'!D$106+0.8*($W128)),0) -> 0 | S128: =IF('DB 1'!E$106>0.2*($W128),('DB 1'!E$106-0.2*($W128))^2/('DB 1'!E$106+0.8*($W128)),0) -> 0 | T128: =IF('DB 1'!F$106>0.2*($W128),('DB 1'!F$106-0.2*($W128))^2/('DB 1'!F$106+0.8*($W128)),0) -> 0 | U128: =IF('DB 1'!G$106>0.2*($W128),('DB 1'!G$106-0.2*($W128))^2/('DB 1'!G$106+0.8*($W128)),0) -> 0 | V128: 26.9 | W128: 27.17472119
R129: =IF('DB 1'!D$106>0.2*($W129),('DB 1'!D$106-0.2*($W129))^2/('DB 1'!D$106+0.8*($W129)),0) -> 0 | S129: =IF('DB 1'!E$106>0.2*($W129),('DB 1'!E$106-0.2*($W129))^2/('DB 1'!E$106+0.8*($W129)),0) -> 0 | T129: =IF('DB 1'!F$106>0.2*($W129),('DB 1'!F$106-0.2*($W129))^2/('DB 1'!F$106+0.8*($W129)),0) -> 0 | U129: =IF('DB 1'!G$106>0.2*($W129),('DB 1'!G$106-0.2*($W129))^2/('DB 1'!G$106+0.8*($W129)),0) -> 0 | V129: 27 | W129: 27.03703704
R130: =IF('DB 1'!D$106>0.2*($W130),('DB 1'!D$106-0.2*($W130))^2/('DB 1'!D$106+0.8*($W130)),0) -> 0 | S130: =IF('DB 1'!E$106>0.2*($W130),('DB 1'!E$106-0.2*($W130))^2/('DB 1'!E$106+0.8*($W130)),0) -> 0 | T130: =IF('DB 1'!F$106>0.2*($W130),('DB 1'!F$106-0.2*($W130))^2/('DB 1'!F$106+0.8*($W130)),0) -> 0 | U130: =IF('DB 1'!G$106>0.2*($W130),('DB 1'!G$106-0.2*($W130))^2/('DB 1'!G$106+0.8*($W130)),0) -> 0 | V130: 27.1 | W130: 26.900369
R131: =IF('DB 1'!D$106>0.2*($W131),('DB 1'!D$106-0.2*($W131))^2/('DB 1'!D$106+0.8*($W131)),0) -> 0 | S131: =IF('DB 1'!E$106>0.2*($W131),('DB 1'!E$106-0.2*($W131))^2/('DB 1'!E$106+0.8*($W131)),0) -> 0 | T131: =IF('DB 1'!F$106>0.2*($W131),('DB 1'!F$106-0.2*($W131))^2/('DB 1'!F$106+0.8*($W131)),0) -> 0 | U131: =IF('DB 1'!G$106>0.2*($W131),('DB 1'!G$106-0.2*($W131))^2/('DB 1'!G$106+0.8*($W131)),0) -> 0 | V131: 27.2 | W131: 26.76470588
A132: =IF(G59=0,"","A RECORDED CONSERVATION EASEMENT OR SIMILAR FORM OF PROTECTION IS REQUIRED FOR THIS PROJECT") ->  | R132: =IF('DB 1'!D$106>0.2*($W132),('DB 1'!D$106-0.2*($W132))^2/('DB 1'!D$106+0.8*($W132)),0) -> 0 | S132: =IF('DB 1'!E$106>0.2*($W132),('DB 1'!E$106-0.2*($W132))^2/('DB 1'!E$106+0.8*($W132)),0) -> 0 | T132: =IF('DB 1'!F$106>0.2*($W132),('DB 1'!F$106-0.2*($W132))^2/('DB 1'!F$106+0.8*($W132)),0) -> 0 | U132: =IF('DB 1'!G$106>0.2*($W132),('DB 1'!G$106-0.2*($W132))^2/('DB 1'!G$106+0.8*($W132)),0) -> 0 | V132: 27.3 | W132: 26.63003663
R133: =IF('DB 1'!D$106>0.2*($W133),('DB 1'!D$106-0.2*($W133))^2/('DB 1'!D$106+0.8*($W133)),0) -> 0 | S133: =IF('DB 1'!E$106>0.2*($W133),('DB 1'!E$106-0.2*($W133))^2/('DB 1'!E$106+0.8*($W133)),0) -> 0 | T133: =IF('DB 1'!F$106>0.2*($W133),('DB 1'!F$106-0.2*($W133))^2/('DB 1'!F$106+0.8*($W133)),0) -> 0 | U133: =IF('DB 1'!G$106>0.2*($W133),('DB 1'!G$106-0.2*($W133))^2/('DB 1'!G$106+0.8*($W133)),0) -> 0 | V133: 27.4 | W133: 26.49635036
R134: =IF('DB 1'!D$106>0.2*($W134),('DB 1'!D$106-0.2*($W134))^2/('DB 1'!D$106+0.8*($W134)),0) -> 0 | S134: =IF('DB 1'!E$106>0.2*($W134),('DB 1'!E$106-0.2*($W134))^2/('DB 1'!E$106+0.8*($W134)),0) -> 0 | T134: =IF('DB 1'!F$106>0.2*($W134),('DB 1'!F$106-0.2*($W134))^2/('DB 1'!F$106+0.8*($W134)),0) -> 0 | U134: =IF('DB 1'!G$106>0.2*($W134),('DB 1'!G$106-0.2*($W134))^2/('DB 1'!G$106+0.8*($W134)),0) -> 0 | V134: 27.5 | W134: 26.36363636
R135: =IF('DB 1'!D$106>0.2*($W135),('DB 1'!D$106-0.2*($W135))^2/('DB 1'!D$106+0.8*($W135)),0) -> 0 | S135: =IF('DB 1'!E$106>0.2*($W135),('DB 1'!E$106-0.2*($W135))^2/('DB 1'!E$106+0.8*($W135)),0) -> 0 | T135: =IF('DB 1'!F$106>0.2*($W135),('DB 1'!F$106-0.2*($W135))^2/('DB 1'!F$106+0.8*($W135)),0) -> 0 | U135: =IF('DB 1'!G$106>0.2*($W135),('DB 1'!G$106-0.2*($W135))^2/('DB 1'!G$106+0.8*($W135)),0) -> 0 | V135: 27.6 | W135: 26.23188406
R136: =IF('DB 1'!D$106>0.2*($W136),('DB 1'!D$106-0.2*($W136))^2/('DB 1'!D$106+0.8*($W136)),0) -> 0 | S136: =IF('DB 1'!E$106>0.2*($W136),('DB 1'!E$106-0.2*($W136))^2/('DB 1'!E$106+0.8*($W136)),0) -> 0 | T136: =IF('DB 1'!F$106>0.2*($W136),('DB 1'!F$106-0.2*($W136))^2/('DB 1'!F$106+0.8*($W136)),0) -> 0 | U136: =IF('DB 1'!G$106>0.2*($W136),('DB 1'!G$106-0.2*($W136))^2/('DB 1'!G$106+0.8*($W136)),0) -> 0 | V136: 27.7 | W136: 26.10108303
R137: =IF('DB 1'!D$106>0.2*($W137),('DB 1'!D$106-0.2*($W137))^2/('DB 1'!D$106+0.8*($W137)),0) -> 0 | S137: =IF('DB 1'!E$106>0.2*($W137),('DB 1'!E$106-0.2*($W137))^2/('DB 1'!E$106+0.8*($W137)),0) -> 0 | T137: =IF('DB 1'!F$106>0.2*($W137),('DB 1'!F$106-0.2*($W137))^2/('DB 1'!F$106+0.8*($W137)),0) -> 0 | U137: =IF('DB 1'!G$106>0.2*($W137),('DB 1'!G$106-0.2*($W137))^2/('DB 1'!G$106+0.8*($W137)),0) -> 0 | V137: 27.8 | W137: 25.97122302
R138: =IF('DB 1'!D$106>0.2*($W138),('DB 1'!D$106-0.2*($W138))^2/('DB 1'!D$106+0.8*($W138)),0) -> 0 | S138: =IF('DB 1'!E$106>0.2*($W138),('DB 1'!E$106-0.2*($W138))^2/('DB 1'!E$106+0.8*($W138)),0) -> 0 | T138: =IF('DB 1'!F$106>0.2*($W138),('DB 1'!F$106-0.2*($W138))^2/('DB 1'!F$106+0.8*($W138)),0) -> 0 | U138: =IF('DB 1'!G$106>0.2*($W138),('DB 1'!G$106-0.2*($W138))^2/('DB 1'!G$106+0.8*($W138)),0) -> 0 | V138: 27.9 | W138: 25.84229391
R139: =IF('DB 1'!D$106>0.2*($W139),('DB 1'!D$106-0.2*($W139))^2/('DB 1'!D$106+0.8*($W139)),0) -> 0 | S139: =IF('DB 1'!E$106>0.2*($W139),('DB 1'!E$106-0.2*($W139))^2/('DB 1'!E$106+0.8*($W139)),0) -> 0 | T139: =IF('DB 1'!F$106>0.2*($W139),('DB 1'!F$106-0.2*($W139))^2/('DB 1'!F$106+0.8*($W139)),0) -> 0 | U139: =IF('DB 1'!G$106>0.2*($W139),('DB 1'!G$106-0.2*($W139))^2/('DB 1'!G$106+0.8*($W139)),0) -> 0 | V139: 28 | W139: 25.71428571
R140: =IF('DB 1'!D$106>0.2*($W140),('DB 1'!D$106-0.2*($W140))^2/('DB 1'!D$106+0.8*($W140)),0) -> 0 | S140: =IF('DB 1'!E$106>0.2*($W140),('DB 1'!E$106-0.2*($W140))^2/('DB 1'!E$106+0.8*($W140)),0) -> 0 | T140: =IF('DB 1'!F$106>0.2*($W140),('DB 1'!F$106-0.2*($W140))^2/('DB 1'!F$106+0.8*($W140)),0) -> 0 | U140: =IF('DB 1'!G$106>0.2*($W140),('DB 1'!G$106-0.2*($W140))^2/('DB 1'!G$106+0.8*($W140)),0) -> 0 | V140: 28.1 | W140: 25.58718861
R141: =IF('DB 1'!D$106>0.2*($W141),('DB 1'!D$106-0.2*($W141))^2/('DB 1'!D$106+0.8*($W141)),0) -> 0 | S141: =IF('DB 1'!E$106>0.2*($W141),('DB 1'!E$106-0.2*($W141))^2/('DB 1'!E$106+0.8*($W141)),0) -> 0 | T141: =IF('DB 1'!F$106>0.2*($W141),('DB 1'!F$106-0.2*($W141))^2/('DB 1'!F$106+0.8*($W141)),0) -> 0 | U141: =IF('DB 1'!G$106>0.2*($W141),('DB 1'!G$106-0.2*($W141))^2/('DB 1'!G$106+0.8*($W141)),0) -> 0 | V141: 28.2 | W141: 25.46099291
R142: =IF('DB 1'!D$106>0.2*($W142),('DB 1'!D$106-0.2*($W142))^2/('DB 1'!D$106+0.8*($W142)),0) -> 0 | S142: =IF('DB 1'!E$106>0.2*($W142),('DB 1'!E$106-0.2*($W142))^2/('DB 1'!E$106+0.8*($W142)),0) -> 0 | T142: =IF('DB 1'!F$106>0.2*($W142),('DB 1'!F$106-0.2*($W142))^2/('DB 1'!F$106+0.8*($W142)),0) -> 0 | U142: =IF('DB 1'!G$106>0.2*($W142),('DB 1'!G$106-0.2*($W142))^2/('DB 1'!G$106+0.8*($W142)),0) -> 0 | V142: 28.3 | W142: 25.33568905
R143: =IF('DB 1'!D$106>0.2*($W143),('DB 1'!D$106-0.2*($W143))^2/('DB 1'!D$106+0.8*($W143)),0) -> 0 | S143: =IF('DB 1'!E$106>0.2*($W143),('DB 1'!E$106-0.2*($W143))^2/('DB 1'!E$106+0.8*($W143)),0) -> 0 | T143: =IF('DB 1'!F$106>0.2*($W143),('DB 1'!F$106-0.2*($W143))^2/('DB 1'!F$106+0.8*($W143)),0) -> 0 | U143: =IF('DB 1'!G$106>0.2*($W143),('DB 1'!G$106-0.2*($W143))^2/('DB 1'!G$106+0.8*($W143)),0) -> 0 | V143: 28.4 | W143: 25.21126761
R144: =IF('DB 1'!D$106>0.2*($W144),('DB 1'!D$106-0.2*($W144))^2/('DB 1'!D$106+0.8*($W144)),0) -> 0 | S144: =IF('DB 1'!E$106>0.2*($W144),('DB 1'!E$106-0.2*($W144))^2/('DB 1'!E$106+0.8*($W144)),0) -> 0 | T144: =IF('DB 1'!F$106>0.2*($W144),('DB 1'!F$106-0.2*($W144))^2/('DB 1'!F$106+0.8*($W144)),0) -> 0 | U144: =IF('DB 1'!G$106>0.2*($W144),('DB 1'!G$106-0.2*($W144))^2/('DB 1'!G$106+0.8*($W144)),0) -> 0 | V144: 28.5 | W144: 25.0877193
R145: =IF('DB 1'!D$106>0.2*($W145),('DB 1'!D$106-0.2*($W145))^2/('DB 1'!D$106+0.8*($W145)),0) -> 0 | S145: =IF('DB 1'!E$106>0.2*($W145),('DB 1'!E$106-0.2*($W145))^2/('DB 1'!E$106+0.8*($W145)),0) -> 0 | T145: =IF('DB 1'!F$106>0.2*($W145),('DB 1'!F$106-0.2*($W145))^2/('DB 1'!F$106+0.8*($W145)),0) -> 0 | U145: =IF('DB 1'!G$106>0.2*($W145),('DB 1'!G$106-0.2*($W145))^2/('DB 1'!G$106+0.8*($W145)),0) -> 0 | V145: 28.6 | W145: 24.96503497
R146: =IF('DB 1'!D$106>0.2*($W146),('DB 1'!D$106-0.2*($W146))^2/('DB 1'!D$106+0.8*($W146)),0) -> 0 | S146: =IF('DB 1'!E$106>0.2*($W146),('DB 1'!E$106-0.2*($W146))^2/('DB 1'!E$106+0.8*($W146)),0) -> 0 | T146: =IF('DB 1'!F$106>0.2*($W146),('DB 1'!F$106-0.2*($W146))^2/('DB 1'!F$106+0.8*($W146)),0) -> 0 | U146: =IF('DB 1'!G$106>0.2*($W146),('DB 1'!G$106-0.2*($W146))^2/('DB 1'!G$106+0.8*($W146)),0) -> 0 | V146: 28.7 | W146: 24.84320557
R147: =IF('DB 1'!D$106>0.2*($W147),('DB 1'!D$106-0.2*($W147))^2/('DB 1'!D$106+0.8*($W147)),0) -> 0 | S147: =IF('DB 1'!E$106>0.2*($W147),('DB 1'!E$106-0.2*($W147))^2/('DB 1'!E$106+0.8*($W147)),0) -> 0 | T147: =IF('DB 1'!F$106>0.2*($W147),('DB 1'!F$106-0.2*($W147))^2/('DB 1'!F$106+0.8*($W147)),0) -> 0 | U147: =IF('DB 1'!G$106>0.2*($W147),('DB 1'!G$106-0.2*($W147))^2/('DB 1'!G$106+0.8*($W147)),0) -> 0 | V147: 28.8 | W147: 24.72222222
R148: =IF('DB 1'!D$106>0.2*($W148),('DB 1'!D$106-0.2*($W148))^2/('DB 1'!D$106+0.8*($W148)),0) -> 0 | S148: =IF('DB 1'!E$106>0.2*($W148),('DB 1'!E$106-0.2*($W148))^2/('DB 1'!E$106+0.8*($W148)),0) -> 0 | T148: =IF('DB 1'!F$106>0.2*($W148),('DB 1'!F$106-0.2*($W148))^2/('DB 1'!F$106+0.8*($W148)),0) -> 0 | U148: =IF('DB 1'!G$106>0.2*($W148),('DB 1'!G$106-0.2*($W148))^2/('DB 1'!G$106+0.8*($W148)),0) -> 0 | V148: 28.9 | W148: 24.60207612
R149: =IF('DB 1'!D$106>0.2*($W149),('DB 1'!D$106-0.2*($W149))^2/('DB 1'!D$106+0.8*($W149)),0) -> 0 | S149: =IF('DB 1'!E$106>0.2*($W149),('DB 1'!E$106-0.2*($W149))^2/('DB 1'!E$106+0.8*($W149)),0) -> 0 | T149: =IF('DB 1'!F$106>0.2*($W149),('DB 1'!F$106-0.2*($W149))^2/('DB 1'!F$106+0.8*($W149)),0) -> 0 | U149: =IF('DB 1'!G$106>0.2*($W149),('DB 1'!G$106-0.2*($W149))^2/('DB 1'!G$106+0.8*($W149)),0) -> 0 | V149: 29 | W149: 24.48275862
R150: =IF('DB 1'!D$106>0.2*($W150),('DB 1'!D$106-0.2*($W150))^2/('DB 1'!D$106+0.8*($W150)),0) -> 0 | S150: =IF('DB 1'!E$106>0.2*($W150),('DB 1'!E$106-0.2*($W150))^2/('DB 1'!E$106+0.8*($W150)),0) -> 0 | T150: =IF('DB 1'!F$106>0.2*($W150),('DB 1'!F$106-0.2*($W150))^2/('DB 1'!F$106+0.8*($W150)),0) -> 0 | U150: =IF('DB 1'!G$106>0.2*($W150),('DB 1'!G$106-0.2*($W150))^2/('DB 1'!G$106+0.8*($W150)),0) -> 0 | V150: =V149+0.1 -> 29.1 | W150: 24.36426117
R151: =IF('DB 1'!D$106>0.2*($W151),('DB 1'!D$106-0.2*($W151))^2/('DB 1'!D$106+0.8*($W151)),0) -> 0 | S151: =IF('DB 1'!E$106>0.2*($W151),('DB 1'!E$106-0.2*($W151))^2/('DB 1'!E$106+0.8*($W151)),0) -> 0 | T151: =IF('DB 1'!F$106>0.2*($W151),('DB 1'!F$106-0.2*($W151))^2/('DB 1'!F$106+0.8*($W151)),0) -> 0 | U151: =IF('DB 1'!G$106>0.2*($W151),('DB 1'!G$106-0.2*($W151))^2/('DB 1'!G$106+0.8*($W151)),0) -> 0 | V151: 29.2 | W151: 24.24657534
R152: =IF('DB 1'!D$106>0.2*($W152),('DB 1'!D$106-0.2*($W152))^2/('DB 1'!D$106+0.8*($W152)),0) -> 0 | S152: =IF('DB 1'!E$106>0.2*($W152),('DB 1'!E$106-0.2*($W152))^2/('DB 1'!E$106+0.8*($W152)),0) -> 0 | T152: =IF('DB 1'!F$106>0.2*($W152),('DB 1'!F$106-0.2*($W152))^2/('DB 1'!F$106+0.8*($W152)),0) -> 0 | U152: =IF('DB 1'!G$106>0.2*($W152),('DB 1'!G$106-0.2*($W152))^2/('DB 1'!G$106+0.8*($W152)),0) -> 0 | V152: 29.3 | W152: 24.12969283
R153: =IF('DB 1'!D$106>0.2*($W153),('DB 1'!D$106-0.2*($W153))^2/('DB 1'!D$106+0.8*($W153)),0) -> 0 | S153: =IF('DB 1'!E$106>0.2*($W153),('DB 1'!E$106-0.2*($W153))^2/('DB 1'!E$106+0.8*($W153)),0) -> 0 | T153: =IF('DB 1'!F$106>0.2*($W153),('DB 1'!F$106-0.2*($W153))^2/('DB 1'!F$106+0.8*($W153)),0) -> 0 | U153: =IF('DB 1'!G$106>0.2*($W153),('DB 1'!G$106-0.2*($W153))^2/('DB 1'!G$106+0.8*($W153)),0) -> 0 | V153: 29.4 | W153: 24.01360544
R154: =IF('DB 1'!D$106>0.2*($W154),('DB 1'!D$106-0.2*($W154))^2/('DB 1'!D$106+0.8*($W154)),0) -> 0 | S154: =IF('DB 1'!E$106>0.2*($W154),('DB 1'!E$106-0.2*($W154))^2/('DB 1'!E$106+0.8*($W154)),0) -> 0 | T154: =IF('DB 1'!F$106>0.2*($W154),('DB 1'!F$106-0.2*($W154))^2/('DB 1'!F$106+0.8*($W154)),0) -> 0 | U154: =IF('DB 1'!G$106>0.2*($W154),('DB 1'!G$106-0.2*($W154))^2/('DB 1'!G$106+0.8*($W154)),0) -> 0 | V154: 29.5 | W154: 23.89830508
R155: =IF('DB 1'!D$106>0.2*($W155),('DB 1'!D$106-0.2*($W155))^2/('DB 1'!D$106+0.8*($W155)),0) -> 0 | S155: =IF('DB 1'!E$106>0.2*($W155),('DB 1'!E$106-0.2*($W155))^2/('DB 1'!E$106+0.8*($W155)),0) -> 0 | T155: =IF('DB 1'!F$106>0.2*($W155),('DB 1'!F$106-0.2*($W155))^2/('DB 1'!F$106+0.8*($W155)),0) -> 0 | U155: =IF('DB 1'!G$106>0.2*($W155),('DB 1'!G$106-0.2*($W155))^2/('DB 1'!G$106+0.8*($W155)),0) -> 0 | V155: 29.6 | W155: 23.78378378
R156: =IF('DB 1'!D$106>0.2*($W156),('DB 1'!D$106-0.2*($W156))^2/('DB 1'!D$106+0.8*($W156)),0) -> 0 | S156: =IF('DB 1'!E$106>0.2*($W156),('DB 1'!E$106-0.2*($W156))^2/('DB 1'!E$106+0.8*($W156)),0) -> 0 | T156: =IF('DB 1'!F$106>0.2*($W156),('DB 1'!F$106-0.2*($W156))^2/('DB 1'!F$106+0.8*($W156)),0) -> 0 | U156: =IF('DB 1'!G$106>0.2*($W156),('DB 1'!G$106-0.2*($W156))^2/('DB 1'!G$106+0.8*($W156)),0) -> 0 | V156: 29.7 | W156: 23.67003367
R157: =IF('DB 1'!D$106>0.2*($W157),('DB 1'!D$106-0.2*($W157))^2/('DB 1'!D$106+0.8*($W157)),0) -> 0 | S157: =IF('DB 1'!E$106>0.2*($W157),('DB 1'!E$106-0.2*($W157))^2/('DB 1'!E$106+0.8*($W157)),0) -> 0 | T157: =IF('DB 1'!F$106>0.2*($W157),('DB 1'!F$106-0.2*($W157))^2/('DB 1'!F$106+0.8*($W157)),0) -> 0 | U157: =IF('DB 1'!G$106>0.2*($W157),('DB 1'!G$106-0.2*($W157))^2/('DB 1'!G$106+0.8*($W157)),0) -> 0 | V157: 29.8 | W157: 23.55704698
R158: =IF('DB 1'!D$106>0.2*($W158),('DB 1'!D$106-0.2*($W158))^2/('DB 1'!D$106+0.8*($W158)),0) -> 0 | S158: =IF('DB 1'!E$106>0.2*($W158),('DB 1'!E$106-0.2*($W158))^2/('DB 1'!E$106+0.8*($W158)),0) -> 0 | T158: =IF('DB 1'!F$106>0.2*($W158),('DB 1'!F$106-0.2*($W158))^2/('DB 1'!F$106+0.8*($W158)),0) -> 0 | U158: =IF('DB 1'!G$106>0.2*($W158),('DB 1'!G$106-0.2*($W158))^2/('DB 1'!G$106+0.8*($W158)),0) -> 0 | V158: 29.9 | W158: 23.44481605
R159: =IF('DB 1'!D$106>0.2*($W159),('DB 1'!D$106-0.2*($W159))^2/('DB 1'!D$106+0.8*($W159)),0) -> 0 | S159: =IF('DB 1'!E$106>0.2*($W159),('DB 1'!E$106-0.2*($W159))^2/('DB 1'!E$106+0.8*($W159)),0) -> 0 | T159: =IF('DB 1'!F$106>0.2*($W159),('DB 1'!F$106-0.2*($W159))^2/('DB 1'!F$106+0.8*($W159)),0) -> 0 | U159: =IF('DB 1'!G$106>0.2*($W159),('DB 1'!G$106-0.2*($W159))^2/('DB 1'!G$106+0.8*($W159)),0) -> 0 | V159: 30 | W159: 23.33333333
R160: =IF('DB 1'!D$106>0.2*($W160),('DB 1'!D$106-0.2*($W160))^2/('DB 1'!D$106+0.8*($W160)),0) -> 0 | S160: =IF('DB 1'!E$106>0.2*($W160),('DB 1'!E$106-0.2*($W160))^2/('DB 1'!E$106+0.8*($W160)),0) -> 0 | T160: =IF('DB 1'!F$106>0.2*($W160),('DB 1'!F$106-0.2*($W160))^2/('DB 1'!F$106+0.8*($W160)),0) -> 0 | U160: =IF('DB 1'!G$106>0.2*($W160),('DB 1'!G$106-0.2*($W160))^2/('DB 1'!G$106+0.8*($W160)),0) -> 0 | V160: 30.1 | W160: 23.22259136
R161: =IF('DB 1'!D$106>0.2*($W161),('DB 1'!D$106-0.2*($W161))^2/('DB 1'!D$106+0.8*($W161)),0) -> 0 | S161: =IF('DB 1'!E$106>0.2*($W161),('DB 1'!E$106-0.2*($W161))^2/('DB 1'!E$106+0.8*($W161)),0) -> 0 | T161: =IF('DB 1'!F$106>0.2*($W161),('DB 1'!F$106-0.2*($W161))^2/('DB 1'!F$106+0.8*($W161)),0) -> 0 | U161: =IF('DB 1'!G$106>0.2*($W161),('DB 1'!G$106-0.2*($W161))^2/('DB 1'!G$106+0.8*($W161)),0) -> 0 | V161: 30.2 | W161: 23.11258278
R162: =IF('DB 1'!D$106>0.2*($W162),('DB 1'!D$106-0.2*($W162))^2/('DB 1'!D$106+0.8*($W162)),0) -> 0 | S162: =IF('DB 1'!E$106>0.2*($W162),('DB 1'!E$106-0.2*($W162))^2/('DB 1'!E$106+0.8*($W162)),0) -> 0 | T162: =IF('DB 1'!F$106>0.2*($W162),('DB 1'!F$106-0.2*($W162))^2/('DB 1'!F$106+0.8*($W162)),0) -> 0 | U162: =IF('DB 1'!G$106>0.2*($W162),('DB 1'!G$106-0.2*($W162))^2/('DB 1'!G$106+0.8*($W162)),0) -> 0 | V162: 30.3 | W162: 23.00330033
R163: =IF('DB 1'!D$106>0.2*($W163),('DB 1'!D$106-0.2*($W163))^2/('DB 1'!D$106+0.8*($W163)),0) -> 0 | S163: =IF('DB 1'!E$106>0.2*($W163),('DB 1'!E$106-0.2*($W163))^2/('DB 1'!E$106+0.8*($W163)),0) -> 0 | T163: =IF('DB 1'!F$106>0.2*($W163),('DB 1'!F$106-0.2*($W163))^2/('DB 1'!F$106+0.8*($W163)),0) -> 0 | U163: =IF('DB 1'!G$106>0.2*($W163),('DB 1'!G$106-0.2*($W163))^2/('DB 1'!G$106+0.8*($W163)),0) -> 0 | V163: 30.4 | W163: 22.89473684
R164: =IF('DB 1'!D$106>0.2*($W164),('DB 1'!D$106-0.2*($W164))^2/('DB 1'!D$106+0.8*($W164)),0) -> 0 | S164: =IF('DB 1'!E$106>0.2*($W164),('DB 1'!E$106-0.2*($W164))^2/('DB 1'!E$106+0.8*($W164)),0) -> 0 | T164: =IF('DB 1'!F$106>0.2*($W164),('DB 1'!F$106-0.2*($W164))^2/('DB 1'!F$106+0.8*($W164)),0) -> 0 | U164: =IF('DB 1'!G$106>0.2*($W164),('DB 1'!G$106-0.2*($W164))^2/('DB 1'!G$106+0.8*($W164)),0) -> 0 | V164: 30.5 | W164: 22.78688525
R165: =IF('DB 1'!D$106>0.2*($W165),('DB 1'!D$106-0.2*($W165))^2/('DB 1'!D$106+0.8*($W165)),0) -> 0 | S165: =IF('DB 1'!E$106>0.2*($W165),('DB 1'!E$106-0.2*($W165))^2/('DB 1'!E$106+0.8*($W165)),0) -> 0 | T165: =IF('DB 1'!F$106>0.2*($W165),('DB 1'!F$106-0.2*($W165))^2/('DB 1'!F$106+0.8*($W165)),0) -> 0 | U165: =IF('DB 1'!G$106>0.2*($W165),('DB 1'!G$106-0.2*($W165))^2/('DB 1'!G$106+0.8*($W165)),0) -> 0 | V165: 30.6 | W165: 22.67973856
R166: =IF('DB 1'!D$106>0.2*($W166),('DB 1'!D$106-0.2*($W166))^2/('DB 1'!D$106+0.8*($W166)),0) -> 0 | S166: =IF('DB 1'!E$106>0.2*($W166),('DB 1'!E$106-0.2*($W166))^2/('DB 1'!E$106+0.8*($W166)),0) -> 0 | T166: =IF('DB 1'!F$106>0.2*($W166),('DB 1'!F$106-0.2*($W166))^2/('DB 1'!F$106+0.8*($W166)),0) -> 0 | U166: =IF('DB 1'!G$106>0.2*($W166),('DB 1'!G$106-0.2*($W166))^2/('DB 1'!G$106+0.8*($W166)),0) -> 0 | V166: 30.7 | W166: 22.5732899
R167: =IF('DB 1'!D$106>0.2*($W167),('DB 1'!D$106-0.2*($W167))^2/('DB 1'!D$106+0.8*($W167)),0) -> 0 | S167: =IF('DB 1'!E$106>0.2*($W167),('DB 1'!E$106-0.2*($W167))^2/('DB 1'!E$106+0.8*($W167)),0) -> 0 | T167: =IF('DB 1'!F$106>0.2*($W167),('DB 1'!F$106-0.2*($W167))^2/('DB 1'!F$106+0.8*($W167)),0) -> 0 | U167: =IF('DB 1'!G$106>0.2*($W167),('DB 1'!G$106-0.2*($W167))^2/('DB 1'!G$106+0.8*($W167)),0) -> 0 | V167: 30.8 | W167: 22.46753247
R168: =IF('DB 1'!D$106>0.2*($W168),('DB 1'!D$106-0.2*($W168))^2/('DB 1'!D$106+0.8*($W168)),0) -> 0 | S168: =IF('DB 1'!E$106>0.2*($W168),('DB 1'!E$106-0.2*($W168))^2/('DB 1'!E$106+0.8*($W168)),0) -> 0 | T168: =IF('DB 1'!F$106>0.2*($W168),('DB 1'!F$106-0.2*($W168))^2/('DB 1'!F$106+0.8*($W168)),0) -> 0 | U168: =IF('DB 1'!G$106>0.2*($W168),('DB 1'!G$106-0.2*($W168))^2/('DB 1'!G$106+0.8*($W168)),0) -> 0 | V168: 30.9 | W168: 22.36245955
R169: =IF('DB 1'!D$106>0.2*($W169),('DB 1'!D$106-0.2*($W169))^2/('DB 1'!D$106+0.8*($W169)),0) -> 0 | S169: =IF('DB 1'!E$106>0.2*($W169),('DB 1'!E$106-0.2*($W169))^2/('DB 1'!E$106+0.8*($W169)),0) -> 0 | T169: =IF('DB 1'!F$106>0.2*($W169),('DB 1'!F$106-0.2*($W169))^2/('DB 1'!F$106+0.8*($W169)),0) -> 0 | U169: =IF('DB 1'!G$106>0.2*($W169),('DB 1'!G$106-0.2*($W169))^2/('DB 1'!G$106+0.8*($W169)),0) -> 0 | V169: 31 | W169: 22.25806452
R170: =IF('DB 1'!D$106>0.2*($W170),('DB 1'!D$106-0.2*($W170))^2/('DB 1'!D$106+0.8*($W170)),0) -> 0 | S170: =IF('DB 1'!E$106>0.2*($W170),('DB 1'!E$106-0.2*($W170))^2/('DB 1'!E$106+0.8*($W170)),0) -> 0 | T170: =IF('DB 1'!F$106>0.2*($W170),('DB 1'!F$106-0.2*($W170))^2/('DB 1'!F$106+0.8*($W170)),0) -> 0 | U170: =IF('DB 1'!G$106>0.2*($W170),('DB 1'!G$106-0.2*($W170))^2/('DB 1'!G$106+0.8*($W170)),0) -> 0 | V170: 31.1 | W170: 22.15434084
R171: =IF('DB 1'!D$106>0.2*($W171),('DB 1'!D$106-0.2*($W171))^2/('DB 1'!D$106+0.8*($W171)),0) -> 0 | S171: =IF('DB 1'!E$106>0.2*($W171),('DB 1'!E$106-0.2*($W171))^2/('DB 1'!E$106+0.8*($W171)),0) -> 0 | T171: =IF('DB 1'!F$106>0.2*($W171),('DB 1'!F$106-0.2*($W171))^2/('DB 1'!F$106+0.8*($W171)),0) -> 0 | U171: =IF('DB 1'!G$106>0.2*($W171),('DB 1'!G$106-0.2*($W171))^2/('DB 1'!G$106+0.8*($W171)),0) -> 0 | V171: 31.2 | W171: 22.05128205
R172: =IF('DB 1'!D$106>0.2*($W172),('DB 1'!D$106-0.2*($W172))^2/('DB 1'!D$106+0.8*($W172)),0) -> 0 | S172: =IF('DB 1'!E$106>0.2*($W172),('DB 1'!E$106-0.2*($W172))^2/('DB 1'!E$106+0.8*($W172)),0) -> 0 | T172: =IF('DB 1'!F$106>0.2*($W172),('DB 1'!F$106-0.2*($W172))^2/('DB 1'!F$106+0.8*($W172)),0) -> 0 | U172: =IF('DB 1'!G$106>0.2*($W172),('DB 1'!G$106-0.2*($W172))^2/('DB 1'!G$106+0.8*($W172)),0) -> 0 | V172: 31.3 | W172: 21.94888179
R173: =IF('DB 1'!D$106>0.2*($W173),('DB 1'!D$106-0.2*($W173))^2/('DB 1'!D$106+0.8*($W173)),0) -> 0 | S173: =IF('DB 1'!E$106>0.2*($W173),('DB 1'!E$106-0.2*($W173))^2/('DB 1'!E$106+0.8*($W173)),0) -> 0 | T173: =IF('DB 1'!F$106>0.2*($W173),('DB 1'!F$106-0.2*($W173))^2/('DB 1'!F$106+0.8*($W173)),0) -> 0 | U173: =IF('DB 1'!G$106>0.2*($W173),('DB 1'!G$106-0.2*($W173))^2/('DB 1'!G$106+0.8*($W173)),0) -> 0 | V173: 31.4 | W173: =IF(V173>0,1000/V173-10,1000) -> 21.84713376
R174: =IF('DB 1'!D$106>0.2*($W174),('DB 1'!D$106-0.2*($W174))^2/('DB 1'!D$106+0.8*($W174)),0) -> 0 | S174: =IF('DB 1'!E$106>0.2*($W174),('DB 1'!E$106-0.2*($W174))^2/('DB 1'!E$106+0.8*($W174)),0) -> 0 | T174: =IF('DB 1'!F$106>0.2*($W174),('DB 1'!F$106-0.2*($W174))^2/('DB 1'!F$106+0.8*($W174)),0) -> 0 | U174: =IF('DB 1'!G$106>0.2*($W174),('DB 1'!G$106-0.2*($W174))^2/('DB 1'!G$106+0.8*($W174)),0) -> 0 | V174: =V173+0.1 -> 31.5 | W174: 21.74603175
R175: =IF('DB 1'!D$106>0.2*($W175),('DB 1'!D$106-0.2*($W175))^2/('DB 1'!D$106+0.8*($W175)),0) -> 0 | S175: =IF('DB 1'!E$106>0.2*($W175),('DB 1'!E$106-0.2*($W175))^2/('DB 1'!E$106+0.8*($W175)),0) -> 0 | T175: =IF('DB 1'!F$106>0.2*($W175),('DB 1'!F$106-0.2*($W175))^2/('DB 1'!F$106+0.8*($W175)),0) -> 0 | U175: =IF('DB 1'!G$106>0.2*($W175),('DB 1'!G$106-0.2*($W175))^2/('DB 1'!G$106+0.8*($W175)),0) -> 0 | V175: 31.6 | W175: 21.64556962
R176: =IF('DB 1'!D$106>0.2*($W176),('DB 1'!D$106-0.2*($W176))^2/('DB 1'!D$106+0.8*($W176)),0) -> 0 | S176: =IF('DB 1'!E$106>0.2*($W176),('DB 1'!E$106-0.2*($W176))^2/('DB 1'!E$106+0.8*($W176)),0) -> 0 | T176: =IF('DB 1'!F$106>0.2*($W176),('DB 1'!F$106-0.2*($W176))^2/('DB 1'!F$106+0.8*($W176)),0) -> 0 | U176: =IF('DB 1'!G$106>0.2*($W176),('DB 1'!G$106-0.2*($W176))^2/('DB 1'!G$106+0.8*($W176)),0) -> 0 | V176: 31.7 | W176: 21.54574132
R177: =IF('DB 1'!D$106>0.2*($W177),('DB 1'!D$106-0.2*($W177))^2/('DB 1'!D$106+0.8*($W177)),0) -> 0 | S177: =IF('DB 1'!E$106>0.2*($W177),('DB 1'!E$106-0.2*($W177))^2/('DB 1'!E$106+0.8*($W177)),0) -> 0 | T177: =IF('DB 1'!F$106>0.2*($W177),('DB 1'!F$106-0.2*($W177))^2/('DB 1'!F$106+0.8*($W177)),0) -> 0 | U177: =IF('DB 1'!G$106>0.2*($W177),('DB 1'!G$106-0.2*($W177))^2/('DB 1'!G$106+0.8*($W177)),0) -> 0 | V177: 31.8 | W177: 21.44654088
R178: =IF('DB 1'!D$106>0.2*($W178),('DB 1'!D$106-0.2*($W178))^2/('DB 1'!D$106+0.8*($W178)),0) -> 0 | S178: =IF('DB 1'!E$106>0.2*($W178),('DB 1'!E$106-0.2*($W178))^2/('DB 1'!E$106+0.8*($W178)),0) -> 0 | T178: =IF('DB 1'!F$106>0.2*($W178),('DB 1'!F$106-0.2*($W178))^2/('DB 1'!F$106+0.8*($W178)),0) -> 0 | U178: =IF('DB 1'!G$106>0.2*($W178),('DB 1'!G$106-0.2*($W178))^2/('DB 1'!G$106+0.8*($W178)),0) -> 0 | V178: 31.9 | W178: 21.34796238
R179: =IF('DB 1'!D$106>0.2*($W179),('DB 1'!D$106-0.2*($W179))^2/('DB 1'!D$106+0.8*($W179)),0) -> 0 | S179: =IF('DB 1'!E$106>0.2*($W179),('DB 1'!E$106-0.2*($W179))^2/('DB 1'!E$106+0.8*($W179)),0) -> 0 | T179: =IF('DB 1'!F$106>0.2*($W179),('DB 1'!F$106-0.2*($W179))^2/('DB 1'!F$106+0.8*($W179)),0) -> 0 | U179: =IF('DB 1'!G$106>0.2*($W179),('DB 1'!G$106-0.2*($W179))^2/('DB 1'!G$106+0.8*($W179)),0) -> 0 | V179: 32 | W179: 21.25
R180: =IF('DB 1'!D$106>0.2*($W180),('DB 1'!D$106-0.2*($W180))^2/('DB 1'!D$106+0.8*($W180)),0) -> 0 | S180: =IF('DB 1'!E$106>0.2*($W180),('DB 1'!E$106-0.2*($W180))^2/('DB 1'!E$106+0.8*($W180)),0) -> 0 | T180: =IF('DB 1'!F$106>0.2*($W180),('DB 1'!F$106-0.2*($W180))^2/('DB 1'!F$106+0.8*($W180)),0) -> 0 | U180: =IF('DB 1'!G$106>0.2*($W180),('DB 1'!G$106-0.2*($W180))^2/('DB 1'!G$106+0.8*($W180)),0) -> 0 | V180: 32.1 | W180: 21.15264798
R181: =IF('DB 1'!D$106>0.2*($W181),('DB 1'!D$106-0.2*($W181))^2/('DB 1'!D$106+0.8*($W181)),0) -> 0 | S181: =IF('DB 1'!E$106>0.2*($W181),('DB 1'!E$106-0.2*($W181))^2/('DB 1'!E$106+0.8*($W181)),0) -> 0 | T181: =IF('DB 1'!F$106>0.2*($W181),('DB 1'!F$106-0.2*($W181))^2/('DB 1'!F$106+0.8*($W181)),0) -> 0 | U181: =IF('DB 1'!G$106>0.2*($W181),('DB 1'!G$106-0.2*($W181))^2/('DB 1'!G$106+0.8*($W181)),0) -> 0 | V181: 32.2 | W181: 21.05590062
R182: =IF('DB 1'!D$106>0.2*($W182),('DB 1'!D$106-0.2*($W182))^2/('DB 1'!D$106+0.8*($W182)),0) -> 0 | S182: =IF('DB 1'!E$106>0.2*($W182),('DB 1'!E$106-0.2*($W182))^2/('DB 1'!E$106+0.8*($W182)),0) -> 0 | T182: =IF('DB 1'!F$106>0.2*($W182),('DB 1'!F$106-0.2*($W182))^2/('DB 1'!F$106+0.8*($W182)),0) -> 0 | U182: =IF('DB 1'!G$106>0.2*($W182),('DB 1'!G$106-0.2*($W182))^2/('DB 1'!G$106+0.8*($W182)),0) -> 0 | V182: 32.3 | W182: 20.95975232
R183: =IF('DB 1'!D$106>0.2*($W183),('DB 1'!D$106-0.2*($W183))^2/('DB 1'!D$106+0.8*($W183)),0) -> 0 | S183: =IF('DB 1'!E$106>0.2*($W183),('DB 1'!E$106-0.2*($W183))^2/('DB 1'!E$106+0.8*($W183)),0) -> 0 | T183: =IF('DB 1'!F$106>0.2*($W183),('DB 1'!F$106-0.2*($W183))^2/('DB 1'!F$106+0.8*($W183)),0) -> 0 | U183: =IF('DB 1'!G$106>0.2*($W183),('DB 1'!G$106-0.2*($W183))^2/('DB 1'!G$106+0.8*($W183)),0) -> 0 | V183: 32.4 | W183: 20.86419753
R184: =IF('DB 1'!D$106>0.2*($W184),('DB 1'!D$106-0.2*($W184))^2/('DB 1'!D$106+0.8*($W184)),0) -> 0 | S184: =IF('DB 1'!E$106>0.2*($W184),('DB 1'!E$106-0.2*($W184))^2/('DB 1'!E$106+0.8*($W184)),0) -> 0 | T184: =IF('DB 1'!F$106>0.2*($W184),('DB 1'!F$106-0.2*($W184))^2/('DB 1'!F$106+0.8*($W184)),0) -> 0 | U184: =IF('DB 1'!G$106>0.2*($W184),('DB 1'!G$106-0.2*($W184))^2/('DB 1'!G$106+0.8*($W184)),0) -> 0 | V184: 32.5 | W184: 20.76923077
R185: =IF('DB 1'!D$106>0.2*($W185),('DB 1'!D$106-0.2*($W185))^2/('DB 1'!D$106+0.8*($W185)),0) -> 0 | S185: =IF('DB 1'!E$106>0.2*($W185),('DB 1'!E$106-0.2*($W185))^2/('DB 1'!E$106+0.8*($W185)),0) -> 0 | T185: =IF('DB 1'!F$106>0.2*($W185),('DB 1'!F$106-0.2*($W185))^2/('DB 1'!F$106+0.8*($W185)),0) -> 0 | U185: =IF('DB 1'!G$106>0.2*($W185),('DB 1'!G$106-0.2*($W185))^2/('DB 1'!G$106+0.8*($W185)),0) -> 0 | V185: 32.6 | W185: 20.67484663
R186: =IF('DB 1'!D$106>0.2*($W186),('DB 1'!D$106-0.2*($W186))^2/('DB 1'!D$106+0.8*($W186)),0) -> 0 | S186: =IF('DB 1'!E$106>0.2*($W186),('DB 1'!E$106-0.2*($W186))^2/('DB 1'!E$106+0.8*($W186)),0) -> 0 | T186: =IF('DB 1'!F$106>0.2*($W186),('DB 1'!F$106-0.2*($W186))^2/('DB 1'!F$106+0.8*($W186)),0) -> 0 | U186: =IF('DB 1'!G$106>0.2*($W186),('DB 1'!G$106-0.2*($W186))^2/('DB 1'!G$106+0.8*($W186)),0) -> 0 | V186: 32.7 | W186: 20.58103976
R187: =IF('DB 1'!D$106>0.2*($W187),('DB 1'!D$106-0.2*($W187))^2/('DB 1'!D$106+0.8*($W187)),0) -> 0 | S187: =IF('DB 1'!E$106>0.2*($W187),('DB 1'!E$106-0.2*($W187))^2/('DB 1'!E$106+0.8*($W187)),0) -> 0 | T187: =IF('DB 1'!F$106>0.2*($W187),('DB 1'!F$106-0.2*($W187))^2/('DB 1'!F$106+0.8*($W187)),0) -> 0 | U187: =IF('DB 1'!G$106>0.2*($W187),('DB 1'!G$106-0.2*($W187))^2/('DB 1'!G$106+0.8*($W187)),0) -> 0 | V187: 32.8 | W187: 20.48780488
R188: =IF('DB 1'!D$106>0.2*($W188),('DB 1'!D$106-0.2*($W188))^2/('DB 1'!D$106+0.8*($W188)),0) -> 0 | S188: =IF('DB 1'!E$106>0.2*($W188),('DB 1'!E$106-0.2*($W188))^2/('DB 1'!E$106+0.8*($W188)),0) -> 0 | T188: =IF('DB 1'!F$106>0.2*($W188),('DB 1'!F$106-0.2*($W188))^2/('DB 1'!F$106+0.8*($W188)),0) -> 0 | U188: =IF('DB 1'!G$106>0.2*($W188),('DB 1'!G$106-0.2*($W188))^2/('DB 1'!G$106+0.8*($W188)),0) -> 0 | V188: 32.9 | W188: 20.39513678
R189: =IF('DB 1'!D$106>0.2*($W189),('DB 1'!D$106-0.2*($W189))^2/('DB 1'!D$106+0.8*($W189)),0) -> 0 | S189: =IF('DB 1'!E$106>0.2*($W189),('DB 1'!E$106-0.2*($W189))^2/('DB 1'!E$106+0.8*($W189)),0) -> 0 | T189: =IF('DB 1'!F$106>0.2*($W189),('DB 1'!F$106-0.2*($W189))^2/('DB 1'!F$106+0.8*($W189)),0) -> 0 | U189: =IF('DB 1'!G$106>0.2*($W189),('DB 1'!G$106-0.2*($W189))^2/('DB 1'!G$106+0.8*($W189)),0) -> 0 | V189: 33 | W189: 20.3030303
R190: =IF('DB 1'!D$106>0.2*($W190),('DB 1'!D$106-0.2*($W190))^2/('DB 1'!D$106+0.8*($W190)),0) -> 0 | S190: =IF('DB 1'!E$106>0.2*($W190),('DB 1'!E$106-0.2*($W190))^2/('DB 1'!E$106+0.8*($W190)),0) -> 0 | T190: =IF('DB 1'!F$106>0.2*($W190),('DB 1'!F$106-0.2*($W190))^2/('DB 1'!F$106+0.8*($W190)),0) -> 0 | U190: =IF('DB 1'!G$106>0.2*($W190),('DB 1'!G$106-0.2*($W190))^2/('DB 1'!G$106+0.8*($W190)),0) -> 0 | V190: 33.1 | W190: 20.21148036
R191: =IF('DB 1'!D$106>0.2*($W191),('DB 1'!D$106-0.2*($W191))^2/('DB 1'!D$106+0.8*($W191)),0) -> 0 | S191: =IF('DB 1'!E$106>0.2*($W191),('DB 1'!E$106-0.2*($W191))^2/('DB 1'!E$106+0.8*($W191)),0) -> 0 | T191: =IF('DB 1'!F$106>0.2*($W191),('DB 1'!F$106-0.2*($W191))^2/('DB 1'!F$106+0.8*($W191)),0) -> 0 | U191: =IF('DB 1'!G$106>0.2*($W191),('DB 1'!G$106-0.2*($W191))^2/('DB 1'!G$106+0.8*($W191)),0) -> 0 | V191: 33.2 | W191: 20.12048193
R192: =IF('DB 1'!D$106>0.2*($W192),('DB 1'!D$106-0.2*($W192))^2/('DB 1'!D$106+0.8*($W192)),0) -> 0 | S192: =IF('DB 1'!E$106>0.2*($W192),('DB 1'!E$106-0.2*($W192))^2/('DB 1'!E$106+0.8*($W192)),0) -> 0 | T192: =IF('DB 1'!F$106>0.2*($W192),('DB 1'!F$106-0.2*($W192))^2/('DB 1'!F$106+0.8*($W192)),0) -> 0 | U192: =IF('DB 1'!G$106>0.2*($W192),('DB 1'!G$106-0.2*($W192))^2/('DB 1'!G$106+0.8*($W192)),0) -> 0 | V192: 33.3 | W192: 20.03003003
R193: =IF('DB 1'!D$106>0.2*($W193),('DB 1'!D$106-0.2*($W193))^2/('DB 1'!D$106+0.8*($W193)),0) -> 0 | S193: =IF('DB 1'!E$106>0.2*($W193),('DB 1'!E$106-0.2*($W193))^2/('DB 1'!E$106+0.8*($W193)),0) -> 0 | T193: =IF('DB 1'!F$106>0.2*($W193),('DB 1'!F$106-0.2*($W193))^2/('DB 1'!F$106+0.8*($W193)),0) -> 0 | U193: =IF('DB 1'!G$106>0.2*($W193),('DB 1'!G$106-0.2*($W193))^2/('DB 1'!G$106+0.8*($W193)),0) -> 0 | V193: 33.4 | W193: 19.94011976
R194: =IF('DB 1'!D$106>0.2*($W194),('DB 1'!D$106-0.2*($W194))^2/('DB 1'!D$106+0.8*($W194)),0) -> 0 | S194: =IF('DB 1'!E$106>0.2*($W194),('DB 1'!E$106-0.2*($W194))^2/('DB 1'!E$106+0.8*($W194)),0) -> 0 | T194: =IF('DB 1'!F$106>0.2*($W194),('DB 1'!F$106-0.2*($W194))^2/('DB 1'!F$106+0.8*($W194)),0) -> 0 | U194: =IF('DB 1'!G$106>0.2*($W194),('DB 1'!G$106-0.2*($W194))^2/('DB 1'!G$106+0.8*($W194)),0) -> 0 | V194: 33.5 | W194: 19.85074627
R195: =IF('DB 1'!D$106>0.2*($W195),('DB 1'!D$106-0.2*($W195))^2/('DB 1'!D$106+0.8*($W195)),0) -> 0 | S195: =IF('DB 1'!E$106>0.2*($W195),('DB 1'!E$106-0.2*($W195))^2/('DB 1'!E$106+0.8*($W195)),0) -> 0 | T195: =IF('DB 1'!F$106>0.2*($W195),('DB 1'!F$106-0.2*($W195))^2/('DB 1'!F$106+0.8*($W195)),0) -> 0 | U195: =IF('DB 1'!G$106>0.2*($W195),('DB 1'!G$106-0.2*($W195))^2/('DB 1'!G$106+0.8*($W195)),0) -> 0 | V195: 33.6 | W195: 19.76190476
R196: =IF('DB 1'!D$106>0.2*($W196),('DB 1'!D$106-0.2*($W196))^2/('DB 1'!D$106+0.8*($W196)),0) -> 0 | S196: =IF('DB 1'!E$106>0.2*($W196),('DB 1'!E$106-0.2*($W196))^2/('DB 1'!E$106+0.8*($W196)),0) -> 0 | T196: =IF('DB 1'!F$106>0.2*($W196),('DB 1'!F$106-0.2*($W196))^2/('DB 1'!F$106+0.8*($W196)),0) -> 0 | U196: =IF('DB 1'!G$106>0.2*($W196),('DB 1'!G$106-0.2*($W196))^2/('DB 1'!G$106+0.8*($W196)),0) -> 0 | V196: 33.7 | W196: 19.6735905
R197: =IF('DB 1'!D$106>0.2*($W197),('DB 1'!D$106-0.2*($W197))^2/('DB 1'!D$106+0.8*($W197)),0) -> 0 | S197: =IF('DB 1'!E$106>0.2*($W197),('DB 1'!E$106-0.2*($W197))^2/('DB 1'!E$106+0.8*($W197)),0) -> 0 | T197: =IF('DB 1'!F$106>0.2*($W197),('DB 1'!F$106-0.2*($W197))^2/('DB 1'!F$106+0.8*($W197)),0) -> 0 | U197: =IF('DB 1'!G$106>0.2*($W197),('DB 1'!G$106-0.2*($W197))^2/('DB 1'!G$106+0.8*($W197)),0) -> 0 | V197: 33.8 | W197: 19.58579882
R198: =IF('DB 1'!D$106>0.2*($W198),('DB 1'!D$106-0.2*($W198))^2/('DB 1'!D$106+0.8*($W198)),0) -> 0 | S198: =IF('DB 1'!E$106>0.2*($W198),('DB 1'!E$106-0.2*($W198))^2/('DB 1'!E$106+0.8*($W198)),0) -> 0 | T198: =IF('DB 1'!F$106>0.2*($W198),('DB 1'!F$106-0.2*($W198))^2/('DB 1'!F$106+0.8*($W198)),0) -> 0 | U198: =IF('DB 1'!G$106>0.2*($W198),('DB 1'!G$106-0.2*($W198))^2/('DB 1'!G$106+0.8*($W198)),0) -> 0 | V198: 33.9 | W198: 19.49852507
R199: =IF('DB 1'!D$106>0.2*($W199),('DB 1'!D$106-0.2*($W199))^2/('DB 1'!D$106+0.8*($W199)),0) -> 0 | S199: =IF('DB 1'!E$106>0.2*($W199),('DB 1'!E$106-0.2*($W199))^2/('DB 1'!E$106+0.8*($W199)),0) -> 0 | T199: =IF('DB 1'!F$106>0.2*($W199),('DB 1'!F$106-0.2*($W199))^2/('DB 1'!F$106+0.8*($W199)),0) -> 0 | U199: =IF('DB 1'!G$106>0.2*($W199),('DB 1'!G$106-0.2*($W199))^2/('DB 1'!G$106+0.8*($W199)),0) -> 0 | V199: 34 | W199: 19.41176471
R200: =IF('DB 1'!D$106>0.2*($W200),('DB 1'!D$106-0.2*($W200))^2/('DB 1'!D$106+0.8*($W200)),0) -> 0 | S200: =IF('DB 1'!E$106>0.2*($W200),('DB 1'!E$106-0.2*($W200))^2/('DB 1'!E$106+0.8*($W200)),0) -> 0 | T200: =IF('DB 1'!F$106>0.2*($W200),('DB 1'!F$106-0.2*($W200))^2/('DB 1'!F$106+0.8*($W200)),0) -> 0 | U200: =IF('DB 1'!G$106>0.2*($W200),('DB 1'!G$106-0.2*($W200))^2/('DB 1'!G$106+0.8*($W200)),0) -> 0 | V200: 34.1 | W200: 19.3255132
R201: =IF('DB 1'!D$106>0.2*($W201),('DB 1'!D$106-0.2*($W201))^2/('DB 1'!D$106+0.8*($W201)),0) -> 0 | S201: =IF('DB 1'!E$106>0.2*($W201),('DB 1'!E$106-0.2*($W201))^2/('DB 1'!E$106+0.8*($W201)),0) -> 0 | T201: =IF('DB 1'!F$106>0.2*($W201),('DB 1'!F$106-0.2*($W201))^2/('DB 1'!F$106+0.8*($W201)),0) -> 0 | U201: =IF('DB 1'!G$106>0.2*($W201),('DB 1'!G$106-0.2*($W201))^2/('DB 1'!G$106+0.8*($W201)),0) -> 0 | V201: 34.2 | W201: 19.23976608
R202: =IF('DB 1'!D$106>0.2*($W202),('DB 1'!D$106-0.2*($W202))^2/('DB 1'!D$106+0.8*($W202)),0) -> 0 | S202: =IF('DB 1'!E$106>0.2*($W202),('DB 1'!E$106-0.2*($W202))^2/('DB 1'!E$106+0.8*($W202)),0) -> 0 | T202: =IF('DB 1'!F$106>0.2*($W202),('DB 1'!F$106-0.2*($W202))^2/('DB 1'!F$106+0.8*($W202)),0) -> 0 | U202: =IF('DB 1'!G$106>0.2*($W202),('DB 1'!G$106-0.2*($W202))^2/('DB 1'!G$106+0.8*($W202)),0) -> 0 | V202: 34.3 | W202: 19.15451895
R203: =IF('DB 1'!D$106>0.2*($W203),('DB 1'!D$106-0.2*($W203))^2/('DB 1'!D$106+0.8*($W203)),0) -> 0 | S203: =IF('DB 1'!E$106>0.2*($W203),('DB 1'!E$106-0.2*($W203))^2/('DB 1'!E$106+0.8*($W203)),0) -> 0 | T203: =IF('DB 1'!F$106>0.2*($W203),('DB 1'!F$106-0.2*($W203))^2/('DB 1'!F$106+0.8*($W203)),0) -> 0 | U203: =IF('DB 1'!G$106>0.2*($W203),('DB 1'!G$106-0.2*($W203))^2/('DB 1'!G$106+0.8*($W203)),0) -> 0 | V203: 34.4 | W203: 19.06976744
R204: =IF('DB 1'!D$106>0.2*($W204),('DB 1'!D$106-0.2*($W204))^2/('DB 1'!D$106+0.8*($W204)),0) -> 0 | S204: =IF('DB 1'!E$106>0.2*($W204),('DB 1'!E$106-0.2*($W204))^2/('DB 1'!E$106+0.8*($W204)),0) -> 0 | T204: =IF('DB 1'!F$106>0.2*($W204),('DB 1'!F$106-0.2*($W204))^2/('DB 1'!F$106+0.8*($W204)),0) -> 0 | U204: =IF('DB 1'!G$106>0.2*($W204),('DB 1'!G$106-0.2*($W204))^2/('DB 1'!G$106+0.8*($W204)),0) -> 0 | V204: 34.5 | W204: 18.98550725
R205: =IF('DB 1'!D$106>0.2*($W205),('DB 1'!D$106-0.2*($W205))^2/('DB 1'!D$106+0.8*($W205)),0) -> 0 | S205: =IF('DB 1'!E$106>0.2*($W205),('DB 1'!E$106-0.2*($W205))^2/('DB 1'!E$106+0.8*($W205)),0) -> 0 | T205: =IF('DB 1'!F$106>0.2*($W205),('DB 1'!F$106-0.2*($W205))^2/('DB 1'!F$106+0.8*($W205)),0) -> 0 | U205: =IF('DB 1'!G$106>0.2*($W205),('DB 1'!G$106-0.2*($W205))^2/('DB 1'!G$106+0.8*($W205)),0) -> 0 | V205: 34.6 | W205: 18.9017341
R206: =IF('DB 1'!D$106>0.2*($W206),('DB 1'!D$106-0.2*($W206))^2/('DB 1'!D$106+0.8*($W206)),0) -> 0 | S206: =IF('DB 1'!E$106>0.2*($W206),('DB 1'!E$106-0.2*($W206))^2/('DB 1'!E$106+0.8*($W206)),0) -> 0 | T206: =IF('DB 1'!F$106>0.2*($W206),('DB 1'!F$106-0.2*($W206))^2/('DB 1'!F$106+0.8*($W206)),0) -> 0 | U206: =IF('DB 1'!G$106>0.2*($W206),('DB 1'!G$106-0.2*($W206))^2/('DB 1'!G$106+0.8*($W206)),0) -> 0 | V206: 34.7 | W206: 18.8184438
R207: =IF('DB 1'!D$106>0.2*($W207),('DB 1'!D$106-0.2*($W207))^2/('DB 1'!D$106+0.8*($W207)),0) -> 0 | S207: =IF('DB 1'!E$106>0.2*($W207),('DB 1'!E$106-0.2*($W207))^2/('DB 1'!E$106+0.8*($W207)),0) -> 0 | T207: =IF('DB 1'!F$106>0.2*($W207),('DB 1'!F$106-0.2*($W207))^2/('DB 1'!F$106+0.8*($W207)),0) -> 0 | U207: =IF('DB 1'!G$106>0.2*($W207),('DB 1'!G$106-0.2*($W207))^2/('DB 1'!G$106+0.8*($W207)),0) -> 0 | V207: 34.8 | W207: 18.73563218
R208: =IF('DB 1'!D$106>0.2*($W208),('DB 1'!D$106-0.2*($W208))^2/('DB 1'!D$106+0.8*($W208)),0) -> 0 | S208: =IF('DB 1'!E$106>0.2*($W208),('DB 1'!E$106-0.2*($W208))^2/('DB 1'!E$106+0.8*($W208)),0) -> 0 | T208: =IF('DB 1'!F$106>0.2*($W208),('DB 1'!F$106-0.2*($W208))^2/('DB 1'!F$106+0.8*($W208)),0) -> 0 | U208: =IF('DB 1'!G$106>0.2*($W208),('DB 1'!G$106-0.2*($W208))^2/('DB 1'!G$106+0.8*($W208)),0) -> 0 | V208: 34.9 | W208: 18.65329513
R209: =IF('DB 1'!D$106>0.2*($W209),('DB 1'!D$106-0.2*($W209))^2/('DB 1'!D$106+0.8*($W209)),0) -> 0 | S209: =IF('DB 1'!E$106>0.2*($W209),('DB 1'!E$106-0.2*($W209))^2/('DB 1'!E$106+0.8*($W209)),0) -> 0 | T209: =IF('DB 1'!F$106>0.2*($W209),('DB 1'!F$106-0.2*($W209))^2/('DB 1'!F$106+0.8*($W209)),0) -> 0 | U209: =IF('DB 1'!G$106>0.2*($W209),('DB 1'!G$106-0.2*($W209))^2/('DB 1'!G$106+0.8*($W209)),0) -> 0 | V209: 35 | W209: 18.57142857
R210: =IF('DB 1'!D$106>0.2*($W210),('DB 1'!D$106-0.2*($W210))^2/('DB 1'!D$106+0.8*($W210)),0) -> 0 | S210: =IF('DB 1'!E$106>0.2*($W210),('DB 1'!E$106-0.2*($W210))^2/('DB 1'!E$106+0.8*($W210)),0) -> 0 | T210: =IF('DB 1'!F$106>0.2*($W210),('DB 1'!F$106-0.2*($W210))^2/('DB 1'!F$106+0.8*($W210)),0) -> 0 | U210: =IF('DB 1'!G$106>0.2*($W210),('DB 1'!G$106-0.2*($W210))^2/('DB 1'!G$106+0.8*($W210)),0) -> 0 | V210: 35.1 | W210: 18.49002849
R211: =IF('DB 1'!D$106>0.2*($W211),('DB 1'!D$106-0.2*($W211))^2/('DB 1'!D$106+0.8*($W211)),0) -> 0 | S211: =IF('DB 1'!E$106>0.2*($W211),('DB 1'!E$106-0.2*($W211))^2/('DB 1'!E$106+0.8*($W211)),0) -> 0 | T211: =IF('DB 1'!F$106>0.2*($W211),('DB 1'!F$106-0.2*($W211))^2/('DB 1'!F$106+0.8*($W211)),0) -> 0 | U211: =IF('DB 1'!G$106>0.2*($W211),('DB 1'!G$106-0.2*($W211))^2/('DB 1'!G$106+0.8*($W211)),0) -> 0 | V211: 35.2 | W211: 18.40909091
R212: =IF('DB 1'!D$106>0.2*($W212),('DB 1'!D$106-0.2*($W212))^2/('DB 1'!D$106+0.8*($W212)),0) -> 0 | S212: =IF('DB 1'!E$106>0.2*($W212),('DB 1'!E$106-0.2*($W212))^2/('DB 1'!E$106+0.8*($W212)),0) -> 0 | T212: =IF('DB 1'!F$106>0.2*($W212),('DB 1'!F$106-0.2*($W212))^2/('DB 1'!F$106+0.8*($W212)),0) -> 0 | U212: =IF('DB 1'!G$106>0.2*($W212),('DB 1'!G$106-0.2*($W212))^2/('DB 1'!G$106+0.8*($W212)),0) -> 0 | V212: 35.3 | W212: 18.3286119
R213: =IF('DB 1'!D$106>0.2*($W213),('DB 1'!D$106-0.2*($W213))^2/('DB 1'!D$106+0.8*($W213)),0) -> 0 | S213: =IF('DB 1'!E$106>0.2*($W213),('DB 1'!E$106-0.2*($W213))^2/('DB 1'!E$106+0.8*($W213)),0) -> 0 | T213: =IF('DB 1'!F$106>0.2*($W213),('DB 1'!F$106-0.2*($W213))^2/('DB 1'!F$106+0.8*($W213)),0) -> 0 | U213: =IF('DB 1'!G$106>0.2*($W213),('DB 1'!G$106-0.2*($W213))^2/('DB 1'!G$106+0.8*($W213)),0) -> 0 | V213: 35.4 | W213: 18.24858757
R214: =IF('DB 1'!D$106>0.2*($W214),('DB 1'!D$106-0.2*($W214))^2/('DB 1'!D$106+0.8*($W214)),0) -> 0 | S214: =IF('DB 1'!E$106>0.2*($W214),('DB 1'!E$106-0.2*($W214))^2/('DB 1'!E$106+0.8*($W214)),0) -> 0 | T214: =IF('DB 1'!F$106>0.2*($W214),('DB 1'!F$106-0.2*($W214))^2/('DB 1'!F$106+0.8*($W214)),0) -> 0 | U214: =IF('DB 1'!G$106>0.2*($W214),('DB 1'!G$106-0.2*($W214))^2/('DB 1'!G$106+0.8*($W214)),0) -> 0 | V214: 35.5 | W214: 18.16901408
R215: =IF('DB 1'!D$106>0.2*($W215),('DB 1'!D$106-0.2*($W215))^2/('DB 1'!D$106+0.8*($W215)),0) -> 0 | S215: =IF('DB 1'!E$106>0.2*($W215),('DB 1'!E$106-0.2*($W215))^2/('DB 1'!E$106+0.8*($W215)),0) -> 0 | T215: =IF('DB 1'!F$106>0.2*($W215),('DB 1'!F$106-0.2*($W215))^2/('DB 1'!F$106+0.8*($W215)),0) -> 0 | U215: =IF('DB 1'!G$106>0.2*($W215),('DB 1'!G$106-0.2*($W215))^2/('DB 1'!G$106+0.8*($W215)),0) -> 0 | V215: 35.6 | W215: 18.08988764
R216: =IF('DB 1'!D$106>0.2*($W216),('DB 1'!D$106-0.2*($W216))^2/('DB 1'!D$106+0.8*($W216)),0) -> 0 | S216: =IF('DB 1'!E$106>0.2*($W216),('DB 1'!E$106-0.2*($W216))^2/('DB 1'!E$106+0.8*($W216)),0) -> 0 | T216: =IF('DB 1'!F$106>0.2*($W216),('DB 1'!F$106-0.2*($W216))^2/('DB 1'!F$106+0.8*($W216)),0) -> 0 | U216: =IF('DB 1'!G$106>0.2*($W216),('DB 1'!G$106-0.2*($W216))^2/('DB 1'!G$106+0.8*($W216)),0) -> 0 | V216: 35.7 | W216: 18.01120448
R217: =IF('DB 1'!D$106>0.2*($W217),('DB 1'!D$106-0.2*($W217))^2/('DB 1'!D$106+0.8*($W217)),0) -> 0 | S217: =IF('DB 1'!E$106>0.2*($W217),('DB 1'!E$106-0.2*($W217))^2/('DB 1'!E$106+0.8*($W217)),0) -> 0 | T217: =IF('DB 1'!F$106>0.2*($W217),('DB 1'!F$106-0.2*($W217))^2/('DB 1'!F$106+0.8*($W217)),0) -> 0 | U217: =IF('DB 1'!G$106>0.2*($W217),('DB 1'!G$106-0.2*($W217))^2/('DB 1'!G$106+0.8*($W217)),0) -> 0 | V217: 35.8 | W217: 17.93296089
R218: =IF('DB 1'!D$106>0.2*($W218),('DB 1'!D$106-0.2*($W218))^2/('DB 1'!D$106+0.8*($W218)),0) -> 0 | S218: =IF('DB 1'!E$106>0.2*($W218),('DB 1'!E$106-0.2*($W218))^2/('DB 1'!E$106+0.8*($W218)),0) -> 0 | T218: =IF('DB 1'!F$106>0.2*($W218),('DB 1'!F$106-0.2*($W218))^2/('DB 1'!F$106+0.8*($W218)),0) -> 0 | U218: =IF('DB 1'!G$106>0.2*($W218),('DB 1'!G$106-0.2*($W218))^2/('DB 1'!G$106+0.8*($W218)),0) -> 0 | V218: 35.9 | W218: 17.8551532
R219: =IF('DB 1'!D$106>0.2*($W219),('DB 1'!D$106-0.2*($W219))^2/('DB 1'!D$106+0.8*($W219)),0) -> 0 | S219: =IF('DB 1'!E$106>0.2*($W219),('DB 1'!E$106-0.2*($W219))^2/('DB 1'!E$106+0.8*($W219)),0) -> 0 | T219: =IF('DB 1'!F$106>0.2*($W219),('DB 1'!F$106-0.2*($W219))^2/('DB 1'!F$106+0.8*($W219)),0) -> 0 | U219: =IF('DB 1'!G$106>0.2*($W219),('DB 1'!G$106-0.2*($W219))^2/('DB 1'!G$106+0.8*($W219)),0) -> 0 | V219: 36 | W219: 17.77777778
R220: =IF('DB 1'!D$106>0.2*($W220),('DB 1'!D$106-0.2*($W220))^2/('DB 1'!D$106+0.8*($W220)),0) -> 0 | S220: =IF('DB 1'!E$106>0.2*($W220),('DB 1'!E$106-0.2*($W220))^2/('DB 1'!E$106+0.8*($W220)),0) -> 0 | T220: =IF('DB 1'!F$106>0.2*($W220),('DB 1'!F$106-0.2*($W220))^2/('DB 1'!F$106+0.8*($W220)),0) -> 0 | U220: =IF('DB 1'!G$106>0.2*($W220),('DB 1'!G$106-0.2*($W220))^2/('DB 1'!G$106+0.8*($W220)),0) -> 0 | V220: 36.1 | W220: 17.70083102
R221: =IF('DB 1'!D$106>0.2*($W221),('DB 1'!D$106-0.2*($W221))^2/('DB 1'!D$106+0.8*($W221)),0) -> 0 | S221: =IF('DB 1'!E$106>0.2*($W221),('DB 1'!E$106-0.2*($W221))^2/('DB 1'!E$106+0.8*($W221)),0) -> 0 | T221: =IF('DB 1'!F$106>0.2*($W221),('DB 1'!F$106-0.2*($W221))^2/('DB 1'!F$106+0.8*($W221)),0) -> 0 | U221: =IF('DB 1'!G$106>0.2*($W221),('DB 1'!G$106-0.2*($W221))^2/('DB 1'!G$106+0.8*($W221)),0) -> 0 | V221: 36.2 | W221: 17.62430939
R222: =IF('DB 1'!D$106>0.2*($W222),('DB 1'!D$106-0.2*($W222))^2/('DB 1'!D$106+0.8*($W222)),0) -> 0 | S222: =IF('DB 1'!E$106>0.2*($W222),('DB 1'!E$106-0.2*($W222))^2/('DB 1'!E$106+0.8*($W222)),0) -> 0 | T222: =IF('DB 1'!F$106>0.2*($W222),('DB 1'!F$106-0.2*($W222))^2/('DB 1'!F$106+0.8*($W222)),0) -> 0 | U222: =IF('DB 1'!G$106>0.2*($W222),('DB 1'!G$106-0.2*($W222))^2/('DB 1'!G$106+0.8*($W222)),0) -> 0 | V222: 36.3 | W222: 17.54820937
R223: =IF('DB 1'!D$106>0.2*($W223),('DB 1'!D$106-0.2*($W223))^2/('DB 1'!D$106+0.8*($W223)),0) -> 0 | S223: =IF('DB 1'!E$106>0.2*($W223),('DB 1'!E$106-0.2*($W223))^2/('DB 1'!E$106+0.8*($W223)),0) -> 0 | T223: =IF('DB 1'!F$106>0.2*($W223),('DB 1'!F$106-0.2*($W223))^2/('DB 1'!F$106+0.8*($W223)),0) -> 0 | U223: =IF('DB 1'!G$106>0.2*($W223),('DB 1'!G$106-0.2*($W223))^2/('DB 1'!G$106+0.8*($W223)),0) -> 0 | V223: 36.4 | W223: 17.47252747
R224: =IF('DB 1'!D$106>0.2*($W224),('DB 1'!D$106-0.2*($W224))^2/('DB 1'!D$106+0.8*($W224)),0) -> 0 | S224: =IF('DB 1'!E$106>0.2*($W224),('DB 1'!E$106-0.2*($W224))^2/('DB 1'!E$106+0.8*($W224)),0) -> 0 | T224: =IF('DB 1'!F$106>0.2*($W224),('DB 1'!F$106-0.2*($W224))^2/('DB 1'!F$106+0.8*($W224)),0) -> 0 | U224: =IF('DB 1'!G$106>0.2*($W224),('DB 1'!G$106-0.2*($W224))^2/('DB 1'!G$106+0.8*($W224)),0) -> 0 | V224: 36.5 | W224: 17.39726027
R225: =IF('DB 1'!D$106>0.2*($W225),('DB 1'!D$106-0.2*($W225))^2/('DB 1'!D$106+0.8*($W225)),0) -> 0 | S225: =IF('DB 1'!E$106>0.2*($W225),('DB 1'!E$106-0.2*($W225))^2/('DB 1'!E$106+0.8*($W225)),0) -> 0 | T225: =IF('DB 1'!F$106>0.2*($W225),('DB 1'!F$106-0.2*($W225))^2/('DB 1'!F$106+0.8*($W225)),0) -> 0 | U225: =IF('DB 1'!G$106>0.2*($W225),('DB 1'!G$106-0.2*($W225))^2/('DB 1'!G$106+0.8*($W225)),0) -> 0 | V225: 36.6 | W225: 17.32240437
R226: =IF('DB 1'!D$106>0.2*($W226),('DB 1'!D$106-0.2*($W226))^2/('DB 1'!D$106+0.8*($W226)),0) -> 0 | S226: =IF('DB 1'!E$106>0.2*($W226),('DB 1'!E$106-0.2*($W226))^2/('DB 1'!E$106+0.8*($W226)),0) -> 0 | T226: =IF('DB 1'!F$106>0.2*($W226),('DB 1'!F$106-0.2*($W226))^2/('DB 1'!F$106+0.8*($W226)),0) -> 0 | U226: =IF('DB 1'!G$106>0.2*($W226),('DB 1'!G$106-0.2*($W226))^2/('DB 1'!G$106+0.8*($W226)),0) -> 0 | V226: 36.7 | W226: 17.2479564
R227: =IF('DB 1'!D$106>0.2*($W227),('DB 1'!D$106-0.2*($W227))^2/('DB 1'!D$106+0.8*($W227)),0) -> 0 | S227: =IF('DB 1'!E$106>0.2*($W227),('DB 1'!E$106-0.2*($W227))^2/('DB 1'!E$106+0.8*($W227)),0) -> 0 | T227: =IF('DB 1'!F$106>0.2*($W227),('DB 1'!F$106-0.2*($W227))^2/('DB 1'!F$106+0.8*($W227)),0) -> 0 | U227: =IF('DB 1'!G$106>0.2*($W227),('DB 1'!G$106-0.2*($W227))^2/('DB 1'!G$106+0.8*($W227)),0) -> 0 | V227: 36.8 | W227: 17.17391304
R228: =IF('DB 1'!D$106>0.2*($W228),('DB 1'!D$106-0.2*($W228))^2/('DB 1'!D$106+0.8*($W228)),0) -> 0 | S228: =IF('DB 1'!E$106>0.2*($W228),('DB 1'!E$106-0.2*($W228))^2/('DB 1'!E$106+0.8*($W228)),0) -> 0 | T228: =IF('DB 1'!F$106>0.2*($W228),('DB 1'!F$106-0.2*($W228))^2/('DB 1'!F$106+0.8*($W228)),0) -> 0 | U228: =IF('DB 1'!G$106>0.2*($W228),('DB 1'!G$106-0.2*($W228))^2/('DB 1'!G$106+0.8*($W228)),0) -> 0 | V228: 36.9 | W228: 17.100271
R229: =IF('DB 1'!D$106>0.2*($W229),('DB 1'!D$106-0.2*($W229))^2/('DB 1'!D$106+0.8*($W229)),0) -> 0 | S229: =IF('DB 1'!E$106>0.2*($W229),('DB 1'!E$106-0.2*($W229))^2/('DB 1'!E$106+0.8*($W229)),0) -> 0 | T229: =IF('DB 1'!F$106>0.2*($W229),('DB 1'!F$106-0.2*($W229))^2/('DB 1'!F$106+0.8*($W229)),0) -> 0 | U229: =IF('DB 1'!G$106>0.2*($W229),('DB 1'!G$106-0.2*($W229))^2/('DB 1'!G$106+0.8*($W229)),0) -> 0 | V229: 37 | W229: 17.02702703
R230: =IF('DB 1'!D$106>0.2*($W230),('DB 1'!D$106-0.2*($W230))^2/('DB 1'!D$106+0.8*($W230)),0) -> 0 | S230: =IF('DB 1'!E$106>0.2*($W230),('DB 1'!E$106-0.2*($W230))^2/('DB 1'!E$106+0.8*($W230)),0) -> 0 | T230: =IF('DB 1'!F$106>0.2*($W230),('DB 1'!F$106-0.2*($W230))^2/('DB 1'!F$106+0.8*($W230)),0) -> 0 | U230: =IF('DB 1'!G$106>0.2*($W230),('DB 1'!G$106-0.2*($W230))^2/('DB 1'!G$106+0.8*($W230)),0) -> 0 | V230: 37.1 | W230: 16.9541779
R231: =IF('DB 1'!D$106>0.2*($W231),('DB 1'!D$106-0.2*($W231))^2/('DB 1'!D$106+0.8*($W231)),0) -> 0 | S231: =IF('DB 1'!E$106>0.2*($W231),('DB 1'!E$106-0.2*($W231))^2/('DB 1'!E$106+0.8*($W231)),0) -> 0 | T231: =IF('DB 1'!F$106>0.2*($W231),('DB 1'!F$106-0.2*($W231))^2/('DB 1'!F$106+0.8*($W231)),0) -> 0 | U231: =IF('DB 1'!G$106>0.2*($W231),('DB 1'!G$106-0.2*($W231))^2/('DB 1'!G$106+0.8*($W231)),0) -> 0 | V231: 37.2 | W231: 16.88172043
R232: =IF('DB 1'!D$106>0.2*($W232),('DB 1'!D$106-0.2*($W232))^2/('DB 1'!D$106+0.8*($W232)),0) -> 0 | S232: =IF('DB 1'!E$106>0.2*($W232),('DB 1'!E$106-0.2*($W232))^2/('DB 1'!E$106+0.8*($W232)),0) -> 0 | T232: =IF('DB 1'!F$106>0.2*($W232),('DB 1'!F$106-0.2*($W232))^2/('DB 1'!F$106+0.8*($W232)),0) -> 0 | U232: =IF('DB 1'!G$106>0.2*($W232),('DB 1'!G$106-0.2*($W232))^2/('DB 1'!G$106+0.8*($W232)),0) -> 0 | V232: 37.3 | W232: 16.80965147
R233: =IF('DB 1'!D$106>0.2*($W233),('DB 1'!D$106-0.2*($W233))^2/('DB 1'!D$106+0.8*($W233)),0) -> 0 | S233: =IF('DB 1'!E$106>0.2*($W233),('DB 1'!E$106-0.2*($W233))^2/('DB 1'!E$106+0.8*($W233)),0) -> 0 | T233: =IF('DB 1'!F$106>0.2*($W233),('DB 1'!F$106-0.2*($W233))^2/('DB 1'!F$106+0.8*($W233)),0) -> 0 | U233: =IF('DB 1'!G$106>0.2*($W233),('DB 1'!G$106-0.2*($W233))^2/('DB 1'!G$106+0.8*($W233)),0) -> 0 | V233: 37.4 | W233: 16.73796791
R234: =IF('DB 1'!D$106>0.2*($W234),('DB 1'!D$106-0.2*($W234))^2/('DB 1'!D$106+0.8*($W234)),0) -> 0 | S234: =IF('DB 1'!E$106>0.2*($W234),('DB 1'!E$106-0.2*($W234))^2/('DB 1'!E$106+0.8*($W234)),0) -> 0 | T234: =IF('DB 1'!F$106>0.2*($W234),('DB 1'!F$106-0.2*($W234))^2/('DB 1'!F$106+0.8*($W234)),0) -> 0 | U234: =IF('DB 1'!G$106>0.2*($W234),('DB 1'!G$106-0.2*($W234))^2/('DB 1'!G$106+0.8*($W234)),0) -> 0 | V234: 37.5 | W234: 16.66666667
R235: =IF('DB 1'!D$106>0.2*($W235),('DB 1'!D$106-0.2*($W235))^2/('DB 1'!D$106+0.8*($W235)),0) -> 0 | S235: =IF('DB 1'!E$106>0.2*($W235),('DB 1'!E$106-0.2*($W235))^2/('DB 1'!E$106+0.8*($W235)),0) -> 0 | T235: =IF('DB 1'!F$106>0.2*($W235),('DB 1'!F$106-0.2*($W235))^2/('DB 1'!F$106+0.8*($W235)),0) -> 0 | U235: =IF('DB 1'!G$106>0.2*($W235),('DB 1'!G$106-0.2*($W235))^2/('DB 1'!G$106+0.8*($W235)),0) -> 0 | V235: 37.6 | W235: 16.59574468
... 624 more rows

Sheet DB 2
A1: Georgia Stormwater Management Manual Stormwater Quality Site Development Review Tool, v2.2
B7: Development Name: | C7: =IF(ISBLANK(Summary!B9),"",Summary!B9) ->  | L7: data input cells
B8: Drainage Basin Name: | L8: calculation cells
L9: constant values
A11: Site Data
A14: Indicate Pre-Development Land Cover and Runoff Curve Numbers in the Site's Disturbed Area
A15: Cover Type | D15: HSG* A (acres) | E15: CN | F15: HSG B (acres) | G15: CN | H15: HSG C (acres) | I15: CN | J15: HSG D (acres) | K15: CN | L15: Total | M15: % Cover
A16: Select a land cover type… | E16: =INDEX('RR_TSS Removal %'!$S$8:$X$40,MATCH('DB 2'!$A16,'RR_TSS Removal %'!$S$8:$S$40,0),MATCH('DB 2'!D$15,'RR_TSS Removal %'!$S$8:$X$8,0)) -> 1e-07 | G16: =INDEX('RR_TSS Removal %'!$S$8:$X$40,MATCH('DB 2'!$A16,'RR_TSS Removal %'!$S$8:$S$40,0),MATCH('DB 2'!F$15,'RR_TSS Removal %'!$S$8:$X$8,0)) -> 1e-07 | I16: =INDEX('RR_TSS Removal %'!$S$8:$X$40,MATCH('DB 2'!$A16,'RR_TSS Removal %'!$S$8:$S$40,0),MATCH('DB 2'!H$15,'RR_TSS Removal %'!$S$8:$X$8,0)) -> 1e-07 | K16: =INDEX('RR_TSS Removal %'!$S$8:$X$40,MATCH('DB 2'!$A16,'RR_TSS Removal %'!$S$8:$S$40,0),MATCH('DB 2'!J$15,'RR_TSS Removal %'!$S$8:$X$8,0)) -> 1e-07 | L16: =D16+F16+H16+J16 -> 0 | M16: =IF($L$23>0,L16/$L$23,0) -> 0
A17: Select a land cover type… | E17: =INDEX('RR_TSS Removal %'!$S$8:$X$40,MATCH('DB 2'!$A17,'RR_TSS Removal %'!$S$8:$S$40,0),MATCH('DB 2'!D$15,'RR_TSS Removal %'!$S$8:$X$8,0)) -> 1e-07 | G17: =INDEX('RR_TSS Removal %'!$S$8:$X$40,MATCH('DB 2'!$A17,'RR_TSS Removal %'!$S$8:$S$40,0),MATCH('DB 2'!F$15,'RR_TSS Removal %'!$S$8:$X$8,0)) -> 1e-07 | I17: =INDEX('RR_TSS Removal %'!$S$8:$X$40,MATCH('DB 2'!$A17,'RR_TSS Removal %'!$S$8:$S$40,0),MATCH('DB 2'!H$15,'RR_TSS Removal %'!$S$8:$X$8,0)) -> 1e-07 | K17: =INDEX('RR_TSS Removal %'!$S$8:$X$40,MATCH('DB 2'!$A17,'RR_TSS Removal %'!$S$8:$S$40,0),MATCH('DB 2'!J$15,'RR_TSS Removal %'!$S$8:$X$8,0)) -> 1e-07 | L17: 0 | M17: 0
A18: Select a land cover type… | E18: =INDEX('RR_TSS Removal %'!$S$8:$X$40,MATCH('DB 2'!$A18,'RR_TSS Removal %'!$S$8:$S$40,0),MATCH('DB 2'!D$15,'RR_TSS Removal %'!$S$8:$X$8,0)) -> 1e-07 | G18: =INDEX('RR_TSS Removal %'!$S$8:$X$40,MATCH('DB 2'!$A18,'RR_TSS Removal %'!$S$8:$S$40,0),MATCH('DB 2'!F$15,'RR_TSS Removal %'!$S$8:$X$8,0)) -> 1e-07 | I18: =INDEX('RR_TSS Removal %'!$S$8:$X$40,MATCH('DB 2'!$A18,'RR_TSS Removal %'!$S$8:$S$40,0),MATCH('DB 2'!H$15,'RR_TSS Removal %'!$S$8:$X$8,0)) -> 1e-07 | K18: =INDEX('RR_TSS Removal %'!$S$8:$X$40,MATCH('DB 2'!$A18,'RR_TSS Removal %'!$S$8:$S$40,0),MATCH('DB 2'!J$15,'RR_TSS Removal %'!$S$8:$X$8,0)) -> 1e-07 | L18: 0 | M18: 0
A19: Select a land cover type… | E19: =INDEX('RR_TSS Removal %'!$S$8:$X$40,MATCH('DB 2'!$A19,'RR_TSS Removal %'!$S$8:$S$40,0),MATCH('DB 2'!D$15,'RR_TSS Removal %'!$S$8:$X$8,0)) -> 1e-07 | G19: =INDEX('RR_TSS Removal %'!$S$8:$X$40,MATCH('DB 2'!$A19,'RR_TSS Removal %'!$S$8:$S$40,0),MATCH('DB 2'!F$15,'RR_TSS Removal %'!$S$8:$X$8,0)) -> 1e-07 | I19: =INDEX('RR_TSS Removal %'!$S$8:$X$40,MATCH('DB 2'!$A19,'RR_TSS Removal %'!$S$8:$S$40,0),MATCH('DB 2'!H$15,'RR_TSS Removal %'!$S$8:$X$8,0)) -> 1e-07 | K19: =INDEX('RR_TSS Removal %'!$S$8:$X$40,MATCH('DB 2'!$A19,'RR_TSS Removal %'!$S$8:$S$40,0),MATCH('DB 2'!J$15,'RR_TSS Removal %'!$S$8:$X$8,0)) -> 1e-07 | L19: 0 | M19: 0
A20: Select a land cover type… | E20: =INDEX('RR_TSS Removal %'!$S$8:$X$40,MATCH('DB 2'!$A20,'RR_TSS Removal %'!$S$8:$S$40,0),MATCH('DB 2'!D$15,'RR_TSS Removal %'!$S$8:$X$8,0)) -> 1e-07 | G20: =INDEX('RR_TSS Removal %'!$S$8:$X$40,MATCH('DB 2'!$A20,'RR_TSS Removal %'!$S$8:$S$40,0),MATCH('DB 2'!F$15,'RR_TSS Removal %'!$S$8:$X$8,0)) -> 1e-07 | I20: =INDEX('RR_TSS Removal %'!$S$8:$X$40,MATCH('DB 2'!$A20,'RR_TSS Removal %'!$S$8:$S$40,0),MATCH('DB 2'!H$15,'RR_TSS Removal %'!$S$8:$X$8,0)) -> 1e-07 | K20: =INDEX('RR_TSS Removal %'!$S$8:$X$40,MATCH('DB 2'!$A20,'RR_TSS Removal %'!$S$8:$S$40,0),MATCH('DB 2'!J$15,'RR_TSS Removal %'!$S$8:$X$8,0)) -> 1e-07 | L20: 0 | M20: 0
A21: Local Jurisdiction Input | L21: 0 | M21: 0
A22: Other | L22: 0 | M22: 0
A23: Total | D23: =SUM(D16:D22) -> 0 | F23: =SUM(F16:F22) -> 0 | H23: =SUM(H16:H22) -> 0 | J23: =SUM(J16:J22) -> 0 | L23: 0 | M23: 0
A24: *HSG = hydrologic soil group | I24: Impervious (ac) | K24: =SUMIF(A16:A20,"Impervious",L16:L20) -> 0
I25: Weighted CN | K25: =IF(L23>0,(SUMPRODUCT(D16:D22,E16:E22)+SUMPRODUCT(F16:F22,G16:G22)+SUMPRODUCT(H16:H22,I16:I22)+SUMPRODUCT(J16:J22,K16:K22))/L23,0) -> 0
H26: Potential Max Soil Retention, Spre (in) | K26: =IF(K25>0,1000/K25-10,1000) -> 1000
A28: Indicate Post-Development Land Cover and Runoff Curve Numbers in the Site's Disturbed Area
A29: Cover Type | D29: HSG A (acres) | E29: CN | F29: HSG B (acres) | G29: CN | H29: HSG C (acres) | I29: CN | J29: HSG D (acres) | K29: CN | L29: Total | M29: % Cover
A30: Select a land cover type… | E30: =INDEX('RR_TSS Removal %'!$S$8:$X$40,MATCH('DB 2'!$A30,'RR_TSS Removal %'!$S$8:$S$40,0),MATCH('DB 2'!D$29,'RR_TSS Removal %'!$S$8:$X$8,0)) -> 1e-07 | G30: =INDEX('RR_TSS Removal %'!$S$8:$X$40,MATCH('DB 2'!$A30,'RR_TSS Removal %'!$S$8:$S$40,0),MATCH('DB 2'!F$29,'RR_TSS Removal %'!$S$8:$X$8,0)) -> 1e-07 | I30: =INDEX('RR_TSS Removal %'!$S$8:$X$40,MATCH('DB 2'!$A30,'RR_TSS Removal %'!$S$8:$S$40,0),MATCH('DB 2'!H$29,'RR_TSS Removal %'!$S$8:$X$8,0)) -> 1e-07 | K30: =INDEX('RR_TSS Removal %'!$S$8:$X$40,MATCH('DB 2'!$A30,'RR_TSS Removal %'!$S$8:$S$40,0),MATCH('DB 2'!J$29,'RR_TSS Removal %'!$S$8:$X$8,0)) -> 1e-07 | L30: =D30+F30+H30+J30 -> 0 | M30: =IF($L$37>0,L30/$L$37,0) -> 0
A31: Select a land cover type… | E31: =INDEX('RR_TSS Removal %'!$S$8:$X$40,MATCH('DB 2'!$A31,'RR_TSS Removal %'!$S$8:$S$40,0),MATCH('DB 2'!D$29,'RR_TSS Removal %'!$S$8:$X$8,0)) -> 1e-07 | G31: =INDEX('RR_TSS Removal %'!$S$8:$X$40,MATCH('DB 2'!$A31,'RR_TSS Removal %'!$S$8:$S$40,0),MATCH('DB 2'!F$29,'RR_TSS Removal %'!$S$8:$X$8,0)) -> 1e-07 | I31: =INDEX('RR_TSS Removal %'!$S$8:$X$40,MATCH('DB 2'!$A31,'RR_TSS Removal %'!$S$8:$S$40,0),MATCH('DB 2'!H$29,'RR_TSS Removal %'!$S$8:$X$8,0)) -> 1e-07 | K31: =INDEX('RR_TSS Removal %'!$S$8:$X$40,MATCH('DB 2'!$A31,'RR_TSS Removal %'!$S$8:$S$40,0),MATCH('DB 2'!J$29,'RR_TSS Removal %'!$S$8:$X$8,0)) -> 1e-07 | L31: 0 | M31: 0
A32: Select a land cover type… | E32: =INDEX('RR_TSS Removal %'!$S$8:$X$40,MATCH('DB 2'!$A32,'RR_TSS Removal %'!$S$8:$S$40,0),MATCH('DB 2'!D$29,'RR_TSS Removal %'!$S$8:$X$8,0)) -> 1e-07 | G32: =INDEX('RR_TSS Removal %'!$S$8:$X$40,MATCH('DB 2'!$A32,'RR_TSS Removal %'!$S$8:$S$40,0),MATCH('DB 2'!F$29,'RR_TSS Removal %'!$S$8:$X$8,0)) -> 1e-07 | I32: =INDEX('RR_TSS Removal %'!$S$8:$X$40,MATCH('DB 2'!$A32,'RR_TSS Removal %'!$S$8:$S$40,0),MATCH('DB 2'!H$29,'RR_TSS Removal %'!$S$8:$X$8,0)) -> 1e-07 | K32: =INDEX('RR_TSS Removal %'!$S$8:$X$40,MATCH('DB 2'!$A32,'RR_TSS Removal %'!$S$8:$S$40,0),MATCH('DB 2'!J$29,'RR_TSS Removal %'!$S$8:$X$8,0)) -> 1e-07 | L32: 0 | M32: 0
A33: Select a land cover type… | E33: =INDEX('RR_TSS Removal %'!$S$8:$X$40,MATCH('DB 2'!$A33,'RR_TSS Removal %'!$S$8:$S$40,0),MATCH('DB 2'!D$29,'RR_TSS Removal %'!$S$8:$X$8,0)) -> 1e-07 | G33: =INDEX('RR_TSS Removal %'!$S$8:$X$40,MATCH('DB 2'!$A33,'RR_TSS Removal %'!$S$8:$S$40,0),MATCH('DB 2'!F$29,'RR_TSS Removal %'!$S$8:$X$8,0)) -> 1e-07 | I33: =INDEX('RR_TSS Removal %'!$S$8:$X$40,MATCH('DB 2'!$A33,'RR_TSS Removal %'!$S$8:$S$40,0),MATCH('DB 2'!H$29,'RR_TSS Removal %'!$S$8:$X$8,0)) -> 1e-07 | K33: =INDEX('RR_TSS Removal %'!$S$8:$X$40,MATCH('DB 2'!$A33,'RR_TSS Removal %'!$S$8:$S$40,0),MATCH('DB 2'!J$29,'RR_TSS Removal %'!$S$8:$X$8,0)) -> 1e-07 | L33: 0 | M33: 0
A34: Select a land cover type… | E34: =INDEX('RR_TSS Removal %'!$S$8:$X$40,MATCH('DB 2'!$A34,'RR_TSS Removal %'!$S$8:$S$40,0),MATCH('DB 2'!D$29,'RR_TSS Removal %'!$S$8:$X$8,0)) -> 1e-07 | G34: =INDEX('RR_TSS Removal %'!$S$8:$X$40,MATCH('DB 2'!$A34,'RR_TSS Removal %'!$S$8:$S$40,0),MATCH('DB 2'!F$29,'RR_TSS Removal %'!$S$8:$X$8,0)) -> 1e-07 | I34: =INDEX('RR_TSS Removal %'!$S$8:$X$40,MATCH('DB 2'!$A34,'RR_TSS Removal %'!$S$8:$S$40,0),MATCH('DB 2'!H$29,'RR_TSS Removal %'!$S$8:$X$8,0)) -> 1e-07 | K34: =INDEX('RR_TSS Removal %'!$S$8:$X$40,MATCH('DB 2'!$A34,'RR_TSS Removal %'!$S$8:$S$40,0),MATCH('DB 2'!J$29,'RR_TSS Removal %'!$S$8:$X$8,0)) -> 1e-07 | L34: 0 | M34: 0
A35: Local Jurisdiction Input | L35: 0 | M35: 0
A36: Other | L36: 0 | M36: 0
A37: Total | D37: =SUM(D30:D36) -> 0 | F37: =SUM(F30:F36) -> 0 | H37: =SUM(H30:H36) -> 0 | J37: =SUM(J30:J36) -> 0 | L37: =(D37+F37+H37+J37) -> 0 | M37: 0
I38: Impervious (ac) | K38: =SUMIF(A30:A34,"Impervious",L30:L34) -> 0
I39: Rv | K39: =IF(SUM($L$30:$L$36)=0,0,($K$38/SUM($L$30:$L$36)*100*0.009)+0.05) -> 0
I40: Weighted CN | K40: =IF(L37>0,(SUMPRODUCT(D30:D36,E30:E36)+SUMPRODUCT(F30:F36,G30:G36)+SUMPRODUCT(H30:H36,I30:I36)+SUMPRODUCT(J30:J36,K30:K36))/SUM(L30:L36),0) -> 0
H41: Potential Max Soil Retention, Spost (in) | K41: =IF(K40>0,1000/K40-10,1000) -> 1000
A43: Conservation Area Credits
A45: Scenario 1: Natural Conservation Area *See the GSMM Volume 2, Section 2.3.3.3 for more information. | H45: Scenario 3: Soil Restoration *See the GSMM Volume 2, Section 4.23 for more information.
B47: Check the box if a portion of the post-developed area is protected by a conservation easement or equivalent form of protection. | I47: Check the box if a portion of the post-developed area employs soil restoration and is protected by a conservation easement or equivalent form of protection.
B50: Area (ac) of development protected by a conservation easement or equivalent form of protection. | D50: Note: The green cell will unlock if the Scenario 1 box above is checked | I50: Area (ac) of development with restored soils and protected by a conservation easement or equivalent form of protection. | N50: Note: The green cell will unlock if the Scenario 3 box above is checked
A52: Scenario 2: Site Reforestation/Revegetation *See the GSMM Volume 2, Section 4.22 for more information. | H52: Scenario 4: Site Reforestation/Revegetation & Soil Restoration | M52: *See the GSMM Volume 2, Section 4.22 and 4.23 for more information.
B54: Check the box if a portion of the post-developed area employs site reforestation/revegetation and is protected by a conservation easement or equivalent form of protection. | I54: Check the box if the same portion of the post-developed area employs site reforestation/revegetation and soil restoration, and is protected by a conservation easement or equivalent form of protection.
B57: Area (ac) of development reforested/revegetated and protected by a conservation easement or equivalent form of protection. | D57: Note: The green cell will unlock if the Scenario 2 box above is checked | I57: Area (ac) with restored soils in a reforested & revegetated area and protected by a conservation easement or equivalent form of protection. | N57: Note: The green cell will unlock if the Scenario 4 box above is checked
F59: Total Conservation Area Credit (acres) | G59: =SUM(A50,0.5*A57,0.5*H50,H57) -> 0
A61: Water Quality Goals
B64: Target Runoff Reduction Storm (in) | C64: 1 | H64: Total Site Area for Water Quality Volume (acres) | I64: =SUM(D37,F37,H37,J37)-G59 -> 0
H65: Target Runoff Reduction Volume (cf) | I65: =C64/12*K39*I64*43560 -> 0
H66: Target Water Quality Volume (cf) | I66: =1.2/12*K39*I64*43560 -> 0
B70: TSS in Water Quality Volume (units) | C70: =I66 -> 0
A72: Select BMPs for Runoff Reduction and Water Quality
C75: Area Draining to Each BMP | F75: Storage Volume Provided by BMP (cf) | G75: RR Conveyance Volume Provided by BMP (cf) | H75: Down-stream BMP | I75: Runoff Reduction Calculations | O75: WQ Calculations | X75: Downstream Runoff | AI75: Downstream TSS
C76: On-site Pervious Area (acres) | D76: On-site Impervious Area (acres) | E76: Offsite Area (acres) | I76: RR Volume from Direct Drainage (cf) | J76: RR Volume from Upstream Practices (cf) | K76: Total RR Volume Received by BMP (cf) | L76: Runoff Reduction % | M76: RR Achieved (cf) | N76: Remaining RR Volume (cf) | O76: WQv from Direct Drainage (cf) | P76: Effective TSS Removal % | Q76: TSS from Direct Drainage (units) | R76: TSS from Upstream Practices (units) | S76: Total TSS Received by BMP (units) | T76: TSS Removal Achieved (units) | U76: Remaining TSS (units) | V76: Storage Volume Provided | X76: BMP 1 | Y76: BMP 2 | Z76: BMP 3 | AA76: BMP 4 | AB76: BMP 5 | AC76: BMP 6 | AD76: BMP 7 | AE76: BMP 8 | AF76: BMP 9 | AG76: BMP 10 | AI76: BMP 1 | AJ76: BMP 2 | AK76: BMP 3 | AL76: BMP 4 | AM76: BMP 5 | AN76: BMP 6 | AO76: BMP 7 | AP76: BMP 8 | AQ76: BMP 9 | AR76: BMP 10
A77: BMP 1 | B77: Select a BMP… | G77: =IF(V77="Convey",I77+J77,"") ->  | I77: =IFERROR($C$64/12*(0.05+0.009*($D77/($C77+$D77))*100)*($C77+$D77)*43560,0) -> 0 | J77: =HLOOKUP($A77,$X$76:$AG$90,15,FALSE) -> 0 | K77: =$I77+$J77 -> 0 | L77: =VLOOKUP($B77,'RR_TSS Removal %'!$A$9:$E$56,4,FALSE) -> N/A | M77: =IFERROR(IF(F77=0,G77*L77,IF(F77>K77/L77,K77,F77*L77)),0) -> 0 | N77: =IFERROR(K77-M77,0) -> 0 | O77: =IFERROR(1.2/12*(0.05+0.009*($D77/($C77+$D77))*100)*($C77+$D77)*43560,0) -> 0 | P77: =VLOOKUP($B77,'RR_TSS Removal %'!$A$9:$E$56,5,FALSE) -> N/A | Q77: =IFERROR(1.2/12*(0.05+0.009*($D77/($C77+$D77))*100)*($C77+$D77)*43560,0) -> 0 | R77: =IFERROR(HLOOKUP($A77,$AI$76:$AR$90,15,FALSE),0) -> 0 | S77: =Q77+R77 -> 0 | T77: =IFERROR(P77*S77,0) -> 0 | U77: =S77-T77 -> 0 | V77: =VLOOKUP($B77,'RR_TSS Removal %'!$A$9:$F$56,6,FALSE) -> 0 | X77: =IF($H77=X$76,$N77,0) -> 0 | Y77: 0 | Z77: 0 | AA77: 0 | AB77: 0 | AC77: 0 | AD77: 0 | AE77: 0 | AF77: 0 | AG77: 0 | AI77: =IF($H77=AI$76,$U77,0) -> 0 | AJ77: 0 | AK77: 0 | AL77: 0 | AM77: 0 | AN77: 0 | AO77: 0 | AP77: 0 | AQ77: 0 | AR77: 0
A78: BMP 2 | B78: Select a BMP… | G78: =IF(V78="Convey",I78+J78,"") ->  | I78: =IFERROR($C$64/12*(0.05+0.009*($D78/($C78+$D78))*100)*($C78+$D78)*43560,0) -> 0 | J78: 0 | K78: 0 | L78: =VLOOKUP($B78,'RR_TSS Removal %'!$A$9:$E$56,4,FALSE) -> N/A | M78: =IFERROR(IF(F78=0,G78*L78,IF(F78>K78/L78,K78,F78*L78)),0) -> 0 | N78: =IFERROR(K78-M78,0) -> 0 | O78: =IFERROR(1.2/12*(0.05+0.009*($D78/($C78+$D78))*100)*($C78+$D78)*43560,0) -> 0 | P78: =VLOOKUP($B78,'RR_TSS Removal %'!$A$9:$E$56,5,FALSE) -> N/A | Q78: =IFERROR(1.2/12*(0.05+0.009*($D78/($C78+$D78))*100)*($C78+$D78)*43560,0) -> 0 | R78: 0 | S78: =Q78+R78 -> 0 | T78: =IFERROR(P78*S78,0) -> 0 | U78: 0 | V78: =VLOOKUP($B78,'RR_TSS Removal %'!$A$9:$F$56,6,FALSE) -> 0 | X78: 0 | Y78: 0 | Z78: 0 | AA78: 0 | AB78: 0 | AC78: 0 | AD78: 0 | AE78: 0 | AF78: 0 | AG78: 0 | AI78: 0 | AJ78: 0 | AK78: 0 | AL78: 0 | AM78: 0 | AN78: 0 | AO78: 0 | AP78: 0 | AQ78: 0 | AR78: 0
A79: BMP 3 | B79: Select a BMP… | I79: 0 | J79: 0 | K79: 0 | L79: =VLOOKUP($B79,'RR_TSS Removal %'!$A$9:$E$56,4,FALSE) -> N/A | M79: 0 | N79: 0 | O79: 0 | P79: =VLOOKUP($B79,'RR_TSS Removal %'!$A$9:$E$56,5,FALSE) -> N/A | Q79: 0 | R79: 0 | S79: 0 | T79: 0 | U79: 0 | V79: =VLOOKUP($B79,'RR_TSS Removal %'!$A$9:$F$56,6,FALSE) -> 0 | X79: 0 | Y79: 0 | Z79: 0 | AA79: 0 | AB79: 0 | AC79: 0 | AD79: 0 | AE79: 0 | AF79: 0 | AG79: 0 | AI79: 0 | AJ79: 0 | AK79: 0 | AL79: 0 | AM79: 0 | AN79: 0 | AO79: 0 | AP79: 0 | AQ79: 0 | AR79: 0
A80: BMP 4 | B80: Select a BMP… | I80: 0 | J80: 0 | K80: 0 | L80: =VLOOKUP($B80,'RR_TSS Removal %'!$A$9:$E$56,4,FALSE) -> N/A | M80: 0 | N80: 0 | O80: 0 | P80: =VLOOKUP($B80,'RR_TSS Removal %'!$A$9:$E$56,5,FALSE) -> N/A | Q80: 0 | R80: 0 | S80: 0 | T80: 0 | U80: 0 | V80: =VLOOKUP($B80,'RR_TSS Removal %'!$A$9:$F$56,6,FALSE) -> 0 | X80: 0 | Y80: 0 | Z80: 0 | AA80: 0 | AB80: 0 | AC80: 0 | AD80: 0 | AE80: 0 | AF80: 0 | AG80: 0 | AI80: 0 | AJ80: 0 | AK80: 0 | AL80: 0 | AM80: 0 | AN80: 0 | AO80: 0 | AP80: 0 | AQ80: 0 | AR80: 0
A81: BMP 5 | B81: Select a BMP… | I81: 0 | J81: 0 | K81: 0 | L81: =VLOOKUP($B81,'RR_TSS Removal %'!$A$9:$E$56,4,FALSE) -> N/A | M81: 0 | N81: 0 | O81: 0 | P81: =VLOOKUP($B81,'RR_TSS Removal %'!$A$9:$E$56,5,FALSE) -> N/A | Q81: 0 | R81: 0 | S81: 0 | T81: 0 | U81: 0 | V81: =VLOOKUP($B81,'RR_TSS Removal %'!$A$9:$F$56,6,FALSE) -> 0 | X81: 0 | Y81: 0 | Z81: 0 | AA81: 0 | AB81: 0 | AC81: 0 | AD81: 0 | AE81: 0 | AF81: 0 | AG81: 0 | AI81: 0 | AJ81: 0 | AK81: 0 | AL81: 0 | AM81: 0 | AN81: 0 | AO81: 0 | AP81: 0 | AQ81: 0 | AR81: 0
A82: BMP 6 | B82: Select a BMP… | I82: 0 | J82: 0 | K82: 0 | L82: =VLOOKUP($B82,'RR_TSS Removal %'!$A$9:$E$56,4,FALSE) -> N/A | M82: 0 | N82: 0 | O82: 0 | P82: =VLOOKUP($B82,'RR_TSS Removal %'!$A$9:$E$56,5,FALSE) -> N/A | Q82: 0 | R82: 0 | S82: 0 | T82: 0 | U82: 0 | V82: =VLOOKUP($B82,'RR_TSS Removal %'!$A$9:$F$56,6,FALSE) -> 0 | X82: 0 | Y82: 0 | Z82: 0 | AA82: 0 | AB82: 0 | AC82: 0 | AD82: 0 | AE82: 0 | AF82: 0 | AG82: 0 | AI82: 0 | AJ82: 0 | AK82: 0 | AL82: 0 | AM82: 0 | AN82: 0 | AO82: 0 | AP82: 0 | AQ82: 0 | AR82: 0
A83: BMP 7 | B83: Select a BMP… | I83: 0 | J83: 0 | K83: 0 | L83: =VLOOKUP($B83,'RR_TSS Removal %'!$A$9:$E$56,4,FALSE) -> N/A | M83: 0 | N83: 0 | O83: 0 | P83: =VLOOKUP($B83,'RR_TSS Removal %'!$A$9:$E$56,5,FALSE) -> N/A | Q83: 0 | R83: 0 | S83: 0 | T83: 0 | U83: 0 | V83: =VLOOKUP($B83,'RR_TSS Removal %'!$A$9:$F$56,6,FALSE) -> 0 | X83: 0 | Y83: 0 | Z83: 0 | AA83: 0 | AB83: 0 | AC83: 0 | AD83: 0 | AE83: 0 | AF83: 0 | AG83: 0 | AI83: 0 | AJ83: 0 | AK83: 0 | AL83: 0 | AM83: 0 | AN83: 0 | AO83: 0 | AP83: 0 | AQ83: 0 | AR83: 0
A84: BMP 8 | B84: Select a BMP… | I84: 0 | J84: 0 | K84: 0 | L84: =VLOOKUP($B84,'RR_TSS Removal %'!$A$9:$E$56,4,FALSE) -> N/A | M84: 0 | N84: 0 | O84: 0 | P84: =VLOOKUP($B84,'RR_TSS Removal %'!$A$9:$E$56,5,FALSE) -> N/A | Q84: 0 | R84: 0 | S84: 0 | T84: 0 | U84: 0 | V84: =VLOOKUP($B84,'RR_TSS Removal %'!$A$9:$F$56,6,FALSE) -> 0 | X84: 0 | Y84: 0 | Z84: 0 | AA84: 0 | AB84: 0 | AC84: 0 | AD84: 0 | AE84: 0 | AF84: 0 | AG84: 0 | AI84: 0 | AJ84: 0 | AK84: 0 | AL84: 0 | AM84: 0 | AN84: 0 | AO84: 0 | AP84: 0 | AQ84: 0 | AR84: 0
A85: BMP 9 | B85: Select a BMP… | I85: 0 | J85: 0 | K85: 0 | L85: =VLOOKUP($B85,'RR_TSS Removal %'!$A$9:$E$56,4,FALSE) -> N/A | M85: 0 | N85: 0 | O85: 0 | P85: =VLOOKUP($B85,'RR_TSS Removal %'!$A$9:$E$56,5,FALSE) -> N/A | Q85: 0 | R85: 0 | S85: 0 | T85: 0 | U85: 0 | V85: =VLOOKUP($B85,'RR_TSS Removal %'!$A$9:$F$56,6,FALSE) -> 0 | X85: 0 | Y85: 0 | Z85: 0 | AA85: 0 | AB85: 0 | AC85: 0 | AD85: 0 | AE85: 0 | AF85: 0 | AG85: 0 | AI85: 0 | AJ85: 0 | AK85: 0 | AL85: 0 | AM85: 0 | AN85: 0 | AO85: 0 | AP85: 0 | AQ85: 0 | AR85: 0
A86: BMP 10 | B86: Select a BMP… | I86: 0 | J86: 0 | K86: 0 | L86: =VLOOKUP($B86,'RR_TSS Removal %'!$A$9:$E$56,4,FALSE) -> N/A | M86: 0 | N86: 0 | O86: 0 | P86: =VLOOKUP($B86,'RR_TSS Removal %'!$A$9:$E$56,5,FALSE) -> N/A | Q86: 0 | R86: 0 | S86: 0 | T86: 0 | U86: 0 | V86: =VLOOKUP($B86,'RR_TSS Removal %'!$A$9:$F$56,6,FALSE) -> 0 | X86: 0 | Y86: 0 | Z86: 0 | AA86: 0 | AB86: 0 | AC86: 0 | AD86: 0 | AE86: 0 | AF86: 0 | AG86: 0 | AI86: 0 | AJ86: 0 | AK86: 0 | AL86: 0 | AM86: 0 | AN86: 0 | AO86: 0 | AP86: 0 | AQ86: 0 | AR86: 0
M87: 0
B88: TOTAL | C88: =SUM(C77:C86) -> 0 | D88: =SUM(D77:D86) -> 0 | E88: =SUM(E77:E86) -> 0 | I88: =SUM(I77:I86) -> 0 | M88: =SUM(M77:M86) -> 0 | O88: =SUM(O77:O86) -> 0 | T88: =SUM(T77:T86) -> 0 | U88: =SUM(U77:U86) -> 0
B89: UNTREATED AREA (acres) | C89: =IF(SUM($C$77:$C$86)<SUM($L$30:$L$36)-$K$38,SUM($L$30:$L$36)-$K$38-$C$88,0) -> 0 | D89: =IF(SUM($D$77:$D$86)<$K$38,$K$38-$D$88,0) -> 0
X90: =SUM(X76:X88) -> 0 | Y90: =SUM(Y76:Y88) -> 0 | Z90: 0 | AA90: 0 | AB90: 0 | AC90: 0 | AD90: 0 | AE90: 0 | AF90: 0 | AG90: 0 | AI90: =SUM(AI76:AI88) -> 0 | AJ90: =SUM(AJ76:AJ88) -> 0 | AK90: 0 | AL90: 0 | AM90: 0 | AN90: 0 | AO90: 0 | AP90: 0 | AQ90: 0 | AR90: 0
B92: Target Runoff Reduction Volume (cf) | C92: =I65 -> 0
B93: Target Achieved? | C93: =IF(M88<C92,"No",IF(C92=0,"N/A","Yes!")) -> N/A
B94: Remaining Runoff Reduction Volume (cf) | C94: =IF(M88<C92,C92-M88,0) -> 0
B96: Target Water Quality Volume (cf) | C96: =I66 -> 0
B97: % TSS Removal Achieved | C97: =IFERROR(IF(T88/C70>1,1,ROUND(T88/C70,2)),0) -> 0
B98: Target Achieved? | C98: =IF(C97>=80%,"Yes!","No") -> No
B99: Remaining TSS Removal % | C99: =IF(C97<0.8,0.8-C97,0) -> 0.8
A103: Channel and Flood Protection Calculations | R103: Reference Table to Calculate Post-Development Runoff Volume (in) with BMPs and corresponding CN
D105: 1-yr, 24-hr storm | E105: 2-yr, 24-hr storm | F105: 25-yr, 24-hr storm | G105: 100-yr, 24-hr storm
C106: Target Rainfall Event (in) | R106: 1-yr, 24-hr storm | S106: 2-yr, 24-hr storm | T106: 25-yr, 24-hr storm | U106: 100-yr, 24-hr storm | V106: Adjusted CN | W106: Adjusted S
R107: v (in) | S107: v (in) | T107: v (in) | U107: v (in) | V107: CN | W107: S
D109: =D105 -> 1-yr, 24-hr storm | E109: =E105 -> 2-yr, 24-hr storm | F109: =F105 -> 25-yr, 24-hr storm | G109: =G105 -> 100-yr, 24-hr storm | R109: =IF('DB 2'!D$106>0.2*($W109),('DB 2'!D$106-0.2*($W109))^2/('DB 2'!D$106+0.8*($W109)),0) -> 0 | S109: =IF('DB 2'!E$106>0.2*($W109),('DB 2'!E$106-0.2*($W109))^2/('DB 2'!E$106+0.8*($W109)),0) -> 0 | T109: =IF('DB 2'!F$106>0.2*($W109),('DB 2'!F$106-0.2*($W109))^2/('DB 2'!F$106+0.8*($W109)),0) -> 0 | U109: =IF('DB 2'!G$106>0.2*($W109),('DB 2'!G$106-0.2*($W109))^2/('DB 2'!G$106+0.8*($W109)),0) -> 0 | V109: 25 | W109: =IF(V109>0,1000/V109-10,1000) -> 30
A110: Pre-Development Runoff Volume (in) | D110: =IF(D$106>0.2*$K26,(D$106-0.2*$K26)^2/(D$106+0.8*$K26),0) -> 0 | E110: =IF(E$106>0.2*$K26,(E$106-0.2*$K26)^2/(E$106+0.8*$K26),0) -> 0 | F110: =IF(F$106>0.2*$K26,(F$106-0.2*$K26)^2/(F$106+0.8*$K26),0) -> 0 | G110: =IF(G$106>0.2*$K26,(G$106-0.2*$K26)^2/(G$106+0.8*$K26),0) -> 0 | R110: =IF('DB 2'!D$106>0.2*($W110),('DB 2'!D$106-0.2*($W110))^2/('DB 2'!D$106+0.8*($W110)),0) -> 0 | S110: =IF('DB 2'!E$106>0.2*($W110),('DB 2'!E$106-0.2*($W110))^2/('DB 2'!E$106+0.8*($W110)),0) -> 0 | T110: =IF('DB 2'!F$106>0.2*($W110),('DB 2'!F$106-0.2*($W110))^2/('DB 2'!F$106+0.8*($W110)),0) -> 0 | U110: =IF('DB 2'!G$106>0.2*($W110),('DB 2'!G$106-0.2*($W110))^2/('DB 2'!G$106+0.8*($W110)),0) -> 0 | V110: =V109+0.1 -> 25.1 | W110: 29.84063745
A111: Post Development Runoff Volume (in) with no BMPs | D111: =IF(D$106>0.2*$K41,(D$106-0.2*$K41)^2/(D$106+0.8*$K41),0) -> 0 | E111: =IF(E$106>0.2*$K41,(E$106-0.2*$K41)^2/(E$106+0.8*$K41),0) -> 0 | F111: =IF(F$106>0.2*$K41,(F$106-0.2*$K41)^2/(F$106+0.8*$K41),0) -> 0 | G111: =IF(G$106>0.2*$K41,(G$106-0.2*$K41)^2/(G$106+0.8*$K41),0) -> 0 | R111: =IF('DB 2'!D$106>0.2*($W111),('DB 2'!D$106-0.2*($W111))^2/('DB 2'!D$106+0.8*($W111)),0) -> 0 | S111: =IF('DB 2'!E$106>0.2*($W111),('DB 2'!E$106-0.2*($W111))^2/('DB 2'!E$106+0.8*($W111)),0) -> 0 | T111: =IF('DB 2'!F$106>0.2*($W111),('DB 2'!F$106-0.2*($W111))^2/('DB 2'!F$106+0.8*($W111)),0) -> 0 | U111: =IF('DB 2'!G$106>0.2*($W111),('DB 2'!G$106-0.2*($W111))^2/('DB 2'!G$106+0.8*($W111)),0) -> 0 | V111: 25.2 | W111: 29.68253968
A112: Post-Development Runoff Volume (in) with BMPs | D112: =IF(SUM($L$30:$L$36)=0,0,IF(D111>$M$88*12/(SUM($L$30:$L$36)*43560),D111-$M$88*12/(SUM($L$30:$L$36)*43560),0)) -> 0 | E112: =IF(SUM($L$30:$L$36)=0,0,IF(E111>$M$88*12/(SUM($L$30:$L$36)*43560),E111-$M$88*12/(SUM($L$30:$L$36)*43560),0)) -> 0 | F112: =IF(SUM($L$30:$L$36)=0,0,IF(F111>$M$88*12/(SUM($L$30:$L$36)*43560),F111-$M$88*12/(SUM($L$30:$L$36)*43560),0)) -> 0 | G112: =IF(SUM($L$30:$L$36)=0,0,IF(G111>$M$88*12/(SUM($L$30:$L$36)*43560),G111-$M$88*12/(SUM($L$30:$L$36)*43560),0)) -> 0 | R112: =IF('DB 2'!D$106>0.2*($W112),('DB 2'!D$106-0.2*($W112))^2/('DB 2'!D$106+0.8*($W112)),0) -> 0 | S112: =IF('DB 2'!E$106>0.2*($W112),('DB 2'!E$106-0.2*($W112))^2/('DB 2'!E$106+0.8*($W112)),0) -> 0 | T112: =IF('DB 2'!F$106>0.2*($W112),('DB 2'!F$106-0.2*($W112))^2/('DB 2'!F$106+0.8*($W112)),0) -> 0 | U112: =IF('DB 2'!G$106>0.2*($W112),('DB 2'!G$106-0.2*($W112))^2/('DB 2'!G$106+0.8*($W112)),0) -> 0 | V112: 25.3 | W112: 29.5256917
C113: Adjusted CN | D113: =IF(D112>0,VLOOKUP(D112,R$109:$W$859,5),0) -> 0 | E113: =IF(E112>0,VLOOKUP(E112,$S$109:$W$859,4),0) -> 0 | F113: =IF(F112>0,VLOOKUP(F112,$T$109:$W$859,3),0) -> 0 | G113: =IF(G112>0,VLOOKUP(G112,$U$109:$W$859,2),0) -> 0 | R113: =IF('DB 2'!D$106>0.2*($W113),('DB 2'!D$106-0.2*($W113))^2/('DB 2'!D$106+0.8*($W113)),0) -> 0 | S113: =IF('DB 2'!E$106>0.2*($W113),('DB 2'!E$106-0.2*($W113))^2/('DB 2'!E$106+0.8*($W113)),0) -> 0 | T113: =IF('DB 2'!F$106>0.2*($W113),('DB 2'!F$106-0.2*($W113))^2/('DB 2'!F$106+0.8*($W113)),0) -> 0 | U113: =IF('DB 2'!G$106>0.2*($W113),('DB 2'!G$106-0.2*($W113))^2/('DB 2'!G$106+0.8*($W113)),0) -> 0 | V113: 25.4 | W113: 29.37007874
R114: =IF('DB 2'!D$106>0.2*($W114),('DB 2'!D$106-0.2*($W114))^2/('DB 2'!D$106+0.8*($W114)),0) -> 0 | S114: =IF('DB 2'!E$106>0.2*($W114),('DB 2'!E$106-0.2*($W114))^2/('DB 2'!E$106+0.8*($W114)),0) -> 0 | T114: =IF('DB 2'!F$106>0.2*($W114),('DB 2'!F$106-0.2*($W114))^2/('DB 2'!F$106+0.8*($W114)),0) -> 0 | U114: =IF('DB 2'!G$106>0.2*($W114),('DB 2'!G$106-0.2*($W114))^2/('DB 2'!G$106+0.8*($W114)),0) -> 0 | V114: 25.5 | W114: 29.21568627
A115: *See Stormwater Management Standards to Determine Detention Requirements. | R115: =IF('DB 2'!D$106>0.2*($W115),('DB 2'!D$106-0.2*($W115))^2/('DB 2'!D$106+0.8*($W115)),0) -> 0 | S115: =IF('DB 2'!E$106>0.2*($W115),('DB 2'!E$106-0.2*($W115))^2/('DB 2'!E$106+0.8*($W115)),0) -> 0 | T115: =IF('DB 2'!F$106>0.2*($W115),('DB 2'!F$106-0.2*($W115))^2/('DB 2'!F$106+0.8*($W115)),0) -> 0 | U115: =IF('DB 2'!G$106>0.2*($W115),('DB 2'!G$106-0.2*($W115))^2/('DB 2'!G$106+0.8*($W115)),0) -> 0 | V115: 25.6 | W115: 29.0625
R116: =IF('DB 2'!D$106>0.2*($W116),('DB 2'!D$106-0.2*($W116))^2/('DB 2'!D$106+0.8*($W116)),0) -> 0 | S116: =IF('DB 2'!E$106>0.2*($W116),('DB 2'!E$106-0.2*($W116))^2/('DB 2'!E$106+0.8*($W116)),0) -> 0 | T116: =IF('DB 2'!F$106>0.2*($W116),('DB 2'!F$106-0.2*($W116))^2/('DB 2'!F$106+0.8*($W116)),0) -> 0 | U116: =IF('DB 2'!G$106>0.2*($W116),('DB 2'!G$106-0.2*($W116))^2/('DB 2'!G$106+0.8*($W116)),0) -> 0 | V116: 25.7 | W116: 28.91050584
R117: =IF('DB 2'!D$106>0.2*($W117),('DB 2'!D$106-0.2*($W117))^2/('DB 2'!D$106+0.8*($W117)),0) -> 0 | S117: =IF('DB 2'!E$106>0.2*($W117),('DB 2'!E$106-0.2*($W117))^2/('DB 2'!E$106+0.8*($W117)),0) -> 0 | T117: =IF('DB 2'!F$106>0.2*($W117),('DB 2'!F$106-0.2*($W117))^2/('DB 2'!F$106+0.8*($W117)),0) -> 0 | U117: =IF('DB 2'!G$106>0.2*($W117),('DB 2'!G$106-0.2*($W117))^2/('DB 2'!G$106+0.8*($W117)),0) -> 0 | V117: 25.8 | W117: 28.75968992
R118: =IF('DB 2'!D$106>0.2*($W118),('DB 2'!D$106-0.2*($W118))^2/('DB 2'!D$106+0.8*($W118)),0) -> 0 | S118: =IF('DB 2'!E$106>0.2*($W118),('DB 2'!E$106-0.2*($W118))^2/('DB 2'!E$106+0.8*($W118)),0) -> 0 | T118: =IF('DB 2'!F$106>0.2*($W118),('DB 2'!F$106-0.2*($W118))^2/('DB 2'!F$106+0.8*($W118)),0) -> 0 | U118: =IF('DB 2'!G$106>0.2*($W118),('DB 2'!G$106-0.2*($W118))^2/('DB 2'!G$106+0.8*($W118)),0) -> 0 | V118: 25.9 | W118: 28.61003861
A119: Comments | R119: =IF('DB 2'!D$106>0.2*($W119),('DB 2'!D$106-0.2*($W119))^2/('DB 2'!D$106+0.8*($W119)),0) -> 0 | S119: =IF('DB 2'!E$106>0.2*($W119),('DB 2'!E$106-0.2*($W119))^2/('DB 2'!E$106+0.8*($W119)),0) -> 0 | T119: =IF('DB 2'!F$106>0.2*($W119),('DB 2'!F$106-0.2*($W119))^2/('DB 2'!F$106+0.8*($W119)),0) -> 0 | U119: =IF('DB 2'!G$106>0.2*($W119),('DB 2'!G$106-0.2*($W119))^2/('DB 2'!G$106+0.8*($W119)),0) -> 0 | V119: 26 | W119: 28.46153846
R120: =IF('DB 2'!D$106>0.2*($W120),('DB 2'!D$106-0.2*($W120))^2/('DB 2'!D$106+0.8*($W120)),0) -> 0 | S120: =IF('DB 2'!E$106>0.2*($W120),('DB 2'!E$106-0.2*($W120))^2/('DB 2'!E$106+0.8*($W120)),0) -> 0 | T120: =IF('DB 2'!F$106>0.2*($W120),('DB 2'!F$106-0.2*($W120))^2/('DB 2'!F$106+0.8*($W120)),0) -> 0 | U120: =IF('DB 2'!G$106>0.2*($W120),('DB 2'!G$106-0.2*($W120))^2/('DB 2'!G$106+0.8*($W120)),0) -> 0 | V120: 26.1 | W120: 28.31417625
R121: =IF('DB 2'!D$106>0.2*($W121),('DB 2'!D$106-0.2*($W121))^2/('DB 2'!D$106+0.8*($W121)),0) -> 0 | S121: =IF('DB 2'!E$106>0.2*($W121),('DB 2'!E$106-0.2*($W121))^2/('DB 2'!E$106+0.8*($W121)),0) -> 0 | T121: =IF('DB 2'!F$106>0.2*($W121),('DB 2'!F$106-0.2*($W121))^2/('DB 2'!F$106+0.8*($W121)),0) -> 0 | U121: =IF('DB 2'!G$106>0.2*($W121),('DB 2'!G$106-0.2*($W121))^2/('DB 2'!G$106+0.8*($W121)),0) -> 0 | V121: 26.2 | W121: 28.16793893
R122: =IF('DB 2'!D$106>0.2*($W122),('DB 2'!D$106-0.2*($W122))^2/('DB 2'!D$106+0.8*($W122)),0) -> 0 | S122: =IF('DB 2'!E$106>0.2*($W122),('DB 2'!E$106-0.2*($W122))^2/('DB 2'!E$106+0.8*($W122)),0) -> 0 | T122: =IF('DB 2'!F$106>0.2*($W122),('DB 2'!F$106-0.2*($W122))^2/('DB 2'!F$106+0.8*($W122)),0) -> 0 | U122: =IF('DB 2'!G$106>0.2*($W122),('DB 2'!G$106-0.2*($W122))^2/('DB 2'!G$106+0.8*($W122)),0) -> 0 | V122: 26.3 | W122: 28.02281369
R123: =IF('DB 2'!D$106>0.2*($W123),('DB 2'!D$106-0.2*($W123))^2/('DB 2'!D$106+0.8*($W123)),0) -> 0 | S123: =IF('DB 2'!E$106>0.2*($W123),('DB 2'!E$106-0.2*($W123))^2/('DB 2'!E$106+0.8*($W123)),0) -> 0 | T123: =IF('DB 2'!F$106>0.2*($W123),('DB 2'!F$106-0.2*($W123))^2/('DB 2'!F$106+0.8*($W123)),0) -> 0 | U123: =IF('DB 2'!G$106>0.2*($W123),('DB 2'!G$106-0.2*($W123))^2/('DB 2'!G$106+0.8*($W123)),0) -> 0 | V123: =V122+0.1 -> 26.4 | W123: 27.87878788
R124: =IF('DB 2'!D$106>0.2*($W124),('DB 2'!D$106-0.2*($W124))^2/('DB 2'!D$106+0.8*($W124)),0) -> 0 | S124: =IF('DB 2'!E$106>0.2*($W124),('DB 2'!E$106-0.2*($W124))^2/('DB 2'!E$106+0.8*($W124)),0) -> 0 | T124: =IF('DB 2'!F$106>0.2*($W124),('DB 2'!F$106-0.2*($W124))^2/('DB 2'!F$106+0.8*($W124)),0) -> 0 | U124: =IF('DB 2'!G$106>0.2*($W124),('DB 2'!G$106-0.2*($W124))^2/('DB 2'!G$106+0.8*($W124)),0) -> 0 | V124: 26.5 | W124: 27.73584906
R125: =IF('DB 2'!D$106>0.2*($W125),('DB 2'!D$106-0.2*($W125))^2/('DB 2'!D$106+0.8*($W125)),0) -> 0 | S125: =IF('DB 2'!E$106>0.2*($W125),('DB 2'!E$106-0.2*($W125))^2/('DB 2'!E$106+0.8*($W125)),0) -> 0 | T125: =IF('DB 2'!F$106>0.2*($W125),('DB 2'!F$106-0.2*($W125))^2/('DB 2'!F$106+0.8*($W125)),0) -> 0 | U125: =IF('DB 2'!G$106>0.2*($W125),('DB 2'!G$106-0.2*($W125))^2/('DB 2'!G$106+0.8*($W125)),0) -> 0 | V125: 26.6 | W125: 27.59398496
R126: =IF('DB 2'!D$106>0.2*($W126),('DB 2'!D$106-0.2*($W126))^2/('DB 2'!D$106+0.8*($W126)),0) -> 0 | S126: =IF('DB 2'!E$106>0.2*($W126),('DB 2'!E$106-0.2*($W126))^2/('DB 2'!E$106+0.8*($W126)),0) -> 0 | T126: =IF('DB 2'!F$106>0.2*($W126),('DB 2'!F$106-0.2*($W126))^2/('DB 2'!F$106+0.8*($W126)),0) -> 0 | U126: =IF('DB 2'!G$106>0.2*($W126),('DB 2'!G$106-0.2*($W126))^2/('DB 2'!G$106+0.8*($W126)),0) -> 0 | V126: 26.7 | W126: 27.45318352
R127: =IF('DB 2'!D$106>0.2*($W127),('DB 2'!D$106-0.2*($W127))^2/('DB 2'!D$106+0.8*($W127)),0) -> 0 | S127: =IF('DB 2'!E$106>0.2*($W127),('DB 2'!E$106-0.2*($W127))^2/('DB 2'!E$106+0.8*($W127)),0) -> 0 | T127: =IF('DB 2'!F$106>0.2*($W127),('DB 2'!F$106-0.2*($W127))^2/('DB 2'!F$106+0.8*($W127)),0) -> 0 | U127: =IF('DB 2'!G$106>0.2*($W127),('DB 2'!G$106-0.2*($W127))^2/('DB 2'!G$106+0.8*($W127)),0) -> 0 | V127: 26.8 | W127: 27.31343284
R128: =IF('DB 2'!D$106>0.2*($W128),('DB 2'!D$106-0.2*($W128))^2/('DB 2'!D$106+0.8*($W128)),0) -> 0 | S128: =IF('DB 2'!E$106>0.2*($W128),('DB 2'!E$106-0.2*($W128))^2/('DB 2'!E$106+0.8*($W128)),0) -> 0 | T128: =IF('DB 2'!F$106>0.2*($W128),('DB 2'!F$106-0.2*($W128))^2/('DB 2'!F$106+0.8*($W128)),0) -> 0 | U128: =IF('DB 2'!G$106>0.2*($W128),('DB 2'!G$106-0.2*($W128))^2/('DB 2'!G$106+0.8*($W128)),0) -> 0 | V128: 26.9 | W128: 27.17472119
R129: =IF('DB 2'!D$106>0.2*($W129),('DB 2'!D$106-0.2*($W129))^2/('DB 2'!D$106+0.8*($W129)),0) -> 0 | S129: =IF('DB 2'!E$106>0.2*($W129),('DB 2'!E$106-0.2*($W129))^2/('DB 2'!E$106+0.8*($W129)),0) -> 0 | T129: =IF('DB 2'!F$106>0.2*($W129),('DB 2'!F$106-0.2*($W129))^2/('DB 2'!F$106+0.8*($W129)),0) -> 0 | U129: =IF('DB 2'!G$106>0.2*($W129),('DB 2'!G$106-0.2*($W129))^2/('DB 2'!G$106+0.8*($W129)),0) -> 0 | V129: 27 | W129: 27.03703704
R130: =IF('DB 2'!D$106>0.2*($W130),('DB 2'!D$106-0.2*($W130))^2/('DB 2'!D$106+0.8*($W130)),0) -> 0 | S130: =IF('DB 2'!E$106>0.2*($W130),('DB 2'!E$106-0.2*($W130))^2/('DB 2'!E$106+0.8*($W130)),0) -> 0 | T130: =IF('DB 2'!F$106>0.2*($W130),('DB 2'!F$106-0.2*($W130))^2/('DB 2'!F$106+0.8*($W130)),0) -> 0 | U130: =IF('DB 2'!G$106>0.2*($W130),('DB 2'!G$106-0.2*($W130))^2/('DB 2'!G$106+0.8*($W130)),0) -> 0 | V130: 27.1 | W130: 26.900369
R131: =IF('DB 2'!D$106>0.2*($W131),('DB 2'!D$106-0.2*($W131))^2/('DB 2'!D$106+0.8*($W131)),0) -> 0 | S131: =IF('DB 2'!E$106>0.2*($W131),('DB 2'!E$106-0.2*($W131))^2/('DB 2'!E$106+0.8*($W131)),0) -> 0 | T131: =IF('DB 2'!F$106>0.2*($W131),('DB 2'!F$106-0.2*($W131))^2/('DB 2'!F$106+0.8*($W131)),0) -> 0 | U131: =IF('DB 2'!G$106>0.2*($W131),('DB 2'!G$106-0.2*($W131))^2/('DB 2'!G$106+0.8*($W131)),0) -> 0 | V131: 27.2 | W131: 26.76470588
A132: =IF(G59=0,"","A RECORDED CONSERVATION EASEMENT OR SIMILAR FORM OF PROTECTION IS REQUIRED FOR THIS PROJECT") ->  | R132: =IF('DB 2'!D$106>0.2*($W132),('DB 2'!D$106-0.2*($W132))^2/('DB 2'!D$106+0.8*($W132)),0) -> 0 | S132: =IF('DB 2'!E$106>0.2*($W132),('DB 2'!E$106-0.2*($W132))^2/('DB 2'!E$106+0.8*($W132)),0) -> 0 | T132: =IF('DB 2'!F$106>0.2*($W132),('DB 2'!F$106-0.2*($W132))^2/('DB 2'!F$106+0.8*($W132)),0) -> 0 | U132: =IF('DB 2'!G$106>0.2*($W132),('DB 2'!G$106-0.2*($W132))^2/('DB 2'!G$106+0.8*($W132)),0) -> 0 | V132: 27.3 | W132: 26.63003663
R133: =IF('DB 2'!D$106>0.2*($W133),('DB 2'!D$106-0.2*($W133))^2/('DB 2'!D$106+0.8*($W133)),0) -> 0 | S133: =IF('DB 2'!E$106>0.2*($W133),('DB 2'!E$106-0.2*($W133))^2/('DB 2'!E$106+0.8*($W133)),0) -> 0 | T133: =IF('DB 2'!F$106>0.2*($W133),('DB 2'!F$106-0.2*($W133))^2/('DB 2'!F$106+0.8*($W133)),0) -> 0 | U133: =IF('DB 2'!G$106>0.2*($W133),('DB 2'!G$106-0.2*($W133))^2/('DB 2'!G$106+0.8*($W133)),0) -> 0 | V133: 27.4 | W133: 26.49635036
R134: =IF('DB 2'!D$106>0.2*($W134),('DB 2'!D$106-0.2*($W134))^2/('DB 2'!D$106+0.8*($W134)),0) -> 0 | S134: =IF('DB 2'!E$106>0.2*($W134),('DB 2'!E$106-0.2*($W134))^2/('DB 2'!E$106+0.8*($W134)),0) -> 0 | T134: =IF('DB 2'!F$106>0.2*($W134),('DB 2'!F$106-0.2*($W134))^2/('DB 2'!F$106+0.8*($W134)),0) -> 0 | U134: =IF('DB 2'!G$106>0.2*($W134),('DB 2'!G$106-0.2*($W134))^2/('DB 2'!G$106+0.8*($W134)),0) -> 0 | V134: 27.5 | W134: 26.36363636
R135: =IF('DB 2'!D$106>0.2*($W135),('DB 2'!D$106-0.2*($W135))^2/('DB 2'!D$106+0.8*($W135)),0) -> 0 | S135: =IF('DB 2'!E$106>0.2*($W135),('DB 2'!E$106-0.2*($W135))^2/('DB 2'!E$106+0.8*($W135)),0) -> 0 | T135: =IF('DB 2'!F$106>0.2*($W135),('DB 2'!F$106-0.2*($W135))^2/('DB 2'!F$106+0.8*($W135)),0) -> 0 | U135: =IF('DB 2'!G$106>0.2*($W135),('DB 2'!G$106-0.2*($W135))^2/('DB 2'!G$106+0.8*($W135)),0) -> 0 | V135: 27.6 | W135: 26.23188406
R136: =IF('DB 2'!D$106>0.2*($W136),('DB 2'!D$106-0.2*($W136))^2/('DB 2'!D$106+0.8*($W136)),0) -> 0 | S136: =IF('DB 2'!E$106>0.2*($W136),('DB 2'!E$106-0.2*($W136))^2/('DB 2'!E$106+0.8*($W136)),0) -> 0 | T136: =IF('DB 2'!F$106>0.2*($W136),('DB 2'!F$106-0.2*($W136))^2/('DB 2'!F$106+0.8*($W136)),0) -> 0 | U136: =IF('DB 2'!G$106>0.2*($W136),('DB 2'!G$106-0.2*($W136))^2/('DB 2'!G$106+0.8*($W136)),0) -> 0 | V136: 27.7 | W136: 26.10108303
R137: =IF('DB 2'!D$106>0.2*($W137),('DB 2'!D$106-0.2*($W137))^2/('DB 2'!D$106+0.8*($W137)),0) -> 0 | S137: =IF('DB 2'!E$106>0.2*($W137),('DB 2'!E$106-0.2*($W137))^2/('DB 2'!E$106+0.8*($W137)),0) -> 0 | T137: =IF('DB 2'!F$106>0.2*($W137),('DB 2'!F$106-0.2*($W137))^2/('DB 2'!F$106+0.8*($W137)),0) -> 0 | U137: =IF('DB 2'!G$106>0.2*($W137),('DB 2'!G$106-0.2*($W137))^2/('DB 2'!G$106+0.8*($W137)),0) -> 0 | V137: 27.8 | W137: 25.97122302
R138: =IF('DB 2'!D$106>0.2*($W138),('DB 2'!D$106-0.2*($W138))^2/('DB 2'!D$106+0.8*($W138)),0) -> 0 | S138: =IF('DB 2'!E$106>0.2*($W138),('DB 2'!E$106-0.2*($W138))^2/('DB 2'!E$106+0.8*($W138)),0) -> 0 | T138: =IF('DB 2'!F$106>0.2*($W138),('DB 2'!F$106-0.2*($W138))^2/('DB 2'!F$106+0.8*($W138)),0) -> 0 | U138: =IF('DB 2'!G$106>0.2*($W138),('DB 2'!G$106-0.2*($W138))^2/('DB 2'!G$106+0.8*($W138)),0) -> 0 | V138: 27.9 | W138: 25.84229391
R139: =IF('DB 2'!D$106>0.2*($W139),('DB 2'!D$106-0.2*($W139))^2/('DB 2'!D$106+0.8*($W139)),0) -> 0 | S139: =IF('DB 2'!E$106>0.2*($W139),('DB 2'!E$106-0.2*($W139))^2/('DB 2'!E$106+0.8*($W139)),0) -> 0 | T139: =IF('DB 2'!F$106>0.2*($W139),('DB 2'!F$106-0.2*($W139))^2/('DB 2'!F$106+0.8*($W139)),0) -> 0 | U139: =IF('DB 2'!G$106>0.2*($W139),('DB 2'!G$106-0.2*($W139))^2/('DB 2'!G$106+0.8*($W139)),0) -> 0 | V139: 28 | W139: 25.71428571
R140: =IF('DB 2'!D$106>0.2*($W140),('DB 2'!D$106-0.2*($W140))^2/('DB 2'!D$106+0.8*($W140)),0) -> 0 | S140: =IF('DB 2'!E$106>0.2*($W140),('DB 2'!E$106-0.2*($W140))^2/('DB 2'!E$106+0.8*($W140)),0) -> 0 | T140: =IF('DB 2'!F$106>0.2*($W140),('DB 2'!F$106-0.2*($W140))^2/('DB 2'!F$106+0.8*($W140)),0) -> 0 | U140: =IF('DB 2'!G$106>0.2*($W140),('DB 2'!G$106-0.2*($W140))^2/('DB 2'!G$106+0.8*($W140)),0) -> 0 | V140: 28.1 | W140: 25.58718861
R141: =IF('DB 2'!D$106>0.2*($W141),('DB 2'!D$106-0.2*($W141))^2/('DB 2'!D$106+0.8*($W141)),0) -> 0 | S141: =IF('DB 2'!E$106>0.2*($W141),('DB 2'!E$106-0.2*($W141))^2/('DB 2'!E$106+0.8*($W141)),0) -> 0 | T141: =IF('DB 2'!F$106>0.2*($W141),('DB 2'!F$106-0.2*($W141))^2/('DB 2'!F$106+0.8*($W141)),0) -> 0 | U141: =IF('DB 2'!G$106>0.2*($W141),('DB 2'!G$106-0.2*($W141))^2/('DB 2'!G$106+0.8*($W141)),0) -> 0 | V141: 28.2 | W141: 25.46099291
R142: =IF('DB 2'!D$106>0.2*($W142),('DB 2'!D$106-0.2*($W142))^2/('DB 2'!D$106+0.8*($W142)),0) -> 0 | S142: =IF('DB 2'!E$106>0.2*($W142),('DB 2'!E$106-0.2*($W142))^2/('DB 2'!E$106+0.8*($W142)),0) -> 0 | T142: =IF('DB 2'!F$106>0.2*($W142),('DB 2'!F$106-0.2*($W142))^2/('DB 2'!F$106+0.8*($W142)),0) -> 0 | U142: =IF('DB 2'!G$106>0.2*($W142),('DB 2'!G$106-0.2*($W142))^2/('DB 2'!G$106+0.8*($W142)),0) -> 0 | V142: 28.3 | W142: 25.33568905
R143: =IF('DB 2'!D$106>0.2*($W143),('DB 2'!D$106-0.2*($W143))^2/('DB 2'!D$106+0.8*($W143)),0) -> 0 | S143: =IF('DB 2'!E$106>0.2*($W143),('DB 2'!E$106-0.2*($W143))^2/('DB 2'!E$106+0.8*($W143)),0) -> 0 | T143: =IF('DB 2'!F$106>0.2*($W143),('DB 2'!F$106-0.2*($W143))^2/('DB 2'!F$106+0.8*($W143)),0) -> 0 | U143: =IF('DB 2'!G$106>0.2*($W143),('DB 2'!G$106-0.2*($W143))^2/('DB 2'!G$106+0.8*($W143)),0) -> 0 | V143: 28.4 | W143: 25.21126761
R144: =IF('DB 2'!D$106>0.2*($W144),('DB 2'!D$106-0.2*($W144))^2/('DB 2'!D$106+0.8*($W144)),0) -> 0 | S144: =IF('DB 2'!E$106>0.2*($W144),('DB 2'!E$106-0.2*($W144))^2/('DB 2'!E$106+0.8*($W144)),0) -> 0 | T144: =IF('DB 2'!F$106>0.2*($W144),('DB 2'!F$106-0.2*($W144))^2/('DB 2'!F$106+0.8*($W144)),0) -> 0 | U144: =IF('DB 2'!G$106>0.2*($W144),('DB 2'!G$106-0.2*($W144))^2/('DB 2'!G$106+0.8*($W144)),0) -> 0 | V144: 28.5 | W144: 25.0877193
R145: =IF('DB 2'!D$106>0.2*($W145),('DB 2'!D$106-0.2*($W145))^2/('DB 2'!D$106+0.8*($W145)),0) -> 0 | S145: =IF('DB 2'!E$106>0.2*($W145),('DB 2'!E$106-0.2*($W145))^2/('DB 2'!E$106+0.8*($W145)),0) -> 0 | T145: =IF('DB 2'!F$106>0.2*($W145),('DB 2'!F$106-0.2*($W145))^2/('DB 2'!F$106+0.8*($W145)),0) -> 0 | U145: =IF('DB 2'!G$106>0.2*($W145),('DB 2'!G$106-0.2*($W145))^2/('DB 2'!G$106+0.8*($W145)),0) -> 0 | V145: 28.6 | W145: 24.96503497
R146: =IF('DB 2'!D$106>0.2*($W146),('DB 2'!D$106-0.2*($W146))^2/('DB 2'!D$106+0.8*($W146)),0) -> 0 | S146: =IF('DB 2'!E$106>0.2*($W146),('DB 2'!E$106-0.2*($W146))^2/('DB 2'!E$106+0.8*($W146)),0) -> 0 | T146: =IF('DB 2'!F$106>0.2*($W146),('DB 2'!F$106-0.2*($W146))^2/('DB 2'!F$106+0.8*($W146)),0) -> 0 | U146: =IF('DB 2'!G$106>0.2*($W146),('DB 2'!G$106-0.2*($W146))^2/('DB 2'!G$106+0.8*($W146)),0) -> 0 | V146: 28.7 | W146: 24.84320557
R147: =IF('DB 2'!D$106>0.2*($W147),('DB 2'!D$106-0.2*($W147))^2/('DB 2'!D$106+0.8*($W147)),0) -> 0 | S147: =IF('DB 2'!E$106>0.2*($W147),('DB 2'!E$106-0.2*($W147))^2/('DB 2'!E$106+0.8*($W147)),0) -> 0 | T147: =IF('DB 2'!F$106>0.2*($W147),('DB 2'!F$106-0.2*($W147))^2/('DB 2'!F$106+0.8*($W147)),0) -> 0 | U147: =IF('DB 2'!G$106>0.2*($W147),('DB 2'!G$106-0.2*($W147))^2/('DB 2'!G$106+0.8*($W147)),0) -> 0 | V147: 28.8 | W147: 24.72222222
R148: =IF('DB 2'!D$106>0.2*($W148),('DB 2'!D$106-0.2*($W148))^2/('DB 2'!D$106+0.8*($W148)),0) -> 0 | S148: =IF('DB 2'!E$106>0.2*($W148),('DB 2'!E$106-0.2*($W148))^2/('DB 2'!E$106+0.8*($W148)),0) -> 0 | T148: =IF('DB 2'!F$106>0.2*($W148),('DB 2'!F$106-0.2*($W148))^2/('DB 2'!F$106+0.8*($W148)),0) -> 0 | U148: =IF('DB 2'!G$106>0.2*($W148),('DB 2'!G$106-0.2*($W148))^2/('DB 2'!G$106+0.8*($W148)),0) -> 0 | V148: 28.9 | W148: 24.60207612
R149: =IF('DB 2'!D$106>0.2*($W149),('DB 2'!D$106-0.2*($W149))^2/('DB 2'!D$106+0.8*($W149)),0) -> 0 | S149: =IF('DB 2'!E$106>0.2*($W149),('DB 2'!E$106-0.2*($W149))^2/('DB 2'!E$106+0.8*($W149)),0) -> 0 | T149: =IF('DB 2'!F$106>0.2*($W149),('DB 2'!F$106-0.2*($W149))^2/('DB 2'!F$106+0.8*($W149)),0) -> 0 | U149: =IF('DB 2'!G$106>0.2*($W149),('DB 2'!G$106-0.2*($W149))^2/('DB 2'!G$106+0.8*($W149)),0) -> 0 | V149: 29 | W149: 24.48275862
R150: =IF('DB 2'!D$106>0.2*($W150),('DB 2'!D$106-0.2*($W150))^2/('DB 2'!D$106+0.8*($W150)),0) -> 0 | S150: =IF('DB 2'!E$106>0.2*($W150),('DB 2'!E$106-0.2*($W150))^2/('DB 2'!E$106+0.8*($W150)),0) -> 0 | T150: =IF('DB 2'!F$106>0.2*($W150),('DB 2'!F$106-0.2*($W150))^2/('DB 2'!F$106+0.8*($W150)),0) -> 0 | U150: =IF('DB 2'!G$106>0.2*($W150),('DB 2'!G$106-0.2*($W150))^2/('DB 2'!G$106+0.8*($W150)),0) -> 0 | V150: =V149+0.1 -> 29.1 | W150: 24.36426117
R151: =IF('DB 2'!D$106>0.2*($W151),('DB 2'!D$106-0.2*($W151))^2/('DB 2'!D$106+0.8*($W151)),0) -> 0 | S151: =IF('DB 2'!E$106>0.2*($W151),('DB 2'!E$106-0.2*($W151))^2/('DB 2'!E$106+0.8*($W151)),0) -> 0 | T151: =IF('DB 2'!F$106>0.2*($W151),('DB 2'!F$106-0.2*($W151))^2/('DB 2'!F$106+0.8*($W151)),0) -> 0 | U151: =IF('DB 2'!G$106>0.2*($W151),('DB 2'!G$106-0.2*($W151))^2/('DB 2'!G$106+0.8*($W151)),0) -> 0 | V151: 29.2 | W151: 24.24657534
R152: =IF('DB 2'!D$106>0.2*($W152),('DB 2'!D$106-0.2*($W152))^2/('DB 2'!D$106+0.8*($W152)),0) -> 0 | S152: =IF('DB 2'!E$106>0.2*($W152),('DB 2'!E$106-0.2*($W152))^2/('DB 2'!E$106+0.8*($W152)),0) -> 0 | T152: =IF('DB 2'!F$106>0.2*($W152),('DB 2'!F$106-0.2*($W152))^2/('DB 2'!F$106+0.8*($W152)),0) -> 0 | U152: =IF('DB 2'!G$106>0.2*($W152),('DB 2'!G$106-0.2*($W152))^2/('DB 2'!G$106+0.8*($W152)),0) -> 0 | V152: 29.3 | W152: 24.12969283
R153: =IF('DB 2'!D$106>0.2*($W153),('DB 2'!D$106-0.2*($W153))^2/('DB 2'!D$106+0.8*($W153)),0) -> 0 | S153: =IF('DB 2'!E$106>0.2*($W153),('DB 2'!E$106-0.2*($W153))^2/('DB 2'!E$106+0.8*($W153)),0) -> 0 | T153: =IF('DB 2'!F$106>0.2*($W153),('DB 2'!F$106-0.2*($W153))^2/('DB 2'!F$106+0.8*($W153)),0) -> 0 | U153: =IF('DB 2'!G$106>0.2*($W153),('DB 2'!G$106-0.2*($W153))^2/('DB 2'!G$106+0.8*($W153)),0) -> 0 | V153: 29.4 | W153: 24.01360544
R154: =IF('DB 2'!D$106>0.2*($W154),('DB 2'!D$106-0.2*($W154))^2/('DB 2'!D$106+0.8*($W154)),0) -> 0 | S154: =IF('DB 2'!E$106>0.2*($W154),('DB 2'!E$106-0.2*($W154))^2/('DB 2'!E$106+0.8*($W154)),0) -> 0 | T154: =IF('DB 2'!F$106>0.2*($W154),('DB 2'!F$106-0.2*($W154))^2/('DB 2'!F$106+0.8*($W154)),0) -> 0 | U154: =IF('DB 2'!G$106>0.2*($W154),('DB 2'!G$106-0.2*($W154))^2/('DB 2'!G$106+0.8*($W154)),0) -> 0 | V154: 29.5 | W154: 23.89830508
R155: =IF('DB 2'!D$106>0.2*($W155),('DB 2'!D$106-0.2*($W155))^2/('DB 2'!D$106+0.8*($W155)),0) -> 0 | S155: =IF('DB 2'!E$106>0.2*($W155),('DB 2'!E$106-0.2*($W155))^2/('DB 2'!E$106+0.8*($W155)),0) -> 0 | T155: =IF('DB 2'!F$106>0.2*($W155),('DB 2'!F$106-0.2*($W155))^2/('DB 2'!F$106+0.8*($W155)),0) -> 0 | U155: =IF('DB 2'!G$106>0.2*($W155),('DB 2'!G$106-0.2*($W155))^2/('DB 2'!G$106+0.8*($W155)),0) -> 0 | V155: 29.6 | W155: 23.78378378
R156: =IF('DB 2'!D$106>0.2*($W156),('DB 2'!D$106-0.2*($W156))^2/('DB 2'!D$106+0.8*($W156)),0) -> 0 | S156: =IF('DB 2'!E$106>0.2*($W156),('DB 2'!E$106-0.2*($W156))^2/('DB 2'!E$106+0.8*($W156)),0) -> 0 | T156: =IF('DB 2'!F$106>0.2*($W156),('DB 2'!F$106-0.2*($W156))^2/('DB 2'!F$106+0.8*($W156)),0) -> 0 | U156: =IF('DB 2'!G$106>0.2*($W156),('DB 2'!G$106-0.2*($W156))^2/('DB 2'!G$106+0.8*($W156)),0) -> 0 | V156: 29.7 | W156: 23.67003367
R157: =IF('DB 2'!D$106>0.2*($W157),('DB 2'!D$106-0.2*($W157))^2/('DB 2'!D$106+0.8*($W157)),0) -> 0 | S157: =IF('DB 2'!E$106>0.2*($W157),('DB 2'!E$106-0.2*($W157))^2/('DB 2'!E$106+0.8*($W157)),0) -> 0 | T157: =IF('DB 2'!F$106>0.2*($W157),('DB 2'!F$106-0.2*($W157))^2/('DB 2'!F$106+0.8*($W157)),0) -> 0 | U157: =IF('DB 2'!G$106>0.2*($W157),('DB 2'!G$106-0.2*($W157))^2/('DB 2'!G$106+0.8*($W157)),0) -> 0 | V157: 29.8 | W157: 23.55704698
R158: =IF('DB 2'!D$106>0.2*($W158),('DB 2'!D$106-0.2*($W158))^2/('DB 2'!D$106+0.8*($W158)),0) -> 0 | S158: =IF('DB 2'!E$106>0.2*($W158),('DB 2'!E$106-0.2*($W158))^2/('DB 2'!E$106+0.8*($W158)),0) -> 0 | T158: =IF('DB 2'!F$106>0.2*($W158),('DB 2'!F$106-0.2*($W158))^2/('DB 2'!F$106+0.8*($W158)),0) -> 0 | U158: =IF('DB 2'!G$106>0.2*($W158),('DB 2'!G$106-0.2*($W158))^2/('DB 2'!G$106+0.8*($W158)),0) -> 0 | V158: 29.9 | W158: 23.44481605
R159: =IF('DB 2'!D$106>0.2*($W159),('DB 2'!D$106-0.2*($W159))^2/('DB 2'!D$106+0.8*($W159)),0) -> 0 | S159: =IF('DB 2'!E$106>0.2*($W159),('DB 2'!E$106-0.2*($W159))^2/('DB 2'!E$106+0.8*($W159)),0) -> 0 | T159: =IF('DB 2'!F$106>0.2*($W159),('DB 2'!F$106-0.2*($W159))^2/('DB 2'!F$106+0.8*($W159)),0) -> 0 | U159: =IF('DB 2'!G$106>0.2*($W159),('DB 2'!G$106-0.2*($W159))^2/('DB 2'!G$106+0.8*($W159)),0) -> 0 | V159: 30 | W159: 23.33333333
R160: =IF('DB 2'!D$106>0.2*($W160),('DB 2'!D$106-0.2*($W160))^2/('DB 2'!D$106+0.8*($W160)),0) -> 0 | S160: =IF('DB 2'!E$106>0.2*($W160),('DB 2'!E$106-0.2*($W160))^2/('DB 2'!E$106+0.8*($W160)),0) -> 0 | T160: =IF('DB 2'!F$106>0.2*($W160),('DB 2'!F$106-0.2*($W160))^2/('DB 2'!F$106+0.8*($W160)),0) -> 0 | U160: =IF('DB 2'!G$106>0.2*($W160),('DB 2'!G$106-0.2*($W160))^2/('DB 2'!G$106+0.8*($W160)),0) -> 0 | V160: 30.1 | W160: 23.22259136
R161: =IF('DB 2'!D$106>0.2*($W161),('DB 2'!D$106-0.2*($W161))^2/('DB 2'!D$106+0.8*($W161)),0) -> 0 | S161: =IF('DB 2'!E$106>0.2*($W161),('DB 2'!E$106-0.2*($W161))^2/('DB 2'!E$106+0.8*($W161)),0) -> 0 | T161: =IF('DB 2'!F$106>0.2*($W161),('DB 2'!F$106-0.2*($W161))^2/('DB 2'!F$106+0.8*($W161)),0) -> 0 | U161: =IF('DB 2'!G$106>0.2*($W161),('DB 2'!G$106-0.2*($W161))^2/('DB 2'!G$106+0.8*($W161)),0) -> 0 | V161: 30.2 | W161: 23.11258278
R162: =IF('DB 2'!D$106>0.2*($W162),('DB 2'!D$106-0.2*($W162))^2/('DB 2'!D$106+0.8*($W162)),0) -> 0 | S162: =IF('DB 2'!E$106>0.2*($W162),('DB 2'!E$106-0.2*($W162))^2/('DB 2'!E$106+0.8*($W162)),0) -> 0 | T162: =IF('DB 2'!F$106>0.2*($W162),('DB 2'!F$106-0.2*($W162))^2/('DB 2'!F$106+0.8*($W162)),0) -> 0 | U162: =IF('DB 2'!G$106>0.2*($W162),('DB 2'!G$106-0.2*($W162))^2/('DB 2'!G$106+0.8*($W162)),0) -> 0 | V162: 30.3 | W162: 23.00330033
R163: =IF('DB 2'!D$106>0.2*($W163),('DB 2'!D$106-0.2*($W163))^2/('DB 2'!D$106+0.8*($W163)),0) -> 0 | S163: =IF('DB 2'!E$106>0.2*($W163),('DB 2'!E$106-0.2*($W163))^2/('DB 2'!E$106+0.8*($W163)),0) -> 0 | T163: =IF('DB 2'!F$106>0.2*($W163),('DB 2'!F$106-0.2*($W163))^2/('DB 2'!F$106+0.8*($W163)),0) -> 0 | U163: =IF('DB 2'!G$106>0.2*($W163),('DB 2'!G$106-0.2*($W163))^2/('DB 2'!G$106+0.8*($W163)),0) -> 0 | V163: 30.4 | W163: 22.89473684
R164: =IF('DB 2'!D$106>0.2*($W164),('DB 2'!D$106-0.2*($W164))^2/('DB 2'!D$106+0.8*($W164)),0) -> 0 | S164: =IF('DB 2'!E$106>0.2*($W164),('DB 2'!E$106-0.2*($W164))^2/('DB 2'!E$106+0.8*($W164)),0) -> 0 | T164: =IF('DB 2'!F$106>0.2*($W164),('DB 2'!F$106-0.2*($W164))^2/('DB 2'!F$106+0.8*($W164)),0) -> 0 | U164: =IF('DB 2'!G$106>0.2*($W164),('DB 2'!G$106-0.2*($W164))^2/('DB 2'!G$106+0.8*($W164)),0) -> 0 | V164: 30.5 | W164: 22.78688525
R165: =IF('DB 2'!D$106>0.2*($W165),('DB 2'!D$106-0.2*($W165))^2/('DB 2'!D$106+0.8*($W165)),0) -> 0 | S165: =IF('DB 2'!E$106>0.2*($W165),('DB 2'!E$106-0.2*($W165))^2/('DB 2'!E$106+0.8*($W165)),0) -> 0 | T165: =IF('DB 2'!F$106>0.2*($W165),('DB 2'!F$106-0.2*($W165))^2/('DB 2'!F$106+0.8*($W165)),0) -> 0 | U165: =IF('DB 2'!G$106>0.2*($W165),('DB 2'!G$106-0.2*($W165))^2/('DB 2'!G$106+0.8*($W165)),0) -> 0 | V165: 30.6 | W165: 22.67973856
R166: =IF('DB 2'!D$106>0.2*($W166),('DB 2'!D$106-0.2*($W166))^2/('DB 2'!D$106+0.8*($W166)),0) -> 0 | S166: =IF('DB 2'!E$106>0.2*($W166),('DB 2'!E$106-0.2*($W166))^2/('DB 2'!E$106+0.8*($W166)),0) -> 0 | T166: =IF('DB 2'!F$106>0.2*($W166),('DB 2'!F$106-0.2*($W166))^2/('DB 2'!F$106+0.8*($W166)),0) -> 0 | U166: =IF('DB 2'!G$106>0.2*($W166),('DB 2'!G$106-0.2*($W166))^2/('DB 2'!G$106+0.8*($W166)),0) -> 0 | V166: 30.7 | W166: 22.5732899
R167: =IF('DB 2'!D$106>0.2*($W167),('DB 2'!D$106-0.2*($W167))^2/('DB 2'!D$106+0.8*($W167)),0) -> 0 | S167: =IF('DB 2'!E$106>0.2*($W167),('DB 2'!E$106-0.2*($W167))^2/('DB 2'!E$106+0.8*($W167)),0) -> 0 | T167: =IF('DB 2'!F$106>0.2*($W167),('DB 2'!F$106-0.2*($W167))^2/('DB 2'!F$106+0.8*($W167)),0) -> 0 | U167: =IF('DB 2'!G$106>0.2*($W167),('DB 2'!G$106-0.2*($W167))^2/('DB 2'!G$106+0.8*($W167)),0) -> 0 | V167: 30.8 | W167: 22.46753247
R168: =IF('DB 2'!D$106>0.2*($W168),('DB 2'!D$106-0.2*($W168))^2/('DB 2'!D$106+0.8*($W168)),0) -> 0 | S168: =IF('DB 2'!E$106>0.2*($W168),('DB 2'!E$106-0.2*($W168))^2/('DB 2'!E$106+0.8*($W168)),0) -> 0 | T168: =IF('DB 2'!F$106>0.2*($W168),('DB 2'!F$106-0.2*($W168))^2/('DB 2'!F$106+0.8*($W168)),0) -> 0 | U168: =IF('DB 2'!G$106>0.2*($W168),('DB 2'!G$106-0.2*($W168))^2/('DB 2'!G$106+0.8*($W168)),0) -> 0 | V168: 30.9 | W168: 22.36245955
R169: =IF('DB 2'!D$106>0.2*($W169),('DB 2'!D$106-0.2*($W169))^2/('DB 2'!D$106+0.8*($W169)),0) -> 0 | S169: =IF('DB 2'!E$106>0.2*($W169),('DB 2'!E$106-0.2*($W169))^2/('DB 2'!E$106+0.8*($W169)),0) -> 0 | T169: =IF('DB 2'!F$106>0.2*($W169),('DB 2'!F$106-0.2*($W169))^2/('DB 2'!F$106+0.8*($W169)),0) -> 0 | U169: =IF('DB 2'!G$106>0.2*($W169),('DB 2'!G$106-0.2*($W169))^2/('DB 2'!G$106+0.8*($W169)),0) -> 0 | V169: 31 | W169: 22.25806452
R170: =IF('DB 2'!D$106>0.2*($W170),('DB 2'!D$106-0.2*($W170))^2/('DB 2'!D$106+0.8*($W170)),0) -> 0 | S170: =IF('DB 2'!E$106>0.2*($W170),('DB 2'!E$106-0.2*($W170))^2/('DB 2'!E$106+0.8*($W170)),0) -> 0 | T170: =IF('DB 2'!F$106>0.2*($W170),('DB 2'!F$106-0.2*($W170))^2/('DB 2'!F$106+0.8*($W170)),0) -> 0 | U170: =IF('DB 2'!G$106>0.2*($W170),('DB 2'!G$106-0.2*($W170))^2/('DB 2'!G$106+0.8*($W170)),0) -> 0 | V170: 31.1 | W170: 22.15434084
R171: =IF('DB 2'!D$106>0.2*($W171),('DB 2'!D$106-0.2*($W171))^2/('DB 2'!D$106+0.8*($W171)),0) -> 0 | S171: =IF('DB 2'!E$106>0.2*($W171),('DB 2'!E$106-0.2*($W171))^2/('DB 2'!E$106+0.8*($W171)),0) -> 0 | T171: =IF('DB 2'!F$106>0.2*($W171),('DB 2'!F$106-0.2*($W171))^2/('DB 2'!F$106+0.8*($W171)),0) -> 0 | U171: =IF('DB 2'!G$106>0.2*($W171),('DB 2'!G$106-0.2*($W171))^2/('DB 2'!G$106+0.8*($W171)),0) -> 0 | V171: 31.2 | W171: 22.05128205
R172: =IF('DB 2'!D$106>0.2*($W172),('DB 2'!D$106-0.2*($W172))^2/('DB 2'!D$106+0.8*($W172)),0) -> 0 | S172: =IF('DB 2'!E$106>0.2*($W172),('DB 2'!E$106-0.2*($W172))^2/('DB 2'!E$106+0.8*($W172)),0) -> 0 | T172: =IF('DB 2'!F$106>0.2*($W172),('DB 2'!F$106-0.2*($W172))^2/('DB 2'!F$106+0.8*($W172)),0) -> 0 | U172: =IF('DB 2'!G$106>0.2*($W172),('DB 2'!G$106-0.2*($W172))^2/('DB 2'!G$106+0.8*($W172)),0) -> 0 | V172: 31.3 | W172: 21.94888179
R173: =IF('DB 2'!D$106>0.2*($W173),('DB 2'!D$106-0.2*($W173))^2/('DB 2'!D$106+0.8*($W173)),0) -> 0 | S173: =IF('DB 2'!E$106>0.2*($W173),('DB 2'!E$106-0.2*($W173))^2/('DB 2'!E$106+0.8*($W173)),0) -> 0 | T173: =IF('DB 2'!F$106>0.2*($W173),('DB 2'!F$106-0.2*($W173))^2/('DB 2'!F$106+0.8*($W173)),0) -> 0 | U173: =IF('DB 2'!G$106>0.2*($W173),('DB 2'!G$106-0.2*($W173))^2/('DB 2'!G$106+0.8*($W173)),0) -> 0 | V173: 31.4 | W173: =IF(V173>0,1000/V173-10,1000) -> 21.84713376
R174: =IF('DB 2'!D$106>0.2*($W174),('DB 2'!D$106-0.2*($W174))^2/('DB 2'!D$106+0.8*($W174)),0) -> 0 | S174: =IF('DB 2'!E$106>0.2*($W174),('DB 2'!E$106-0.2*($W174))^2/('DB 2'!E$106+0.8*($W174)),0) -> 0 | T174: =IF('DB 2'!F$106>0.2*($W174),('DB 2'!F$106-0.2*($W174))^2/('DB 2'!F$106+0.8*($W174)),0) -> 0 | U174: =IF('DB 2'!G$106>0.2*($W174),('DB 2'!G$106-0.2*($W174))^2/('DB 2'!G$106+0.8*($W174)),0) -> 0 | V174: =V173+0.1 -> 31.5 | W174: 21.74603175
R175: =IF('DB 2'!D$106>0.2*($W175),('DB 2'!D$106-0.2*($W175))^2/('DB 2'!D$106+0.8*($W175)),0) -> 0 | S175: =IF('DB 2'!E$106>0.2*($W175),('DB 2'!E$106-0.2*($W175))^2/('DB 2'!E$106+0.8*($W175)),0) -> 0 | T175: =IF('DB 2'!F$106>0.2*($W175),('DB 2'!F$106-0.2*($W175))^2/('DB 2'!F$106+0.8*($W175)),0) -> 0 | U175: =IF('DB 2'!G$106>0.2*($W175),('DB 2'!G$106-0.2*($W175))^2/('DB 2'!G$106+0.8*($W175)),0) -> 0 | V175: 31.6 | W175: 21.64556962
R176: =IF('DB 2'!D$106>0.2*($W176),('DB 2'!D$106-0.2*($W176))^2/('DB 2'!D$106+0.8*($W176)),0) -> 0 | S176: =IF('DB 2'!E$106>0.2*($W176),('DB 2'!E$106-0.2*($W176))^2/('DB 2'!E$106+0.8*($W176)),0) -> 0 | T176: =IF('DB 2'!F$106>0.2*($W176),('DB 2'!F$106-0.2*($W176))^2/('DB 2'!F$106+0.8*($W176)),0) -> 0 | U176: =IF('DB 2'!G$106>0.2*($W176),('DB 2'!G$106-0.2*($W176))^2/('DB 2'!G$106+0.8*($W176)),0) -> 0 | V176: 31.7 | W176: 21.54574132
R177: =IF('DB 2'!D$106>0.2*($W177),('DB 2'!D$106-0.2*($W177))^2/('DB 2'!D$106+0.8*($W177)),0) -> 0 | S177: =IF('DB 2'!E$106>0.2*($W177),('DB 2'!E$106-0.2*($W177))^2/('DB 2'!E$106+0.8*($W177)),0) -> 0 | T177: =IF('DB 2'!F$106>0.2*($W177),('DB 2'!F$106-0.2*($W177))^2/('DB 2'!F$106+0.8*($W177)),0) -> 0 | U177: =IF('DB 2'!G$106>0.2*($W177),('DB 2'!G$106-0.2*($W177))^2/('DB 2'!G$106+0.8*($W177)),0) -> 0 | V177: 31.8 | W177: 21.44654088
R178: =IF('DB 2'!D$106>0.2*($W178),('DB 2'!D$106-0.2*($W178))^2/('DB 2'!D$106+0.8*($W178)),0) -> 0 | S178: =IF('DB 2'!E$106>0.2*($W178),('DB 2'!E$106-0.2*($W178))^2/('DB 2'!E$106+0.8*($W178)),0) -> 0 | T178: =IF('DB 2'!F$106>0.2*($W178),('DB 2'!F$106-0.2*($W178))^2/('DB 2'!F$106+0.8*($W178)),0) -> 0 | U178: =IF('DB 2'!G$106>0.2*($W178),('DB 2'!G$106-0.2*($W178))^2/('DB 2'!G$106+0.8*($W178)),0) -> 0 | V178: 31.9 | W178: 21.34796238
R179: =IF('DB 2'!D$106>0.2*($W179),('DB 2'!D$106-0.2*($W179))^2/('DB 2'!D$106+0.8*($W179)),0) -> 0 | S179: =IF('DB 2'!E$106>0.2*($W179),('DB 2'!E$106-0.2*($W179))^2/('DB 2'!E$106+0.8*($W179)),0) -> 0 | T179: =IF('DB 2'!F$106>0.2*($W179),('DB 2'!F$106-0.2*($W179))^2/('DB 2'!F$106+0.8*($W179)),0) -> 0 | U179: =IF('DB 2'!G$106>0.2*($W179),('DB 2'!G$106-0.2*($W179))^2/('DB 2'!G$106+0.8*($W179)),0) -> 0 | V179: 32 | W179: 21.25
R180: =IF('DB 2'!D$106>0.2*($W180),('DB 2'!D$106-0.2*($W180))^2/('DB 2'!D$106+0.8*($W180)),0) -> 0 | S180: =IF('DB 2'!E$106>0.2*($W180),('DB 2'!E$106-0.2*($W180))^2/('DB 2'!E$106+0.8*($W180)),0) -> 0 | T180: =IF('DB 2'!F$106>0.2*($W180),('DB 2'!F$106-0.2*($W180))^2/('DB 2'!F$106+0.8*($W180)),0) -> 0 | U180: =IF('DB 2'!G$106>0.2*($W180),('DB 2'!G$106-0.2*($W180))^2/('DB 2'!G$106+0.8*($W180)),0) -> 0 | V180: 32.1 | W180: 21.15264798
R181: =IF('DB 2'!D$106>0.2*($W181),('DB 2'!D$106-0.2*($W181))^2/('DB 2'!D$106+0.8*($W181)),0) -> 0 | S181: =IF('DB 2'!E$106>0.2*($W181),('DB 2'!E$106-0.2*($W181))^2/('DB 2'!E$106+0.8*($W181)),0) -> 0 | T181: =IF('DB 2'!F$106>0.2*($W181),('DB 2'!F$106-0.2*($W181))^2/('DB 2'!F$106+0.8*($W181)),0) -> 0 | U181: =IF('DB 2'!G$106>0.2*($W181),('DB 2'!G$106-0.2*($W181))^2/('DB 2'!G$106+0.8*($W181)),0) -> 0 | V181: 32.2 | W181: 21.05590062
R182: =IF('DB 2'!D$106>0.2*($W182),('DB 2'!D$106-0.2*($W182))^2/('DB 2'!D$106+0.8*($W182)),0) -> 0 | S182: =IF('DB 2'!E$106>0.2*($W182),('DB 2'!E$106-0.2*($W182))^2/('DB 2'!E$106+0.8*($W182)),0) -> 0 | T182: =IF('DB 2'!F$106>0.2*($W182),('DB 2'!F$106-0.2*($W182))^2/('DB 2'!F$106+0.8*($W182)),0) -> 0 | U182: =IF('DB 2'!G$106>0.2*($W182),('DB 2'!G$106-0.2*($W182))^2/('DB 2'!G$106+0.8*($W182)),0) -> 0 | V182: 32.3 | W182: 20.95975232
R183: =IF('DB 2'!D$106>0.2*($W183),('DB 2'!D$106-0.2*($W183))^2/('DB 2'!D$106+0.8*($W183)),0) -> 0 | S183: =IF('DB 2'!E$106>0.2*($W183),('DB 2'!E$106-0.2*($W183))^2/('DB 2'!E$106+0.8*($W183)),0) -> 0 | T183: =IF('DB 2'!F$106>0.2*($W183),('DB 2'!F$106-0.2*($W183))^2/('DB 2'!F$106+0.8*($W183)),0) -> 0 | U183: =IF('DB 2'!G$106>0.2*($W183),('DB 2'!G$106-0.2*($W183))^2/('DB 2'!G$106+0.8*($W183)),0) -> 0 | V183: 32.4 | W183: 20.86419753
R184: =IF('DB 2'!D$106>0.2*($W184),('DB 2'!D$106-0.2*($W184))^2/('DB 2'!D$106+0.8*($W184)),0) -> 0 | S184: =IF('DB 2'!E$106>0.2*($W184),('DB 2'!E$106-0.2*($W184))^2/('DB 2'!E$106+0.8*($W184)),0) -> 0 | T184: =IF('DB 2'!F$106>0.2*($W184),('DB 2'!F$106-0.2*($W184))^2/('DB 2'!F$106+0.8*($W184)),0) -> 0 | U184: =IF('DB 2'!G$106>0.2*($W184),('DB 2'!G$106-0.2*($W184))^2/('DB 2'!G$106+0.8*($W184)),0) -> 0 | V184: 32.5 | W184: 20.76923077
R185: =IF('DB 2'!D$106>0.2*($W185),('DB 2'!D$106-0.2*($W185))^2/('DB 2'!D$106+0.8*($W185)),0) -> 0 | S185: =IF('DB 2'!E$106>0.2*($W185),('DB 2'!E$106-0.2*($W185))^2/('DB 2'!E$106+0.8*($W185)),0) -> 0 | T185: =IF('DB 2'!F$106>0.2*($W185),('DB 2'!F$106-0.2*($W185))^2/('DB 2'!F$106+0.8*($W185)),0) -> 0 | U185: =IF('DB 2'!G$106>0.2*($W185),('DB 2'!G$106-0.2*($W185))^2/('DB 2'!G$106+0.8*($W185)),0) -> 0 | V185: 32.6 | W185: 20.67484663
R186: =IF('DB 2'!D$106>0.2*($W186),('DB 2'!D$106-0.2*($W186))^2/('DB 2'!D$106+0.8*($W186)),0) -> 0 | S186: =IF('DB 2'!E$106>0.2*($W186),('DB 2'!E$106-0.2*($W186))^2/('DB 2'!E$106+0.8*($W186)),0) -> 0 | T186: =IF('DB 2'!F$106>0.2*($W186),('DB 2'!F$106-0.2*($W186))^2/('DB 2'!F$106+0.8*($W186)),0) -> 0 | U186: =IF('DB 2'!G$106>0.2*($W186),('DB 2'!G$106-0.2*($W186))^2/('DB 2'!G$106+0.8*($W186)),0) -> 0 | V186: 32.7 | W186: 20.58103976
R187: =IF('DB 2'!D$106>0.2*($W187),('DB 2'!D$106-0.2*($W187))^2/('DB 2'!D$106+0.8*($W187)),0) -> 0 | S187: =IF('DB 2'!E$106>0.2*($W187),('DB 2'!E$106-0.2*($W187))^2/('DB 2'!E$106+0.8*($W187)),0) -> 0 | T187: =IF('DB 2'!F$106>0.2*($W187),('DB 2'!F$106-0.2*($W187))^2/('DB 2'!F$106+0.8*($W187)),0) -> 0 | U187: =IF('DB 2'!G$106>0.2*($W187),('DB 2'!G$106-0.2*($W187))^2/('DB 2'!G$106+0.8*($W187)),0) -> 0 | V187: 32.8 | W187: 20.48780488
R188: =IF('DB 2'!D$106>0.2*($W188),('DB 2'!D$106-0.2*($W188))^2/('DB 2'!D$106+0.8*($W188)),0) -> 0 | S188: =IF('DB 2'!E$106>0.2*($W188),('DB 2'!E$106-0.2*($W188))^2/('DB 2'!E$106+0.8*($W188)),0) -> 0 | T188: =IF('DB 2'!F$106>0.2*($W188),('DB 2'!F$106-0.2*($W188))^2/('DB 2'!F$106+0.8*($W188)),0) -> 0 | U188: =IF('DB 2'!G$106>0.2*($W188),('DB 2'!G$106-0.2*($W188))^2/('DB 2'!G$106+0.8*($W188)),0) -> 0 | V188: 32.9 | W188: 20.39513678
R189: =IF('DB 2'!D$106>0.2*($W189),('DB 2'!D$106-0.2*($W189))^2/('DB 2'!D$106+0.8*($W189)),0) -> 0 | S189: =IF('DB 2'!E$106>0.2*($W189),('DB 2'!E$106-0.2*($W189))^2/('DB 2'!E$106+0.8*($W189)),0) -> 0 | T189: =IF('DB 2'!F$106>0.2*($W189),('DB 2'!F$106-0.2*($W189))^2/('DB 2'!F$106+0.8*($W189)),0) -> 0 | U189: =IF('DB 2'!G$106>0.2*($W189),('DB 2'!G$106-0.2*($W189))^2/('DB 2'!G$106+0.8*($W189)),0) -> 0 | V189: 33 | W189: 20.3030303
R190: =IF('DB 2'!D$106>0.2*($W190),('DB 2'!D$106-0.2*($W190))^2/('DB 2'!D$106+0.8*($W190)),0) -> 0 | S190: =IF('DB 2'!E$106>0.2*($W190),('DB 2'!E$106-0.2*($W190))^2/('DB 2'!E$106+0.8*($W190)),0) -> 0 | T190: =IF('DB 2'!F$106>0.2*($W190),('DB 2'!F$106-0.2*($W190))^2/('DB 2'!F$106+0.8*($W190)),0) -> 0 | U190: =IF('DB 2'!G$106>0.2*($W190),('DB 2'!G$106-0.2*($W190))^2/('DB 2'!G$106+0.8*($W190)),0) -> 0 | V190: 33.1 | W190: 20.21148036
R191: =IF('DB 2'!D$106>0.2*($W191),('DB 2'!D$106-0.2*($W191))^2/('DB 2'!D$106+0.8*($W191)),0) -> 0 | S191: =IF('DB 2'!E$106>0.2*($W191),('DB 2'!E$106-0.2*($W191))^2/('DB 2'!E$106+0.8*($W191)),0) -> 0 | T191: =IF('DB 2'!F$106>0.2*($W191),('DB 2'!F$106-0.2*($W191))^2/('DB 2'!F$106+0.8*($W191)),0) -> 0 | U191: =IF('DB 2'!G$106>0.2*($W191),('DB 2'!G$106-0.2*($W191))^2/('DB 2'!G$106+0.8*($W191)),0) -> 0 | V191: 33.2 | W191: 20.12048193
R192: =IF('DB 2'!D$106>0.2*($W192),('DB 2'!D$106-0.2*($W192))^2/('DB 2'!D$106+0.8*($W192)),0) -> 0 | S192: =IF('DB 2'!E$106>0.2*($W192),('DB 2'!E$106-0.2*($W192))^2/('DB 2'!E$106+0.8*($W192)),0) -> 0 | T192: =IF('DB 2'!F$106>0.2*($W192),('DB 2'!F$106-0.2*($W192))^2/('DB 2'!F$106+0.8*($W192)),0) -> 0 | U192: =IF('DB 2'!G$106>0.2*($W192),('DB 2'!G$106-0.2*($W192))^2/('DB 2'!G$106+0.8*($W192)),0) -> 0 | V192: 33.3 | W192: 20.03003003
R193: =IF('DB 2'!D$106>0.2*($W193),('DB 2'!D$106-0.2*($W193))^2/('DB 2'!D$106+0.8*($W193)),0) -> 0 | S193: =IF('DB 2'!E$106>0.2*($W193),('DB 2'!E$106-0.2*($W193))^2/('DB 2'!E$106+0.8*($W193)),0) -> 0 | T193: =IF('DB 2'!F$106>0.2*($W193),('DB 2'!F$106-0.2*($W193))^2/('DB 2'!F$106+0.8*($W193)),0) -> 0 | U193: =IF('DB 2'!G$106>0.2*($W193),('DB 2'!G$106-0.2*($W193))^2/('DB 2'!G$106+0.8*($W193)),0) -> 0 | V193: 33.4 | W193: 19.94011976
R194: =IF('DB 2'!D$106>0.2*($W194),('DB 2'!D$106-0.2*($W194))^2/('DB 2'!D$106+0.8*($W194)),0) -> 0 | S194: =IF('DB 2'!E$106>0.2*($W194),('DB 2'!E$106-0.2*($W194))^2/('DB 2'!E$106+0.8*($W194)),0) -> 0 | T194: =IF('DB 2'!F$106>0.2*($W194),('DB 2'!F$106-0.2*($W194))^2/('DB 2'!F$106+0.8*($W194)),0) -> 0 | U194: =IF('DB 2'!G$106>0.2*($W194),('DB 2'!G$106-0.2*($W194))^2/('DB 2'!G$106+0.8*($W194)),0) -> 0 | V194: 33.5 | W194: 19.85074627
R195: =IF('DB 2'!D$106>0.2*($W195),('DB 2'!D$106-0.2*($W195))^2/('DB 2'!D$106+0.8*($W195)),0) -> 0 | S195: =IF('DB 2'!E$106>0.2*($W195),('DB 2'!E$106-0.2*($W195))^2/('DB 2'!E$106+0.8*($W195)),0) -> 0 | T195: =IF('DB 2'!F$106>0.2*($W195),('DB 2'!F$106-0.2*($W195))^2/('DB 2'!F$106+0.8*($W195)),0) -> 0 | U195: =IF('DB 2'!G$106>0.2*($W195),('DB 2'!G$106-0.2*($W195))^2/('DB 2'!G$106+0.8*($W195)),0) -> 0 | V195: 33.6 | W195: 19.76190476
R196: =IF('DB 2'!D$106>0.2*($W196),('DB 2'!D$106-0.2*($W196))^2/('DB 2'!D$106+0.8*($W196)),0) -> 0 | S196: =IF('DB 2'!E$106>0.2*($W196),('DB 2'!E$106-0.2*($W196))^2/('DB 2'!E$106+0.8*($W196)),0) -> 0 | T196: =IF('DB 2'!F$106>0.2*($W196),('DB 2'!F$106-0.2*($W196))^2/('DB 2'!F$106+0.8*($W196)),0) -> 0 | U196: =IF('DB 2'!G$106>0.2*($W196),('DB 2'!G$106-0.2*($W196))^2/('DB 2'!G$106+0.8*($W196)),0) -> 0 | V196: 33.7 | W196: 19.6735905
R197: =IF('DB 2'!D$106>0.2*($W197),('DB 2'!D$106-0.2*($W197))^2/('DB 2'!D$106+0.8*($W197)),0) -> 0 | S197: =IF('DB 2'!E$106>0.2*($W197),('DB 2'!E$106-0.2*($W197))^2/('DB 2'!E$106+0.8*($W197)),0) -> 0 | T197: =IF('DB 2'!F$106>0.2*($W197),('DB 2'!F$106-0.2*($W197))^2/('DB 2'!F$106+0.8*($W197)),0) -> 0 | U197: =IF('DB 2'!G$106>0.2*($W197),('DB 2'!G$106-0.2*($W197))^2/('DB 2'!G$106+0.8*($W197)),0) -> 0 | V197: 33.8 | W197: 19.58579882
R198: =IF('DB 2'!D$106>0.2*($W198),('DB 2'!D$106-0.2*($W198))^2/('DB 2'!D$106+0.8*($W198)),0) -> 0 | S198: =IF('DB 2'!E$106>0.2*($W198),('DB 2'!E$106-0.2*($W198))^2/('DB 2'!E$106+0.8*($W198)),0) -> 0 | T198: =IF('DB 2'!F$106>0.2*($W198),('DB 2'!F$106-0.2*($W198))^2/('DB 2'!F$106+0.8*($W198)),0) -> 0 | U198: =IF('DB 2'!G$106>0.2*($W198),('DB 2'!G$106-0.2*($W198))^2/('DB 2'!G$106+0.8*($W198)),0) -> 0 | V198: 33.9 | W198: 19.49852507
R199: =IF('DB 2'!D$106>0.2*($W199),('DB 2'!D$106-0.2*($W199))^2/('DB 2'!D$106+0.8*($W199)),0) -> 0 | S199: =IF('DB 2'!E$106>0.2*($W199),('DB 2'!E$106-0.2*($W199))^2/('DB 2'!E$106+0.8*($W199)),0) -> 0 | T199: =IF('DB 2'!F$106>0.2*($W199),('DB 2'!F$106-0.2*($W199))^2/('DB 2'!F$106+0.8*($W199)),0) -> 0 | U199: =IF('DB 2'!G$106>0.2*($W199),('DB 2'!G$106-0.2*($W199))^2/('DB 2'!G$106+0.8*($W199)),0) -> 0 | V199: 34 | W199: 19.41176471
R200: =IF('DB 2'!D$106>0.2*($W200),('DB 2'!D$106-0.2*($W200))^2/('DB 2'!D$106+0.8*($W200)),0) -> 0 | S200: =IF('DB 2'!E$106>0.2*($W200),('DB 2'!E$106-0.2*($W200))^2/('DB 2'!E$106+0.8*($W200)),0) -> 0 | T200: =IF('DB 2'!F$106>0.2*($W200),('DB 2'!F$106-0.2*($W200))^2/('DB 2'!F$106+0.8*($W200)),0) -> 0 | U200: =IF('DB 2'!G$106>0.2*($W200),('DB 2'!G$106-0.2*($W200))^2/('DB 2'!G$106+0.8*($W200)),0) -> 0 | V200: 34.1 | W200: 19.3255132
R201: =IF('DB 2'!D$106>0.2*($W201),('DB 2'!D$106-0.2*($W201))^2/('DB 2'!D$106+0.8*($W201)),0) -> 0 | S201: =IF('DB 2'!E$106>0.2*($W201),('DB 2'!E$106-0.2*($W201))^2/('DB 2'!E$106+0.8*($W201)),0) -> 0 | T201: =IF('DB 2'!F$106>0.2*($W201),('DB 2'!F$106-0.2*($W201))^2/('DB 2'!F$106+0.8*($W201)),0) -> 0 | U201: =IF('DB 2'!G$106>0.2*($W201),('DB 2'!G$106-0.2*($W201))^2/('DB 2'!G$106+0.8*($W201)),0) -> 0 | V201: 34.2 | W201: 19.23976608
R202: =IF('DB 2'!D$106>0.2*($W202),('DB 2'!D$106-0.2*($W202))^2/('DB 2'!D$106+0.8*($W202)),0) -> 0 | S202: =IF('DB 2'!E$106>0.2*($W202),('DB 2'!E$106-0.2*($W202))^2/('DB 2'!E$106+0.8*($W202)),0) -> 0 | T202: =IF('DB 2'!F$106>0.2*($W202),('DB 2'!F$106-0.2*($W202))^2/('DB 2'!F$106+0.8*($W202)),0) -> 0 | U202: =IF('DB 2'!G$106>0.2*($W202),('DB 2'!G$106-0.2*($W202))^2/('DB 2'!G$106+0.8*($W202)),0) -> 0 | V202: 34.3 | W202: 19.15451895
R203: =IF('DB 2'!D$106>0.2*($W203),('DB 2'!D$106-0.2*($W203))^2/('DB 2'!D$106+0.8*($W203)),0) -> 0 | S203: =IF('DB 2'!E$106>0.2*($W203),('DB 2'!E$106-0.2*($W203))^2/('DB 2'!E$106+0.8*($W203)),0) -> 0 | T203: =IF('DB 2'!F$106>0.2*($W203),('DB 2'!F$106-0.2*($W203))^2/('DB 2'!F$106+0.8*($W203)),0) -> 0 | U203: =IF('DB 2'!G$106>0.2*($W203),('DB 2'!G$106-0.2*($W203))^2/('DB 2'!G$106+0.8*($W203)),0) -> 0 | V203: 34.4 | W203: 19.06976744
R204: =IF('DB 2'!D$106>0.2*($W204),('DB 2'!D$106-0.2*($W204))^2/('DB 2'!D$106+0.8*($W204)),0) -> 0 | S204: =IF('DB 2'!E$106>0.2*($W204),('DB 2'!E$106-0.2*($W204))^2/('DB 2'!E$106+0.8*($W204)),0) -> 0 | T204: =IF('DB 2'!F$106>0.2*($W204),('DB 2'!F$106-0.2*($W204))^2/('DB 2'!F$106+0.8*($W204)),0) -> 0 | U204: =IF('DB 2'!G$106>0.2*($W204),('DB 2'!G$106-0.2*($W204))^2/('DB 2'!G$106+0.8*($W204)),0) -> 0 | V204: 34.5 | W204: 18.98550725
R205: =IF('DB 2'!D$106>0.2*($W205),('DB 2'!D$106-0.2*($W205))^2/('DB 2'!D$106+0.8*($W205)),0) -> 0 | S205: =IF('DB 2'!E$106>0.2*($W205),('DB 2'!E$106-0.2*($W205))^2/('DB 2'!E$106+0.8*($W205)),0) -> 0 | T205: =IF('DB 2'!F$106>0.2*($W205),('DB 2'!F$106-0.2*($W205))^2/('DB 2'!F$106+0.8*($W205)),0) -> 0 | U205: =IF('DB 2'!G$106>0.2*($W205),('DB 2'!G$106-0.2*($W205))^2/('DB 2'!G$106+0.8*($W205)),0) -> 0 | V205: 34.6 | W205: 18.9017341
R206: =IF('DB 2'!D$106>0.2*($W206),('DB 2'!D$106-0.2*($W206))^2/('DB 2'!D$106+0.8*($W206)),0) -> 0 | S206: =IF('DB 2'!E$106>0.2*($W206),('DB 2'!E$106-0.2*($W206))^2/('DB 2'!E$106+0.8*($W206)),0) -> 0 | T206: =IF('DB 2'!F$106>0.2*($W206),('DB 2'!F$106-0.2*($W206))^2/('DB 2'!F$106+0.8*($W206)),0) -> 0 | U206: =IF('DB 2'!G$106>0.2*($W206),('DB 2'!G$106-0.2*($W206))^2/('DB 2'!G$106+0.8*($W206)),0) -> 0 | V206: 34.7 | W206: 18.8184438
R207: =IF('DB 2'!D$106>0.2*($W207),('DB 2'!D$106-0.2*($W207))^2/('DB 2'!D$106+0.8*($W207)),0) -> 0 | S207: =IF('DB 2'!E$106>0.2*($W207),('DB 2'!E$106-0.2*($W207))^2/('DB 2'!E$106+0.8*($W207)),0) -> 0 | T207: =IF('DB 2'!F$106>0.2*($W207),('DB 2'!F$106-0.2*($W207))^2/('DB 2'!F$106+0.8*($W207)),0) -> 0 | U207: =IF('DB 2'!G$106>0.2*($W207),('DB 2'!G$106-0.2*($W207))^2/('DB 2'!G$106+0.8*($W207)),0) -> 0 | V207: 34.8 | W207: 18.73563218
R208: =IF('DB 2'!D$106>0.2*($W208),('DB 2'!D$106-0.2*($W208))^2/('DB 2'!D$106+0.8*($W208)),0) -> 0 | S208: =IF('DB 2'!E$106>0.2*($W208),('DB 2'!E$106-0.2*($W208))^2/('DB 2'!E$106+0.8*($W208)),0) -> 0 | T208: =IF('DB 2'!F$106>0.2*($W208),('DB 2'!F$106-0.2*($W208))^2/('DB 2'!F$106+0.8*($W208)),0) -> 0 | U208: =IF('DB 2'!G$106>0.2*($W208),('DB 2'!G$106-0.2*($W208))^2/('DB 2'!G$106+0.8*($W208)),0) -> 0 | V208: 34.9 | W208: 18.65329513
R209: =IF('DB 2'!D$106>0.2*($W209),('DB 2'!D$106-0.2*($W209))^2/('DB 2'!D$106+0.8*($W209)),0) -> 0 | S209: =IF('DB 2'!E$106>0.2*($W209),('DB 2'!E$106-0.2*($W209))^2/('DB 2'!E$106+0.8*($W209)),0) -> 0 | T209: =IF('DB 2'!F$106>0.2*($W209),('DB 2'!F$106-0.2*($W209))^2/('DB 2'!F$106+0.8*($W209)),0) -> 0 | U209: =IF('DB 2'!G$106>0.2*($W209),('DB 2'!G$106-0.2*($W209))^2/('DB 2'!G$106+0.8*($W209)),0) -> 0 | V209: 35 | W209: 18.57142857
R210: =IF('DB 2'!D$106>0.2*($W210),('DB 2'!D$106-0.2*($W210))^2/('DB 2'!D$106+0.8*($W210)),0) -> 0 | S210: =IF('DB 2'!E$106>0.2*($W210),('DB 2'!E$106-0.2*($W210))^2/('DB 2'!E$106+0.8*($W210)),0) -> 0 | T210: =IF('DB 2'!F$106>0.2*($W210),('DB 2'!F$106-0.2*($W210))^2/('DB 2'!F$106+0.8*($W210)),0) -> 0 | U210: =IF('DB 2'!G$106>0.2*($W210),('DB 2'!G$106-0.2*($W210))^2/('DB 2'!G$106+0.8*($W210)),0) -> 0 | V210: 35.1 | W210: 18.49002849
R211: =IF('DB 2'!D$106>0.2*($W211),('DB 2'!D$106-0.2*($W211))^2/('DB 2'!D$106+0.8*($W211)),0) -> 0 | S211: =IF('DB 2'!E$106>0.2*($W211),('DB 2'!E$106-0.2*($W211))^2/('DB 2'!E$106+0.8*($W211)),0) -> 0 | T211: =IF('DB 2'!F$106>0.2*($W211),('DB 2'!F$106-0.2*($W211))^2/('DB 2'!F$106+0.8*($W211)),0) -> 0 | U211: =IF('DB 2'!G$106>0.2*($W211),('DB 2'!G$106-0.2*($W211))^2/('DB 2'!G$106+0.8*($W211)),0) -> 0 | V211: 35.2 | W211: 18.40909091
R212: =IF('DB 2'!D$106>0.2*($W212),('DB 2'!D$106-0.2*($W212))^2/('DB 2'!D$106+0.8*($W212)),0) -> 0 | S212: =IF('DB 2'!E$106>0.2*($W212),('DB 2'!E$106-0.2*($W212))^2/('DB 2'!E$106+0.8*($W212)),0) -> 0 | T212: =IF('DB 2'!F$106>0.2*($W212),('DB 2'!F$106-0.2*($W212))^2/('DB 2'!F$106+0.8*($W212)),0) -> 0 | U212: =IF('DB 2'!G$106>0.2*($W212),('DB 2'!G$106-0.2*($W212))^2/('DB 2'!G$106+0.8*($W212)),0) -> 0 | V212: 35.3 | W212: 18.3286119
R213: =IF('DB 2'!D$106>0.2*($W213),('DB 2'!D$106-0.2*($W213))^2/('DB 2'!D$106+0.8*($W213)),0) -> 0 | S213: =IF('DB 2'!E$106>0.2*($W213),('DB 2'!E$106-0.2*($W213))^2/('DB 2'!E$106+0.8*($W213)),0) -> 0 | T213: =IF('DB 2'!F$106>0.2*($W213),('DB 2'!F$106-0.2*($W213))^2/('DB 2'!F$106+0.8*($W213)),0) -> 0 | U213: =IF('DB 2'!G$106>0.2*($W213),('DB 2'!G$106-0.2*($W213))^2/('DB 2'!G$106+0.8*($W213)),0) -> 0 | V213: 35.4 | W213: 18.24858757
R214: =IF('DB 2'!D$106>0.2*($W214),('DB 2'!D$106-0.2*($W214))^2/('DB 2'!D$106+0.8*($W214)),0) -> 0 | S214: =IF('DB 2'!E$106>0.2*($W214),('DB 2'!E$106-0.2*($W214))^2/('DB 2'!E$106+0.8*($W214)),0) -> 0 | T214: =IF('DB 2'!F$106>0.2*($W214),('DB 2'!F$106-0.2*($W214))^2/('DB 2'!F$106+0.8*($W214)),0) -> 0 | U214: =IF('DB 2'!G$106>0.2*($W214),('DB 2'!G$106-0.2*($W214))^2/('DB 2'!G$106+0.8*($W214)),0) -> 0 | V214: 35.5 | W214: 18.16901408
R215: =IF('DB 2'!D$106>0.2*($W215),('DB 2'!D$106-0.2*($W215))^2/('DB 2'!D$106+0.8*($W215)),0) -> 0 | S215: =IF('DB 2'!E$106>0.2*($W215),('DB 2'!E$106-0.2*($W215))^2/('DB 2'!E$106+0.8*($W215)),0) -> 0 | T215: =IF('DB 2'!F$106>0.2*($W215),('DB 2'!F$106-0.2*($W215))^2/('DB 2'!F$106+0.8*($W215)),0) -> 0 | U215: =IF('DB 2'!G$106>0.2*($W215),('DB 2'!G$106-0.2*($W215))^2/('DB 2'!G$106+0.8*($W215)),0) -> 0 | V215: 35.6 | W215: 18.08988764
R216: =IF('DB 2'!D$106>0.2*($W216),('DB 2'!D$106-0.2*($W216))^2/('DB 2'!D$106+0.8*($W216)),0) -> 0 | S216: =IF('DB 2'!E$106>0.2*($W216),('DB 2'!E$106-0.2*($W216))^2/('DB 2'!E$106+0.8*($W216)),0) -> 0 | T216: =IF('DB 2'!F$106>0.2*($W216),('DB 2'!F$106-0.2*($W216))^2/('DB 2'!F$106+0.8*($W216)),0) -> 0 | U216: =IF('DB 2'!G$106>0.2*($W216),('DB 2'!G$106-0.2*($W216))^2/('DB 2'!G$106+0.8*($W216)),0) -> 0 | V216: 35.7 | W216: 18.01120448
R217: =IF('DB 2'!D$106>0.2*($W217),('DB 2'!D$106-0.2*($W217))^2/('DB 2'!D$106+0.8*($W217)),0) -> 0 | S217: =IF('DB 2'!E$106>0.2*($W217),('DB 2'!E$106-0.2*($W217))^2/('DB 2'!E$106+0.8*($W217)),0) -> 0 | T217: =IF('DB 2'!F$106>0.2*($W217),('DB 2'!F$106-0.2*($W217))^2/('DB 2'!F$106+0.8*($W217)),0) -> 0 | U217: =IF('DB 2'!G$106>0.2*($W217),('DB 2'!G$106-0.2*($W217))^2/('DB 2'!G$106+0.8*($W217)),0) -> 0 | V217: 35.8 | W217: 17.93296089
R218: =IF('DB 2'!D$106>0.2*($W218),('DB 2'!D$106-0.2*($W218))^2/('DB 2'!D$106+0.8*($W218)),0) -> 0 | S218: =IF('DB 2'!E$106>0.2*($W218),('DB 2'!E$106-0.2*($W218))^2/('DB 2'!E$106+0.8*($W218)),0) -> 0 | T218: =IF('DB 2'!F$106>0.2*($W218),('DB 2'!F$106-0.2*($W218))^2/('DB 2'!F$106+0.8*($W218)),0) -> 0 | U218: =IF('DB 2'!G$106>0.2*($W218),('DB 2'!G$106-0.2*($W218))^2/('DB 2'!G$106+0.8*($W218)),0) -> 0 | V218: 35.9 | W218: 17.8551532
R219: =IF('DB 2'!D$106>0.2*($W219),('DB 2'!D$106-0.2*($W219))^2/('DB 2'!D$106+0.8*($W219)),0) -> 0 | S219: =IF('DB 2'!E$106>0.2*($W219),('DB 2'!E$106-0.2*($W219))^2/('DB 2'!E$106+0.8*($W219)),0) -> 0 | T219: =IF('DB 2'!F$106>0.2*($W219),('DB 2'!F$106-0.2*($W219))^2/('DB 2'!F$106+0.8*($W219)),0) -> 0 | U219: =IF('DB 2'!G$106>0.2*($W219),('DB 2'!G$106-0.2*($W219))^2/('DB 2'!G$106+0.8*($W219)),0) -> 0 | V219: 36 | W219: 17.77777778
R220: =IF('DB 2'!D$106>0.2*($W220),('DB 2'!D$106-0.2*($W220))^2/('DB 2'!D$106+0.8*($W220)),0) -> 0 | S220: =IF('DB 2'!E$106>0.2*($W220),('DB 2'!E$106-0.2*($W220))^2/('DB 2'!E$106+0.8*($W220)),0) -> 0 | T220: =IF('DB 2'!F$106>0.2*($W220),('DB 2'!F$106-0.2*($W220))^2/('DB 2'!F$106+0.8*($W220)),0) -> 0 | U220: =IF('DB 2'!G$106>0.2*($W220),('DB 2'!G$106-0.2*($W220))^2/('DB 2'!G$106+0.8*($W220)),0) -> 0 | V220: 36.1 | W220: 17.70083102
R221: =IF('DB 2'!D$106>0.2*($W221),('DB 2'!D$106-0.2*($W221))^2/('DB 2'!D$106+0.8*($W221)),0) -> 0 | S221: =IF('DB 2'!E$106>0.2*($W221),('DB 2'!E$106-0.2*($W221))^2/('DB 2'!E$106+0.8*($W221)),0) -> 0 | T221: =IF('DB 2'!F$106>0.2*($W221),('DB 2'!F$106-0.2*($W221))^2/('DB 2'!F$106+0.8*($W221)),0) -> 0 | U221: =IF('DB 2'!G$106>0.2*($W221),('DB 2'!G$106-0.2*($W221))^2/('DB 2'!G$106+0.8*($W221)),0) -> 0 | V221: 36.2 | W221: 17.62430939
R222: =IF('DB 2'!D$106>0.2*($W222),('DB 2'!D$106-0.2*($W222))^2/('DB 2'!D$106+0.8*($W222)),0) -> 0 | S222: =IF('DB 2'!E$106>0.2*($W222),('DB 2'!E$106-0.2*($W222))^2/('DB 2'!E$106+0.8*($W222)),0) -> 0 | T222: =IF('DB 2'!F$106>0.2*($W222),('DB 2'!F$106-0.2*($W222))^2/('DB 2'!F$106+0.8*($W222)),0) -> 0 | U222: =IF('DB 2'!G$106>0.2*($W222),('DB 2'!G$106-0.2*($W222))^2/('DB 2'!G$106+0.8*($W222)),0) -> 0 | V222: 36.3 | W222: 17.54820937
R223: =IF('DB 2'!D$106>0.2*($W223),('DB 2'!D$106-0.2*($W223))^2/('DB 2'!D$106+0.8*($W223)),0) -> 0 | S223: =IF('DB 2'!E$106>0.2*($W223),('DB 2'!E$106-0.2*($W223))^2/('DB 2'!E$106+0.8*($W223)),0) -> 0 | T223: =IF('DB 2'!F$106>0.2*($W223),('DB 2'!F$106-0.2*($W223))^2/('DB 2'!F$106+0.8*($W223)),0) -> 0 | U223: =IF('DB 2'!G$106>0.2*($W223),('DB 2'!G$106-0.2*($W223))^2/('DB 2'!G$106+0.8*($W223)),0) -> 0 | V223: 36.4 | W223: 17.47252747
R224: =IF('DB 2'!D$106>0.2*($W224),('DB 2'!D$106-0.2*($W224))^2/('DB 2'!D$106+0.8*($W224)),0) -> 0 | S224: =IF('DB 2'!E$106>0.2*($W224),('DB 2'!E$106-0.2*($W224))^2/('DB 2'!E$106+0.8*($W224)),0) -> 0 | T224: =IF('DB 2'!F$106>0.2*($W224),('DB 2'!F$106-0.2*($W224))^2/('DB 2'!F$106+0.8*($W224)),0) -> 0 | U224: =IF('DB 2'!G$106>0.2*($W224),('DB 2'!G$106-0.2*($W224))^2/('DB 2'!G$106+0.8*($W224)),0) -> 0 | V224: 36.5 | W224: 17.39726027
R225: =IF('DB 2'!D$106>0.2*($W225),('DB 2'!D$106-0.2*($W225))^2/('DB 2'!D$106+0.8*($W225)),0) -> 0 | S225: =IF('DB 2'!E$106>0.2*($W225),('DB 2'!E$106-0.2*($W225))^2/('DB 2'!E$106+0.8*($W225)),0) -> 0 | T225: =IF('DB 2'!F$106>0.2*($W225),('DB 2'!F$106-0.2*($W225))^2/('DB 2'!F$106+0.8*($W225)),0) -> 0 | U225: =IF('DB 2'!G$106>0.2*($W225),('DB 2'!G$106-0.2*($W225))^2/('DB 2'!G$106+0.8*($W225)),0) -> 0 | V225: 36.6 | W225: 17.32240437
R226: =IF('DB 2'!D$106>0.2*($W226),('DB 2'!D$106-0.2*($W226))^2/('DB 2'!D$106+0.8*($W226)),0) -> 0 | S226: =IF('DB 2'!E$106>0.2*($W226),('DB 2'!E$106-0.2*($W226))^2/('DB 2'!E$106+0.8*($W226)),0) -> 0 | T226: =IF('DB 2'!F$106>0.2*($W226),('DB 2'!F$106-0.2*($W226))^2/('DB 2'!F$106+0.8*($W226)),0) -> 0 | U226: =IF('DB 2'!G$106>0.2*($W226),('DB 2'!G$106-0.2*($W226))^2/('DB 2'!G$106+0.8*($W226)),0) -> 0 | V226: 36.7 | W226: 17.2479564
R227: =IF('DB 2'!D$106>0.2*($W227),('DB 2'!D$106-0.2*($W227))^2/('DB 2'!D$106+0.8*($W227)),0) -> 0 | S227: =IF('DB 2'!E$106>0.2*($W227),('DB 2'!E$106-0.2*($W227))^2/('DB 2'!E$106+0.8*($W227)),0) -> 0 | T227: =IF('DB 2'!F$106>0.2*($W227),('DB 2'!F$106-0.2*($W227))^2/('DB 2'!F$106+0.8*($W227)),0) -> 0 | U227: =IF('DB 2'!G$106>0.2*($W227),('DB 2'!G$106-0.2*($W227))^2/('DB 2'!G$106+0.8*($W227)),0) -> 0 | V227: 36.8 | W227: 17.17391304
R228: =IF('DB 2'!D$106>0.2*($W228),('DB 2'!D$106-0.2*($W228))^2/('DB 2'!D$106+0.8*($W228)),0) -> 0 | S228: =IF('DB 2'!E$106>0.2*($W228),('DB 2'!E$106-0.2*($W228))^2/('DB 2'!E$106+0.8*($W228)),0) -> 0 | T228: =IF('DB 2'!F$106>0.2*($W228),('DB 2'!F$106-0.2*($W228))^2/('DB 2'!F$106+0.8*($W228)),0) -> 0 | U228: =IF('DB 2'!G$106>0.2*($W228),('DB 2'!G$106-0.2*($W228))^2/('DB 2'!G$106+0.8*($W228)),0) -> 0 | V228: 36.9 | W228: 17.100271
R229: =IF('DB 2'!D$106>0.2*($W229),('DB 2'!D$106-0.2*($W229))^2/('DB 2'!D$106+0.8*($W229)),0) -> 0 | S229: =IF('DB 2'!E$106>0.2*($W229),('DB 2'!E$106-0.2*($W229))^2/('DB 2'!E$106+0.8*($W229)),0) -> 0 | T229: =IF('DB 2'!F$106>0.2*($W229),('DB 2'!F$106-0.2*($W229))^2/('DB 2'!F$106+0.8*($W229)),0) -> 0 | U229: =IF('DB 2'!G$106>0.2*($W229),('DB 2'!G$106-0.2*($W229))^2/('DB 2'!G$106+0.8*($W229)),0) -> 0 | V229: 37 | W229: 17.02702703
R230: =IF('DB 2'!D$106>0.2*($W230),('DB 2'!D$106-0.2*($W230))^2/('DB 2'!D$106+0.8*($W230)),0) -> 0 | S230: =IF('DB 2'!E$106>0.2*($W230),('DB 2'!E$106-0.2*($W230))^2/('DB 2'!E$106+0.8*($W230)),0) -> 0 | T230: =IF('DB 2'!F$106>0.2*($W230),('DB 2'!F$106-0.2*($W230))^2/('DB 2'!F$106+0.8*($W230)),0) -> 0 | U230: =IF('DB 2'!G$106>0.2*($W230),('DB 2'!G$106-0.2*($W230))^2/('DB 2'!G$106+0.8*($W230)),0) -> 0 | V230: 37.1 | W230: 16.9541779
R231: =IF('DB 2'!D$106>0.2*($W231),('DB 2'!D$106-0.2*($W231))^2/('DB 2'!D$106+0.8*($W231)),0) -> 0 | S231: =IF('DB 2'!E$106>0.2*($W231),('DB 2'!E$106-0.2*($W231))^2/('DB 2'!E$106+0.8*($W231)),0) -> 0 | T231: =IF('DB 2'!F$106>0.2*($W231),('DB 2'!F$106-0.2*($W231))^2/('DB 2'!F$106+0.8*($W231)),0) -> 0 | U231: =IF('DB 2'!G$106>0.2*($W231),('DB 2'!G$106-0.2*($W231))^2/('DB 2'!G$106+0.8*($W231)),0) -> 0 | V231: 37.2 | W231: 16.88172043
R232: =IF('DB 2'!D$106>0.2*($W232),('DB 2'!D$106-0.2*($W232))^2/('DB 2'!D$106+0.8*($W232)),0) -> 0 | S232: =IF('DB 2'!E$106>0.2*($W232),('DB 2'!E$106-0.2*($W232))^2/('DB 2'!E$106+0.8*($W232)),0) -> 0 | T232: =IF('DB 2'!F$106>0.2*($W232),('DB 2'!F$106-0.2*($W232))^2/('DB 2'!F$106+0.8*($W232)),0) -> 0 | U232: =IF('DB 2'!G$106>0.2*($W232),('DB 2'!G$106-0.2*($W232))^2/('DB 2'!G$106+0.8*($W232)),0) -> 0 | V232: 37.3 | W232: 16.80965147
R233: =IF('DB 2'!D$106>0.2*($W233),('DB 2'!D$106-0.2*($W233))^2/('DB 2'!D$106+0.8*($W233)),0) -> 0 | S233: =IF('DB 2'!E$106>0.2*($W233),('DB 2'!E$106-0.2*($W233))^2/('DB 2'!E$106+0.8*($W233)),0) -> 0 | T233: =IF('DB 2'!F$106>0.2*($W233),('DB 2'!F$106-0.2*($W233))^2/('DB 2'!F$106+0.8*($W233)),0) -> 0 | U233: =IF('DB 2'!G$106>0.2*($W233),('DB 2'!G$106-0.2*($W233))^2/('DB 2'!G$106+0.8*($W233)),0) -> 0 | V233: 37.4 | W233: 16.73796791
R234: =IF('DB 2'!D$106>0.2*($W234),('DB 2'!D$106-0.2*($W234))^2/('DB 2'!D$106+0.8*($W234)),0) -> 0 | S234: =IF('DB 2'!E$106>0.2*($W234),('DB 2'!E$106-0.2*($W234))^2/('DB 2'!E$106+0.8*($W234)),0) -> 0 | T234: =IF('DB 2'!F$106>0.2*($W234),('DB 2'!F$106-0.2*($W234))^2/('DB 2'!F$106+0.8*($W234)),0) -> 0 | U234: =IF('DB 2'!G$106>0.2*($W234),('DB 2'!G$106-0.2*($W234))^2/('DB 2'!G$106+0.8*($W234)),0) -> 0 | V234: 37.5 | W234: 16.66666667
R235: =IF('DB 2'!D$106>0.2*($W235),('DB 2'!D$106-0.2*($W235))^2/('DB 2'!D$106+0.8*($W235)),0) -> 0 | S235: =IF('DB 2'!E$106>0.2*($W235),('DB 2'!E$106-0.2*($W235))^2/('DB 2'!E$106+0.8*($W235)),0) -> 0 | T235: =IF('DB 2'!F$106>0.2*($W235),('DB 2'!F$106-0.2*($W235))^2/('DB 2'!F$106+0.8*($W235)),0) -> 0 | U235: =IF('DB 2'!G$106>0.2*($W235),('DB 2'!G$106-0.2*($W235))^2/('DB 2'!G$106+0.8*($W235)),0) -> 0 | V235: 37.6 | W235: 16.59574468
... 624 more rows

Sheet DB 3
A1: Georgia Stormwater Management Manual Stormwater Quality Site Development Review Tool, v2.2
B7: Development Name: | C7: =IF(ISBLANK(Summary!B9),"",Summary!B9) ->  | L7: data input cells
B8: Drainage Basin Name: | L8: calculation cells
L9: constant values
A11: Site Data
A14: Indicate Pre-Development Land Cover and Runoff Curve Numbers in the Site's Disturbed Area
A15: Cover Type | D15: HSG* A (acres) | E15: CN | F15: HSG B (acres) | G15: CN | H15: HSG C (acres) | I15: CN | J15: HSG D (acres) | K15: CN | L15: Total | M15: % Cover
A16: Select a land cover type… | E16: =INDEX('RR_TSS Removal %'!$S$8:$X$40,MATCH('DB 3'!$A16,'RR_TSS Removal %'!$S$8:$S$40,0),MATCH('DB 3'!D$15,'RR_TSS Removal %'!$S$8:$X$8,0)) -> 1e-07 | G16: =INDEX('RR_TSS Removal %'!$S$8:$X$40,MATCH('DB 3'!$A16,'RR_TSS Removal %'!$S$8:$S$40,0),MATCH('DB 3'!F$15,'RR_TSS Removal %'!$S$8:$X$8,0)) -> 1e-07 | I16: =INDEX('RR_TSS Removal %'!$S$8:$X$40,MATCH('DB 3'!$A16,'RR_TSS Removal %'!$S$8:$S$40,0),MATCH('DB 3'!H$15,'RR_TSS Removal %'!$S$8:$X$8,0)) -> 1e-07 | K16: =INDEX('RR_TSS Removal %'!$S$8:$X$40,MATCH('DB 3'!$A16,'RR_TSS Removal %'!$S$8:$S$40,0),MATCH('DB 3'!J$15,'RR_TSS Removal %'!$S$8:$X$8,0)) -> 1e-07 | L16: =D16+F16+H16+J16 -> 0 | M16: =IF($L$23>0,L16/$L$23,0) -> 0
A17: Select a land cover type… | E17: =INDEX('RR_TSS Removal %'!$S$8:$X$40,MATCH('DB 3'!$A17,'RR_TSS Removal %'!$S$8:$S$40,0),MATCH('DB 3'!D$15,'RR_TSS Removal %'!$S$8:$X$8,0)) -> 1e-07 | G17: =INDEX('RR_TSS Removal %'!$S$8:$X$40,MATCH('DB 3'!$A17,'RR_TSS Removal %'!$S$8:$S$40,0),MATCH('DB 3'!F$15,'RR_TSS Removal %'!$S$8:$X$8,0)) -> 1e-07 | I17: =INDEX('RR_TSS Removal %'!$S$8:$X$40,MATCH('DB 3'!$A17,'RR_TSS Removal %'!$S$8:$S$40,0),MATCH('DB 3'!H$15,'RR_TSS Removal %'!$S$8:$X$8,0)) -> 1e-07 | K17: =INDEX('RR_TSS Removal %'!$S$8:$X$40,MATCH('DB 3'!$A17,'RR_TSS Removal %'!$S$8:$S$40,0),MATCH('DB 3'!J$15,'RR_TSS Removal %'!$S$8:$X$8,0)) -> 1e-07 | L17: 0 | M17: 0
A18: Select a land cover type… | E18: =INDEX('RR_TSS Removal %'!$S$8:$X$40,MATCH('DB 3'!$A18,'RR_TSS Removal %'!$S$8:$S$40,0),MATCH('DB 3'!D$15,'RR_TSS Removal %'!$S$8:$X$8,0)) -> 1e-07 | G18: =INDEX('RR_TSS Removal %'!$S$8:$X$40,MATCH('DB 3'!$A18,'RR_TSS Removal %'!$S$8:$S$40,0),MATCH('DB 3'!F$15,'RR_TSS Removal %'!$S$8:$X$8,0)) -> 1e-07 | I18: =INDEX('RR_TSS Removal %'!$S$8:$X$40,MATCH('DB 3'!$A18,'RR_TSS Removal %'!$S$8:$S$40,0),MATCH('DB 3'!H$15,'RR_TSS Removal %'!$S$8:$X$8,0)) -> 1e-07 | K18: =INDEX('RR_TSS Removal %'!$S$8:$X$40,MATCH('DB 3'!$A18,'RR_TSS Removal %'!$S$8:$S$40,0),MATCH('DB 3'!J$15,'RR_TSS Removal %'!$S$8:$X$8,0)) -> 1e-07 | L18: 0 | M18: 0
A19: Select a land cover type… | E19: =INDEX('RR_TSS Removal %'!$S$8:$X$40,MATCH('DB 3'!$A19,'RR_TSS Removal %'!$S$8:$S$40,0),MATCH('DB 3'!D$15,'RR_TSS Removal %'!$S$8:$X$8,0)) -> 1e-07 | G19: =INDEX('RR_TSS Removal %'!$S$8:$X$40,MATCH('DB 3'!$A19,'RR_TSS Removal %'!$S$8:$S$40,0),MATCH('DB 3'!F$15,'RR_TSS Removal %'!$S$8:$X$8,0)) -> 1e-07 | I19: =INDEX('RR_TSS Removal %'!$S$8:$X$40,MATCH('DB 3'!$A19,'RR_TSS Removal %'!$S$8:$S$40,0),MATCH('DB 3'!H$15,'RR_TSS Removal %'!$S$8:$X$8,0)) -> 1e-07 | K19: =INDEX('RR_TSS Removal %'!$S$8:$X$40,MATCH('DB 3'!$A19,'RR_TSS Removal %'!$S$8:$S$40,0),MATCH('DB 3'!J$15,'RR_TSS Removal %'!$S$8:$X$8,0)) -> 1e-07 | L19: 0 | M19: 0
A20: Select a land cover type… | E20: =INDEX('RR_TSS Removal %'!$S$8:$X$40,MATCH('DB 3'!$A20,'RR_TSS Removal %'!$S$8:$S$40,0),MATCH('DB 3'!D$15,'RR_TSS Removal %'!$S$8:$X$8,0)) -> 1e-07 | G20: =INDEX('RR_TSS Removal %'!$S$8:$X$40,MATCH('DB 3'!$A20,'RR_TSS Removal %'!$S$8:$S$40,0),MATCH('DB 3'!F$15,'RR_TSS Removal %'!$S$8:$X$8,0)) -> 1e-07 | I20: =INDEX('RR_TSS Removal %'!$S$8:$X$40,MATCH('DB 3'!$A20,'RR_TSS Removal %'!$S$8:$S$40,0),MATCH('DB 3'!H$15,'RR_TSS Removal %'!$S$8:$X$8,0)) -> 1e-07 | K20: =INDEX('RR_TSS Removal %'!$S$8:$X$40,MATCH('DB 3'!$A20,'RR_TSS Removal %'!$S$8:$S$40,0),MATCH('DB 3'!J$15,'RR_TSS Removal %'!$S$8:$X$8,0)) -> 1e-07 | L20: 0 | M20: 0
A21: Local Jurisdiction Input | L21: 0 | M21: 0
A22: Other | L22: 0 | M22: 0
A23: Total | D23: =SUM(D16:D22) -> 0 | F23: =SUM(F16:F22) -> 0 | H23: =SUM(H16:H22) -> 0 | J23: =SUM(J16:J22) -> 0 | L23: 0 | M23: 0
A24: *HSG = hydrologic soil group | I24: Impervious (ac) | K24: =SUMIF(A16:A20,"Impervious",L16:L20) -> 0
I25: Weighted CN | K25: =IF(L23>0,(SUMPRODUCT(D16:D22,E16:E22)+SUMPRODUCT(F16:F22,G16:G22)+SUMPRODUCT(H16:H22,I16:I22)+SUMPRODUCT(J16:J22,K16:K22))/L23,0) -> 0
H26: Potential Max Soil Retention, Spre (in) | K26: =IF(K25>0,1000/K25-10,1000) -> 1000
A28: Indicate Post-Development Land Cover and Runoff Curve Numbers in the Site's Disturbed Area
A29: Cover Type | D29: HSG A (acres) | E29: CN | F29: HSG B (acres) | G29: CN | H29: HSG C (acres) | I29: CN | J29: HSG D (acres) | K29: CN | L29: Total | M29: % Cover
A30: Select a land cover type… | E30: =INDEX('RR_TSS Removal %'!$S$8:$X$40,MATCH('DB 3'!$A30,'RR_TSS Removal %'!$S$8:$S$40,0),MATCH('DB 3'!D$29,'RR_TSS Removal %'!$S$8:$X$8,0)) -> 1e-07 | G30: =INDEX('RR_TSS Removal %'!$S$8:$X$40,MATCH('DB 3'!$A30,'RR_TSS Removal %'!$S$8:$S$40,0),MATCH('DB 3'!F$29,'RR_TSS Removal %'!$S$8:$X$8,0)) -> 1e-07 | I30: =INDEX('RR_TSS Removal %'!$S$8:$X$40,MATCH('DB 3'!$A30,'RR_TSS Removal %'!$S$8:$S$40,0),MATCH('DB 3'!H$29,'RR_TSS Removal %'!$S$8:$X$8,0)) -> 1e-07 | K30: =INDEX('RR_TSS Removal %'!$S$8:$X$40,MATCH('DB 3'!$A30,'RR_TSS Removal %'!$S$8:$S$40,0),MATCH('DB 3'!J$29,'RR_TSS Removal %'!$S$8:$X$8,0)) -> 1e-07 | L30: =D30+F30+H30+J30 -> 0 | M30: =IF($L$37>0,L30/$L$37,0) -> 0
A31: Select a land cover type… | E31: =INDEX('RR_TSS Removal %'!$S$8:$X$40,MATCH('DB 3'!$A31,'RR_TSS Removal %'!$S$8:$S$40,0),MATCH('DB 3'!D$29,'RR_TSS Removal %'!$S$8:$X$8,0)) -> 1e-07 | G31: =INDEX('RR_TSS Removal %'!$S$8:$X$40,MATCH('DB 3'!$A31,'RR_TSS Removal %'!$S$8:$S$40,0),MATCH('DB 3'!F$29,'RR_TSS Removal %'!$S$8:$X$8,0)) -> 1e-07 | I31: =INDEX('RR_TSS Removal %'!$S$8:$X$40,MATCH('DB 3'!$A31,'RR_TSS Removal %'!$S$8:$S$40,0),MATCH('DB 3'!H$29,'RR_TSS Removal %'!$S$8:$X$8,0)) -> 1e-07 | K31: =INDEX('RR_TSS Removal %'!$S$8:$X$40,MATCH('DB 3'!$A31,'RR_TSS Removal %'!$S$8:$S$40,0),MATCH('DB 3'!J$29,'RR_TSS Removal %'!$S$8:$X$8,0)) -> 1e-07 | L31: 0 | M31: 0
A32: Select a land cover type… | E32: =INDEX('RR_TSS Removal %'!$S$8:$X$40,MATCH('DB 3'!$A32,'RR_TSS Removal %'!$S$8:$S$40,0),MATCH('DB 3'!D$29,'RR_TSS Removal %'!$S$8:$X$8,0)) -> 1e-07 | G32: =INDEX('RR_TSS Removal %'!$S$8:$X$40,MATCH('DB 3'!$A32,'RR_TSS Removal %'!$S$8:$S$40,0),MATCH('DB 3'!F$29,'RR_TSS Removal %'!$S$8:$X$8,0)) -> 1e-07 | I32: =INDEX('RR_TSS Removal %'!$S$8:$X$40,MATCH('DB 3'!$A32,'RR_TSS Removal %'!$S$8:$S$40,0),MATCH('DB 3'!H$29,'RR_TSS Removal %'!$S$8:$X$8,0)) -> 1e-07 | K32: =INDEX('RR_TSS Removal %'!$S$8:$X$40,MATCH('DB 3'!$A32,'RR_TSS Removal %'!$S$8:$S$40,0),MATCH('DB 3'!J$29,'RR_TSS Removal %'!$S$8:$X$8,0)) -> 1e-07 | L32: 0 | M32: 0
A33: Select a land cover type… | E33: =INDEX('RR_TSS Removal %'!$S$8:$X$40,MATCH('DB 3'!$A33,'RR_TSS Removal %'!$S$8:$S$40,0),MATCH('DB 3'!D$29,'RR_TSS Removal %'!$S$8:$X$8,0)) -> 1e-07 | G33: =INDEX('RR_TSS Removal %'!$S$8:$X$40,MATCH('DB 3'!$A33,'RR_TSS Removal %'!$S$8:$S$40,0),MATCH('DB 3'!F$29,'RR_TSS Removal %'!$S$8:$X$8,0)) -> 1e-07 | I33: =INDEX('RR_TSS Removal %'!$S$8:$X$40,MATCH('DB 3'!$A33,'RR_TSS Removal %'!$S$8:$S$40,0),MATCH('DB 3'!H$29,'RR_TSS Removal %'!$S$8:$X$8,0)) -> 1e-07 | K33: =INDEX('RR_TSS Removal %'!$S$8:$X$40,MATCH('DB 3'!$A33,'RR_TSS Removal %'!$S$8:$S$40,0),MATCH('DB 3'!J$29,'RR_TSS Removal %'!$S$8:$X$8,0)) -> 1e-07 | L33: 0 | M33: 0
A34: Select a land cover type… | E34: =INDEX('RR_TSS Removal %'!$S$8:$X$40,MATCH('DB 3'!$A34,'RR_TSS Removal %'!$S$8:$S$40,0),MATCH('DB 3'!D$29,'RR_TSS Removal %'!$S$8:$X$8,0)) -> 1e-07 | G34: =INDEX('RR_TSS Removal %'!$S$8:$X$40,MATCH('DB 3'!$A34,'RR_TSS Removal %'!$S$8:$S$40,0),MATCH('DB 3'!F$29,'RR_TSS Removal %'!$S$8:$X$8,0)) -> 1e-07 | I34: =INDEX('RR_TSS Removal %'!$S$8:$X$40,MATCH('DB 3'!$A34,'RR_TSS Removal %'!$S$8:$S$40,0),MATCH('DB 3'!H$29,'RR_TSS Removal %'!$S$8:$X$8,0)) -> 1e-07 | K34: =INDEX('RR_TSS Removal %'!$S$8:$X$40,MATCH('DB 3'!$A34,'RR_TSS Removal %'!$S$8:$S$40,0),MATCH('DB 3'!J$29,'RR_TSS Removal %'!$S$8:$X$8,0)) -> 1e-07 | L34: 0 | M34: 0
A35: Local Jurisdiction Input | L35: 0 | M35: 0
A36: Other | L36: 0 | M36: 0
A37: Total | D37: =SUM(D30:D36) -> 0 | F37: =SUM(F30:F36) -> 0 | H37: =SUM(H30:H36) -> 0 | J37: =SUM(J30:J36) -> 0 | L37: =(D37+F37+H37+J37) -> 0 | M37: 0
I38: Impervious (ac) | K38: =SUMIF(A30:A34,"Impervious",L30:L34) -> 0
I39: Rv | K39: =IF(SUM($L$30:$L$36)=0,0,($K$38/SUM($L$30:$L$36)*100*0.009)+0.05) -> 0
I40: Weighted CN | K40: =IF(L37>0,(SUMPRODUCT(D30:D36,E30:E36)+SUMPRODUCT(F30:F36,G30:G36)+SUMPRODUCT(H30:H36,I30:I36)+SUMPRODUCT(J30:J36,K30:K36))/SUM(L30:L36),0) -> 0
H41: Potential Max Soil Retention, Spost (in) | K41: =IF(K40>0,1000/K40-10,1000) -> 1000
A43: Conservation Area Credits
A45: Scenario 1: Natural Conservation Area *See the GSMM Volume 2, Section 2.3.3.3 for more information. | H45: Scenario 3: Soil Restoration *See the GSMM Volume 2, Section 4.23 for more information.
B47: Check the box if a portion of the post-developed area is protected by a conservation easement or equivalent form of protection. | I47: Check the box if a portion of the post-developed area employs soil restoration and is protected by a conservation easement or equivalent form of protection.
B50: Area (ac) of development protected by a conservation easement or equivalent form of protection. | D50: Note: The green cell will unlock if the Scenario 1 box above is checked | I50: Area (ac) of development with restored soils and protected by a conservation easement or equivalent form of protection. | N50: Note: The green cell will unlock if the Scenario 3 box above is checked
A52: Scenario 2: Site Reforestation/Revegetation *See the GSMM Volume 2, Section 4.22 for more information. | H52: Scenario 4: Site Reforestation/Revegetation & Soil Restoration | M52: *See the GSMM Volume 2, Section 4.22 and 4.23 for more information.
B54: Check the box if a portion of the post-developed area employs site reforestation/revegetation and is protected by a conservation easement or equivalent form of protection. | I54: Check the box if the same portion of the post-developed area employs site reforestation/revegetation and soil restoration, and is protected by a conservation easement or equivalent form of protection.
B57: Area (ac) of development reforested/revegetated and protected by a conservation easement or equivalent form of protection. | D57: Note: The green cell will unlock if the Scenario 2 box above is checked | I57: Area (ac) with restored soils in a reforested & revegetated area and protected by a conservation easement or equivalent form of protection. | N57: Note: The green cell will unlock if the Scenario 4 box above is checked
F59: Total Conservation Area Credit (acres) | G59: =SUM(A50,0.5*A57,0.5*H50,H57) -> 0
A61: Water Quality Goals
B64: Target Runoff Reduction Storm (in) | C64: 1 | H64: Total Site Area for Water Quality Volume (acres) | I64: =SUM(D37,F37,H37,J37)-G59 -> 0
H65: Target Runoff Reduction Volume (cf) | I65: =C64/12*K39*I64*43560 -> 0
H66: Target Water Quality Volume (cf) | I66: =1.2/12*K39*I64*43560 -> 0
B70: TSS in Water Quality Volume (units) | C70: =I66 -> 0
A72: Select BMPs for Runoff Reduction and Water Quality
C75: Area Draining to Each BMP | F75: Storage Volume Provided by BMP (cf) | G75: RR Conveyance Volume Provided by BMP (cf) | H75: Down-stream BMP | I75: Runoff Reduction Calculations | O75: WQ Calculations | X75: Downstream Runoff | AI75: Downstream TSS
C76: On-site Pervious Area (acres) | D76: On-site Impervious Area (acres) | E76: Offsite Area (acres) | I76: RR Volume from Direct Drainage (cf) | J76: RR Volume from Upstream Practices (cf) | K76: Total RR Volume Received by BMP (cf) | L76: Runoff Reduction % | M76: RR Achieved (cf) | N76: Remaining RR Volume (cf) | O76: WQv from Direct Drainage (cf) | P76: Effective TSS Removal % | Q76: TSS from Direct Drainage (units) | R76: TSS from Upstream Practices (units) | S76: Total TSS Received by BMP (units) | T76: TSS Removal Achieved (units) | U76: Remaining TSS (units) | V76: Storage Volume Provided | X76: BMP 1 | Y76: BMP 2 | Z76: BMP 3 | AA76: BMP 4 | AB76: BMP 5 | AC76: BMP 6 | AD76: BMP 7 | AE76: BMP 8 | AF76: BMP 9 | AG76: BMP 10 | AI76: BMP 1 | AJ76: BMP 2 | AK76: BMP 3 | AL76: BMP 4 | AM76: BMP 5 | AN76: BMP 6 | AO76: BMP 7 | AP76: BMP 8 | AQ76: BMP 9 | AR76: BMP 10
A77: BMP 1 | B77: Select a BMP… | G77: =IF(V77="Convey",I77+J77,"") ->  | I77: =IFERROR($C$64/12*(0.05+0.009*($D77/($C77+$D77))*100)*($C77+$D77)*43560,0) -> 0 | J77: =HLOOKUP($A77,$X$76:$AG$90,15,FALSE) -> 0 | K77: =$I77+$J77 -> 0 | L77: =VLOOKUP($B77,'RR_TSS Removal %'!$A$9:$E$56,4,FALSE) -> N/A | M77: =IFERROR(IF(F77=0,G77*L77,IF(F77>K77/L77,K77,F77*L77)),0) -> 0 | N77: =IFERROR(K77-M77,0) -> 0 | O77: =IFERROR(1.2/12*(0.05+0.009*($D77/($C77+$D77))*100)*($C77+$D77)*43560,0) -> 0 | P77: =VLOOKUP($B77,'RR_TSS Removal %'!$A$9:$E$56,5,FALSE) -> N/A | Q77: =IFERROR(1.2/12*(0.05+0.009*($D77/($C77+$D77))*100)*($C77+$D77)*43560,0) -> 0 | R77: =IFERROR(HLOOKUP($A77,$AI$76:$AR$90,15,FALSE),0) -> 0 | S77: =Q77+R77 -> 0 | T77: =IFERROR(P77*S77,0) -> 0 | U77: =S77-T77 -> 0 | V77: =VLOOKUP($B77,'RR_TSS Removal %'!$A$9:$F$56,6,FALSE) -> 0 | X77: =IF($H77=X$76,$N77,0) -> 0 | Y77: 0 | Z77: 0 | AA77: 0 | AB77: 0 | AC77: 0 | AD77: 0 | AE77: 0 | AF77: 0 | AG77: 0 | AI77: =IF($H77=AI$76,$U77,0) -> 0 | AJ77: 0 | AK77: 0 | AL77: 0 | AM77: 0 | AN77: 0 | AO77: 0 | AP77: 0 | AQ77: 0 | AR77: 0
A78: BMP 2 | B78: Select a BMP… | G78: =IF(V78="Convey",I78+J78,"") ->  | I78: =IFERROR($C$64/12*(0.05+0.009*($D78/($C78+$D78))*100)*($C78+$D78)*43560,0) -> 0 | J78: 0 | K78: 0 | L78: =VLOOKUP($B78,'RR_TSS Removal %'!$A$9:$E$56,4,FALSE) -> N/A | M78: =IFERROR(IF(F78=0,G78*L78,IF(F78>K78/L78,K78,F78*L78)),0) -> 0 | N78: =IFERROR(K78-M78,0) -> 0 | O78: =IFERROR(1.2/12*(0.05+0.009*($D78/($C78+$D78))*100)*($C78+$D78)*43560,0) -> 0 | P78: =VLOOKUP($B78,'RR_TSS Removal %'!$A$9:$E$56,5,FALSE) -> N/A | Q78: =IFERROR(1.2/12*(0.05+0.009*($D78/($C78+$D78))*100)*($C78+$D78)*43560,0) -> 0 | R78: 0 | S78: =Q78+R78 -> 0 | T78: =IFERROR(P78*S78,0) -> 0 | U78: 0 | V78: =VLOOKUP($B78,'RR_TSS Removal %'!$A$9:$F$56,6,FALSE) -> 0 | X78: 0 | Y78: 0 | Z78: 0 | AA78: 0 | AB78: 0 | AC78: 0 | AD78: 0 | AE78: 0 | AF78: 0 | AG78: 0 | AI78: 0 | AJ78: 0 | AK78: 0 | AL78: 0 | AM78: 0 | AN78: 0 | AO78: 0 | AP78: 0 | AQ78: 0 | AR78: 0
A79: BMP 3 | B79: Select a BMP… | I79: 0 | J79: 0 | K79: 0 | L79: =VLOOKUP($B79,'RR_TSS Removal %'!$A$9:$E$56,4,FALSE) -> N/A | M79: 0 | N79: 0 | O79: 0 | P79: =VLOOKUP($B79,'RR_TSS Removal %'!$A$9:$E$56,5,FALSE) -> N/A | Q79: 0 | R79: 0 | S79: 0 | T79: 0 | U79: 0 | V79: =VLOOKUP($B79,'RR_TSS Removal %'!$A$9:$F$56,6,FALSE) -> 0 | X79: 0 | Y79: 0 | Z79: 0 | AA79: 0 | AB79: 0 | AC79: 0 | AD79: 0 | AE79: 0 | AF79: 0 | AG79: 0 | AI79: 0 | AJ79: 0 | AK79: 0 | AL79: 0 | AM79: 0 | AN79: 0 | AO79: 0 | AP79: 0 | AQ79: 0 | AR79: 0
A80: BMP 4 | B80: Select a BMP… | I80: 0 | J80: 0 | K80: 0 | L80: =VLOOKUP($B80,'RR_TSS Removal %'!$A$9:$E$56,4,FALSE) -> N/A | M80: 0 | N80: 0 | O80: 0 | P80: =VLOOKUP($B80,'RR_TSS Removal %'!$A$9:$E$56,5,FALSE) -> N/A | Q80: 0 | R80: 0 | S80: 0 | T80: 0 | U80: 0 | V80: =VLOOKUP($B80,'RR_TSS Removal %'!$A$9:$F$56,6,FALSE) -> 0 | X80: 0 | Y80: 0 | Z80: 0 | AA80: 0 | AB80: 0 | AC80: 0 | AD80: 0 | AE80: 0 | AF80: 0 | AG80: 0 | AI80: 0 | AJ80: 0 | AK80: 0 | AL80: 0 | AM80: 0 | AN80: 0 | AO80: 0 | AP80: 0 | AQ80: 0 | AR80: 0
A81: BMP 5 | B81: Select a BMP… | I81: 0 | J81: 0 | K81: 0 | L81: =VLOOKUP($B81,'RR_TSS Removal %'!$A$9:$E$56,4,FALSE) -> N/A | M81: 0 | N81: 0 | O81: 0 | P81: =VLOOKUP($B81,'RR_TSS Removal %'!$A$9:$E$56,5,FALSE) -> N/A | Q81: 0 | R81: 0 | S81: 0 | T81: 0 | U81: 0 | V81: =VLOOKUP($B81,'RR_TSS Removal %'!$A$9:$F$56,6,FALSE) -> 0 | X81: 0 | Y81: 0 | Z81: 0 | AA81: 0 | AB81: 0 | AC81: 0 | AD81: 0 | AE81: 0 | AF81: 0 | AG81: 0 | AI81: 0 | AJ81: 0 | AK81: 0 | AL81: 0 | AM81: 0 | AN81: 0 | AO81: 0 | AP81: 0 | AQ81: 0 | AR81: 0
A82: BMP 6 | B82: Select a BMP… | I82: 0 | J82: 0 | K82: 0 | L82: =VLOOKUP($B82,'RR_TSS Removal %'!$A$9:$E$56,4,FALSE) -> N/A | M82: 0 | N82: 0 | O82: 0 | P82: =VLOOKUP($B82,'RR_TSS Removal %'!$A$9:$E$56,5,FALSE) -> N/A | Q82: 0 | R82: 0 | S82: 0 | T82: 0 | U82: 0 | V82: =VLOOKUP($B82,'RR_TSS Removal %'!$A$9:$F$56,6,FALSE) -> 0 | X82: 0 | Y82: 0 | Z82: 0 | AA82: 0 | AB82: 0 | AC82: 0 | AD82: 0 | AE82: 0 | AF82: 0 | AG82: 0 | AI82: 0 | AJ82: 0 | AK82: 0 | AL82: 0 | AM82: 0 | AN82: 0 | AO82: 0 | AP82: 0 | AQ82: 0 | AR82: 0
A83: BMP 7 | B83: Select a BMP… | I83: 0 | J83: 0 | K83: 0 | L83: =VLOOKUP($B83,'RR_TSS Removal %'!$A$9:$E$56,4,FALSE) -> N/A | M83: 0 | N83: 0 | O83: 0 | P83: =VLOOKUP($B83,'RR_TSS Removal %'!$A$9:$E$56,5,FALSE) -> N/A | Q83: 0 | R83: 0 | S83: 0 | T83: 0 | U83: 0 | V83: =VLOOKUP($B83,'RR_TSS Removal %'!$A$9:$F$56,6,FALSE) -> 0 | X83: 0 | Y83: 0 | Z83: 0 | AA83: 0 | AB83: 0 | AC83: 0 | AD83: 0 | AE83: 0 | AF83: 0 | AG83: 0 | AI83: 0 | AJ83: 0 | AK83: 0 | AL83: 0 | AM83: 0 | AN83: 0 | AO83: 0 | AP83: 0 | AQ83: 0 | AR83: 0
A84: BMP 8 | B84: Select a BMP… | I84: 0 | J84: 0 | K84: 0 | L84: =VLOOKUP($B84,'RR_TSS Removal %'!$A$9:$E$56,4,FALSE) -> N/A | M84: 0 | N84: 0 | O84: 0 | P84: =VLOOKUP($B84,'RR_TSS Removal %'!$A$9:$E$56,5,FALSE) -> N/A | Q84: 0 | R84: 0 | S84: 0 | T84: 0 | U84: 0 | V84: =VLOOKUP($B84,'RR_TSS Removal %'!$A$9:$F$56,6,FALSE) -> 0 | X84: 0 | Y84: 0 | Z84: 0 | AA84: 0 | AB84: 0 | AC84: 0 | AD84: 0 | AE84: 0 | AF84: 0 | AG84: 0 | AI84: 0 | AJ84: 0 | AK84: 0 | AL84: 0 | AM84: 0 | AN84: 0 | AO84: 0 | AP84: 0 | AQ84: 0 | AR84: 0
A85: BMP 9 | B85: Select a BMP… | I85: 0 | J85: 0 | K85: 0 | L85: =VLOOKUP($B85,'RR_TSS Removal %'!$A$9:$E$56,4,FALSE) -> N/A | M85: 0 | N85: 0 | O85: 0 | P85: =VLOOKUP($B85,'RR_TSS Removal %'!$A$9:$E$56,5,FALSE) -> N/A | Q85: 0 | R85: 0 | S85: 0 | T85: 0 | U85: 0 | V85: =VLOOKUP($B85,'RR_TSS Removal %'!$A$9:$F$56,6,FALSE) -> 0 | X85: 0 | Y85: 0 | Z85: 0 | AA85: 0 | AB85: 0 | AC85: 0 | AD85: 0 | AE85: 0 | AF85: 0 | AG85: 0 | AI85: 0 | AJ85: 0 | AK85: 0 | AL85: 0 | AM85: 0 | AN85: 0 | AO85: 0 | AP85: 0 | AQ85: 0 | AR85: 0
A86: BMP 10 | B86: Select a BMP… | I86: 0 | J86: 0 | K86: 0 | L86: =VLOOKUP($B86,'RR_TSS Removal %'!$A$9:$E$56,4,FALSE) -> N/A | M86: 0 | N86: 0 | O86: 0 | P86: =VLOOKUP($B86,'RR_TSS Removal %'!$A$9:$E$56,5,FALSE) -> N/A | Q86: 0 | R86: 0 | S86: 0 | T86: 0 | U86: 0 | V86: =VLOOKUP($B86,'RR_TSS Removal %'!$A$9:$F$56,6,FALSE) -> 0 | X86: 0 | Y86: 0 | Z86: 0 | AA86: 0 | AB86: 0 | AC86: 0 | AD86: 0 | AE86: 0 | AF86: 0 | AG86: 0 | AI86: 0 | AJ86: 0 | AK86: 0 | AL86: 0 | AM86: 0 | AN86: 0 | AO86: 0 | AP86: 0 | AQ86: 0 | AR86: 0
M87: 0
B88: TOTAL | C88: =SUM(C77:C86) -> 0 | D88: =SUM(D77:D86) -> 0 | E88: =SUM(E77:E86) -> 0 | I88: =SUM(I77:I86) -> 0 | M88: =SUM(M77:M86) -> 0 | O88: =SUM(O77:O86) -> 0 | T88: =SUM(T77:T86) -> 0 | U88: =SUM(U77:U86) -> 0
B89: UNTREATED AREA (acres) | C89: =IF(SUM($C$77:$C$86)<SUM($L$30:$L$36)-$K$38,SUM($L$30:$L$36)-$K$38-$C$88,0) -> 0 | D89: =IF(SUM($D$77:$D$86)<$K$38,$K$38-$D$88,0) -> 0
X90: =SUM(X76:X88) -> 0 | Y90: =SUM(Y76:Y88) -> 0 | Z90: 0 | AA90: 0 | AB90: 0 | AC90: 0 | AD90: 0 | AE90: 0 | AF90: 0 | AG90: 0 | AI90: =SUM(AI76:AI88) -> 0 | AJ90: =SUM(AJ76:AJ88) -> 0 | AK90: 0 | AL90: 0 | AM90: 0 | AN90: 0 | AO90: 0 | AP90: 0 | AQ90: 0 | AR90: 0
B92: Target Runoff Reduction Volume (cf) | C92: =I65 -> 0
B93: Target Achieved? | C93: =IF(M88<C92,"No",IF(C92=0,"N/A","Yes!")) -> N/A
B94: Remaining Runoff Reduction Volume (cf) | C94: =IF(M88<C92,C92-M88,0) -> 0
B96: Target Water Quality Volume (cf) | C96: =I66 -> 0
B97: % TSS Removal Achieved | C97: =IFERROR(IF(T88/C70>1,1,ROUND(T88/C70,2)),0) -> 0
B98: Target Achieved? | C98: =IF(C97>=80%,"Yes!","No") -> No
B99: Remaining TSS Removal % | C99: =IF(C97<0.8,0.8-C97,0) -> 0.8
A103: Channel and Flood Protection Calculations | R103: Reference Table to Calculate Post-Development Runoff Volume (in) with BMPs and corresponding CN
D105: 1-yr, 24-hr storm | E105: 2-yr, 24-hr storm | F105: 25-yr, 24-hr storm | G105: 100-yr, 24-hr storm
C106: Target Rainfall Event (in) | R106: 1-yr, 24-hr storm | S106: 2-yr, 24-hr storm | T106: 25-yr, 24-hr storm | U106: 100-yr, 24-hr storm | V106: Adjusted CN | W106: Adjusted S
R107: v (in) | S107: v (in) | T107: v (in) | U107: v (in) | V107: CN | W107: S
D109: =D105 -> 1-yr, 24-hr storm | E109: =E105 -> 2-yr, 24-hr storm | F109: =F105 -> 25-yr, 24-hr storm | G109: =G105 -> 100-yr, 24-hr storm | R109: =IF('DB 3'!D$106>0.2*($W109),('DB 3'!D$106-0.2*($W109))^2/('DB 3'!D$106+0.8*($W109)),0) -> 0 | S109: =IF('DB 3'!E$106>0.2*($W109),('DB 3'!E$106-0.2*($W109))^2/('DB 3'!E$106+0.8*($W109)),0) -> 0 | T109: =IF('DB 3'!F$106>0.2*($W109),('DB 3'!F$106-0.2*($W109))^2/('DB 3'!F$106+0.8*($W109)),0) -> 0 | U109: =IF('DB 3'!G$106>0.2*($W109),('DB 3'!G$106-0.2*($W109))^2/('DB 3'!G$106+0.8*($W109)),0) -> 0 | V109: 25 | W109: =IF(V109>0,1000/V109-10,1000) -> 30
A110: Pre-Development Runoff Volume (in) | D110: =IF(D$106>0.2*$K26,(D$106-0.2*$K26)^2/(D$106+0.8*$K26),0) -> 0 | E110: =IF(E$106>0.2*$K26,(E$106-0.2*$K26)^2/(E$106+0.8*$K26),0) -> 0 | F110: =IF(F$106>0.2*$K26,(F$106-0.2*$K26)^2/(F$106+0.8*$K26),0) -> 0 | G110: =IF(G$106>0.2*$K26,(G$106-0.2*$K26)^2/(G$106+0.8*$K26),0) -> 0 | R110: =IF('DB 3'!D$106>0.2*($W110),('DB 3'!D$106-0.2*($W110))^2/('DB 3'!D$106+0.8*($W110)),0) -> 0 | S110: =IF('DB 3'!E$106>0.2*($W110),('DB 3'!E$106-0.2*($W110))^2/('DB 3'!E$106+0.8*($W110)),0) -> 0 | T110: =IF('DB 3'!F$106>0.2*($W110),('DB 3'!F$106-0.2*($W110))^2/('DB 3'!F$106+0.8*($W110)),0) -> 0 | U110: =IF('DB 3'!G$106>0.2*($W110),('DB 3'!G$106-0.2*($W110))^2/('DB 3'!G$106+0.8*($W110)),0) -> 0 | V110: =V109+0.1 -> 25.1 | W110: 29.84063745
A111: Post Development Runoff Volume (in) with no BMPs | D111: =IF(D$106>0.2*$K41,(D$106-0.2*$K41)^2/(D$106+0.8*$K41),0) -> 0 | E111: =IF(E$106>0.2*$K41,(E$106-0.2*$K41)^2/(E$106+0.8*$K41),0) -> 0 | F111: =IF(F$106>0.2*$K41,(F$106-0.2*$K41)^2/(F$106+0.8*$K41),0) -> 0 | G111: =IF(G$106>0.2*$K41,(G$106-0.2*$K41)^2/(G$106+0.8*$K41),0) -> 0 | R111: =IF('DB 3'!D$106>0.2*($W111),('DB 3'!D$106-0.2*($W111))^2/('DB 3'!D$106+0.8*($W111)),0) -> 0 | S111: =IF('DB 3'!E$106>0.2*($W111),('DB 3'!E$106-0.2*($W111))^2/('DB 3'!E$106+0.8*($W111)),0) -> 0 | T111: =IF('DB 3'!F$106>0.2*($W111),('DB 3'!F$106-0.2*($W111))^2/('DB 3'!F$106+0.8*($W111)),0) -> 0 | U111: =IF('DB 3'!G$106>0.2*($W111),('DB 3'!G$106-0.2*($W111))^2/('DB 3'!G$106+0.8*($W111)),0) -> 0 | V111: 25.2 | W111: 29.68253968
A112: Post-Development Runoff Volume (in) with BMPs | D112: =IF(SUM($L$30:$L$36)=0,0,IF(D111>$M$88*12/(SUM($L$30:$L$36)*43560),D111-$M$88*12/(SUM($L$30:$L$36)*43560),0)) -> 0 | E112: =IF(SUM($L$30:$L$36)=0,0,IF(E111>$M$88*12/(SUM($L$30:$L$36)*43560),E111-$M$88*12/(SUM($L$30:$L$36)*43560),0)) -> 0 | F112: =IF(SUM($L$30:$L$36)=0,0,IF(F111>$M$88*12/(SUM($L$30:$L$36)*43560),F111-$M$88*12/(SUM($L$30:$L$36)*43560),0)) -> 0 | G112: =IF(SUM($L$30:$L$36)=0,0,IF(G111>$M$88*12/(SUM($L$30:$L$36)*43560),G111-$M$88*12/(SUM($L$30:$L$36)*43560),0)) -> 0 | R112: =IF('DB 3'!D$106>0.2*($W112),('DB 3'!D$106-0.2*($W112))^2/('DB 3'!D$106+0.8*($W112)),0) -> 0 | S112: =IF('DB 3'!E$106>0.2*($W112),('DB 3'!E$106-0.2*($W112))^2/('DB 3'!E$106+0.8*($W112)),0) -> 0 | T112: =IF('DB 3'!F$106>0.2*($W112),('DB 3'!F$106-0.2*($W112))^2/('DB 3'!F$106+0.8*($W112)),0) -> 0 | U112: =IF('DB 3'!G$106>0.2*($W112),('DB 3'!G$106-0.2*($W112))^2/('DB 3'!G$106+0.8*($W112)),0) -> 0 | V112: 25.3 | W112: 29.5256917
C113: Adjusted CN | D113: =IF(D112>0,VLOOKUP(D112,R$109:$W$859,5),0) -> 0 | E113: =IF(E112>0,VLOOKUP(E112,$S$109:$W$859,4),0) -> 0 | F113: =IF(F112>0,VLOOKUP(F112,$T$109:$W$859,3),0) -> 0 | G113: =IF(G112>0,VLOOKUP(G112,$U$109:$W$859,2),0) -> 0 | R113: =IF('DB 3'!D$106>0.2*($W113),('DB 3'!D$106-0.2*($W113))^2/('DB 3'!D$106+0.8*($W113)),0) -> 0 | S113: =IF('DB 3'!E$106>0.2*($W113),('DB 3'!E$106-0.2*($W113))^2/('DB 3'!E$106+0.8*($W113)),0) -> 0 | T113: =IF('DB 3'!F$106>0.2*($W113),('DB 3'!F$106-0.2*($W113))^2/('DB 3'!F$106+0.8*($W113)),0) -> 0 | U113: =IF('DB 3'!G$106>0.2*($W113),('DB 3'!G$106-0.2*($W113))^2/('DB 3'!G$106+0.8*($W113)),0) -> 0 | V113: 25.4 | W113: 29.37007874
R114: =IF('DB 3'!D$106>0.2*($W114),('DB 3'!D$106-0.2*($W114))^2/('DB 3'!D$106+0.8*($W114)),0) -> 0 | S114: =IF('DB 3'!E$106>0.2*($W114),('DB 3'!E$106-0.2*($W114))^2/('DB 3'!E$106+0.8*($W114)),0) -> 0 | T114: =IF('DB 3'!F$106>0.2*($W114),('DB 3'!F$106-0.2*($W114))^2/('DB 3'!F$106+0.8*($W114)),0) -> 0 | U114: =IF('DB 3'!G$106>0.2*($W114),('DB 3'!G$106-0.2*($W114))^2/('DB 3'!G$106+0.8*($W114)),0) -> 0 | V114: 25.5 | W114: 29.21568627
A115: *See Stormwater Management Standards to Determine Detention Requirements. | R115: =IF('DB 3'!D$106>0.2*($W115),('DB 3'!D$106-0.2*($W115))^2/('DB 3'!D$106+0.8*($W115)),0) -> 0 | S115: =IF('DB 3'!E$106>0.2*($W115),('DB 3'!E$106-0.2*($W115))^2/('DB 3'!E$106+0.8*($W115)),0) -> 0 | T115: =IF('DB 3'!F$106>0.2*($W115),('DB 3'!F$106-0.2*($W115))^2/('DB 3'!F$106+0.8*($W115)),0) -> 0 | U115: =IF('DB 3'!G$106>0.2*($W115),('DB 3'!G$106-0.2*($W115))^2/('DB 3'!G$106+0.8*($W115)),0) -> 0 | V115: 25.6 | W115: 29.0625
R116: =IF('DB 3'!D$106>0.2*($W116),('DB 3'!D$106-0.2*($W116))^2/('DB 3'!D$106+0.8*($W116)),0) -> 0 | S116: =IF('DB 3'!E$106>0.2*($W116),('DB 3'!E$106-0.2*($W116))^2/('DB 3'!E$106+0.8*($W116)),0) -> 0 | T116: =IF('DB 3'!F$106>0.2*($W116),('DB 3'!F$106-0.2*($W116))^2/('DB 3'!F$106+0.8*($W116)),0) -> 0 | U116: =IF('DB 3'!G$106>0.2*($W116),('DB 3'!G$106-0.2*($W116))^2/('DB 3'!G$106+0.8*($W116)),0) -> 0 | V116: 25.7 | W116: 28.91050584
R117: =IF('DB 3'!D$106>0.2*($W117),('DB 3'!D$106-0.2*($W117))^2/('DB 3'!D$106+0.8*($W117)),0) -> 0 | S117: =IF('DB 3'!E$106>0.2*($W117),('DB 3'!E$106-0.2*($W117))^2/('DB 3'!E$106+0.8*($W117)),0) -> 0 | T117: =IF('DB 3'!F$106>0.2*($W117),('DB 3'!F$106-0.2*($W117))^2/('DB 3'!F$106+0.8*($W117)),0) -> 0 | U117: =IF('DB 3'!G$106>0.2*($W117),('DB 3'!G$106-0.2*($W117))^2/('DB 3'!G$106+0.8*($W117)),0) -> 0 | V117: 25.8 | W117: 28.75968992
R118: =IF('DB 3'!D$106>0.2*($W118),('DB 3'!D$106-0.2*($W118))^2/('DB 3'!D$106+0.8*($W118)),0) -> 0 | S118: =IF('DB 3'!E$106>0.2*($W118),('DB 3'!E$106-0.2*($W118))^2/('DB 3'!E$106+0.8*($W118)),0) -> 0 | T118: =IF('DB 3'!F$106>0.2*($W118),('DB 3'!F$106-0.2*($W118))^2/('DB 3'!F$106+0.8*($W118)),0) -> 0 | U118: =IF('DB 3'!G$106>0.2*($W118),('DB 3'!G$106-0.2*($W118))^2/('DB 3'!G$106+0.8*($W118)),0) -> 0 | V118: 25.9 | W118: 28.61003861
A119: Comments | R119: =IF('DB 3'!D$106>0.2*($W119),('DB 3'!D$106-0.2*($W119))^2/('DB 3'!D$106+0.8*($W119)),0) -> 0 | S119: =IF('DB 3'!E$106>0.2*($W119),('DB 3'!E$106-0.2*($W119))^2/('DB 3'!E$106+0.8*($W119)),0) -> 0 | T119: =IF('DB 3'!F$106>0.2*($W119),('DB 3'!F$106-0.2*($W119))^2/('DB 3'!F$106+0.8*($W119)),0) -> 0 | U119: =IF('DB 3'!G$106>0.2*($W119),('DB 3'!G$106-0.2*($W119))^2/('DB 3'!G$106+0.8*($W119)),0) -> 0 | V119: 26 | W119: 28.46153846
R120: =IF('DB 3'!D$106>0.2*($W120),('DB 3'!D$106-0.2*($W120))^2/('DB 3'!D$106+0.8*($W120)),0) -> 0 | S120: =IF('DB 3'!E$106>0.2*($W120),('DB 3'!E$106-0.2*($W120))^2/('DB 3'!E$106+0.8*($W120)),0) -> 0 | T120: =IF('DB 3'!F$106>0.2*($W120),('DB 3'!F$106-0.2*($W120))^2/('DB 3'!F$106+0.8*($W120)),0) -> 0 | U120: =IF('DB 3'!G$106>0.2*($W120),('DB 3'!G$106-0.2*($W120))^2/('DB 3'!G$106+0.8*($W120)),0) -> 0 | V120: 26.1 | W120: 28.31417625
R121: =IF('DB 3'!D$106>0.2*($W121),('DB 3'!D$106-0.2*($W121))^2/('DB 3'!D$106+0.8*($W121)),0) -> 0 | S121: =IF('DB 3'!E$106>0.2*($W121),('DB 3'!E$106-0.2*($W121))^2/('DB 3'!E$106+0.8*($W121)),0) -> 0 | T121: =IF('DB 3'!F$106>0.2*($W121),('DB 3'!F$106-0.2*($W121))^2/('DB 3'!F$106+0.8*($W121)),0) -> 0 | U121: =IF('DB 3'!G$106>0.2*($W121),('DB 3'!G$106-0.2*($W121))^2/('DB 3'!G$106+0.8*($W121)),0) -> 0 | V121: 26.2 | W121: 28.16793893
R122: =IF('DB 3'!D$106>0.2*($W122),('DB 3'!D$106-0.2*($W122))^2/('DB 3'!D$106+0.8*($W122)),0) -> 0 | S122: =IF('DB 3'!E$106>0.2*($W122),('DB 3'!E$106-0.2*($W122))^2/('DB 3'!E$106+0.8*($W122)),0) -> 0 | T122: =IF('DB 3'!F$106>0.2*($W122),('DB 3'!F$106-0.2*($W122))^2/('DB 3'!F$106+0.8*($W122)),0) -> 0 | U122: =IF('DB 3'!G$106>0.2*($W122),('DB 3'!G$106-0.2*($W122))^2/('DB 3'!G$106+0.8*($W122)),0) -> 0 | V122: 26.3 | W122: 28.02281369
R123: =IF('DB 3'!D$106>0.2*($W123),('DB 3'!D$106-0.2*($W123))^2/('DB 3'!D$106+0.8*($W123)),0) -> 0 | S123: =IF('DB 3'!E$106>0.2*($W123),('DB 3'!E$106-0.2*($W123))^2/('DB 3'!E$106+0.8*($W123)),0) -> 0 | T123: =IF('DB 3'!F$106>0.2*($W123),('DB 3'!F$106-0.2*($W123))^2/('DB 3'!F$106+0.8*($W123)),0) -> 0 | U123: =IF('DB 3'!G$106>0.2*($W123),('DB 3'!G$106-0.2*($W123))^2/('DB 3'!G$106+0.8*($W123)),0) -> 0 | V123: =V122+0.1 -> 26.4 | W123: 27.87878788
R124: =IF('DB 3'!D$106>0.2*($W124),('DB 3'!D$106-0.2*($W124))^2/('DB 3'!D$106+0.8*($W124)),0) -> 0 | S124: =IF('DB 3'!E$106>0.2*($W124),('DB 3'!E$106-0.2*($W124))^2/('DB 3'!E$106+0.8*($W124)),0) -> 0 | T124: =IF('DB 3'!F$106>0.2*($W124),('DB 3'!F$106-0.2*($W124))^2/('DB 3'!F$106+0.8*($W124)),0) -> 0 | U124: =IF('DB 3'!G$106>0.2*($W124),('DB 3'!G$106-0.2*($W124))^2/('DB 3'!G$106+0.8*($W124)),0) -> 0 | V124: 26.5 | W124: 27.73584906
R125: =IF('DB 3'!D$106>0.2*($W125),('DB 3'!D$106-0.2*($W125))^2/('DB 3'!D$106+0.8*($W125)),0) -> 0 | S125: =IF('DB 3'!E$106>0.2*($W125),('DB 3'!E$106-0.2*($W125))^2/('DB 3'!E$106+0.8*($W125)),0) -> 0 | T125: =IF('DB 3'!F$106>0.2*($W125),('DB 3'!F$106-0.2*($W125))^2/('DB 3'!F$106+0.8*($W125)),0) -> 0 | U125: =IF('DB 3'!G$106>0.2*($W125),('DB 3'!G$106-0.2*($W125))^2/('DB 3'!G$106+0.8*($W125)),0) -> 0 | V125: 26.6 | W125: 27.59398496
R126: =IF('DB 3'!D$106>0.2*($W126),('DB 3'!D$106-0.2*($W126))^2/('DB 3'!D$106+0.8*($W126)),0) -> 0 | S126: =IF('DB 3'!E$106>0.2*($W126),('DB 3'!E$106-0.2*($W126))^2/('DB 3'!E$106+0.8*($W126)),0) -> 0 | T126: =IF('DB 3'!F$106>0.2*($W126),('DB 3'!F$106-0.2*($W126))^2/('DB 3'!F$106+0.8*($W126)),0) -> 0 | U126: =IF('DB 3'!G$106>0.2*($W126),('DB 3'!G$106-0.2*($W126))^2/('DB 3'!G$106+0.8*($W126)),0) -> 0 | V126: 26.7 | W126: 27.45318352
R127: =IF('DB 3'!D$106>0.2*($W127),('DB 3'!D$106-0.2*($W127))^2/('DB 3'!D$106+0.8*($W127)),0) -> 0 | S127: =IF('DB 3'!E$106>0.2*($W127),('DB 3'!E$106-0.2*($W127))^2/('DB 3'!E$106+0.8*($W127)),0) -> 0 | T127: =IF('DB 3'!F$106>0.2*($W127),('DB 3'!F$106-0.2*($W127))^2/('DB 3'!F$106+0.8*($W127)),0) -> 0 | U127: =IF('DB 3'!G$106>0.2*($W127),('DB 3'!G$106-0.2*($W127))^2/('DB 3'!G$106+0.8*($W127)),0) -> 0 | V127: 26.8 | W127: 27.31343284
R128: =IF('DB 3'!D$106>0.2*($W128),('DB 3'!D$106-0.2*($W128))^2/('DB 3'!D$106+0.8*($W128)),0) -> 0 | S128: =IF('DB 3'!E$106>0.2*($W128),('DB 3'!E$106-0.2*($W128))^2/('DB 3'!E$106+0.8*($W128)),0) -> 0 | T128: =IF('DB 3'!F$106>0.2*($W128),('DB 3'!F$106-0.2*($W128))^2/('DB 3'!F$106+0.8*($W128)),0) -> 0 | U128: =IF('DB 3'!G$106>0.2*($W128),('DB 3'!G$106-0.2*($W128))^2/('DB 3'!G$106+0.8*($W128)),0) -> 0 | V128: 26.9 | W128: 27.17472119
R129: =IF('DB 3'!D$106>0.2*($W129),('DB 3'!D$106-0.2*($W129))^2/('DB 3'!D$106+0.8*($W129)),0) -> 0 | S129: =IF('DB 3'!E$106>0.2*($W129),('DB 3'!E$106-0.2*($W129))^2/('DB 3'!E$106+0.8*($W129)),0) -> 0 | T129: =IF('DB 3'!F$106>0.2*($W129),('DB 3'!F$106-0.2*($W129))^2/('DB 3'!F$106+0.8*($W129)),0) -> 0 | U129: =IF('DB 3'!G$106>0.2*($W129),('DB 3'!G$106-0.2*($W129))^2/('DB 3'!G$106+0.8*($W129)),0) -> 0 | V129: 27 | W129: 27.03703704
R130: =IF('DB 3'!D$106>0.2*($W130),('DB 3'!D$106-0.2*($W130))^2/('DB 3'!D$106+0.8*($W130)),0) -> 0 | S130: =IF('DB 3'!E$106>0.2*($W130),('DB 3'!E$106-0.2*($W130))^2/('DB 3'!E$106+0.8*($W130)),0) -> 0 | T130: =IF('DB 3'!F$106>0.2*($W130),('DB 3'!F$106-0.2*($W130))^2/('DB 3'!F$106+0.8*($W130)),0) -> 0 | U130: =IF('DB 3'!G$106>0.2*($W130),('DB 3'!G$106-0.2*($W130))^2/('DB 3'!G$106+0.8*($W130)),0) -> 0 | V130: 27.1 | W130: 26.900369
R131: =IF('DB 3'!D$106>0.2*($W131),('DB 3'!D$106-0.2*($W131))^2/('DB 3'!D$106+0.8*($W131)),0) -> 0 | S131: =IF('DB 3'!E$106>0.2*($W131),('DB 3'!E$106-0.2*($W131))^2/('DB 3'!E$106+0.8*($W131)),0) -> 0 | T131: =IF('DB 3'!F$106>0.2*($W131),('DB 3'!F$106-0.2*($W131))^2/('DB 3'!F$106+0.8*($W131)),0) -> 0 | U131: =IF('DB 3'!G$106>0.2*($W131),('DB 3'!G$106-0.2*($W131))^2/('DB 3'!G$106+0.8*($W131)),0) -> 0 | V131: 27.2 | W131: 26.76470588
A132: =IF(G59=0,"","A RECORDED CONSERVATION EASEMENT OR SIMILAR FORM OF PROTECTION IS REQUIRED FOR THIS PROJECT") ->  | R132: =IF('DB 3'!D$106>0.2*($W132),('DB 3'!D$106-0.2*($W132))^2/('DB 3'!D$106+0.8*($W132)),0) -> 0 | S132: =IF('DB 3'!E$106>0.2*($W132),('DB 3'!E$106-0.2*($W132))^2/('DB 3'!E$106+0.8*($W132)),0) -> 0 | T132: =IF('DB 3'!F$106>0.2*($W132),('DB 3'!F$106-0.2*($W132))^2/('DB 3'!F$106+0.8*($W132)),0) -> 0 | U132: =IF('DB 3'!G$106>0.2*($W132),('DB 3'!G$106-0.2*($W132))^2/('DB 3'!G$106+0.8*($W132)),0) -> 0 | V132: 27.3 | W132: 26.63003663
R133: =IF('DB 3'!D$106>0.2*($W133),('DB 3'!D$106-0.2*($W133))^2/('DB 3'!D$106+0.8*($W133)),0) -> 0 | S133: =IF('DB 3'!E$106>0.2*($W133),('DB 3'!E$106-0.2*($W133))^2/('DB 3'!E$106+0.8*($W133)),0) -> 0 | T133: =IF('DB 3'!F$106>0.2*($W133),('DB 3'!F$106-0.2*($W133))^2/('DB 3'!F$106+0.8*($W133)),0) -> 0 | U133: =IF('DB 3'!G$106>0.2*($W133),('DB 3'!G$106-0.2*($W133))^2/('DB 3'!G$106+0.8*($W133)),0) -> 0 | V133: 27.4 | W133: 26.49635036
R134: =IF('DB 3'!D$106>0.2*($W134),('DB 3'!D$106-0.2*($W134))^2/('DB 3'!D$106+0.8*($W134)),0) -> 0 | S134: =IF('DB 3'!E$106>0.2*($W134),('DB 3'!E$106-0.2*($W134))^2/('DB 3'!E$106+0.8*($W134)),0) -> 0 | T134: =IF('DB 3'!F$106>0.2*($W134),('DB 3'!F$106-0.2*($W134))^2/('DB 3'!F$106+0.8*($W134)),0) -> 0 | U134: =IF('DB 3'!G$106>0.2*($W134),('DB 3'!G$106-0.2*($W134))^2/('DB 3'!G$106+0.8*($W134)),0) -> 0 | V134: 27.5 | W134: 26.36363636
R135: =IF('DB 3'!D$106>0.2*($W135),('DB 3'!D$106-0.2*($W135))^2/('DB 3'!D$106+0.8*($W135)),0) -> 0 | S135: =IF('DB 3'!E$106>0.2*($W135),('DB 3'!E$106-0.2*($W135))^2/('DB 3'!E$106+0.8*($W135)),0) -> 0 | T135: =IF('DB 3'!F$106>0.2*($W135),('DB 3'!F$106-0.2*($W135))^2/('DB 3'!F$106+0.8*($W135)),0) -> 0 | U135: =IF('DB 3'!G$106>0.2*($W135),('DB 3'!G$106-0.2*($W135))^2/('DB 3'!G$106+0.8*($W135)),0) -> 0 | V135: 27.6 | W135: 26.23188406
R136: =IF('DB 3'!D$106>0.2*($W136),('DB 3'!D$106-0.2*($W136))^2/('DB 3'!D$106+0.8*($W136)),0) -> 0 | S136: =IF('DB 3'!E$106>0.2*($W136),('DB 3'!E$106-0.2*($W136))^2/('DB 3'!E$106+0.8*($W136)),0) -> 0 | T136: =IF('DB 3'!F$106>0.2*($W136),('DB 3'!F$106-0.2*($W136))^2/('DB 3'!F$106+0.8*($W136)),0) -> 0 | U136: =IF('DB 3'!G$106>0.2*($W136),('DB 3'!G$106-0.2*($W136))^2/('DB 3'!G$106+0.8*($W136)),0) -> 0 | V136: 27.7 | W136: 26.10108303
R137: =IF('DB 3'!D$106>0.2*($W137),('DB 3'!D$106-0.2*($W137))^2/('DB 3'!D$106+0.8*($W137)),0) -> 0 | S137: =IF('DB 3'!E$106>0.2*($W137),('DB 3'!E$106-0.2*($W137))^2/('DB 3'!E$106+0.8*($W137)),0) -> 0 | T137: =IF('DB 3'!F$106>0.2*($W137),('DB 3'!F$106-0.2*($W137))^2/('DB 3'!F$106+0.8*($W137)),0) -> 0 | U137: =IF('DB 3'!G$106>0.2*($W137),('DB 3'!G$106-0.2*($W137))^2/('DB 3'!G$106+0.8*($W137)),0) -> 0 | V137: 27.8 | W137: 25.97122302
R138: =IF('DB 3'!D$106>0.2*($W138),('DB 3'!D$106-0.2*($W138))^2/('DB 3'!D$106+0.8*($W138)),0) -> 0 | S138: =IF('DB 3'!E$106>0.2*($W138),('DB 3'!E$106-0.2*($W138))^2/('DB 3'!E$106+0.8*($W138)),0) -> 0 | T138: =IF('DB 3'!F$106>0.2*($W138),('DB 3'!F$106-0.2*($W138))^2/('DB 3'!F$106+0.8*($W138)),0) -> 0 | U138: =IF('DB 3'!G$106>0.2*($W138),('DB 3'!G$106-0.2*($W138))^2/('DB 3'!G$106+0.8*($W138)),0) -> 0 | V138: 27.9 | W138: 25.84229391
R139: =IF('DB 3'!D$106>0.2*($W139),('DB 3'!D$106-0.2*($W139))^2/('DB 3'!D$106+0.8*($W139)),0) -> 0 | S139: =IF('DB 3'!E$106>0.2*($W139),('DB 3'!E$106-0.2*($W139))^2/('DB 3'!E$106+0.8*($W139)),0) -> 0 | T139: =IF('DB 3'!F$106>0.2*($W139),('DB 3'!F$106-0.2*($W139))^2/('DB 3'!F$106+0.8*($W139)),0) -> 0 | U139: =IF('DB 3'!G$106>0.2*($W139),('DB 3'!G$106-0.2*($W139))^2/('DB 3'!G$106+0.8*($W139)),0) -> 0 | V139: 28 | W139: 25.71428571
R140: =IF('DB 3'!D$106>0.2*($W140),('DB 3'!D$106-0.2*($W140))^2/('DB 3'!D$106+0.8*($W140)),0) -> 0 | S140: =IF('DB 3'!E$106>0.2*($W140),('DB 3'!E$106-0.2*($W140))^2/('DB 3'!E$106+0.8*($W140)),0) -> 0 | T140: =IF('DB 3'!F$106>0.2*($W140),('DB 3'!F$106-0.2*($W140))^2/('DB 3'!F$106+0.8*($W140)),0) -> 0 | U140: =IF('DB 3'!G$106>0.2*($W140),('DB 3'!G$106-0.2*($W140))^2/('DB 3'!G$106+0.8*($W140)),0) -> 0 | V140: 28.1 | W140: 25.58718861
R141: =IF('DB 3'!D$106>0.2*($W141),('DB 3'!D$106-0.2*($W141))^2/('DB 3'!D$106+0.8*($W141)),0) -> 0 | S141: =IF('DB 3'!E$106>0.2*($W141),('DB 3'!E$106-0.2*($W141))^2/('DB 3'!E$106+0.8*($W141)),0) -> 0 | T141: =IF('DB 3'!F$106>0.2*($W141),('DB 3'!F$106-0.2*($W141))^2/('DB 3'!F$106+0.8*($W141)),0) -> 0 | U141: =IF('DB 3'!G$106>0.2*($W141),('DB 3'!G$106-0.2*($W141))^2/('DB 3'!G$106+0.8*($W141)),0) -> 0 | V141: 28.2 | W141: 25.46099291
R142: =IF('DB 3'!D$106>0.2*($W142),('DB 3'!D$106-0.2*($W142))^2/('DB 3'!D$106+0.8*($W142)),0) -> 0 | S142: =IF('DB 3'!E$106>0.2*($W142),('DB 3'!E$106-0.2*($W142))^2/('DB 3'!E$106+0.8*($W142)),0) -> 0 | T142: =IF('DB 3'!F$106>0.2*($W142),('DB 3'!F$106-0.2*($W142))^2/('DB 3'!F$106+0.8*($W142)),0) -> 0 | U142: =IF('DB 3'!G$106>0.2*($W142),('DB 3'!G$106-0.2*($W142))^2/('DB 3'!G$106+0.8*($W142)),0) -> 0 | V142: 28.3 | W142: 25.33568905
R143: =IF('DB 3'!D$106>0.2*($W143),('DB 3'!D$106-0.2*($W143))^2/('DB 3'!D$106+0.8*($W143)),0) -> 0 | S143: =IF('DB 3'!E$106>0.2*($W143),('DB 3'!E$106-0.2*($W143))^2/('DB 3'!E$106+0.8*($W143)),0) -> 0 | T143: =IF('DB 3'!F$106>0.2*($W143),('DB 3'!F$106-0.2*($W143))^2/('DB 3'!F$106+0.8*($W143)),0) -> 0 | U143: =IF('DB 3'!G$106>0.2*($W143),('DB 3'!G$106-0.2*($W143))^2/('DB 3'!G$106+0.8*($W143)),0) -> 0 | V143: 28.4 | W143: 25.21126761
R144: =IF('DB 3'!D$106>0.2*($W144),('DB 3'!D$106-0.2*($W144))^2/('DB 3'!D$106+0.8*($W144)),0) -> 0 | S144: =IF('DB 3'!E$106>0.2*($W144),('DB 3'!E$106-0.2*($W144))^2/('DB 3'!E$106+0.8*($W144)),0) -> 0 | T144: =IF('DB 3'!F$106>0.2*($W144),('DB 3'!F$106-0.2*($W144))^2/('DB 3'!F$106+0.8*($W144)),0) -> 0 | U144: =IF('DB 3'!G$106>0.2*($W144),('DB 3'!G$106-0.2*($W144))^2/('DB 3'!G$106+0.8*($W144)),0) -> 0 | V144: 28.5 | W144: 25.0877193
R145: =IF('DB 3'!D$106>0.2*($W145),('DB 3'!D$106-0.2*($W145))^2/('DB 3'!D$106+0.8*($W145)),0) -> 0 | S145: =IF('DB 3'!E$106>0.2*($W145),('DB 3'!E$106-0.2*($W145))^2/('DB 3'!E$106+0.8*($W145)),0) -> 0 | T145: =IF('DB 3'!F$106>0.2*($W145),('DB 3'!F$106-0.2*($W145))^2/('DB 3'!F$106+0.8*($W145)),0) -> 0 | U145: =IF('DB 3'!G$106>0.2*($W145),('DB 3'!G$106-0.2*($W145))^2/('DB 3'!G$106+0.8*($W145)),0) -> 0 | V145: 28.6 | W145: 24.96503497
R146: =IF('DB 3'!D$106>0.2*($W146),('DB 3'!D$106-0.2*($W146))^2/('DB 3'!D$106+0.8*($W146)),0) -> 0 | S146: =IF('DB 3'!E$106>0.2*($W146),('DB 3'!E$106-0.2*($W146))^2/('DB 3'!E$106+0.8*($W146)),0) -> 0 | T146: =IF('DB 3'!F$106>0.2*($W146),('DB 3'!F$106-0.2*($W146))^2/('DB 3'!F$106+0.8*($W146)),0) -> 0 | U146: =IF('DB 3'!G$106>0.2*($W146),('DB 3'!G$106-0.2*($W146))^2/('DB 3'!G$106+0.8*($W146)),0) -> 0 | V146: 28.7 | W146: 24.84320557
R147: =IF('DB 3'!D$106>0.2*($W147),('DB 3'!D$106-0.2*($W147))^2/('DB 3'!D$106+0.8*($W147)),0) -> 0 | S147: =IF('DB 3'!E$106>0.2*($W147),('DB 3'!E$106-0.2*($W147))^2/('DB 3'!E$106+0.8*($W147)),0) -> 0 | T147: =IF('DB 3'!F$106>0.2*($W147),('DB 3'!F$106-0.2*($W147))^2/('DB 3'!F$106+0.8*($W147)),0) -> 0 | U147: =IF('DB 3'!G$106>0.2*($W147),('DB 3'!G$106-0.2*($W147))^2/('DB 3'!G$106+0.8*($W147)),0) -> 0 | V147: 28.8 | W147: 24.72222222
R148: =IF('DB 3'!D$106>0.2*($W148),('DB 3'!D$106-0.2*($W148))^2/('DB 3'!D$106+0.8*($W148)),0) -> 0 | S148: =IF('DB 3'!E$106>0.2*($W148),('DB 3'!E$106-0.2*($W148))^2/('DB 3'!E$106+0.8*($W148)),0) -> 0 | T148: =IF('DB 3'!F$106>0.2*($W148),('DB 3'!F$106-0.2*($W148))^2/('DB 3'!F$106+0.8*($W148)),0) -> 0 | U148: =IF('DB 3'!G$106>0.2*($W148),('DB 3'!G$106-0.2*($W148))^2/('DB 3'!G$106+0.8*($W148)),0) -> 0 | V148: 28.9 | W148: 24.60207612
R149: =IF('DB 3'!D$106>0.2*($W149),('DB 3'!D$106-0.2*($W149))^2/('DB 3'!D$106+0.8*($W149)),0) -> 0 | S149: =IF('DB 3'!E$106>0.2*($W149),('DB 3'!E$106-0.2*($W149))^2/('DB 3'!E$106+0.8*($W149)),0) -> 0 | T149: =IF('DB 3'!F$106>0.2*($W149),('DB 3'!F$106-0.2*($W149))^2/('DB 3'!F$106+0.8*($W149)),0) -> 0 | U149: =IF('DB 3'!G$106>0.2*($W149),('DB 3'!G$106-0.2*($W149))^2/('DB 3'!G$106+0.8*($W149)),0) -> 0 | V149: 29 | W149: 24.48275862
R150: =IF('DB 3'!D$106>0.2*($W150),('DB 3'!D$106-0.2*($W150))^2/('DB 3'!D$106+0.8*($W150)),0) -> 0 | S150: =IF('DB 3'!E$106>0.2*($W150),('DB 3'!E$106-0.2*($W150))^2/('DB 3'!E$106+0.8*($W150)),0) -> 0 | T150: =IF('DB 3'!F$106>0.2*($W150),('DB 3'!F$106-0.2*($W150))^2/('DB 3'!F$106+0.8*($W150)),0) -> 0 | U150: =IF('DB 3'!G$106>0.2*($W150),('DB 3'!G$106-0.2*($W150))^2/('DB 3'!G$106+0.8*($W150)),0) -> 0 | V150: =V149+0.1 -> 29.1 | W150: 24.36426117
R151: =IF('DB 3'!D$106>0.2*($W151),('DB 3'!D$106-0.2*($W151))^2/('DB 3'!D$106+0.8*($W151)),0) -> 0 | S151: =IF('DB 3'!E$106>0.2*($W151),('DB 3'!E$106-0.2*($W151))^2/('DB 3'!E$106+0.8*($W151)),0) -> 0 | T151: =IF('DB 3'!F$106>0.2*($W151),('DB 3'!F$106-0.2*($W151))^2/('DB 3'!F$106+0.8*($W151)),0) -> 0 | U151: =IF('DB 3'!G$106>0.2*($W151),('DB 3'!G$106-0.2*($W151))^2/('DB 3'!G$106+0.8*($W151)),0) -> 0 | V151: 29.2 | W151: 24.24657534
R152: =IF('DB 3'!D$106>0.2*($W152),('DB 3'!D$106-0.2*($W152))^2/('DB 3'!D$106+0.8*($W152)),0) -> 0 | S152: =IF('DB 3'!E$106>0.2*($W152),('DB 3'!E$106-0.2*($W152))^2/('DB 3'!E$106+0.8*($W152)),0) -> 0 | T152: =IF('DB 3'!F$106>0.2*($W152),('DB 3'!F$106-0.2*($W152))^2/('DB 3'!F$106+0.8*($W152)),0) -> 0 | U152: =IF('DB 3'!G$106>0.2*($W152),('DB 3'!G$106-0.2*($W152))^2/('DB 3'!G$106+0.8*($W152)),0) -> 0 | V152: 29.3 | W152: 24.12969283
R153: =IF('DB 3'!D$106>0.2*($W153),('DB 3'!D$106-0.2*($W153))^2/('DB 3'!D$106+0.8*($W153)),0) -> 0 | S153: =IF('DB 3'!E$106>0.2*($W153),('DB 3'!E$106-0.2*($W153))^2/('DB 3'!E$106+0.8*($W153)),0) -> 0 | T153: =IF('DB 3'!F$106>0.2*($W153),('DB 3'!F$106-0.2*($W153))^2/('DB 3'!F$106+0.8*($W153)),0) -> 0 | U153: =IF('DB 3'!G$106>0.2*($W153),('DB 3'!G$106-0.2*($W153))^2/('DB 3'!G$106+0.8*($W153)),0) -> 0 | V153: 29.4 | W153: 24.01360544
R154: =IF('DB 3'!D$106>0.2*($W154),('DB 3'!D$106-0.2*($W154))^2/('DB 3'!D$106+0.8*($W154)),0) -> 0 | S154: =IF('DB 3'!E$106>0.2*($W154),('DB 3'!E$106-0.2*($W154))^2/('DB 3'!E$106+0.8*($W154)),0) -> 0 | T154: =IF('DB 3'!F$106>0.2*($W154),('DB 3'!F$106-0.2*($W154))^2/('DB 3'!F$106+0.8*($W154)),0) -> 0 | U154: =IF('DB 3'!G$106>0.2*($W154),('DB 3'!G$106-0.2*($W154))^2/('DB 3'!G$106+0.8*($W154)),0) -> 0 | V154: 29.5 | W154: 23.89830508
R155: =IF('DB 3'!D$106>0.2*($W155),('DB 3'!D$106-0.2*($W155))^2/('DB 3'!D$106+0.8*($W155)),0) -> 0 | S155: =IF('DB 3'!E$106>0.2*($W155),('DB 3'!E$106-0.2*($W155))^2/('DB 3'!E$106+0.8*($W155)),0) -> 0 | T155: =IF('DB 3'!F$106>0.2*($W155),('DB 3'!F$106-0.2*($W155))^2/('DB 3'!F$106+0.8*($W155)),0) -> 0 | U155: =IF('DB 3'!G$106>0.2*($W155),('DB 3'!G$106-0.2*($W155))^2/('DB 3'!G$106+0.8*($W155)),0) -> 0 | V155: 29.6 | W155: 23.78378378
R156: =IF('DB 3'!D$106>0.2*($W156),('DB 3'!D$106-0.2*($W156))^2/('DB 3'!D$106+0.8*($W156)),0) -> 0 | S156: =IF('DB 3'!E$106>0.2*($W156),('DB 3'!E$106-0.2*($W156))^2/('DB 3'!E$106+0.8*($W156)),0) -> 0 | T156: =IF('DB 3'!F$106>0.2*($W156),('DB 3'!F$106-0.2*($W156))^2/('DB 3'!F$106+0.8*($W156)),0) -> 0 | U156: =IF('DB 3'!G$106>0.2*($W156),('DB 3'!G$106-0.2*($W156))^2/('DB 3'!G$106+0.8*($W156)),0) -> 0 | V156: 29.7 | W156: 23.67003367
R157: =IF('DB 3'!D$106>0.2*($W157),('DB 3'!D$106-0.2*($W157))^2/('DB 3'!D$106+0.8*($W157)),0) -> 0 | S157: =IF('DB 3'!E$106>0.2*($W157),('DB 3'!E$106-0.2*($W157))^2/('DB 3'!E$106+0.8*($W157)),0) -> 0 | T157: =IF('DB 3'!F$106>0.2*($W157),('DB 3'!F$106-0.2*($W157))^2/('DB 3'!F$106+0.8*($W157)),0) -> 0 | U157: =IF('DB 3'!G$106>0.2*($W157),('DB 3'!G$106-0.2*($W157))^2/('DB 3'!G$106+0.8*($W157)),0) -> 0 | V157: 29.8 | W157: 23.55704698
R158: =IF('DB 3'!D$106>0.2*($W158),('DB 3'!D$106-0.2*($W158))^2/('DB 3'!D$106+0.8*($W158)),0) -> 0 | S158: =IF('DB 3'!E$106>0.2*($W158),('DB 3'!E$106-0.2*($W158))^2/('DB 3'!E$106+0.8*($W158)),0) -> 0 | T158: =IF('DB 3'!F$106>0.2*($W158),('DB 3'!F$106-0.2*($W158))^2/('DB 3'!F$106+0.8*($W158)),0) -> 0 | U158: =IF('DB 3'!G$106>0.2*($W158),('DB 3'!G$106-0.2*($W158))^2/('DB 3'!G$106+0.8*($W158)),0) -> 0 | V158: 29.9 | W158: 23.44481605
R159: =IF('DB 3'!D$106>0.2*($W159),('DB 3'!D$106-0.2*($W159))^2/('DB 3'!D$106+0.8*($W159)),0) -> 0 | S159: =IF('DB 3'!E$106>0.2*($W159),('DB 3'!E$106-0.2*($W159))^2/('DB 3'!E$106+0.8*($W159)),0) -> 0 | T159: =IF('DB 3'!F$106>0.2*($W159),('DB 3'!F$106-0.2*($W159))^2/('DB 3'!F$106+0.8*($W159)),0) -> 0 | U159: =IF('DB 3'!G$106>0.2*($W159),('DB 3'!G$106-0.2*($W159))^2/('DB 3'!G$106+0.8*($W159)),0) -> 0 | V159: 30 | W159: 23.33333333
R160: =IF('DB 3'!D$106>0.2*($W160),('DB 3'!D$106-0.2*($W160))^2/('DB 3'!D$106+0.8*($W160)),0) -> 0 | S160: =IF('DB 3'!E$106>0.2*($W160),('DB 3'!E$106-0.2*($W160))^2/('DB 3'!E$106+0.8*($W160)),0) -> 0 | T160: =IF('DB 3'!F$106>0.2*($W160),('DB 3'!F$106-0.2*($W160))^2/('DB 3'!F$106+0.8*($W160)),0) -> 0 | U160: =IF('DB 3'!G$106>0.2*($W160),('DB 3'!G$106-0.2*($W160))^2/('DB 3'!G$106+0.8*($W160)),0) -> 0 | V160: 30.1 | W160: 23.22259136
R161: =IF('DB 3'!D$106>0.2*($W161),('DB 3'!D$106-0.2*($W161))^2/('DB 3'!D$106+0.8*($W161)),0) -> 0 | S161: =IF('DB 3'!E$106>0.2*($W161),('DB 3'!E$106-0.2*($W161))^2/('DB 3'!E$106+0.8*($W161)),0) -> 0 | T161: =IF('DB 3'!F$106>0.2*($W161),('DB 3'!F$106-0.2*($W161))^2/('DB 3'!F$106+0.8*($W161)),0) -> 0 | U161: =IF('DB 3'!G$106>0.2*($W161),('DB 3'!G$106-0.2*($W161))^2/('DB 3'!G$106+0.8*($W161)),0) -> 0 | V161: 30.2 | W161: 23.11258278
R162: =IF('DB 3'!D$106>0.2*($W162),('DB 3'!D$106-0.2*($W162))^2/('DB 3'!D$106+0.8*($W162)),0) -> 0 | S162: =IF('DB 3'!E$106>0.2*($W162),('DB 3'!E$106-0.2*($W162))^2/('DB 3'!E$106+0.8*($W162)),0) -> 0 | T162: =IF('DB 3'!F$106>0.2*($W162),('DB 3'!F$106-0.2*($W162))^2/('DB 3'!F$106+0.8*($W162)),0) -> 0 | U162: =IF('DB 3'!G$106>0.2*($W162),('DB 3'!G$106-0.2*($W162))^2/('DB 3'!G$106+0.8*($W162)),0) -> 0 | V162: 30.3 | W162: 23.00330033
R163: =IF('DB 3'!D$106>0.2*($W163),('DB 3'!D$106-0.2*($W163))^2/('DB 3'!D$106+0.8*($W163)),0) -> 0 | S163: =IF('DB 3'!E$106>0.2*($W163),('DB 3'!E$106-0.2*($W163))^2/('DB 3'!E$106+0.8*($W163)),0) -> 0 | T163: =IF('DB 3'!F$106>0.2*($W163),('DB 3'!F$106-0.2*($W163))^2/('DB 3'!F$106+0.8*($W163)),0) -> 0 | U163: =IF('DB 3'!G$106>0.2*($W163),('DB 3'!G$106-0.2*($W163))^2/('DB 3'!G$106+0.8*($W163)),0) -> 0 | V163: 30.4 | W163: 22.89473684
R164: =IF('DB 3'!D$106>0.2*($W164),('DB 3'!D$106-0.2*($W164))^2/('DB 3'!D$106+0.8*($W164)),0) -> 0 | S164: =IF('DB 3'!E$106>0.2*($W164),('DB 3'!E$106-0.2*($W164))^2/('DB 3'!E$106+0.8*($W164)),0) -> 0 | T164: =IF('DB 3'!F$106>0.2*($W164),('DB 3'!F$106-0.2*($W164))^2/('DB 3'!F$106+0.8*($W164)),0) -> 0 | U164: =IF('DB 3'!G$106>0.2*($W164),('DB 3'!G$106-0.2*($W164))^2/('DB 3'!G$106+0.8*($W164)),0) -> 0 | V164: 30.5 | W164: 22.78688525
R165: =IF('DB 3'!D$106>0.2*($W165),('DB 3'!D$106-0.2*($W165))^2/('DB 3'!D$106+0.8*($W165)),0) -> 0 | S165: =IF('DB 3'!E$106>0.2*($W165),('DB 3'!E$106-0.2*($W165))^2/('DB 3'!E$106+0.8*($W165)),0) -> 0 | T165: =IF('DB 3'!F$106>0.2*($W165),('DB 3'!F$106-0.2*($W165))^2/('DB 3'!F$106+0.8*($W165)),0) -> 0 | U165: =IF('DB 3'!G$106>0.2*($W165),('DB 3'!G$106-0.2*($W165))^2/('DB 3'!G$106+0.8*($W165)),0) -> 0 | V165: 30.6 | W165: 22.67973856
R166: =IF('DB 3'!D$106>0.2*($W166),('DB 3'!D$106-0.2*($W166))^2/('DB 3'!D$106+0.8*($W166)),0) -> 0 | S166: =IF('DB 3'!E$106>0.2*($W166),('DB 3'!E$106-0.2*($W166))^2/('DB 3'!E$106+0.8*($W166)),0) -> 0 | T166: =IF('DB 3'!F$106>0.2*($W166),('DB 3'!F$106-0.2*($W166))^2/('DB 3'!F$106+0.8*($W166)),0) -> 0 | U166: =IF('DB 3'!G$106>0.2*($W166),('DB 3'!G$106-0.2*($W166))^2/('DB 3'!G$106+0.8*($W166)),0) -> 0 | V166: 30.7 | W166: 22.5732899
R167: =IF('DB 3'!D$106>0.2*($W167),('DB 3'!D$106-0.2*($W167))^2/('DB 3'!D$106+0.8*($W167)),0) -> 0 | S167: =IF('DB 3'!E$106>0.2*($W167),('DB 3'!E$106-0.2*($W167))^2/('DB 3'!E$106+0.8*($W167)),0) -> 0 | T167: =IF('DB 3'!F$106>0.2*($W167),('DB 3'!F$106-0.2*($W167))^2/('DB 3'!F$106+0.8*($W167)),0) -> 0 | U167: =IF('DB 3'!G$106>0.2*($W167),('DB 3'!G$106-0.2*($W167))^2/('DB 3'!G$106+0.8*($W167)),0) -> 0 | V167: 30.8 | W167: 22.46753247
R168: =IF('DB 3'!D$106>0.2*($W168),('DB 3'!D$106-0.2*($W168))^2/('DB 3'!D$106+0.8*($W168)),0) -> 0 | S168: =IF('DB 3'!E$106>0.2*($W168),('DB 3'!E$106-0.2*($W168))^2/('DB 3'!E$106+0.8*($W168)),0) -> 0 | T168: =IF('DB 3'!F$106>0.2*($W168),('DB 3'!F$106-0.2*($W168))^2/('DB 3'!F$106+0.8*($W168)),0) -> 0 | U168: =IF('DB 3'!G$106>0.2*($W168),('DB 3'!G$106-0.2*($W168))^2/('DB 3'!G$106+0.8*($W168)),0) -> 0 | V168: 30.9 | W168: 22.36245955
R169: =IF('DB 3'!D$106>0.2*($W169),('DB 3'!D$106-0.2*($W169))^2/('DB 3'!D$106+0.8*($W169)),0) -> 0 | S169: =IF('DB 3'!E$106>0.2*($W169),('DB 3'!E$106-0.2*($W169))^2/('DB 3'!E$106+0.8*($W169)),0) -> 0 | T169: =IF('DB 3'!F$106>0.2*($W169),('DB 3'!F$106-0.2*($W169))^2/('DB 3'!F$106+0.8*($W169)),0) -> 0 | U169: =IF('DB 3'!G$106>0.2*($W169),('DB 3'!G$106-0.2*($W169))^2/('DB 3'!G$106+0.8*($W169)),0) -> 0 | V169: 31 | W169: 22.25806452
R170: =IF('DB 3'!D$106>0.2*($W170),('DB 3'!D$106-0.2*($W170))^2/('DB 3'!D$106+0.8*($W170)),0) -> 0 | S170: =IF('DB 3'!E$106>0.2*($W170),('DB 3'!E$106-0.2*($W170))^2/('DB 3'!E$106+0.8*($W170)),0) -> 0 | T170: =IF('DB 3'!F$106>0.2*($W170),('DB 3'!F$106-0.2*($W170))^2/('DB 3'!F$106+0.8*($W170)),0) -> 0 | U170: =IF('DB 3'!G$106>0.2*($W170),('DB 3'!G$106-0.2*($W170))^2/('DB 3'!G$106+0.8*($W170)),0) -> 0 | V170: 31.1 | W170: 22.15434084
R171: =IF('DB 3'!D$106>0.2*($W171),('DB 3'!D$106-0.2*($W171))^2/('DB 3'!D$106+0.8*($W171)),0) -> 0 | S171: =IF('DB 3'!E$106>0.2*($W171),('DB 3'!E$106-0.2*($W171))^2/('DB 3'!E$106+0.8*($W171)),0) -> 0 | T171: =IF('DB 3'!F$106>0.2*($W171),('DB 3'!F$106-0.2*($W171))^2/('DB 3'!F$106+0.8*($W171)),0) -> 0 | U171: =IF('DB 3'!G$106>0.2*($W171),('DB 3'!G$106-0.2*($W171))^2/('DB 3'!G$106+0.8*($W171)),0) -> 0 | V171: 31.2 | W171: 22.05128205
R172: =IF('DB 3'!D$106>0.2*($W172),('DB 3'!D$106-0.2*($W172))^2/('DB 3'!D$106+0.8*($W172)),0) -> 0 | S172: =IF('DB 3'!E$106>0.2*($W172),('DB 3'!E$106-0.2*($W172))^2/('DB 3'!E$106+0.8*($W172)),0) -> 0 | T172: =IF('DB 3'!F$106>0.2*($W172),('DB 3'!F$106-0.2*($W172))^2/('DB 3'!F$106+0.8*($W172)),0) -> 0 | U172: =IF('DB 3'!G$106>0.2*($W172),('DB 3'!G$106-0.2*($W172))^2/('DB 3'!G$106+0.8*($W172)),0) -> 0 | V172: 31.3 | W172: 21.94888179
R173: =IF('DB 3'!D$106>0.2*($W173),('DB 3'!D$106-0.2*($W173))^2/('DB 3'!D$106+0.8*($W173)),0) -> 0 | S173: =IF('DB 3'!E$106>0.2*($W173),('DB 3'!E$106-0.2*($W173))^2/('DB 3'!E$106+0.8*($W173)),0) -> 0 | T173: =IF('DB 3'!F$106>0.2*($W173),('DB 3'!F$106-0.2*($W173))^2/('DB 3'!F$106+0.8*($W173)),0) -> 0 | U173: =IF('DB 3'!G$106>0.2*($W173),('DB 3'!G$106-0.2*($W173))^2/('DB 3'!G$106+0.8*($W173)),0) -> 0 | V173: 31.4 | W173: =IF(V173>0,1000/V173-10,1000) -> 21.84713376
R174: =IF('DB 3'!D$106>0.2*($W174),('DB 3'!D$106-0.2*($W174))^2/('DB 3'!D$106+0.8*($W174)),0) -> 0 | S174: =IF('DB 3'!E$106>0.2*($W174),('DB 3'!E$106-0.2*($W174))^2/('DB 3'!E$106+0.8*($W174)),0) -> 0 | T174: =IF('DB 3'!F$106>0.2*($W174),('DB 3'!F$106-0.2*($W174))^2/('DB 3'!F$106+0.8*($W174)),0) -> 0 | U174: =IF('DB 3'!G$106>0.2*($W174),('DB 3'!G$106-0.2*($W174))^2/('DB 3'!G$106+0.8*($W174)),0) -> 0 | V174: =V173+0.1 -> 31.5 | W174: 21.74603175
R175: =IF('DB 3'!D$106>0.2*($W175),('DB 3'!D$106-0.2*($W175))^2/('DB 3'!D$106+0.8*($W175)),0) -> 0 | S175: =IF('DB 3'!E$106>0.2*($W175),('DB 3'!E$106-0.2*($W175))^2/('DB 3'!E$106+0.8*($W175)),0) -> 0 | T175: =IF('DB 3'!F$106>0.2*($W175),('DB 3'!F$106-0.2*($W175))^2/('DB 3'!F$106+0.8*($W175)),0) -> 0 | U175: =IF('DB 3'!G$106>0.2*($W175),('DB 3'!G$106-0.2*($W175))^2/('DB 3'!G$106+0.8*($W175)),0) -> 0 | V175: 31.6 | W175: 21.64556962
R176: =IF('DB 3'!D$106>0.2*($W176),('DB 3'!D$106-0.2*($W176))^2/('DB 3'!D$106+0.8*($W176)),0) -> 0 | S176: =IF('DB 3'!E$106>0.2*($W176),('DB 3'!E$106-0.2*($W176))^2/('DB 3'!E$106+0.8*($W176)),0) -> 0 | T176: =IF('DB 3'!F$106>0.2*($W176),('DB 3'!F$106-0.2*($W176))^2/('DB 3'!F$106+0.8*($W176)),0) -> 0 | U176: =IF('DB 3'!G$106>0.2*($W176),('DB 3'!G$106-0.2*($W176))^2/('DB 3'!G$106+0.8*($W176)),0) -> 0 | V176: 31.7 | W176: 21.54574132
R177: =IF('DB 3'!D$106>0.2*($W177),('DB 3'!D$106-0.2*($W177))^2/('DB 3'!D$106+0.8*($W177)),0) -> 0 | S177: =IF('DB 3'!E$106>0.2*($W177),('DB 3'!E$106-0.2*($W177))^2/('DB 3'!E$106+0.8*($W177)),0) -> 0 | T177: =IF('DB 3'!F$106>0.2*($W177),('DB 3'!F$106-0.2*($W177))^2/('DB 3'!F$106+0.8*($W177)),0) -> 0 | U177: =IF('DB 3'!G$106>0.2*($W177),('DB 3'!G$106-0.2*($W177))^2/('DB 3'!G$106+0.8*($W177)),0) -> 0 | V177: 31.8 | W177: 21.44654088
R178: =IF('DB 3'!D$106>0.2*($W178),('DB 3'!D$106-0.2*($W178))^2/('DB 3'!D$106+0.8*($W178)),0) -> 0 | S178: =IF('DB 3'!E$106>0.2*($W178),('DB 3'!E$106-0.2*($W178))^2/('DB 3'!E$106+0.8*($W178)),0) -> 0 | T178: =IF('DB 3'!F$106>0.2*($W178),('DB 3'!F$106-0.2*($W178))^2/('DB 3'!F$106+0.8*($W178)),0) -> 0 | U178: =IF('DB 3'!G$106>0.2*($W178),('DB 3'!G$106-0.2*($W178))^2/('DB 3'!G$106+0.8*($W178)),0) -> 0 | V178: 31.9 | W178: 21.34796238
R179: =IF('DB 3'!D$106>0.2*($W179),('DB 3'!D$106-0.2*($W179))^2/('DB 3'!D$106+0.8*($W179)),0) -> 0 | S179: =IF('DB 3'!E$106>0.2*($W179),('DB 3'!E$106-0.2*($W179))^2/('DB 3'!E$106+0.8*($W179)),0) -> 0 | T179: =IF('DB 3'!F$106>0.2*($W179),('DB 3'!F$106-0.2*($W179))^2/('DB 3'!F$106+0.8*($W179)),0) -> 0 | U179: =IF('DB 3'!G$106>0.2*($W179),('DB 3'!G$106-0.2*($W179))^2/('DB 3'!G$106+0.8*($W179)),0) -> 0 | V179: 32 | W179: 21.25
R180: =IF('DB 3'!D$106>0.2*($W180),('DB 3'!D$106-0.2*($W180))^2/('DB 3'!D$106+0.8*($W180)),0) -> 0 | S180: =IF('DB 3'!E$106>0.2*($W180),('DB 3'!E$106-0.2*($W180))^2/('DB 3'!E$106+0.8*($W180)),0) -> 0 | T180: =IF('DB 3'!F$106>0.2*($W180),('DB 3'!F$106-0.2*($W180))^2/('DB 3'!F$106+0.8*($W180)),0) -> 0 | U180: =IF('DB 3'!G$106>0.2*($W180),('DB 3'!G$106-0.2*($W180))^2/('DB 3'!G$106+0.8*($W180)),0) -> 0 | V180: 32.1 | W180: 21.15264798
R181: =IF('DB 3'!D$106>0.2*($W181),('DB 3'!D$106-0.2*($W181))^2/('DB 3'!D$106+0.8*($W181)),0) -> 0 | S181: =IF('DB 3'!E$106>0.2*($W181),('DB 3'!E$106-0.2*($W181))^2/('DB 3'!E$106+0.8*($W181)),0) -> 0 | T181: =IF('DB 3'!F$106>0.2*($W181),('DB 3'!F$106-0.2*($W181))^2/('DB 3'!F$106+0.8*($W181)),0) -> 0 | U181: =IF('DB 3'!G$106>0.2*($W181),('DB 3'!G$106-0.2*($W181))^2/('DB 3'!G$106+0.8*($W181)),0) -> 0 | V181: 32.2 | W181: 21.05590062
R182: =IF('DB 3'!D$106>0.2*($W182),('DB 3'!D$106-0.2*($W182))^2/('DB 3'!D$106+0.8*($W182)),0) -> 0 | S182: =IF('DB 3'!E$106>0.2*($W182),('DB 3'!E$106-0.2*($W182))^2/('DB 3'!E$106+0.8*($W182)),0) -> 0 | T182: =IF('DB 3'!F$106>0.2*($W182),('DB 3'!F$106-0.2*($W182))^2/('DB 3'!F$106+0.8*($W182)),0) -> 0 | U182: =IF('DB 3'!G$106>0.2*($W182),('DB 3'!G$106-0.2*($W182))^2/('DB 3'!G$106+0.8*($W182)),0) -> 0 | V182: 32.3 | W182: 20.95975232
R183: =IF('DB 3'!D$106>0.2*($W183),('DB 3'!D$106-0.2*($W183))^2/('DB 3'!D$106+0.8*($W183)),0) -> 0 | S183: =IF('DB 3'!E$106>0.2*($W183),('DB 3'!E$106-0.2*($W183))^2/('DB 3'!E$106+0.8*($W183)),0) -> 0 | T183: =IF('DB 3'!F$106>0.2*($W183),('DB 3'!F$106-0.2*($W183))^2/('DB 3'!F$106+0.8*($W183)),0) -> 0 | U183: =IF('DB 3'!G$106>0.2*($W183),('DB 3'!G$106-0.2*($W183))^2/('DB 3'!G$106+0.8*($W183)),0) -> 0 | V183: 32.4 | W183: 20.86419753
R184: =IF('DB 3'!D$106>0.2*($W184),('DB 3'!D$106-0.2*($W184))^2/('DB 3'!D$106+0.8*($W184)),0) -> 0 | S184: =IF('DB 3'!E$106>0.2*($W184),('DB 3'!E$106-0.2*($W184))^2/('DB 3'!E$106+0.8*($W184)),0) -> 0 | T184: =IF('DB 3'!F$106>0.2*($W184),('DB 3'!F$106-0.2*($W184))^2/('DB 3'!F$106+0.8*($W184)),0) -> 0 | U184: =IF('DB 3'!G$106>0.2*($W184),('DB 3'!G$106-0.2*($W184))^2/('DB 3'!G$106+0.8*($W184)),0) -> 0 | V184: 32.5 | W184: 20.76923077
R185: =IF('DB 3'!D$106>0.2*($W185),('DB 3'!D$106-0.2*($W185))^2/('DB 3'!D$106+0.8*($W185)),0) -> 0 | S185: =IF('DB 3'!E$106>0.2*($W185),('DB 3'!E$106-0.2*($W185))^2/('DB 3'!E$106+0.8*($W185)),0) -> 0 | T185: =IF('DB 3'!F$106>0.2*($W185),('DB 3'!F$106-0.2*($W185))^2/('DB 3'!F$106+0.8*($W185)),0) -> 0 | U185: =IF('DB 3'!G$106>0.2*($W185),('DB 3'!G$106-0.2*($W185))^2/('DB 3'!G$106+0.8*($W185)),0) -> 0 | V185: 32.6 | W185: 20.67484663
R186: =IF('DB 3'!D$106>0.2*($W186),('DB 3'!D$106-0.2*($W186))^2/('DB 3'!D$106+0.8*($W186)),0) -> 0 | S186: =IF('DB 3'!E$106>0.2*($W186),('DB 3'!E$106-0.2*($W186))^2/('DB 3'!E$106+0.8*($W186)),0) -> 0 | T186: =IF('DB 3'!F$106>0.2*($W186),('DB 3'!F$106-0.2*($W186))^2/('DB 3'!F$106+0.8*($W186)),0) -> 0 | U186: =IF('DB 3'!G$106>0.2*($W186),('DB 3'!G$106-0.2*($W186))^2/('DB 3'!G$106+0.8*($W186)),0) -> 0 | V186: 32.7 | W186: 20.58103976
R187: =IF('DB 3'!D$106>0.2*($W187),('DB 3'!D$106-0.2*($W187))^2/('DB 3'!D$106+0.8*($W187)),0) -> 0 | S187: =IF('DB 3'!E$106>0.2*($W187),('DB 3'!E$106-0.2*($W187))^2/('DB 3'!E$106+0.8*($W187)),0) -> 0 | T187: =IF('DB 3'!F$106>0.2*($W187),('DB 3'!F$106-0.2*($W187))^2/('DB 3'!F$106+0.8*($W187)),0) -> 0 | U187: =IF('DB 3'!G$106>0.2*($W187),('DB 3'!G$106-0.2*($W187))^2/('DB 3'!G$106+0.8*($W187)),0) -> 0 | V187: 32.8 | W187: 20.48780488
R188: =IF('DB 3'!D$106>0.2*($W188),('DB 3'!D$106-0.2*($W188))^2/('DB 3'!D$106+0.8*($W188)),0) -> 0 | S188: =IF('DB 3'!E$106>0.2*($W188),('DB 3'!E$106-0.2*($W188))^2/('DB 3'!E$106+0.8*($W188)),0) -> 0 | T188: =IF('DB 3'!F$106>0.2*($W188),('DB 3'!F$106-0.2*($W188))^2/('DB 3'!F$106+0.8*($W188)),0) -> 0 | U188: =IF('DB 3'!G$106>0.2*($W188),('DB 3'!G$106-0.2*($W188))^2/('DB 3'!G$106+0.8*($W188)),0) -> 0 | V188: 32.9 | W188: 20.39513678
R189: =IF('DB 3'!D$106>0.2*($W189),('DB 3'!D$106-0.2*($W189))^2/('DB 3'!D$106+0.8*($W189)),0) -> 0 | S189: =IF('DB 3'!E$106>0.2*($W189),('DB 3'!E$106-0.2*($W189))^2/('DB 3'!E$106+0.8*($W189)),0) -> 0 | T189: =IF('DB 3'!F$106>0.2*($W189),('DB 3'!F$106-0.2*($W189))^2/('DB 3'!F$106+0.8*($W189)),0) -> 0 | U189: =IF('DB 3'!G$106>0.2*($W189),('DB 3'!G$106-0.2*($W189))^2/('DB 3'!G$106+0.8*($W189)),0) -> 0 | V189: 33 | W189: 20.3030303
R190: =IF('DB 3'!D$106>0.2*($W190),('DB 3'!D$106-0.2*($W190))^2/('DB 3'!D$106+0.8*($W190)),0) -> 0 | S190: =IF('DB 3'!E$106>0.2*($W190),('DB 3'!E$106-0.2*($W190))^2/('DB 3'!E$106+0.8*($W190)),0) -> 0 | T190: =IF('DB 3'!F$106>0.2*($W190),('DB 3'!F$106-0.2*($W190))^2/('DB 3'!F$106+0.8*($W190)),0) -> 0 | U190: =IF('DB 3'!G$106>0.2*($W190),('DB 3'!G$106-0.2*($W190))^2/('DB 3'!G$106+0.8*($W190)),0) -> 0 | V190: 33.1 | W190: 20.21148036
R191: =IF('DB 3'!D$106>0.2*($W191),('DB 3'!D$106-0.2*($W191))^2/('DB 3'!D$106+0.8*($W191)),0) -> 0 | S191: =IF('DB 3'!E$106>0.2*($W191),('DB 3'!E$106-0.2*($W191))^2/('DB 3'!E$106+0.8*($W191)),0) -> 0 | T191: =IF('DB 3'!F$106>0.2*($W191),('DB 3'!F$106-0.2*($W191))^2/('DB 3'!F$106+0.8*($W191)),0) -> 0 | U191: =IF('DB 3'!G$106>0.2*($W191),('DB 3'!G$106-0.2*($W191))^2/('DB 3'!G$106+0.8*($W191)),0) -> 0 | V191: 33.2 | W191: 20.12048193
R192: =IF('DB 3'!D$106>0.2*($W192),('DB 3'!D$106-0.2*($W192))^2/('DB 3'!D$106+0.8*($W192)),0) -> 0 | S192: =IF('DB 3'!E$106>0.2*($W192),('DB 3'!E$106-0.2*($W192))^2/('DB 3'!E$106+0.8*($W192)),0) -> 0 | T192: =IF('DB 3'!F$106>0.2*($W192),('DB 3'!F$106-0.2*($W192))^2/('DB 3'!F$106+0.8*($W192)),0) -> 0 | U192: =IF('DB 3'!G$106>0.2*($W192),('DB 3'!G$106-0.2*($W192))^2/('DB 3'!G$106+0.8*($W192)),0) -> 0 | V192: 33.3 | W192: 20.03003003
R193: =IF('DB 3'!D$106>0.2*($W193),('DB 3'!D$106-0.2*($W193))^2/('DB 3'!D$106+0.8*($W193)),0) -> 0 | S193: =IF('DB 3'!E$106>0.2*($W193),('DB 3'!E$106-0.2*($W193))^2/('DB 3'!E$106+0.8*($W193)),0) -> 0 | T193: =IF('DB 3'!F$106>0.2*($W193),('DB 3'!F$106-0.2*($W193))^2/('DB 3'!F$106+0.8*($W193)),0) -> 0 | U193: =IF('DB 3'!G$106>0.2*($W193),('DB 3'!G$106-0.2*($W193))^2/('DB 3'!G$106+0.8*($W193)),0) -> 0 | V193: 33.4 | W193: 19.94011976
R194: =IF('DB 3'!D$106>0.2*($W194),('DB 3'!D$106-0.2*($W194))^2/('DB 3'!D$106+0.8*($W194)),0) -> 0 | S194: =IF('DB 3'!E$106>0.2*($W194),('DB 3'!E$106-0.2*($W194))^2/('DB 3'!E$106+0.8*($W194)),0) -> 0 | T194: =IF('DB 3'!F$106>0.2*($W194),('DB 3'!F$106-0.2*($W194))^2/('DB 3'!F$106+0.8*($W194)),0) -> 0 | U194: =IF('DB 3'!G$106>0.2*($W194),('DB 3'!G$106-0.2*($W194))^2/('DB 3'!G$106+0.8*($W194)),0) -> 0 | V194: 33.5 | W194: 19.85074627
R195: =IF('DB 3'!D$106>0.2*($W195),('DB 3'!D$106-0.2*($W195))^2/('DB 3'!D$106+0.8*($W195)),0) -> 0 | S195: =IF('DB 3'!E$106>0.2*($W195),('DB 3'!E$106-0.2*($W195))^2/('DB 3'!E$106+0.8*($W195)),0) -> 0 | T195: =IF('DB 3'!F$106>0.2*($W195),('DB 3'!F$106-0.2*($W195))^2/('DB 3'!F$106+0.8*($W195)),0) -> 0 | U195: =IF('DB 3'!G$106>0.2*($W195),('DB 3'!G$106-0.2*($W195))^2/('DB 3'!G$106+0.8*($W195)),0) -> 0 | V195: 33.6 | W195: 19.76190476
R196: =IF('DB 3'!D$106>0.2*($W196),('DB 3'!D$106-0.2*($W196))^2/('DB 3'!D$106+0.8*($W196)),0) -> 0 | S196: =IF('DB 3'!E$106>0.2*($W196),('DB 3'!E$106-0.2*($W196))^2/('DB 3'!E$106+0.8*($W196)),0) -> 0 | T196: =IF('DB 3'!F$106>0.2*($W196),('DB 3'!F$106-0.2*($W196))^2/('DB 3'!F$106+0.8*($W196)),0) -> 0 | U196: =IF('DB 3'!G$106>0.2*($W196),('DB 3'!G$106-0.2*($W196))^2/('DB 3'!G$106+0.8*($W196)),0) -> 0 | V196: 33.7 | W196: 19.6735905
R197: =IF('DB 3'!D$106>0.2*($W197),('DB 3'!D$106-0.2*($W197))^2/('DB 3'!D$106+0.8*($W197)),0) -> 0 | S197: =IF('DB 3'!E$106>0.2*($W197),('DB 3'!E$106-0.2*($W197))^2/('DB 3'!E$106+0.8*($W197)),0) -> 0 | T197: =IF('DB 3'!F$106>0.2*($W197),('DB 3'!F$106-0.2*($W197))^2/('DB 3'!F$106+0.8*($W197)),0) -> 0 | U197: =IF('DB 3'!G$106>0.2*($W197),('DB 3'!G$106-0.2*($W197))^2/('DB 3'!G$106+0.8*($W197)),0) -> 0 | V197: 33.8 | W197: 19.58579882
R198: =IF('DB 3'!D$106>0.2*($W198),('DB 3'!D$106-0.2*($W198))^2/('DB 3'!D$106+0.8*($W198)),0) -> 0 | S198: =IF('DB 3'!E$106>0.2*($W198),('DB 3'!E$106-0.2*($W198))^2/('DB 3'!E$106+0.8*($W198)),0) -> 0 | T198: =IF('DB 3'!F$106>0.2*($W198),('DB 3'!F$106-0.2*($W198))^2/('DB 3'!F$106+0.8*($W198)),0) -> 0 | U198: =IF('DB 3'!G$106>0.2*($W198),('DB 3'!G$106-0.2*($W198))^2/('DB 3'!G$106+0.8*($W198)),0) -> 0 | V198: 33.9 | W198: 19.49852507
R199: =IF('DB 3'!D$106>0.2*($W199),('DB 3'!D$106-0.2*($W199))^2/('DB 3'!D$106+0.8*($W199)),0) -> 0 | S199: =IF('DB 3'!E$106>0.2*($W199),('DB 3'!E$106-0.2*($W199))^2/('DB 3'!E$106+0.8*($W199)),0) -> 0 | T199: =IF('DB 3'!F$106>0.2*($W199),('DB 3'!F$106-0.2*($W199))^2/('DB 3'!F$106+0.8*($W199)),0) -> 0 | U199: =IF('DB 3'!G$106>0.2*($W199),('DB 3'!G$106-0.2*($W199))^2/('DB 3'!G$106+0.8*($W199)),0) -> 0 | V199: 34 | W199: 19.41176471
R200: =IF('DB 3'!D$106>0.2*($W200),('DB 3'!D$106-0.2*($W200))^2/('DB 3'!D$106+0.8*($W200)),0) -> 0 | S200: =IF('DB 3'!E$106>0.2*($W200),('DB 3'!E$106-0.2*($W200))^2/('DB 3'!E$106+0.8*($W200)),0) -> 0 | T200: =IF('DB 3'!F$106>0.2*($W200),('DB 3'!F$106-0.2*($W200))^2/('DB 3'!F$106+0.8*($W200)),0) -> 0 | U200: =IF('DB 3'!G$106>0.2*($W200),('DB 3'!G$106-0.2*($W200))^2/('DB 3'!G$106+0.8*($W200)),0) -> 0 | V200: 34.1 | W200: 19.3255132
R201: =IF('DB 3'!D$106>0.2*($W201),('DB 3'!D$106-0.2*($W201))^2/('DB 3'!D$106+0.8*($W201)),0) -> 0 | S201: =IF('DB 3'!E$106>0.2*($W201),('DB 3'!E$106-0.2*($W201))^2/('DB 3'!E$106+0.8*($W201)),0) -> 0 | T201: =IF('DB 3'!F$106>0.2*($W201),('DB 3'!F$106-0.2*($W201))^2/('DB 3'!F$106+0.8*($W201)),0) -> 0 | U201: =IF('DB 3'!G$106>0.2*($W201),('DB 3'!G$106-0.2*($W201))^2/('DB 3'!G$106+0.8*($W201)),0) -> 0 | V201: 34.2 | W201: 19.23976608
R202: =IF('DB 3'!D$106>0.2*($W202),('DB 3'!D$106-0.2*($W202))^2/('DB 3'!D$106+0.8*($W202)),0) -> 0 | S202: =IF('DB 3'!E$106>0.2*($W202),('DB 3'!E$106-0.2*($W202))^2/('DB 3'!E$106+0.8*($W202)),0) -> 0 | T202: =IF('DB 3'!F$106>0.2*($W202),('DB 3'!F$106-0.2*($W202))^2/('DB 3'!F$106+0.8*($W202)),0) -> 0 | U202: =IF('DB 3'!G$106>0.2*($W202),('DB 3'!G$106-0.2*($W202))^2/('DB 3'!G$106+0.8*($W202)),0) -> 0 | V202: 34.3 | W202: 19.15451895
R203: =IF('DB 3'!D$106>0.2*($W203),('DB 3'!D$106-0.2*($W203))^2/('DB 3'!D$106+0.8*($W203)),0) -> 0 | S203: =IF('DB 3'!E$106>0.2*($W203),('DB 3'!E$106-0.2*($W203))^2/('DB 3'!E$106+0.8*($W203)),0) -> 0 | T203: =IF('DB 3'!F$106>0.2*($W203),('DB 3'!F$106-0.2*($W203))^2/('DB 3'!F$106+0.8*($W203)),0) -> 0 | U203: =IF('DB 3'!G$106>0.2*($W203),('DB 3'!G$106-0.2*($W203))^2/('DB 3'!G$106+0.8*($W203)),0) -> 0 | V203: 34.4 | W203: 19.06976744
R204: =IF('DB 3'!D$106>0.2*($W204),('DB 3'!D$106-0.2*($W204))^2/('DB 3'!D$106+0.8*($W204)),0) -> 0 | S204: =IF('DB 3'!E$106>0.2*($W204),('DB 3'!E$106-0.2*($W204))^2/('DB 3'!E$106+0.8*($W204)),0) -> 0 | T204: =IF('DB 3'!F$106>0.2*($W204),('DB 3'!F$106-0.2*($W204))^2/('DB 3'!F$106+0.8*($W204)),0) -> 0 | U204: =IF('DB 3'!G$106>0.2*($W204),('DB 3'!G$106-0.2*($W204))^2/('DB 3'!G$106+0.8*($W204)),0) -> 0 | V204: 34.5 | W204: 18.98550725
R205: =IF('DB 3'!D$106>0.2*($W205),('DB 3'!D$106-0.2*($W205))^2/('DB 3'!D$106+0.8*($W205)),0) -> 0 | S205: =IF('DB 3'!E$106>0.2*($W205),('DB 3'!E$106-0.2*($W205))^2/('DB 3'!E$106+0.8*($W205)),0) -> 0 | T205: =IF('DB 3'!F$106>0.2*($W205),('DB 3'!F$106-0.2*($W205))^2/('DB 3'!F$106+0.8*($W205)),0) -> 0 | U205: =IF('DB 3'!G$106>0.2*($W205),('DB 3'!G$106-0.2*($W205))^2/('DB 3'!G$106+0.8*($W205)),0) -> 0 | V205: 34.6 | W205: 18.9017341
R206: =IF('DB 3'!D$106>0.2*($W206),('DB 3'!D$106-0.2*($W206))^2/('DB 3'!D$106+0.8*($W206)),0) -> 0 | S206: =IF('DB 3'!E$106>0.2*($W206),('DB 3'!E$106-0.2*($W206))^2/('DB 3'!E$106+0.8*($W206)),0) -> 0 | T206: =IF('DB 3'!F$106>0.2*($W206),('DB 3'!F$106-0.2*($W206))^2/('DB 3'!F$106+0.8*($W206)),0) -> 0 | U206: =IF('DB 3'!G$106>0.2*($W206),('DB 3'!G$106-0.2*($W206))^2/('DB 3'!G$106+0.8*($W206)),0) -> 0 | V206: 34.7 | W206: 18.8184438
R207: =IF('DB 3'!D$106>0.2*($W207),('DB 3'!D$106-0.2*($W207))^2/('DB 3'!D$106+0.8*($W207)),0) -> 0 | S207: =IF('DB 3'!E$106>0.2*($W207),('DB 3'!E$106-0.2*($W207))^2/('DB 3'!E$106+0.8*($W207)),0) -> 0 | T207: =IF('DB 3'!F$106>0.2*($W207),('DB 3'!F$106-0.2*($W207))^2/('DB 3'!F$106+0.8*($W207)),0) -> 0 | U207: =IF('DB 3'!G$106>0.2*($W207),('DB 3'!G$106-0.2*($W207))^2/('DB 3'!G$106+0.8*($W207)),0) -> 0 | V207: 34.8 | W207: 18.73563218
R208: =IF('DB 3'!D$106>0.2*($W208),('DB 3'!D$106-0.2*($W208))^2/('DB 3'!D$106+0.8*($W208)),0) -> 0 | S208: =IF('DB 3'!E$106>0.2*($W208),('DB 3'!E$106-0.2*($W208))^2/('DB 3'!E$106+0.8*($W208)),0) -> 0 | T208: =IF('DB 3'!F$106>0.2*($W208),('DB 3'!F$106-0.2*($W208))^2/('DB 3'!F$106+0.8*($W208)),0) -> 0 | U208: =IF('DB 3'!G$106>0.2*($W208),('DB 3'!G$106-0.2*($W208))^2/('DB 3'!G$106+0.8*($W208)),0) -> 0 | V208: 34.9 | W208: 18.65329513
R209: =IF('DB 3'!D$106>0.2*($W209),('DB 3'!D$106-0.2*($W209))^2/('DB 3'!D$106+0.8*($W209)),0) -> 0 | S209: =IF('DB 3'!E$106>0.2*($W209),('DB 3'!E$106-0.2*($W209))^2/('DB 3'!E$106+0.8*($W209)),0) -> 0 | T209: =IF('DB 3'!F$106>0.2*($W209),('DB 3'!F$106-0.2*($W209))^2/('DB 3'!F$106+0.8*($W209)),0) -> 0 | U209: =IF('DB 3'!G$106>0.2*($W209),('DB 3'!G$106-0.2*($W209))^2/('DB 3'!G$106+0.8*($W209)),0) -> 0 | V209: 35 | W209: 18.57142857
R210: =IF('DB 3'!D$106>0.2*($W210),('DB 3'!D$106-0.2*($W210))^2/('DB 3'!D$106+0.8*($W210)),0) -> 0 | S210: =IF('DB 3'!E$106>0.2*($W210),('DB 3'!E$106-0.2*($W210))^2/('DB 3'!E$106+0.8*($W210)),0) -> 0 | T210: =IF('DB 3'!F$106>0.2*($W210),('DB 3'!F$106-0.2*($W210))^2/('DB 3'!F$106+0.8*($W210)),0) -> 0 | U210: =IF('DB 3'!G$106>0.2*($W210),('DB 3'!G$106-0.2*($W210))^2/('DB 3'!G$106+0.8*($W210)),0) -> 0 | V210: 35.1 | W210: 18.49002849
R211: =IF('DB 3'!D$106>0.2*($W211),('DB 3'!D$106-0.2*($W211))^2/('DB 3'!D$106+0.8*($W211)),0) -> 0 | S211: =IF('DB 3'!E$106>0.2*($W211),('DB 3'!E$106-0.2*($W211))^2/('DB 3'!E$106+0.8*($W211)),0) -> 0 | T211: =IF('DB 3'!F$106>0.2*($W211),('DB 3'!F$106-0.2*($W211))^2/('DB 3'!F$106+0.8*($W211)),0) -> 0 | U211: =IF('DB 3'!G$106>0.2*($W211),('DB 3'!G$106-0.2*($W211))^2/('DB 3'!G$106+0.8*($W211)),0) -> 0 | V211: 35.2 | W211: 18.40909091
R212: =IF('DB 3'!D$106>0.2*($W212),('DB 3'!D$106-0.2*($W212))^2/('DB 3'!D$106+0.8*($W212)),0) -> 0 | S212: =IF('DB 3'!E$106>0.2*($W212),('DB 3'!E$106-0.2*($W212))^2/('DB 3'!E$106+0.8*($W212)),0) -> 0 | T212: =IF('DB 3'!F$106>0.2*($W212),('DB 3'!F$106-0.2*($W212))^2/('DB 3'!F$106+0.8*($W212)),0) -> 0 | U212: =IF('DB 3'!G$106>0.2*($W212),('DB 3'!G$106-0.2*($W212))^2/('DB 3'!G$106+0.8*($W212)),0) -> 0 | V212: 35.3 | W212: 18.3286119
R213: =IF('DB 3'!D$106>0.2*($W213),('DB 3'!D$106-0.2*($W213))^2/('DB 3'!D$106+0.8*($W213)),0) -> 0 | S213: =IF('DB 3'!E$106>0.2*($W213),('DB 3'!E$106-0.2*($W213))^2/('DB 3'!E$106+0.8*($W213)),0) -> 0 | T213: =IF('DB 3'!F$106>0.2*($W213),('DB 3'!F$106-0.2*($W213))^2/('DB 3'!F$106+0.8*($W213)),0) -> 0 | U213: =IF('DB 3'!G$106>0.2*($W213),('DB 3'!G$106-0.2*($W213))^2/('DB 3'!G$106+0.8*($W213)),0) -> 0 | V213: 35.4 | W213: 18.24858757
R214: =IF('DB 3'!D$106>0.2*($W214),('DB 3'!D$106-0.2*($W214))^2/('DB 3'!D$106+0.8*($W214)),0) -> 0 | S214: =IF('DB 3'!E$106>0.2*($W214),('DB 3'!E$106-0.2*($W214))^2/('DB 3'!E$106+0.8*($W214)),0) -> 0 | T214: =IF('DB 3'!F$106>0.2*($W214),('DB 3'!F$106-0.2*($W214))^2/('DB 3'!F$106+0.8*($W214)),0) -> 0 | U214: =IF('DB 3'!G$106>0.2*($W214),('DB 3'!G$106-0.2*($W214))^2/('DB 3'!G$106+0.8*($W214)),0) -> 0 | V214: 35.5 | W214: 18.16901408
R215: =IF('DB 3'!D$106>0.2*($W215),('DB 3'!D$106-0.2*($W215))^2/('DB 3'!D$106+0.8*($W215)),0) -> 0 | S215: =IF('DB 3'!E$106>0.2*($W215),('DB 3'!E$106-0.2*($W215))^2/('DB 3'!E$106+0.8*($W215)),0) -> 0 | T215: =IF('DB 3'!F$106>0.2*($W215),('DB 3'!F$106-0.2*($W215))^2/('DB 3'!F$106+0.8*($W215)),0) -> 0 | U215: =IF('DB 3'!G$106>0.2*($W215),('DB 3'!G$106-0.2*($W215))^2/('DB 3'!G$106+0.8*($W215)),0) -> 0 | V215: 35.6 | W215: 18.08988764
R216: =IF('DB 3'!D$106>0.2*($W216),('DB 3'!D$106-0.2*($W216))^2/('DB 3'!D$106+0.8*($W216)),0) -> 0 | S216: =IF('DB 3'!E$106>0.2*($W216),('DB 3'!E$106-0.2*($W216))^2/('DB 3'!E$106+0.8*($W216)),0) -> 0 | T216: =IF('DB 3'!F$106>0.2*($W216),('DB 3'!F$106-0.2*($W216))^2/('DB 3'!F$106+0.8*($W216)),0) -> 0 | U216: =IF('DB 3'!G$106>0.2*($W216),('DB 3'!G$106-0.2*($W216))^2/('DB 3'!G$106+0.8*($W216)),0) -> 0 | V216: 35.7 | W216: 18.01120448
R217: =IF('DB 3'!D$106>0.2*($W217),('DB 3'!D$106-0.2*($W217))^2/('DB 3'!D$106+0.8*($W217)),0) -> 0 | S217: =IF('DB 3'!E$106>0.2*($W217),('DB 3'!E$106-0.2*($W217))^2/('DB 3'!E$106+0.8*($W217)),0) -> 0 | T217: =IF('DB 3'!F$106>0.2*($W217),('DB 3'!F$106-0.2*($W217))^2/('DB 3'!F$106+0.8*($W217)),0) -> 0 | U217: =IF('DB 3'!G$106>0.2*($W217),('DB 3'!G$106-0.2*($W217))^2/('DB 3'!G$106+0.8*($W217)),0) -> 0 | V217: 35.8 | W217: 17.93296089
R218: =IF('DB 3'!D$106>0.2*($W218),('DB 3'!D$106-0.2*($W218))^2/('DB 3'!D$106+0.8*($W218)),0) -> 0 | S218: =IF('DB 3'!E$106>0.2*($W218),('DB 3'!E$106-0.2*($W218))^2/('DB 3'!E$106+0.8*($W218)),0) -> 0 | T218: =IF('DB 3'!F$106>0.2*($W218),('DB 3'!F$106-0.2*($W218))^2/('DB 3'!F$106+0.8*($W218)),0) -> 0 | U218: =IF('DB 3'!G$106>0.2*($W218),('DB 3'!G$106-0.2*($W218))^2/('DB 3'!G$106+0.8*($W218)),0) -> 0 | V218: 35.9 | W218: 17.8551532
R219: =IF('DB 3'!D$106>0.2*($W219),('DB 3'!D$106-0.2*($W219))^2/('DB 3'!D$106+0.8*($W219)),0) -> 0 | S219: =IF('DB 3'!E$106>0.2*($W219),('DB 3'!E$106-0.2*($W219))^2/('DB 3'!E$106+0.8*($W219)),0) -> 0 | T219: =IF('DB 3'!F$106>0.2*($W219),('DB 3'!F$106-0.2*($W219))^2/('DB 3'!F$106+0.8*($W219)),0) -> 0 | U219: =IF('DB 3'!G$106>0.2*($W219),('DB 3'!G$106-0.2*($W219))^2/('DB 3'!G$106+0.8*($W219)),0) -> 0 | V219: 36 | W219: 17.77777778
R220: =IF('DB 3'!D$106>0.2*($W220),('DB 3'!D$106-0.2*($W220))^2/('DB 3'!D$106+0.8*($W220)),0) -> 0 | S220: =IF('DB 3'!E$106>0.2*($W220),('DB 3'!E$106-0.2*($W220))^2/('DB 3'!E$106+0.8*($W220)),0) -> 0 | T220: =IF('DB 3'!F$106>0.2*($W220),('DB 3'!F$106-0.2*($W220))^2/('DB 3'!F$106+0.8*($W220)),0) -> 0 | U220: =IF('DB 3'!G$106>0.2*($W220),('DB 3'!G$106-0.2*($W220))^2/('DB 3'!G$106+0.8*($W220)),0) -> 0 | V220: 36.1 | W220: 17.70083102
R221: =IF('DB 3'!D$106>0.2*($W221),('DB 3'!D$106-0.2*($W221))^2/('DB 3'!D$106+0.8*($W221)),0) -> 0 | S221: =IF('DB 3'!E$106>0.2*($W221),('DB 3'!E$106-0.2*($W221))^2/('DB 3'!E$106+0.8*($W221)),0) -> 0 | T221: =IF('DB 3'!F$106>0.2*($W221),('DB 3'!F$106-0.2*($W221))^2/('DB 3'!F$106+0.8*($W221)),0) -> 0 | U221: =IF('DB 3'!G$106>0.2*($W221),('DB 3'!G$106-0.2*($W221))^2/('DB 3'!G$106+0.8*($W221)),0) -> 0 | V221: 36.2 | W221: 17.62430939
R222: =IF('DB 3'!D$106>0.2*($W222),('DB 3'!D$106-0.2*($W222))^2/('DB 3'!D$106+0.8*($W222)),0) -> 0 | S222: =IF('DB 3'!E$106>0.2*($W222),('DB 3'!E$106-0.2*($W222))^2/('DB 3'!E$106+0.8*($W222)),0) -> 0 | T222: =IF('DB 3'!F$106>0.2*($W222),('DB 3'!F$106-0.2*($W222))^2/('DB 3'!F$106+0.8*($W222)),0) -> 0 | U222: =IF('DB 3'!G$106>0.2*($W222),('DB 3'!G$106-0.2*($W222))^2/('DB 3'!G$106+0.8*($W222)),0) -> 0 | V222: 36.3 | W222: 17.54820937
R223: =IF('DB 3'!D$106>0.2*($W223),('DB 3'!D$106-0.2*($W223))^2/('DB 3'!D$106+0.8*($W223)),0) -> 0 | S223: =IF('DB 3'!E$106>0.2*($W223),('DB 3'!E$106-0.2*($W223))^2/('DB 3'!E$106+0.8*($W223)),0) -> 0 | T223: =IF('DB 3'!F$106>0.2*($W223),('DB 3'!F$106-0.2*($W223))^2/('DB 3'!F$106+0.8*($W223)),0) -> 0 | U223: =IF('DB 3'!G$106>0.2*($W223),('DB 3'!G$106-0.2*($W223))^2/('DB 3'!G$106+0.8*($W223)),0) -> 0 | V223: 36.4 | W223: 17.47252747
R224: =IF('DB 3'!D$106>0.2*($W224),('DB 3'!D$106-0.2*($W224))^2/('DB 3'!D$106+0.8*($W224)),0) -> 0 | S224: =IF('DB 3'!E$106>0.2*($W224),('DB 3'!E$106-0.2*($W224))^2/('DB 3'!E$106+0.8*($W224)),0) -> 0 | T224: =IF('DB 3'!F$106>0.2*($W224),('DB 3'!F$106-0.2*($W224))^2/('DB 3'!F$106+0.8*($W224)),0) -> 0 | U224: =IF('DB 3'!G$106>0.2*($W224),('DB 3'!G$106-0.2*($W224))^2/('DB 3'!G$106+0.8*($W224)),0) -> 0 | V224: 36.5 | W224: 17.39726027
R225: =IF('DB 3'!D$106>0.2*($W225),('DB 3'!D$106-0.2*($W225))^2/('DB 3'!D$106+0.8*($W225)),0) -> 0 | S225: =IF('DB 3'!E$106>0.2*($W225),('DB 3'!E$106-0.2*($W225))^2/('DB 3'!E$106+0.8*($W225)),0) -> 0 | T225: =IF('DB 3'!F$106>0.2*($W225),('DB 3'!F$106-0.2*($W225))^2/('DB 3'!F$106+0.8*($W225)),0) -> 0 | U225: =IF('DB 3'!G$106>0.2*($W225),('DB 3'!G$106-0.2*($W225))^2/('DB 3'!G$106+0.8*($W225)),0) -> 0 | V225: 36.6 | W225: 17.32240437
R226: =IF('DB 3'!D$106>0.2*($W226),('DB 3'!D$106-0.2*($W226))^2/('DB 3'!D$106+0.8*($W226)),0) -> 0 | S226: =IF('DB 3'!E$106>0.2*($W226),('DB 3'!E$106-0.2*($W226))^2/('DB 3'!E$106+0.8*($W226)),0) -> 0 | T226: =IF('DB 3'!F$106>0.2*($W226),('DB 3'!F$106-0.2*($W226))^2/('DB 3'!F$106+0.8*($W226)),0) -> 0 | U226: =IF('DB 3'!G$106>0.2*($W226),('DB 3'!G$106-0.2*($W226))^2/('DB 3'!G$106+0.8*($W226)),0) -> 0 | V226: 36.7 | W226: 17.2479564
R227: =IF('DB 3'!D$106>0.2*($W227),('DB 3'!D$106-0.2*($W227))^2/('DB 3'!D$106+0.8*($W227)),0) -> 0 | S227: =IF('DB 3'!E$106>0.2*($W227),('DB 3'!E$106-0.2*($W227))^2/('DB 3'!E$106+0.8*($W227)),0) -> 0 | T227: =IF('DB 3'!F$106>0.2*($W227),('DB 3'!F$106-0.2*($W227))^2/('DB 3'!F$106+0.8*($W227)),0) -> 0 | U227: =IF('DB 3'!G$106>0.2*($W227),('DB 3'!G$106-0.2*($W227))^2/('DB 3'!G$106+0.8*($W227)),0) -> 0 | V227: 36.8 | W227: 17.17391304
R228: =IF('DB 3'!D$106>0.2*($W228),('DB 3'!D$106-0.2*($W228))^2/('DB 3'!D$106+0.8*($W228)),0) -> 0 | S228: =IF('DB 3'!E$106>0.2*($W228),('DB 3'!E$106-0.2*($W228))^2/('DB 3'!E$106+0.8*($W228)),0) -> 0 | T228: =IF('DB 3'!F$106>0.2*($W228),('DB 3'!F$106-0.2*($W228))^2/('DB 3'!F$106+0.8*($W228)),0) -> 0 | U228: =IF('DB 3'!G$106>0.2*($W228),('DB 3'!G$106-0.2*($W228))^2/('DB 3'!G$106+0.8*($W228)),0) -> 0 | V228: 36.9 | W228: 17.100271
R229: =IF('DB 3'!D$106>0.2*($W229),('DB 3'!D$106-0.2*($W229))^2/('DB 3'!D$106+0.8*($W229)),0) -> 0 | S229: =IF('DB 3'!E$106>0.2*($W229),('DB 3'!E$106-0.2*($W229))^2/('DB 3'!E$106+0.8*($W229)),0) -> 0 | T229: =IF('DB 3'!F$106>0.2*($W229),('DB 3'!F$106-0.2*($W229))^2/('DB 3'!F$106+0.8*($W229)),0) -> 0 | U229: =IF('DB 3'!G$106>0.2*($W229),('DB 3'!G$106-0.2*($W229))^2/('DB 3'!G$106+0.8*($W229)),0) -> 0 | V229: 37 | W229: 17.02702703
R230: =IF('DB 3'!D$106>0.2*($W230),('DB 3'!D$106-0.2*($W230))^2/('DB 3'!D$106+0.8*($W230)),0) -> 0 | S230: =IF('DB 3'!E$106>0.2*($W230),('DB 3'!E$106-0.2*($W230))^2/('DB 3'!E$106+0.8*($W230)),0) -> 0 | T230: =IF('DB 3'!F$106>0.2*($W230),('DB 3'!F$106-0.2*($W230))^2/('DB 3'!F$106+0.8*($W230)),0) -> 0 | U230: =IF('DB 3'!G$106>0.2*($W230),('DB 3'!G$106-0.2*($W230))^2/('DB 3'!G$106+0.8*($W230)),0) -> 0 | V230: 37.1 | W230: 16.9541779
R231: =IF('DB 3'!D$106>0.2*($W231),('DB 3'!D$106-0.2*($W231))^2/('DB 3'!D$106+0.8*($W231)),0) -> 0 | S231: =IF('DB 3'!E$106>0.2*($W231),('DB 3'!E$106-0.2*($W231))^2/('DB 3'!E$106+0.8*($W231)),0) -> 0 | T231: =IF('DB 3'!F$106>0.2*($W231),('DB 3'!F$106-0.2*($W231))^2/('DB 3'!F$106+0.8*($W231)),0) -> 0 | U231: =IF('DB 3'!G$106>0.2*($W231),('DB 3'!G$106-0.2*($W231))^2/('DB 3'!G$106+0.8*($W231)),0) -> 0 | V231: 37.2 | W231: 16.88172043
R232: =IF('DB 3'!D$106>0.2*($W232),('DB 3'!D$106-0.2*($W232))^2/('DB 3'!D$106+0.8*($W232)),0) -> 0 | S232: =IF('DB 3'!E$106>0.2*($W232),('DB 3'!E$106-0.2*($W232))^2/('DB 3'!E$106+0.8*($W232)),0) -> 0 | T232: =IF('DB 3'!F$106>0.2*($W232),('DB 3'!F$106-0.2*($W232))^2/('DB 3'!F$106+0.8*($W232)),0) -> 0 | U232: =IF('DB 3'!G$106>0.2*($W232),('DB 3'!G$106-0.2*($W232))^2/('DB 3'!G$106+0.8*($W232)),0) -> 0 | V232: 37.3 | W232: 16.80965147
R233: =IF('DB 3'!D$106>0.2*($W233),('DB 3'!D$106-0.2*($W233))^2/('DB 3'!D$106+0.8*($W233)),0) -> 0 | S233: =IF('DB 3'!E$106>0.2*($W233),('DB 3'!E$106-0.2*($W233))^2/('DB 3'!E$106+0.8*($W233)),0) -> 0 | T233: =IF('DB 3'!F$106>0.2*($W233),('DB 3'!F$106-0.2*($W233))^2/('DB 3'!F$106+0.8*($W233)),0) -> 0 | U233: =IF('DB 3'!G$106>0.2*($W233),('DB 3'!G$106-0.2*($W233))^2/('DB 3'!G$106+0.8*($W233)),0) -> 0 | V233: 37.4 | W233: 16.73796791
R234: =IF('DB 3'!D$106>0.2*($W234),('DB 3'!D$106-0.2*($W234))^2/('DB 3'!D$106+0.8*($W234)),0) -> 0 | S234: =IF('DB 3'!E$106>0.2*($W234),('DB 3'!E$106-0.2*($W234))^2/('DB 3'!E$106+0.8*($W234)),0) -> 0 | T234: =IF('DB 3'!F$106>0.2*($W234),('DB 3'!F$106-0.2*($W234))^2/('DB 3'!F$106+0.8*($W234)),0) -> 0 | U234: =IF('DB 3'!G$106>0.2*($W234),('DB 3'!G$106-0.2*($W234))^2/('DB 3'!G$106+0.8*($W234)),0) -> 0 | V234: 37.5 | W234: 16.66666667
R235: =IF('DB 3'!D$106>0.2*($W235),('DB 3'!D$106-0.2*($W235))^2/('DB 3'!D$106+0.8*($W235)),0) -> 0 | S235: =IF('DB 3'!E$106>0.2*($W235),('DB 3'!E$106-0.2*($W235))^2/('DB 3'!E$106+0.8*($W235)),0) -> 0 | T235: =IF('DB 3'!F$106>0.2*($W235),('DB 3'!F$106-0.2*($W235))^2/('DB 3'!F$106+0.8*($W235)),0) -> 0 | U235: =IF('DB 3'!G$106>0.2*($W235),('DB 3'!G$106-0.2*($W235))^2/('DB 3'!G$106+0.8*($W235)),0) -> 0 | V235: 37.6 | W235: 16.59574468
... 624 more rows

Sheet DB 4
A1: Georgia Stormwater Management Manual Stormwater Quality Site Development Review Tool, v2.2
B7: Development Name: | C7: =IF(ISBLANK(Summary!B9),"",Summary!B9) ->  | L7: data input cells
B8: Drainage Basin Name: | L8: calculation cells
L9: constant values
A11: Site Data
A14: Indicate Pre-Development Land Cover and Runoff Curve Numbers in the Site's Disturbed Area
A15: Cover Type | D15: HSG* A (acres) | E15: CN | F15: HSG B (acres) | G15: CN | H15: HSG C (acres) | I15: CN | J15: HSG D (acres) | K15: CN | L15: Total | M15: % Cover
A16: Select a land cover type… | E16: =INDEX('RR_TSS Removal %'!$S$8:$X$40,MATCH('DB 4'!$A16,'RR_TSS Removal %'!$S$8:$S$40,0),MATCH('DB 4'!D$15,'RR_TSS Removal %'!$S$8:$X$8,0)) -> 1e-07 | G16: =INDEX('RR_TSS Removal %'!$S$8:$X$40,MATCH('DB 4'!$A16,'RR_TSS Removal %'!$S$8:$S$40,0),MATCH('DB 4'!F$15,'RR_TSS Removal %'!$S$8:$X$8,0)) -> 1e-07 | I16: =INDEX('RR_TSS Removal %'!$S$8:$X$40,MATCH('DB 4'!$A16,'RR_TSS Removal %'!$S$8:$S$40,0),MATCH('DB 4'!H$15,'RR_TSS Removal %'!$S$8:$X$8,0)) -> 1e-07 | K16: =INDEX('RR_TSS Removal %'!$S$8:$X$40,MATCH('DB 4'!$A16,'RR_TSS Removal %'!$S$8:$S$40,0),MATCH('DB 4'!J$15,'RR_TSS Removal %'!$S$8:$X$8,0)) -> 1e-07 | L16: =D16+F16+H16+J16 -> 0 | M16: =IF($L$23>0,L16/$L$23,0) -> 0
A17: Select a land cover type… | E17: =INDEX('RR_TSS Removal %'!$S$8:$X$40,MATCH('DB 4'!$A17,'RR_TSS Removal %'!$S$8:$S$40,0),MATCH('DB 4'!D$15,'RR_TSS Removal %'!$S$8:$X$8,0)) -> 1e-07 | G17: =INDEX('RR_TSS Removal %'!$S$8:$X$40,MATCH('DB 4'!$A17,'RR_TSS Removal %'!$S$8:$S$40,0),MATCH('DB 4'!F$15,'RR_TSS Removal %'!$S$8:$X$8,0)) -> 1e-07 | I17: =INDEX('RR_TSS Removal %'!$S$8:$X$40,MATCH('DB 4'!$A17,'RR_TSS Removal %'!$S$8:$S$40,0),MATCH('DB 4'!H$15,'RR_TSS Removal %'!$S$8:$X$8,0)) -> 1e-07 | K17: =INDEX('RR_TSS Removal %'!$S$8:$X$40,MATCH('DB 4'!$A17,'RR_TSS Removal %'!$S$8:$S$40,0),MATCH('DB 4'!J$15,'RR_TSS Removal %'!$S$8:$X$8,0)) -> 1e-07 | L17: 0 | M17: 0
A18: Select a land cover type… | E18: =INDEX('RR_TSS Removal %'!$S$8:$X$40,MATCH('DB 4'!$A18,'RR_TSS Removal %'!$S$8:$S$40,0),MATCH('DB 4'!D$15,'RR_TSS Removal %'!$S$8:$X$8,0)) -> 1e-07 | G18: =INDEX('RR_TSS Removal %'!$S$8:$X$40,MATCH('DB 4'!$A18,'RR_TSS Removal %'!$S$8:$S$40,0),MATCH('DB 4'!F$15,'RR_TSS Removal %'!$S$8:$X$8,0)) -> 1e-07 | I18: =INDEX('RR_TSS Removal %'!$S$8:$X$40,MATCH('DB 4'!$A18,'RR_TSS Removal %'!$S$8:$S$40,0),MATCH('DB 4'!H$15,'RR_TSS Removal %'!$S$8:$X$8,0)) -> 1e-07 | K18: =INDEX('RR_TSS Removal %'!$S$8:$X$40,MATCH('DB 4'!$A18,'RR_TSS Removal %'!$S$8:$S$40,0),MATCH('DB 4'!J$15,'RR_TSS Removal %'!$S$8:$X$8,0)) -> 1e-07 | L18: 0 | M18: 0
A19: Select a land cover type… | E19: =INDEX('RR_TSS Removal %'!$S$8:$X$40,MATCH('DB 4'!$A19,'RR_TSS Removal %'!$S$8:$S$40,0),MATCH('DB 4'!D$15,'RR_TSS Removal %'!$S$8:$X$8,0)) -> 1e-07 | G19: =INDEX('RR_TSS Removal %'!$S$8:$X$40,MATCH('DB 4'!$A19,'RR_TSS Removal %'!$S$8:$S$40,0),MATCH('DB 4'!F$15,'RR_TSS Removal %'!$S$8:$X$8,0)) -> 1e-07 | I19: =INDEX('RR_TSS Removal %'!$S$8:$X$40,MATCH('DB 4'!$A19,'RR_TSS Removal %'!$S$8:$S$40,0),MATCH('DB 4'!H$15,'RR_TSS Removal %'!$S$8:$X$8,0)) -> 1e-07 | K19: =INDEX('RR_TSS Removal %'!$S$8:$X$40,MATCH('DB 4'!$A19,'RR_TSS Removal %'!$S$8:$S$40,0),MATCH('DB 4'!J$15,'RR_TSS Removal %'!$S$8:$X$8,0)) -> 1e-07 | L19: 0 | M19: 0
A20: Select a land cover type… | E20: =INDEX('RR_TSS Removal %'!$S$8:$X$40,MATCH('DB 4'!$A20,'RR_TSS Removal %'!$S$8:$S$40,0),MATCH('DB 4'!D$15,'RR_TSS Removal %'!$S$8:$X$8,0)) -> 1e-07 | G20: =INDEX('RR_TSS Removal %'!$S$8:$X$40,MATCH('DB 4'!$A20,'RR_TSS Removal %'!$S$8:$S$40,0),MATCH('DB 4'!F$15,'RR_TSS Removal %'!$S$8:$X$8,0)) -> 1e-07 | I20: =INDEX('RR_TSS Removal %'!$S$8:$X$40,MATCH('DB 4'!$A20,'RR_TSS Removal %'!$S$8:$S$40,0),MATCH('DB 4'!H$15,'RR_TSS Removal %'!$S$8:$X$8,0)) -> 1e-07 | K20: =INDEX('RR_TSS Removal %'!$S$8:$X$40,MATCH('DB 4'!$A20,'RR_TSS Removal %'!$S$8:$S$40,0),MATCH('DB 4'!J$15,'RR_TSS Removal %'!$S$8:$X$8,0)) -> 1e-07 | L20: 0 | M20: 0
A21: Local Jurisdiction Input | L21: 0 | M21: 0
A22: Other | L22: 0 | M22: 0
A23: Total | D23: =SUM(D16:D22) -> 0 | F23: =SUM(F16:F22) -> 0 | H23: =SUM(H16:H22) -> 0 | J23: =SUM(J16:J22) -> 0 | L23: 0 | M23: 0
A24: *HSG = hydrologic soil group | I24: Impervious (ac) | K24: =SUMIF(A16:A20,"Impervious",L16:L20) -> 0
I25: Weighted CN | K25: =IF(L23>0,(SUMPRODUCT(D16:D22,E16:E22)+SUMPRODUCT(F16:F22,G16:G22)+SUMPRODUCT(H16:H22,I16:I22)+SUMPRODUCT(J16:J22,K16:K22))/L23,0) -> 0
H26: Potential Max Soil Retention, Spre (in) | K26: =IF(K25>0,1000/K25-10,1000) -> 1000
A28: Indicate Post-Development Land Cover and Runoff Curve Numbers in the Site's Disturbed Area
A29: Cover Type | D29: HSG A (acres) | E29: CN | F29: HSG B (acres) | G29: CN | H29: HSG C (acres) | I29: CN | J29: HSG D (acres) | K29: CN | L29: Total | M29: % Cover
A30: Select a land cover type… | E30: =INDEX('RR_TSS Removal %'!$S$8:$X$40,MATCH('DB 4'!$A30,'RR_TSS Removal %'!$S$8:$S$40,0),MATCH('DB 4'!D$29,'RR_TSS Removal %'!$S$8:$X$8,0)) -> 1e-07 | G30: =INDEX('RR_TSS Removal %'!$S$8:$X$40,MATCH('DB 4'!$A30,'RR_TSS Removal %'!$S$8:$S$40,0),MATCH('DB 4'!F$29,'RR_TSS Removal %'!$S$8:$X$8,0)) -> 1e-07 | I30: =INDEX('RR_TSS Removal %'!$S$8:$X$40,MATCH('DB 4'!$A30,'RR_TSS Removal %'!$S$8:$S$40,0),MATCH('DB 4'!H$29,'RR_TSS Removal %'!$S$8:$X$8,0)) -> 1e-07 | K30: =INDEX('RR_TSS Removal %'!$S$8:$X$40,MATCH('DB 4'!$A30,'RR_TSS Removal %'!$S$8:$S$40,0),MATCH('DB 4'!J$29,'RR_TSS Removal %'!$S$8:$X$8,0)) -> 1e-07 | L30: =D30+F30+H30+J30 -> 0 | M30: =IF($L$37>0,L30/$L$37,0) -> 0
A31: Select a land cover type… | E31: =INDEX('RR_TSS Removal %'!$S$8:$X$40,MATCH('DB 4'!$A31,'RR_TSS Removal %'!$S$8:$S$40,0),MATCH('DB 4'!D$29,'RR_TSS Removal %'!$S$8:$X$8,0)) -> 1e-07 | G31: =INDEX('RR_TSS Removal %'!$S$8:$X$40,MATCH('DB 4'!$A31,'RR_TSS Removal %'!$S$8:$S$40,0),MATCH('DB 4'!F$29,'RR_TSS Removal %'!$S$8:$X$8,0)) -> 1e-07 | I31: =INDEX('RR_TSS Removal %'!$S$8:$X$40,MATCH('DB 4'!$A31,'RR_TSS Removal %'!$S$8:$S$40,0),MATCH('DB 4'!H$29,'RR_TSS Removal %'!$S$8:$X$8,0)) -> 1e-07 | K31: =INDEX('RR_TSS Removal %'!$S$8:$X$40,MATCH('DB 4'!$A31,'RR_TSS Removal %'!$S$8:$S$40,0),MATCH('DB 4'!J$29,'RR_TSS Removal %'!$S$8:$X$8,0)) -> 1e-07 | L31: 0 | M31: 0
A32: Select a land cover type… | E32: =INDEX('RR_TSS Removal %'!$S$8:$X$40,MATCH('DB 4'!$A32,'RR_TSS Removal %'!$S$8:$S$40,0),MATCH('DB 4'!D$29,'RR_TSS Removal %'!$S$8:$X$8,0)) -> 1e-07 | G32: =INDEX('RR_TSS Removal %'!$S$8:$X$40,MATCH('DB 4'!$A32,'RR_TSS Removal %'!$S$8:$S$40,0),MATCH('DB 4'!F$29,'RR_TSS Removal %'!$S$8:$X$8,0)) -> 1e-07 | I32: =INDEX('RR_TSS Removal %'!$S$8:$X$40,MATCH('DB 4'!$A32,'RR_TSS Removal %'!$S$8:$S$40,0),MATCH('DB 4'!H$29,'RR_TSS Removal %'!$S$8:$X$8,0)) -> 1e-07 | K32: =INDEX('RR_TSS Removal %'!$S$8:$X$40,MATCH('DB 4'!$A32,'RR_TSS Removal %'!$S$8:$S$40,0),MATCH('DB 4'!J$29,'RR_TSS Removal %'!$S$8:$X$8,0)) -> 1e-07 | L32: 0 | M32: 0
A33: Select a land cover type… | E33: =INDEX('RR_TSS Removal %'!$S$8:$X$40,MATCH('DB 4'!$A33,'RR_TSS Removal %'!$S$8:$S$40,0),MATCH('DB 4'!D$29,'RR_TSS Removal %'!$S$8:$X$8,0)) -> 1e-07 | G33: =INDEX('RR_TSS Removal %'!$S$8:$X$40,MATCH('DB 4'!$A33,'RR_TSS Removal %'!$S$8:$S$40,0),MATCH('DB 4'!F$29,'RR_TSS Removal %'!$S$8:$X$8,0)) -> 1e-07 | I33: =INDEX('RR_TSS Removal %'!$S$8:$X$40,MATCH('DB 4'!$A33,'RR_TSS Removal %'!$S$8:$S$40,0),MATCH('DB 4'!H$29,'RR_TSS Removal %'!$S$8:$X$8,0)) -> 1e-07 | K33: =INDEX('RR_TSS Removal %'!$S$8:$X$40,MATCH('DB 4'!$A33,'RR_TSS Removal %'!$S$8:$S$40,0),MATCH('DB 4'!J$29,'RR_TSS Removal %'!$S$8:$X$8,0)) -> 1e-07 | L33: 0 | M33: 0
A34: Select a land cover type… | E34: =INDEX('RR_TSS Removal %'!$S$8:$X$40,MATCH('DB 4'!$A34,'RR_TSS Removal %'!$S$8:$S$40,0),MATCH('DB 4'!D$29,'RR_TSS Removal %'!$S$8:$X$8,0)) -> 1e-07 | G34: =INDEX('RR_TSS Removal %'!$S$8:$X$40,MATCH('DB 4'!$A34,'RR_TSS Removal %'!$S$8:$S$40,0),MATCH('DB 4'!F$29,'RR_TSS Removal %'!$S$8:$X$8,0)) -> 1e-07 | I34: =INDEX('RR_TSS Removal %'!$S$8:$X$40,MATCH('DB 4'!$A34,'RR_TSS Removal %'!$S$8:$S$40,0),MATCH('DB 4'!H$29,'RR_TSS Removal %'!$S$8:$X$8,0)) -> 1e-07 | K34: =INDEX('RR_TSS Removal %'!$S$8:$X$40,MATCH('DB 4'!$A34,'RR_TSS Removal %'!$S$8:$S$40,0),MATCH('DB 4'!J$29,'RR_TSS Removal %'!$S$8:$X$8,0)) -> 1e-07 | L34: 0 | M34: 0
A35: Local Jurisdiction Input | L35: 0 | M35: 0
A36: Other | L36: 0 | M36: 0
A37: Total | D37: =SUM(D30:D36) -> 0 | F37: =SUM(F30:F36) -> 0 | H37: =SUM(H30:H36) -> 0 | J37: =SUM(J30:J36) -> 0 | L37: =(D37+F37+H37+J37) -> 0 | M37: 0
I38: Impervious (ac) | K38: =SUMIF(A30:A34,"Impervious",L30:L34) -> 0
I39: Rv | K39: =IF(SUM($L$30:$L$36)=0,0,($K$38/SUM($L$30:$L$36)*100*0.009)+0.05) -> 0
I40: Weighted CN | K40: =IF(L37>0,(SUMPRODUCT(D30:D36,E30:E36)+SUMPRODUCT(F30:F36,G30:G36)+SUMPRODUCT(H30:H36,I30:I36)+SUMPRODUCT(J30:J36,K30:K36))/SUM(L30:L36),0) -> 0
H41: Potential Max Soil Retention, Spost (in) | K41: =IF(K40>0,1000/K40-10,1000) -> 1000
A43: Conservation Area Credits
A45: Scenario 1: Natural Conservation Area *See the GSMM Volume 2, Section 2.3.3.3 for more information. | H45: Scenario 3: Soil Restoration *See the GSMM Volume 2, Section 4.23 for more information.
B47: Check the box if a portion of the post-developed area is protected by a conservation easement or equivalent form of protection. | I47: Check the box if a portion of the post-developed area employs soil restoration and is protected by a conservation easement or equivalent form of protection.
B50: Area (ac) of development protected by a conservation easement or equivalent form of protection. | D50: Note: The green cell will unlock if the Scenario 1 box above is checked | I50: Area (ac) of development with restored soils and protected by a conservation easement or equivalent form of protection. | N50: Note: The green cell will unlock if the Scenario 3 box above is checked
A52: Scenario 2: Site Reforestation/Revegetation *See the GSMM Volume 2, Section 4.22 for more information. | H52: Scenario 4: Site Reforestation/Revegetation & Soil Restoration | M52: *See the GSMM Volume 2, Section 4.22 and 4.23 for more information.
B54: Check the box if a portion of the post-developed area employs site reforestation/revegetation and is protected by a conservation easement or equivalent form of protection. | I54: Check the box if the same portion of the post-developed area employs site reforestation/revegetation and soil restoration, and is protected by a conservation easement or equivalent form of protection.
B57: Area (ac) of development reforested/revegetated and protected by a conservation easement or equivalent form of protection. | D57: Note: The green cell will unlock if the Scenario 2 box above is checked | I57: Area (ac) with restored soils in a reforested & revegetated area and protected by a conservation easement or equivalent form of protection. | N57: Note: The green cell will unlock if the Scenario 4 box above is checked
F59: Total Conservation Area Credit (acres) | G59: =SUM(A50,0.5*A57,0.5*H50,H57) -> 0
A61: Water Quality Goals
B64: Target Runoff Reduction Storm (in) | C64: 1 | H64: Total Site Area for Water Quality Volume (acres) | I64: =SUM(D37,F37,H37,J37)-G59 -> 0
H65: Target Runoff Reduction Volume (cf) | I65: =C64/12*K39*I64*43560 -> 0
H66: Target Water Quality Volume (cf) | I66: =1.2/12*K39*I64*43560 -> 0
B70: TSS in Water Quality Volume (units) | C70: =I66 -> 0
A72: Select BMPs for Runoff Reduction and Water Quality
C75: Area Draining to Each BMP | F75: Storage Volume Provided by BMP (cf) | G75: RR Conveyance Volume Provided by BMP (cf) | H75: Down-stream BMP | I75: Runoff Reduction Calculations | O75: WQ Calculations | X75: Downstream Runoff | AI75: Downstream TSS
C76: On-site Pervious Area (acres) | D76: On-site Impervious Area (acres) | E76: Offsite Area (acres) | I76: RR Volume from Direct Drainage (cf) | J76: RR Volume from Upstream Practices (cf) | K76: Total RR Volume Received by BMP (cf) | L76: Runoff Reduction % | M76: RR Achieved (cf) | N76: Remaining RR Volume (cf) | O76: WQv from Direct Drainage (cf) | P76: Effective TSS Removal % | Q76: TSS from Direct Drainage (units) | R76: TSS from Upstream Practices (units) | S76: Total TSS Received by BMP (units) | T76: TSS Removal Achieved (units) | U76: Remaining TSS (units) | V76: Storage Volume Provided | X76: BMP 1 | Y76: BMP 2 | Z76: BMP 3 | AA76: BMP 4 | AB76: BMP 5 | AC76: BMP 6 | AD76: BMP 7 | AE76: BMP 8 | AF76: BMP 9 | AG76: BMP 10 | AI76: BMP 1 | AJ76: BMP 2 | AK76: BMP 3 | AL76: BMP 4 | AM76: BMP 5 | AN76: BMP 6 | AO76: BMP 7 | AP76: BMP 8 | AQ76: BMP 9 | AR76: BMP 10
A77: BMP 1 | B77: Select a BMP… | G77: =IF(V77="Convey",I77+J77,"") ->  | I77: =IFERROR($C$64/12*(0.05+0.009*($D77/($C77+$D77))*100)*($C77+$D77)*43560,0) -> 0 | J77: =HLOOKUP($A77,$X$76:$AG$90,15,FALSE) -> 0 | K77: =$I77+$J77 -> 0 | L77: =VLOOKUP($B77,'RR_TSS Removal %'!$A$9:$E$56,4,FALSE) -> N/A | M77: =IFERROR(IF(F77=0,G77*L77,IF(F77>K77/L77,K77,F77*L77)),0) -> 0 | N77: =IFERROR(K77-M77,0) -> 0 | O77: =IFERROR(1.2/12*(0.05+0.009*($D77/($C77+$D77))*100)*($C77+$D77)*43560,0) -> 0 | P77: =VLOOKUP($B77,'RR_TSS Removal %'!$A$9:$E$56,5,FALSE) -> N/A | Q77: =IFERROR(1.2/12*(0.05+0.009*($D77/($C77+$D77))*100)*($C77+$D77)*43560,0) -> 0 | R77: =IFERROR(HLOOKUP($A77,$AI$76:$AR$90,15,FALSE),0) -> 0 | S77: =Q77+R77 -> 0 | T77: =IFERROR(P77*S77,0) -> 0 | U77: =S77-T77 -> 0 | V77: =VLOOKUP($B77,'RR_TSS Removal %'!$A$9:$F$56,6,FALSE) -> 0 | X77: =IF($H77=X$76,$N77,0) -> 0 | Y77: 0 | Z77: 0 | AA77: 0 | AB77: 0 | AC77: 0 | AD77: 0 | AE77: 0 | AF77: 0 | AG77: 0 | AI77: =IF($H77=AI$76,$U77,0) -> 0 | AJ77: 0 | AK77: 0 | AL77: 0 | AM77: 0 | AN77: 0 | AO77: 0 | AP77: 0 | AQ77: 0 | AR77: 0
A78: BMP 2 | B78: Select a BMP… | G78: =IF(V78="Convey",I78+J78,"") ->  | I78: =IFERROR($C$64/12*(0.05+0.009*($D78/($C78+$D78))*100)*($C78+$D78)*43560,0) -> 0 | J78: 0 | K78: 0 | L78: =VLOOKUP($B78,'RR_TSS Removal %'!$A$9:$E$56,4,FALSE) -> N/A | M78: =IFERROR(IF(F78=0,G78*L78,IF(F78>K78/L78,K78,F78*L78)),0) -> 0 | N78: =IFERROR(K78-M78,0) -> 0 | O78: =IFERROR(1.2/12*(0.05+0.009*($D78/($C78+$D78))*100)*($C78+$D78)*43560,0) -> 0 | P78: =VLOOKUP($B78,'RR_TSS Removal %'!$A$9:$E$56,5,FALSE) -> N/A | Q78: =IFERROR(1.2/12*(0.05+0.009*($D78/($C78+$D78))*100)*($C78+$D78)*43560,0) -> 0 | R78: 0 | S78: =Q78+R78 -> 0 | T78: =IFERROR(P78*S78,0) -> 0 | U78: 0 | V78: =VLOOKUP($B78,'RR_TSS Removal %'!$A$9:$F$56,6,FALSE) -> 0 | X78: 0 | Y78: 0 | Z78: 0 | AA78: 0 | AB78: 0 | AC78: 0 | AD78: 0 | AE78: 0 | AF78: 0 | AG78: 0 | AI78: 0 | AJ78: 0 | AK78: 0 | AL78: 0 | AM78: 0 | AN78: 0 | AO78: 0 | AP78: 0 | AQ78: 0 | AR78: 0
A79: BMP 3 | B79: Select a BMP… | I79: 0 | J79: 0 | K79: 0 | L79: =VLOOKUP($B79,'RR_TSS Removal %'!$A$9:$E$56,4,FALSE) -> N/A | M79: 0 | N79: 0 | O79: 0 | P79: =VLOOKUP($B79,'RR_TSS Removal %'!$A$9:$E$56,5,FALSE) -> N/A | Q79: 0 | R79: 0 | S79: 0 | T79: 0 | U79: 0 | V79: =VLOOKUP($B79,'RR_TSS Removal %'!$A$9:$F$56,6,FALSE) -> 0 | X79: 0 | Y79: 0 | Z79: 0 | AA79: 0 | AB79: 0 | AC79: 0 | AD79: 0 | AE79: 0 | AF79: 0 | AG79: 0 | AI79: 0 | AJ79: 0 | AK79: 0 | AL79: 0 | AM79: 0 | AN79: 0 | AO79: 0 | AP79: 0 | AQ79: 0 | AR79: 0
A80: BMP 4 | B80: Select a BMP… | I80: 0 | J80: 0 | K80: 0 | L80: =VLOOKUP($B80,'RR_TSS Removal %'!$A$9:$E$56,4,FALSE) -> N/A | M80: 0 | N80: 0 | O80: 0 | P80: =VLOOKUP($B80,'RR_TSS Removal %'!$A$9:$E$56,5,FALSE) -> N/A | Q80: 0 | R80: 0 | S80: 0 | T80: 0 | U80: 0 | V80: =VLOOKUP($B80,'RR_TSS Removal %'!$A$9:$F$56,6,FALSE) -> 0 | X80: 0 | Y80: 0 | Z80: 0 | AA80: 0 | AB80: 0 | AC80: 0 | AD80: 0 | AE80: 0 | AF80: 0 | AG80: 0 | AI80: 0 | AJ80: 0 | AK80: 0 | AL80: 0 | AM80: 0 | AN80: 0 | AO80: 0 | AP80: 0 | AQ80: 0 | AR80: 0
A81: BMP 5 | B81: Select a BMP… | I81: 0 | J81: 0 | K81: 0 | L81: =VLOOKUP($B81,'RR_TSS Removal %'!$A$9:$E$56,4,FALSE) -> N/A | M81: 0 | N81: 0 | O81: 0 | P81: =VLOOKUP($B81,'RR_TSS Removal %'!$A$9:$E$56,5,FALSE) -> N/A | Q81: 0 | R81: 0 | S81: 0 | T81: 0 | U81: 0 | V81: =VLOOKUP($B81,'RR_TSS Removal %'!$A$9:$F$56,6,FALSE) -> 0 | X81: 0 | Y81: 0 | Z81: 0 | AA81: 0 | AB81: 0 | AC81: 0 | AD81: 0 | AE81: 0 | AF81: 0 | AG81: 0 | AI81: 0 | AJ81: 0 | AK81: 0 | AL81: 0 | AM81: 0 | AN81: 0 | AO81: 0 | AP81: 0 | AQ81: 0 | AR81: 0
A82: BMP 6 | B82: Select a BMP… | I82: 0 | J82: 0 | K82: 0 | L82: =VLOOKUP($B82,'RR_TSS Removal %'!$A$9:$E$56,4,FALSE) -> N/A | M82: 0 | N82: 0 | O82: 0 | P82: =VLOOKUP($B82,'RR_TSS Removal %'!$A$9:$E$56,5,FALSE) -> N/A | Q82: 0 | R82: 0 | S82: 0 | T82: 0 | U82: 0 | V82: =VLOOKUP($B82,'RR_TSS Removal %'!$A$9:$F$56,6,FALSE) -> 0 | X82: 0 | Y82: 0 | Z82: 0 | AA82: 0 | AB82: 0 | AC82: 0 | AD82: 0 | AE82: 0 | AF82: 0 | AG82: 0 | AI82: 0 | AJ82: 0 | AK82: 0 | AL82: 0 | AM82: 0 | AN82: 0 | AO82: 0 | AP82: 0 | AQ82: 0 | AR82: 0
A83: BMP 7 | B83: Select a BMP… | I83: 0 | J83: 0 | K83: 0 | L83: =VLOOKUP($B83,'RR_TSS Removal %'!$A$9:$E$56,4,FALSE) -> N/A | M83: 0 | N83: 0 | O83: 0 | P83: =VLOOKUP($B83,'RR_TSS Removal %'!$A$9:$E$56,5,FALSE) -> N/A | Q83: 0 | R83: 0 | S83: 0 | T83: 0 | U83: 0 | V83: =VLOOKUP($B83,'RR_TSS Removal %'!$A$9:$F$56,6,FALSE) -> 0 | X83: 0 | Y83: 0 | Z83: 0 | AA83: 0 | AB83: 0 | AC83: 0 | AD83: 0 | AE83: 0 | AF83: 0 | AG83: 0 | AI83: 0 | AJ83: 0 | AK83: 0 | AL83: 0 | AM83: 0 | AN83: 0 | AO83: 0 | AP83: 0 | AQ83: 0 | AR83: 0
A84: BMP 8 | B84: Select a BMP… | I84: 0 | J84: 0 | K84: 0 | L84: =VLOOKUP($B84,'RR_TSS Removal %'!$A$9:$E$56,4,FALSE) -> N/A | M84: 0 | N84: 0 | O84: 0 | P84: =VLOOKUP($B84,'RR_TSS Removal %'!$A$9:$E$56,5,FALSE) -> N/A | Q84: 0 | R84: 0 | S84: 0 | T84: 0 | U84: 0 | V84: =VLOOKUP($B84,'RR_TSS Removal %'!$A$9:$F$56,6,FALSE) -> 0 | X84: 0 | Y84: 0 | Z84: 0 | AA84: 0 | AB84: 0 | AC84: 0 | AD84: 0 | AE84: 0 | AF84: 0 | AG84: 0 | AI84: 0 | AJ84: 0 | AK84: 0 | AL84: 0 | AM84: 0 | AN84: 0 | AO84: 0 | AP84: 0 | AQ84: 0 | AR84: 0
A85: BMP 9 | B85: Select a BMP… | I85: 0 | J85: 0 | K85: 0 | L85: =VLOOKUP($B85,'RR_TSS Removal %'!$A$9:$E$56,4,FALSE) -> N/A | M85: 0 | N85: 0 | O85: 0 | P85: =VLOOKUP($B85,'RR_TSS Removal %'!$A$9:$E$56,5,FALSE) -> N/A | Q85: 0 | R85: 0 | S85: 0 | T85: 0 | U85: 0 | V85: =VLOOKUP($B85,'RR_TSS Removal %'!$A$9:$F$56,6,FALSE) -> 0 | X85: 0 | Y85: 0 | Z85: 0 | AA85: 0 | AB85: 0 | AC85: 0 | AD85: 0 | AE85: 0 | AF85: 0 | AG85: 0 | AI85: 0 | AJ85: 0 | AK85: 0 | AL85: 0 | AM85: 0 | AN85: 0 | AO85: 0 | AP85: 0 | AQ85: 0 | AR85: 0
A86: BMP 10 | B86: Select a BMP… | I86: 0 | J86: 0 | K86: 0 | L86: =VLOOKUP($B86,'RR_TSS Removal %'!$A$9:$E$56,4,FALSE) -> N/A | M86: 0 | N86: 0 | O86: 0 | P86: =VLOOKUP($B86,'RR_TSS Removal %'!$A$9:$E$56,5,FALSE) -> N/A | Q86: 0 | R86: 0 | S86: 0 | T86: 0 | U86: 0 | V86: =VLOOKUP($B86,'RR_TSS Removal %'!$A$9:$F$56,6,FALSE) -> 0 | X86: 0 | Y86: 0 | Z86: 0 | AA86: 0 | AB86: 0 | AC86: 0 | AD86: 0 | AE86: 0 | AF86: 0 | AG86: 0 | AI86: 0 | AJ86: 0 | AK86: 0 | AL86: 0 | AM86: 0 | AN86: 0 | AO86: 0 | AP86: 0 | AQ86: 0 | AR86: 0
M87: 0
B88: TOTAL | C88: =SUM(C77:C86) -> 0 | D88: =SUM(D77:D86) -> 0 | E88: =SUM(E77:E86) -> 0 | I88: =SUM(I77:I86) -> 0 | M88: =SUM(M77:M86) -> 0 | O88: =SUM(O77:O86) -> 0 | T88: =SUM(T77:T86) -> 0 | U88: =SUM(U77:U86) -> 0
B89: UNTREATED AREA (acres) | C89: =IF(SUM($C$77:$C$86)<SUM($L$30:$L$36)-$K$38,SUM($L$30:$L$36)-$K$38-$C$88,0) -> 0 | D89: =IF(SUM($D$77:$D$86)<$K$38,$K$38-$D$88,0) -> 0
X90: =SUM(X76:X88) -> 0 | Y90: =SUM(Y76:Y88) -> 0 | Z90: 0 | AA90: 0 | AB90: 0 | AC90: 0 | AD90: 0 | AE90: 0 | AF90: 0 | AG90: 0 | AI90: =SUM(AI76:AI88) -> 0 | AJ90: =SUM(AJ76:AJ88) -> 0 | AK90: 0 | AL90: 0 | AM90: 0 | AN90: 0 | AO90: 0 | AP90: 0 | AQ90: 0 | AR90: 0
B92: Target Runoff Reduction Volume (cf) | C92: =I65 -> 0
B93: Target Achieved? | C93: =IF(M88<C92,"No",IF(C92=0,"N/A","Yes!")) -> N/A
B94: Remaining Runoff Reduction Volume (cf) | C94: =IF(M88<C92,C92-M88,0) -> 0
B96: Target Water Quality Volume (cf) | C96: =I66 -> 0
B97: % TSS Removal Achieved | C97: =IFERROR(IF(T88/C70>1,1,ROUND(T88/C70,2)),0) -> 0
B98: Target Achieved? | C98: =IF(C97>=80%,"Yes!","No") -> No
B99: Remaining TSS Removal % | C99: =IF(C97<0.8,0.8-C97,0) -> 0.8
A103: Channel and Flood Protection Calculations | R103: Reference Table to Calculate Post-Development Runoff Volume (in) with BMPs and corresponding CN
D105: 1-yr, 24-hr storm | E105: 2-yr, 24-hr storm | F105: 25-yr, 24-hr storm | G105: 100-yr, 24-hr storm
C106: Target Rainfall Event (in) | R106: 1-yr, 24-hr storm | S106: 2-yr, 24-hr storm | T106: 25-yr, 24-hr storm | U106: 100-yr, 24-hr storm | V106: Adjusted CN | W106: Adjusted S
R107: v (in) | S107: v (in) | T107: v (in) | U107: v (in) | V107: CN | W107: S
D109: =D105 -> 1-yr, 24-hr storm | E109: =E105 -> 2-yr, 24-hr storm | F109: =F105 -> 25-yr, 24-hr storm | G109: =G105 -> 100-yr, 24-hr storm | R109: =IF('DB 4'!D$106>0.2*($W109),('DB 4'!D$106-0.2*($W109))^2/('DB 4'!D$106+0.8*($W109)),0) -> 0 | S109: =IF('DB 4'!E$106>0.2*($W109),('DB 4'!E$106-0.2*($W109))^2/('DB 4'!E$106+0.8*($W109)),0) -> 0 | T109: =IF('DB 4'!F$106>0.2*($W109),('DB 4'!F$106-0.2*($W109))^2/('DB 4'!F$106+0.8*($W109)),0) -> 0 | U109: =IF('DB 4'!G$106>0.2*($W109),('DB 4'!G$106-0.2*($W109))^2/('DB 4'!G$106+0.8*($W109)),0) -> 0 | V109: 25 | W109: =IF(V109>0,1000/V109-10,1000) -> 30
A110: Pre-Development Runoff Volume (in) | D110: =IF(D$106>0.2*$K26,(D$106-0.2*$K26)^2/(D$106+0.8*$K26),0) -> 0 | E110: =IF(E$106>0.2*$K26,(E$106-0.2*$K26)^2/(E$106+0.8*$K26),0) -> 0 | F110: =IF(F$106>0.2*$K26,(F$106-0.2*$K26)^2/(F$106+0.8*$K26),0) -> 0 | G110: =IF(G$106>0.2*$K26,(G$106-0.2*$K26)^2/(G$106+0.8*$K26),0) -> 0 | R110: =IF('DB 4'!D$106>0.2*($W110),('DB 4'!D$106-0.2*($W110))^2/('DB 4'!D$106+0.8*($W110)),0) -> 0 | S110: =IF('DB 4'!E$106>0.2*($W110),('DB 4'!E$106-0.2*($W110))^2/('DB 4'!E$106+0.8*($W110)),0) -> 0 | T110: =IF('DB 4'!F$106>0.2*($W110),('DB 4'!F$106-0.2*($W110))^2/('DB 4'!F$106+0.8*($W110)),0) -> 0 | U110: =IF('DB 4'!G$106>0.2*($W110),('DB 4'!G$106-0.2*($W110))^2/('DB 4'!G$106+0.8*($W110)),0) -> 0 | V110: =V109+0.1 -> 25.1 | W110: 29.84063745
A111: Post Development Runoff Volume (in) with no BMPs | D111: =IF(D$106>0.2*$K41,(D$106-0.2*$K41)^2/(D$106+0.8*$K41),0) -> 0 | E111: =IF(E$106>0.2*$K41,(E$106-0.2*$K41)^2/(E$106+0.8*$K41),0) -> 0 | F111: =IF(F$106>0.2*$K41,(F$106-0.2*$K41)^2/(F$106+0.8*$K41),0) -> 0 | G111: =IF(G$106>0.2*$K41,(G$106-0.2*$K41)^2/(G$106+0.8*$K41),0) -> 0 | R111: =IF('DB 4'!D$106>0.2*($W111),('DB 4'!D$106-0.2*($W111))^2/('DB 4'!D$106+0.8*($W111)),0) -> 0 | S111: =IF('DB 4'!E$106>0.2*($W111),('DB 4'!E$106-0.2*($W111))^2/('DB 4'!E$106+0.8*($W111)),0) -> 0 | T111: =IF('DB 4'!F$106>0.2*($W111),('DB 4'!F$106-0.2*($W111))^2/('DB 4'!F$106+0.8*($W111)),0) -> 0 | U111: =IF('DB 4'!G$106>0.2*($W111),('DB 4'!G$106-0.2*($W111))^2/('DB 4'!G$106+0.8*($W111)),0) -> 0 | V111: 25.2 | W111: 29.68253968
A112: Post-Development Runoff Volume (in) with BMPs | D112: =IF(SUM($L$30:$L$36)=0,0,IF(D111>$M$88*12/(SUM($L$30:$L$36)*43560),D111-$M$88*12/(SUM($L$30:$L$36)*43560),0)) -> 0 | E112: =IF(SUM($L$30:$L$36)=0,0,IF(E111>$M$88*12/(SUM($L$30:$L$36)*43560),E111-$M$88*12/(SUM($L$30:$L$36)*43560),0)) -> 0 | F112: =IF(SUM($L$30:$L$36)=0,0,IF(F111>$M$88*12/(SUM($L$30:$L$36)*43560),F111-$M$88*12/(SUM($L$30:$L$36)*43560),0)) -> 0 | G112: =IF(SUM($L$30:$L$36)=0,0,IF(G111>$M$88*12/(SUM($L$30:$L$36)*43560),G111-$M$88*12/(SUM($L$30:$L$36)*43560),0)) -> 0 | R112: =IF('DB 4'!D$106>0.2*($W112),('DB 4'!D$106-0.2*($W112))^2/('DB 4'!D$106+0.8*($W112)),0) -> 0 | S112: =IF('DB 4'!E$106>0.2*($W112),('DB 4'!E$106-0.2*($W112))^2/('DB 4'!E$106+0.8*($W112)),0) -> 0 | T112: =IF('DB 4'!F$106>0.2*($W112),('DB 4'!F$106-0.2*($W112))^2/('DB 4'!F$106+0.8*($W112)),0) -> 0 | U112: =IF('DB 4'!G$106>0.2*($W112),('DB 4'!G$106-0.2*($W112))^2/('DB 4'!G$106+0.8*($W112)),0) -> 0 | V112: 25.3 | W112: 29.5256917
C113: Adjusted CN | D113: =IF(D112>0,VLOOKUP(D112,R$109:$W$859,5),0) -> 0 | E113: =IF(E112>0,VLOOKUP(E112,$S$109:$W$859,4),0) -> 0 | F113: =IF(F112>0,VLOOKUP(F112,$T$109:$W$859,3),0) -> 0 | G113: =IF(G112>0,VLOOKUP(G112,$U$109:$W$859,2),0) -> 0 | R113: =IF('DB 4'!D$106>0.2*($W113),('DB 4'!D$106-0.2*($W113))^2/('DB 4'!D$106+0.8*($W113)),0) -> 0 | S113: =IF('DB 4'!E$106>0.2*($W113),('DB 4'!E$106-0.2*($W113))^2/('DB 4'!E$106+0.8*($W113)),0) -> 0 | T113: =IF('DB 4'!F$106>0.2*($W113),('DB 4'!F$106-0.2*($W113))^2/('DB 4'!F$106+0.8*($W113)),0) -> 0 | U113: =IF('DB 4'!G$106>0.2*($W113),('DB 4'!G$106-0.2*($W113))^2/('DB 4'!G$106+0.8*($W113)),0) -> 0 | V113: 25.4 | W113: 29.37007874
R114: =IF('DB 4'!D$106>0.2*($W114),('DB 4'!D$106-0.2*($W114))^2/('DB 4'!D$106+0.8*($W114)),0) -> 0 | S114: =IF('DB 4'!E$106>0.2*($W114),('DB 4'!E$106-0.2*($W114))^2/('DB 4'!E$106+0.8*($W114)),0) -> 0 | T114: =IF('DB 4'!F$106>0.2*($W114),('DB 4'!F$106-0.2*($W114))^2/('DB 4'!F$106+0.8*($W114)),0) -> 0 | U114: =IF('DB 4'!G$106>0.2*($W114),('DB 4'!G$106-0.2*($W114))^2/('DB 4'!G$106+0.8*($W114)),0) -> 0 | V114: 25.5 | W114: 29.21568627
A115: *See Stormwater Management Standards to Determine Detention Requirements. | R115: =IF('DB 4'!D$106>0.2*($W115),('DB 4'!D$106-0.2*($W115))^2/('DB 4'!D$106+0.8*($W115)),0) -> 0 | S115: =IF('DB 4'!E$106>0.2*($W115),('DB 4'!E$106-0.2*($W115))^2/('DB 4'!E$106+0.8*($W115)),0) -> 0 | T115: =IF('DB 4'!F$106>0.2*($W115),('DB 4'!F$106-0.2*($W115))^2/('DB 4'!F$106+0.8*($W115)),0) -> 0 | U115: =IF('DB 4'!G$106>0.2*($W115),('DB 4'!G$106-0.2*($W115))^2/('DB 4'!G$106+0.8*($W115)),0) -> 0 | V115: 25.6 | W115: 29.0625
R116: =IF('DB 4'!D$106>0.2*($W116),('DB 4'!D$106-0.2*($W116))^2/('DB 4'!D$106+0.8*($W116)),0) -> 0 | S116: =IF('DB 4'!E$106>0.2*($W116),('DB 4'!E$106-0.2*($W116))^2/('DB 4'!E$106+0.8*($W116)),0) -> 0 | T116: =IF('DB 4'!F$106>0.2*($W116),('DB 4'!F$106-0.2*($W116))^2/('DB 4'!F$106+0.8*($W116)),0) -> 0 | U116: =IF('DB 4'!G$106>0.2*($W116),('DB 4'!G$106-0.2*($W116))^2/('DB 4'!G$106+0.8*($W116)),0) -> 0 | V116: 25.7 | W116: 28.91050584
R117: =IF('DB 4'!D$106>0.2*($W117),('DB 4'!D$106-0.2*($W117))^2/('DB 4'!D$106+0.8*($W117)),0) -> 0 | S117: =IF('DB 4'!E$106>0.2*($W117),('DB 4'!E$106-0.2*($W117))^2/('DB 4'!E$106+0.8*($W117)),0) -> 0 | T117: =IF('DB 4'!F$106>0.2*($W117),('DB 4'!F$106-0.2*($W117))^2/('DB 4'!F$106+0.8*($W117)),0) -> 0 | U117: =IF('DB 4'!G$106>0.2*($W117),('DB 4'!G$106-0.2*($W117))^2/('DB 4'!G$106+0.8*($W117)),0) -> 0 | V117: 25.8 | W117: 28.75968992
R118: =IF('DB 4'!D$106>0.2*($W118),('DB 4'!D$106-0.2*($W118))^2/('DB 4'!D$106+0.8*($W118)),0) -> 0 | S118: =IF('DB 4'!E$106>0.2*($W118),('DB 4'!E$106-0.2*($W118))^2/('DB 4'!E$106+0.8*($W118)),0) -> 0 | T118: =IF('DB 4'!F$106>0.2*($W118),('DB 4'!F$106-0.2*($W118))^2/('DB 4'!F$106+0.8*($W118)),0) -> 0 | U118: =IF('DB 4'!G$106>0.2*($W118),('DB 4'!G$106-0.2*($W118))^2/('DB 4'!G$106+0.8*($W118)),0) -> 0 | V118: 25.9 | W118: 28.61003861
A119: Comments | R119: =IF('DB 4'!D$106>0.2*($W119),('DB 4'!D$106-0.2*($W119))^2/('DB 4'!D$106+0.8*($W119)),0) -> 0 | S119: =IF('DB 4'!E$106>0.2*($W119),('DB 4'!E$106-0.2*($W119))^2/('DB 4'!E$106+0.8*($W119)),0) -> 0 | T119: =IF('DB 4'!F$106>0.2*($W119),('DB 4'!F$106-0.2*($W119))^2/('DB 4'!F$106+0.8*($W119)),0) -> 0 | U119: =IF('DB 4'!G$106>0.2*($W119),('DB 4'!G$106-0.2*($W119))^2/('DB 4'!G$106+0.8*($W119)),0) -> 0 | V119: 26 | W119: 28.46153846
R120: =IF('DB 4'!D$106>0.2*($W120),('DB 4'!D$106-0.2*($W120))^2/('DB 4'!D$106+0.8*($W120)),0) -> 0 | S120: =IF('DB 4'!E$106>0.2*($W120),('DB 4'!E$106-0.2*($W120))^2/('DB 4'!E$106+0.8*($W120)),0) -> 0 | T120: =IF('DB 4'!F$106>0.2*($W120),('DB 4'!F$106-0.2*($W120))^2/('DB 4'!F$106+0.8*($W120)),0) -> 0 | U120: =IF('DB 4'!G$106>0.2*($W120),('DB 4'!G$106-0.2*($W120))^2/('DB 4'!G$106+0.8*($W120)),0) -> 0 | V120: 26.1 | W120: 28.31417625
R121: =IF('DB 4'!D$106>0.2*($W121),('DB 4'!D$106-0.2*($W121))^2/('DB 4'!D$106+0.8*($W121)),0) -> 0 | S121: =IF('DB 4'!E$106>0.2*($W121),('DB 4'!E$106-0.2*($W121))^2/('DB 4'!E$106+0.8*($W121)),0) -> 0 | T121: =IF('DB 4'!F$106>0.2*($W121),('DB 4'!F$106-0.2*($W121))^2/('DB 4'!F$106+0.8*($W121)),0) -> 0 | U121: =IF('DB 4'!G$106>0.2*($W121),('DB 4'!G$106-0.2*($W121))^2/('DB 4'!G$106+0.8*($W121)),0) -> 0 | V121: 26.2 | W121: 28.16793893
R122: =IF('DB 4'!D$106>0.2*($W122),('DB 4'!D$106-0.2*($W122))^2/('DB 4'!D$106+0.8*($W122)),0) -> 0 | S122: =IF('DB 4'!E$106>0.2*($W122),('DB 4'!E$106-0.2*($W122))^2/('DB 4'!E$106+0.8*($W122)),0) -> 0 | T122: =IF('DB 4'!F$106>0.2*($W122),('DB 4'!F$106-0.2*($W122))^2/('DB 4'!F$106+0.8*($W122)),0) -> 0 | U122: =IF('DB 4'!G$106>0.2*($W122),('DB 4'!G$106-0.2*($W122))^2/('DB 4'!G$106+0.8*($W122)),0) -> 0 | V122: 26.3 | W122: 28.02281369
R123: =IF('DB 4'!D$106>0.2*($W123),('DB 4'!D$106-0.2*($W123))^2/('DB 4'!D$106+0.8*($W123)),0) -> 0 | S123: =IF('DB 4'!E$106>0.2*($W123),('DB 4'!E$106-0.2*($W123))^2/('DB 4'!E$106+0.8*($W123)),0) -> 0 | T123: =IF('DB 4'!F$106>0.2*($W123),('DB 4'!F$106-0.2*($W123))^2/('DB 4'!F$106+0.8*($W123)),0) -> 0 | U123: =IF('DB 4'!G$106>0.2*($W123),('DB 4'!G$106-0.2*($W123))^2/('DB 4'!G$106+0.8*($W123)),0) -> 0 | V123: =V122+0.1 -> 26.4 | W123: 27.87878788
R124: =IF('DB 4'!D$106>0.2*($W124),('DB 4'!D$106-0.2*($W124))^2/('DB 4'!D$106+0.8*($W124)),0) -> 0 | S124: =IF('DB 4'!E$106>0.2*($W124),('DB 4'!E$106-0.2*($W124))^2/('DB 4'!E$106+0.8*($W124)),0) -> 0 | T124: =IF('DB 4'!F$106>0.2*($W124),('DB 4'!F$106-0.2*($W124))^2/('DB 4'!F$106+0.8*($W124)),0) -> 0 | U124: =IF('DB 4'!G$106>0.2*($W124),('DB 4'!G$106-0.2*($W124))^2/('DB 4'!G$106+0.8*($W124)),0) -> 0 | V124: 26.5 | W124: 27.73584906
R125: =IF('DB 4'!D$106>0.2*($W125),('DB 4'!D$106-0.2*($W125))^2/('DB 4'!D$106+0.8*($W125)),0) -> 0 | S125: =IF('DB 4'!E$106>0.2*($W125),('DB 4'!E$106-0.2*($W125))^2/('DB 4'!E$106+0.8*($W125)),0) -> 0 | T125: =IF('DB 4'!F$106>0.2*($W125),('DB 4'!F$106-0.2*($W125))^2/('DB 4'!F$106+0.8*($W125)),0) -> 0 | U125: =IF('DB 4'!G$106>0.2*($W125),('DB 4'!G$106-0.2*($W125))^2/('DB 4'!G$106+0.8*($W125)),0) -> 0 | V125: 26.6 | W125: 27.59398496
R126: =IF('DB 4'!D$106>0.2*($W126),('DB 4'!D$106-0.2*($W126))^2/('DB 4'!D$106+0.8*($W126)),0) -> 0 | S126: =IF('DB 4'!E$106>0.2*($W126),('DB 4'!E$106-0.2*($W126))^2/('DB 4'!E$106+0.8*($W126)),0) -> 0 | T126: =IF('DB 4'!F$106>0.2*($W126),('DB 4'!F$106-0.2*($W126))^2/('DB 4'!F$106+0.8*($W126)),0) -> 0 | U126: =IF('DB 4'!G$106>0.2*($W126),('DB 4'!G$106-0.2*($W126))^2/('DB 4'!G$106+0.8*($W126)),0) -> 0 | V126: 26.7 | W126: 27.45318352
R127: =IF('DB 4'!D$106>0.2*($W127),('DB 4'!D$106-0.2*($W127))^2/('DB 4'!D$106+0.8*($W127)),0) -> 0 | S127: =IF('DB 4'!E$106>0.2*($W127),('DB 4'!E$106-0.2*($W127))^2/('DB 4'!E$106+0.8*($W127)),0) -> 0 | T127: =IF('DB 4'!F$106>0.2*($W127),('DB 4'!F$106-0.2*($W127))^2/('DB 4'!F$106+0.8*($W127)),0) -> 0 | U127: =IF('DB 4'!G$106>0.2*($W127),('DB 4'!G$106-0.2*($W127))^2/('DB 4'!G$106+0.8*($W127)),0) -> 0 | V127: 26.8 | W127: 27.31343284
R128: =IF('DB 4'!D$106>0.2*($W128),('DB 4'!D$106-0.2*($W128))^2/('DB 4'!D$106+0.8*($W128)),0) -> 0 | S128: =IF('DB 4'!E$106>0.2*($W128),('DB 4'!E$106-0.2*($W128))^2/('DB 4'!E$106+0.8*($W128)),0) -> 0 | T128: =IF('DB 4'!F$106>0.2*($W128),('DB 4'!F$106-0.2*($W128))^2/('DB 4'!F$106+0.8*($W128)),0) -> 0 | U128: =IF('DB 4'!G$106>0.2*($W128),('DB 4'!G$106-0.2*($W128))^2/('DB 4'!G$106+0.8*($W128)),0) -> 0 | V128: 26.9 | W128: 27.17472119
R129: =IF('DB 4'!D$106>0.2*($W129),('DB 4'!D$106-0.2*($W129))^2/('DB 4'!D$106+0.8*($W129)),0) -> 0 | S129: =IF('DB 4'!E$106>0.2*($W129),('DB 4'!E$106-0.2*($W129))^2/('DB 4'!E$106+0.8*($W129)),0) -> 0 | T129: =IF('DB 4'!F$106>0.2*($W129),('DB 4'!F$106-0.2*($W129))^2/('DB 4'!F$106+0.8*($W129)),0) -> 0 | U129: =IF('DB 4'!G$106>0.2*($W129),('DB 4'!G$106-0.2*($W129))^2/('DB 4'!G$106+0.8*($W129)),0) -> 0 | V129: 27 | W129: 27.03703704
R130: =IF('DB 4'!D$106>0.2*($W130),('DB 4'!D$106-0.2*($W130))^2/('DB 4'!D$106+0.8*($W130)),0) -> 0 | S130: =IF('DB 4'!E$106>0.2*($W130),('DB 4'!E$106-0.2*($W130))^2/('DB 4'!E$106+0.8*($W130)),0) -> 0 | T130: =IF('DB 4'!F$106>0.2*($W130),('DB 4'!F$106-0.2*($W130))^2/('DB 4'!F$106+0.8*($W130)),0) -> 0 | U130: =IF('DB 4'!G$106>0.2*($W130),('DB 4'!G$106-0.2*($W130))^2/('DB 4'!G$106+0.8*($W130)),0) -> 0 | V130: 27.1 | W130: 26.900369
R131: =IF('DB 4'!D$106>0.2*($W131),('DB 4'!D$106-0.2*($W131))^2/('DB 4'!D$106+0.8*($W131)),0) -> 0 | S131: =IF('DB 4'!E$106>0.2*($W131),('DB 4'!E$106-0.2*($W131))^2/('DB 4'!E$106+0.8*($W131)),0) -> 0 | T131: =IF('DB 4'!F$106>0.2*($W131),('DB 4'!F$106-0.2*($W131))^2/('DB 4'!F$106+0.8*($W131)),0) -> 0 | U131: =IF('DB 4'!G$106>0.2*($W131),('DB 4'!G$106-0.2*($W131))^2/('DB 4'!G$106+0.8*($W131)),0) -> 0 | V131: 27.2 | W131: 26.76470588
A132: =IF(G59=0,"","A RECORDED CONSERVATION EASEMENT OR SIMILAR FORM OF PROTECTION IS REQUIRED FOR THIS PROJECT") ->  | R132: =IF('DB 4'!D$106>0.2*($W132),('DB 4'!D$106-0.2*($W132))^2/('DB 4'!D$106+0.8*($W132)),0) -> 0 | S132: =IF('DB 4'!E$106>0.2*($W132),('DB 4'!E$106-0.2*($W132))^2/('DB 4'!E$106+0.8*($W132)),0) -> 0 | T132: =IF('DB 4'!F$106>0.2*($W132),('DB 4'!F$106-0.2*($W132))^2/('DB 4'!F$106+0.8*($W132)),0) -> 0 | U132: =IF('DB 4'!G$106>0.2*($W132),('DB 4'!G$106-0.2*($W132))^2/('DB 4'!G$106+0.8*($W132)),0) -> 0 | V132: 27.3 | W132: 26.63003663
R133: =IF('DB 4'!D$106>0.2*($W133),('DB 4'!D$106-0.2*($W133))^2/('DB 4'!D$106+0.8*($W133)),0) -> 0 | S133: =IF('DB 4'!E$106>0.2*($W133),('DB 4'!E$106-0.2*($W133))^2/('DB 4'!E$106+0.8*($W133)),0) -> 0 | T133: =IF('DB 4'!F$106>0.2*($W133),('DB 4'!F$106-0.2*($W133))^2/('DB 4'!F$106+0.8*($W133)),0) -> 0 | U133: =IF('DB 4'!G$106>0.2*($W133),('DB 4'!G$106-0.2*($W133))^2/('DB 4'!G$106+0.8*($W133)),0) -> 0 | V133: 27.4 | W133: 26.49635036
R134: =IF('DB 4'!D$106>0.2*($W134),('DB 4'!D$106-0.2*($W134))^2/('DB 4'!D$106+0.8*($W134)),0) -> 0 | S134: =IF('DB 4'!E$106>0.2*($W134),('DB 4'!E$106-0.2*($W134))^2/('DB 4'!E$106+0.8*($W134)),0) -> 0 | T134: =IF('DB 4'!F$106>0.2*($W134),('DB 4'!F$106-0.2*($W134))^2/('DB 4'!F$106+0.8*($W134)),0) -> 0 | U134: =IF('DB 4'!G$106>0.2*($W134),('DB 4'!G$106-0.2*($W134))^2/('DB 4'!G$106+0.8*($W134)),0) -> 0 | V134: 27.5 | W134: 26.36363636
R135: =IF('DB 4'!D$106>0.2*($W135),('DB 4'!D$106-0.2*($W135))^2/('DB 4'!D$106+0.8*($W135)),0) -> 0 | S135: =IF('DB 4'!E$106>0.2*($W135),('DB 4'!E$106-0.2*($W135))^2/('DB 4'!E$106+0.8*($W135)),0) -> 0 | T135: =IF('DB 4'!F$106>0.2*($W135),('DB 4'!F$106-0.2*($W135))^2/('DB 4'!F$106+0.8*($W135)),0) -> 0 | U135: =IF('DB 4'!G$106>0.2*($W135),('DB 4'!G$106-0.2*($W135))^2/('DB 4'!G$106+0.8*($W135)),0) -> 0 | V135: 27.6 | W135: 26.23188406
R136: =IF('DB 4'!D$106>0.2*($W136),('DB 4'!D$106-0.2*($W136))^2/('DB 4'!D$106+0.8*($W136)),0) -> 0 | S136: =IF('DB 4'!E$106>0.2*($W136),('DB 4'!E$106-0.2*($W136))^2/('DB 4'!E$106+0.8*($W136)),0) -> 0 | T136: =IF('DB 4'!F$106>0.2*($W136),('DB 4'!F$106-0.2*($W136))^2/('DB 4'!F$106+0.8*($W136)),0) -> 0 | U136: =IF('DB 4'!G$106>0.2*($W136),('DB 4'!G$106-0.2*($W136))^2/('DB 4'!G$106+0.8*($W136)),0) -> 0 | V136: 27.7 | W136: 26.10108303
R137: =IF('DB 4'!D$106>0.2*($W137),('DB 4'!D$106-0.2*($W137))^2/('DB 4'!D$106+0.8*($W137)),0) -> 0 | S137: =IF('DB 4'!E$106>0.2*($W137),('DB 4'!E$106-0.2*($W137))^2/('DB 4'!E$106+0.8*($W137)),0) -> 0 | T137: =IF('DB 4'!F$106>0.2*($W137),('DB 4'!F$106-0.2*($W137))^2/('DB 4'!F$106+0.8*($W137)),0) -> 0 | U137: =IF('DB 4'!G$106>0.2*($W137),('DB 4'!G$106-0.2*($W137))^2/('DB 4'!G$106+0.8*($W137)),0) -> 0 | V137: 27.8 | W137: 25.97122302
R138: =IF('DB 4'!D$106>0.2*($W138),('DB 4'!D$106-0.2*($W138))^2/('DB 4'!D$106+0.8*($W138)),0) -> 0 | S138: =IF('DB 4'!E$106>0.2*($W138),('DB 4'!E$106-0.2*($W138))^2/('DB 4'!E$106+0.8*($W138)),0) -> 0 | T138: =IF('DB 4'!F$106>0.2*($W138),('DB 4'!F$106-0.2*($W138))^2/('DB 4'!F$106+0.8*($W138)),0) -> 0 | U138: =IF('DB 4'!G$106>0.2*($W138),('DB 4'!G$106-0.2*($W138))^2/('DB 4'!G$106+0.8*($W138)),0) -> 0 | V138: 27.9 | W138: 25.84229391
R139: =IF('DB 4'!D$106>0.2*($W139),('DB 4'!D$106-0.2*($W139))^2/('DB 4'!D$106+0.8*($W139)),0) -> 0 | S139: =IF('DB 4'!E$106>0.2*($W139),('DB 4'!E$106-0.2*($W139))^2/('DB 4'!E$106+0.8*($W139)),0) -> 0 | T139: =IF('DB 4'!F$106>0.2*($W139),('DB 4'!F$106-0.2*($W139))^2/('DB 4'!F$106+0.8*($W139)),0) -> 0 | U139: =IF('DB 4'!G$106>0.2*($W139),('DB 4'!G$106-0.2*($W139))^2/('DB 4'!G$106+0.8*($W139)),0) -> 0 | V139: 28 | W139: 25.71428571
R140: =IF('DB 4'!D$106>0.2*($W140),('DB 4'!D$106-0.2*($W140))^2/('DB 4'!D$106+0.8*($W140)),0) -> 0 | S140: =IF('DB 4'!E$106>0.2*($W140),('DB 4'!E$106-0.2*($W140))^2/('DB 4'!E$106+0.8*($W140)),0) -> 0 | T140: =IF('DB 4'!F$106>0.2*($W140),('DB 4'!F$106-0.2*($W140))^2/('DB 4'!F$106+0.8*($W140)),0) -> 0 | U140: =IF('DB 4'!G$106>0.2*($W140),('DB 4'!G$106-0.2*($W140))^2/('DB 4'!G$106+0.8*($W140)),0) -> 0 | V140: 28.1 | W140: 25.58718861
R141: =IF('DB 4'!D$106>0.2*($W141),('DB 4'!D$106-0.2*($W141))^2/('DB 4'!D$106+0.8*($W141)),0) -> 0 | S141: =IF('DB 4'!E$106>0.2*($W141),('DB 4'!E$106-0.2*($W141))^2/('DB 4'!E$106+0.8*($W141)),0) -> 0 | T141: =IF('DB 4'!F$106>0.2*($W141),('DB 4'!F$106-0.2*($W141))^2/('DB 4'!F$106+0.8*($W141)),0) -> 0 | U141: =IF('DB 4'!G$106>0.2*($W141),('DB 4'!G$106-0.2*($W141))^2/('DB 4'!G$106+0.8*($W141)),0) -> 0 | V141: 28.2 | W141: 25.46099291
R142: =IF('DB 4'!D$106>0.2*($W142),('DB 4'!D$106-0.2*($W142))^2/('DB 4'!D$106+0.8*($W142)),0) -> 0 | S142: =IF('DB 4'!E$106>0.2*($W142),('DB 4'!E$106-0.2*($W142))^2/('DB 4'!E$106+0.8*($W142)),0) -> 0 | T142: =IF('DB 4'!F$106>0.2*($W142),('DB 4'!F$106-0.2*($W142))^2/('DB 4'!F$106+0.8*($W142)),0) -> 0 | U142: =IF('DB 4'!G$106>0.2*($W142),('DB 4'!G$106-0.2*($W142))^2/('DB 4'!G$106+0.8*($W142)),0) -> 0 | V142: 28.3 | W142: 25.33568905
R143: =IF('DB 4'!D$106>0.2*($W143),('DB 4'!D$106-0.2*($W143))^2/('DB 4'!D$106+0.8*($W143)),0) -> 0 | S143: =IF('DB 4'!E$106>0.2*($W143),('DB 4'!E$106-0.2*($W143))^2/('DB 4'!E$106+0.8*($W143)),0) -> 0 | T143: =IF('DB 4'!F$106>0.2*($W143),('DB 4'!F$106-0.2*($W143))^2/('DB 4'!F$106+0.8*($W143)),0) -> 0 | U143: =IF('DB 4'!G$106>0.2*($W143),('DB 4'!G$106-0.2*($W143))^2/('DB 4'!G$106+0.8*($W143)),0) -> 0 | V143: 28.4 | W143: 25.21126761
R144: =IF('DB 4'!D$106>0.2*($W144),('DB 4'!D$106-0.2*($W144))^2/('DB 4'!D$106+0.8*($W144)),0) -> 0 | S144: =IF('DB 4'!E$106>0.2*($W144),('DB 4'!E$106-0.2*($W144))^2/('DB 4'!E$106+0.8*($W144)),0) -> 0 | T144: =IF('DB 4'!F$106>0.2*($W144),('DB 4'!F$106-0.2*($W144))^2/('DB 4'!F$106+0.8*($W144)),0) -> 0 | U144: =IF('DB 4'!G$106>0.2*($W144),('DB 4'!G$106-0.2*($W144))^2/('DB 4'!G$106+0.8*($W144)),0) -> 0 | V144: 28.5 | W144: 25.0877193
R145: =IF('DB 4'!D$106>0.2*($W145),('DB 4'!D$106-0.2*($W145))^2/('DB 4'!D$106+0.8*($W145)),0) -> 0 | S145: =IF('DB 4'!E$106>0.2*($W145),('DB 4'!E$106-0.2*($W145))^2/('DB 4'!E$106+0.8*($W145)),0) -> 0 | T145: =IF('DB 4'!F$106>0.2*($W145),('DB 4'!F$106-0.2*($W145))^2/('DB 4'!F$106+0.8*($W145)),0) -> 0 | U145: =IF('DB 4'!G$106>0.2*($W145),('DB 4'!G$106-0.2*($W145))^2/('DB 4'!G$106+0.8*($W145)),0) -> 0 | V145: 28.6 | W145: 24.96503497
R146: =IF('DB 4'!D$106>0.2*($W146),('DB 4'!D$106-0.2*($W146))^2/('DB 4'!D$106+0.8*($W146)),0) -> 0 | S146: =IF('DB 4'!E$106>0.2*($W146),('DB 4'!E$106-0.2*($W146))^2/('DB 4'!E$106+0.8*($W146)),0) -> 0 | T146: =IF('DB 4'!F$106>0.2*($W146),('DB 4'!F$106-0.2*($W146))^2/('DB 4'!F$106+0.8*($W146)),0) -> 0 | U146: =IF('DB 4'!G$106>0.2*($W146),('DB 4'!G$106-0.2*($W146))^2/('DB 4'!G$106+0.8*($W146)),0) -> 0 | V146: 28.7 | W146: 24.84320557
R147: =IF('DB 4'!D$106>0.2*($W147),('DB 4'!D$106-0.2*($W147))^2/('DB 4'!D$106+0.8*($W147)),0) -> 0 | S147: =IF('DB 4'!E$106>0.2*($W147),('DB 4'!E$106-0.2*($W147))^2/('DB 4'!E$106+0.8*($W147)),0) -> 0 | T147: =IF('DB 4'!F$106>0.2*($W147),('DB 4'!F$106-0.2*($W147))^2/('DB 4'!F$106+0.8*($W147)),0) -> 0 | U147: =IF('DB 4'!G$106>0.2*($W147),('DB 4'!G$106-0.2*($W147))^2/('DB 4'!G$106+0.8*($W147)),0) -> 0 | V147: 28.8 | W147: 24.72222222
R148: =IF('DB 4'!D$106>0.2*($W148),('DB 4'!D$106-0.2*($W148))^2/('DB 4'!D$106+0.8*($W148)),0) -> 0 | S148: =IF('DB 4'!E$106>0.2*($W148),('DB 4'!E$106-0.2*($W148))^2/('DB 4'!E$106+0.8*($W148)),0) -> 0 | T148: =IF('DB 4'!F$106>0.2*($W148),('DB 4'!F$106-0.2*($W148))^2/('DB 4'!F$106+0.8*($W148)),0) -> 0 | U148: =IF('DB 4'!G$106>0.2*($W148),('DB 4'!G$106-0.2*($W148))^2/('DB 4'!G$106+0.8*($W148)),0) -> 0 | V148: 28.9 | W148: 24.60207612
R149: =IF('DB 4'!D$106>0.2*($W149),('DB 4'!D$106-0.2*($W149))^2/('DB 4'!D$106+0.8*($W149)),0) -> 0 | S149: =IF('DB 4'!E$106>0.2*($W149),('DB 4'!E$106-0.2*($W149))^2/('DB 4'!E$106+0.8*($W149)),0) -> 0 | T149: =IF('DB 4'!F$106>0.2*($W149),('DB 4'!F$106-0.2*($W149))^2/('DB 4'!F$106+0.8*($W149)),0) -> 0 | U149: =IF('DB 4'!G$106>0.2*($W149),('DB 4'!G$106-0.2*($W149))^2/('DB 4'!G$106+0.8*($W149)),0) -> 0 | V149: 29 | W149: 24.48275862
R150: =IF('DB 4'!D$106>0.2*($W150),('DB 4'!D$106-0.2*($W150))^2/('DB 4'!D$106+0.8*($W150)),0) -> 0 | S150: =IF('DB 4'!E$106>0.2*($W150),('DB 4'!E$106-0.2*($W150))^2/('DB 4'!E$106+0.8*($W150)),0) -> 0 | T150: =IF('DB 4'!F$106>0.2*($W150),('DB 4'!F$106-0.2*($W150))^2/('DB 4'!F$106+0.8*($W150)),0) -> 0 | U150: =IF('DB 4'!G$106>0.2*($W150),('DB 4'!G$106-0.2*($W150))^2/('DB 4'!G$106+0.8*($W150)),0) -> 0 | V150: =V149+0.1 -> 29.1 | W150: 24.36426117
